Workbook

Sheet ReadMe
B1: ReadMe | D1: =IF($L$3="English",$E$1,IF($L$3="French",$G$1,IF($L$3="Dutch",$I$1,$E$1))) -> 4 | E1: 2 | F1: 3 | G1: 4 | H1: 5 | I1: 6 | J1: 7 | K1: ="Revision FP : "&LOOKUP(2,1/(TableReadMeHistoric[Revision]<>""),TableReadMeHistoric[Revision]) -> Revision FP : v2.12 | N1: =IF($L$3="English",$E$1,IF($L$3="French",$G$1,IF($L$3="Dutch",$I$1,$E$1))) -> 4 | O1: =N1+1 -> 5
K2: ReadMe
K3: Set your language | L3: French | M3: =IF($L$3="English",3,IF($L$3="French",4,IF($L$3="Dutch",5,1))) -> 4
B5: TableReadMeAdminStatus | D5: TableReadMeStatus
B6: Status | D6: Reference | E6: English Description | F6: English Comment | G6: French Description | H6: French Comment | I6: Dutch Description | J6: Dutch Comment | K6: Sheet Tab Name | L6: Sheet Status | M6: Sheet Instructions | N6: Sheet Description | O6: Sheet Comment
B7: Completed | D7: ReadMe | E7: Workbook content and file version | F7: Info sheet | G7: Contenu du classeur et version du fichier | H7: Fiche d'information | I7: Inhoud van het werkboek en bestandsversie | J7: Informatieblad | K7: ReadMe | L7: Completed | M7: Completed | N7: =IF(ISERROR(VLOOKUP($K7,TableReadMeStatus[],$N$1,FALSE)),"",VLOOKUP($K7,TableReadMeStatus[],$N$1,FALSE)) -> Contenu du classeur et version du fichier | O7: =IF(ISERROR(VLOOKUP($K7,TableReadMeStatus[],$O$1,FALSE)),"",VLOOKUP($K7,TableReadMeStatus[],$O$1,FALSE)) -> Fiche d'information
B8: In Construction | D8: Instructions | E8: Instructions sheet | F8: Info sheet | G8: Feuille d'instructions | H8: Fiche d'information | I8: Instructieblad | J8: Informatieblad | K8: Instructions | L8: Completed | M8: Completed | N8: =IF(ISERROR(VLOOKUP($K8,TableReadMeStatus[],$N$1,FALSE)),"",VLOOKUP($K8,TableReadMeStatus[],$N$1,FALSE)) -> Feuille d'instructions | O8: =IF(ISERROR(VLOOKUP($K8,TableReadMeStatus[],$O$1,FALSE)),"",VLOOKUP($K8,TableReadMeStatus[],$O$1,FALSE)) -> Fiche d'information
B9: In Debugging | D9: InputsData | E9: Setup sheet | F9: Input sheet | G9: Feuille de configuration | H9: Fiche de saisie | I9: Configuratieblad | J9: Invoerblad | K9: InputsData | L9: Completed | M9: Completed | N9: =IF(ISERROR(VLOOKUP($K9,TableReadMeStatus[],$N$1,FALSE)),"",VLOOKUP($K9,TableReadMeStatus[],$N$1,FALSE)) -> Feuille de configuration | O9: =IF(ISERROR(VLOOKUP($K9,TableReadMeStatus[],$O$1,FALSE)),"",VLOOKUP($K9,TableReadMeStatus[],$O$1,FALSE)) -> Fiche de saisie
D10: RevenueData | E10: Revenue Table | F10: Input sheet | G10: Tableau des recettes | H10: Fiche de saisie | I10: Omzet tabel | J10: Invoerblad | K10: RevenueData | L10: Completed | M10: Completed | N10: =IF(ISERROR(VLOOKUP($K10,TableReadMeStatus[],$N$1,FALSE)),"",VLOOKUP($K10,TableReadMeStatus[],$N$1,FALSE)) -> Tableau des recettes | O10: =IF(ISERROR(VLOOKUP($K10,TableReadMeStatus[],$O$1,FALSE)),"",VLOOKUP($K10,TableReadMeStatus[],$O$1,FALSE)) -> Fiche de saisie
D11: RevenuePivot | E11: Revenue Pivot Tables | F11: Pivot sheet | G11: Tableaux croisés dynamiques des recettes | H11: Fiche pivot | I11: Omzet draaitabellen | J11: Draaitabelblad | K11: RevenuePivot | L11: Completed | M11: Completed | N11: =IF(ISERROR(VLOOKUP($K11,TableReadMeStatus[],$N$1,FALSE)),"",VLOOKUP($K11,TableReadMeStatus[],$N$1,FALSE)) -> Tableaux croisés dynamiques des recettes | O11: =IF(ISERROR(VLOOKUP($K11,TableReadMeStatus[],$O$1,FALSE)),"",VLOOKUP($K11,TableReadMeStatus[],$O$1,FALSE)) -> Fiche pivot
D12: RevenueChart | E12: Revenue Chart | F12: Chart sheet | G12: Graphique des recettes | H12: Fiche graphique | I12: Omzet grafiek | J12: Grafiekblad | K12: RevenueChart | L12: Completed | M12: Completed | N12: =IF(ISERROR(VLOOKUP($K12,TableReadMeStatus[],$N$1,FALSE)),"",VLOOKUP($K12,TableReadMeStatus[],$N$1,FALSE)) -> Graphique des recettes | O12: =IF(ISERROR(VLOOKUP($K12,TableReadMeStatus[],$O$1,FALSE)),"",VLOOKUP($K12,TableReadMeStatus[],$O$1,FALSE)) -> Fiche graphique
D13: FinanceData | E13: Financial Plan Table | F13: Input sheet | G13: Tableau du plan financier | H13: Fiche de saisie | I13: Financieel plan tabel | J13: Invoerblad | K13: FinanceData | L13: Completed | M13: Completed | N13: =IF(ISERROR(VLOOKUP($K13,TableReadMeStatus[],$N$1,FALSE)),"",VLOOKUP($K13,TableReadMeStatus[],$N$1,FALSE)) -> Tableau du plan financier | O13: =IF(ISERROR(VLOOKUP($K13,TableReadMeStatus[],$O$1,FALSE)),"",VLOOKUP($K13,TableReadMeStatus[],$O$1,FALSE)) -> Fiche de saisie
D14: FinancePivot | E14: Financial Pivot Tables | F14: Pivot sheet | G14: Tableaux croisés dynamiques financiers | H14: Fiche pivot | I14: Financiële draaitabellen | J14: Draaitabelblad | K14: FinancePivot | L14: Completed | M14: Completed | N14: =IF(ISERROR(VLOOKUP($K14,TableReadMeStatus[],$N$1,FALSE)),"",VLOOKUP($K14,TableReadMeStatus[],$N$1,FALSE)) -> Tableaux croisés dynamiques financiers | O14: =IF(ISERROR(VLOOKUP($K14,TableReadMeStatus[],$O$1,FALSE)),"",VLOOKUP($K14,TableReadMeStatus[],$O$1,FALSE)) -> Fiche pivot
D15: FinanceChart | E15: Financial Chart | F15: Chart sheet | G15: Graphique financier | H15: Fiche graphique | I15: Financiële grafiek | J15: Grafiekblad | K15: FinanceChart | L15: Completed | M15: Completed | N15: =IF(ISERROR(VLOOKUP($K15,TableReadMeStatus[],$N$1,FALSE)),"",VLOOKUP($K15,TableReadMeStatus[],$N$1,FALSE)) -> Graphique financier | O15: =IF(ISERROR(VLOOKUP($K15,TableReadMeStatus[],$O$1,FALSE)),"",VLOOKUP($K15,TableReadMeStatus[],$O$1,FALSE)) -> Fiche graphique
D16: FinanceEUR | E16: Financial Overview in EUR for investors | F16: Summary sheet | G16: Aperçu financier en EUR pour investisseurs | H16: Fiche récapitulative | I16: Financieel overzicht in EUR voor beleggers | J16: Overzichtsblad | K16: FinanceEUR | L16: Completed | M16: Completed | N16: =IF(ISERROR(VLOOKUP($K16,TableReadMeStatus[],$N$1,FALSE)),"",VLOOKUP($K16,TableReadMeStatus[],$N$1,FALSE)) -> Aperçu financier en EUR pour investisseurs | O16: =IF(ISERROR(VLOOKUP($K16,TableReadMeStatus[],$O$1,FALSE)),"",VLOOKUP($K16,TableReadMeStatus[],$O$1,FALSE)) -> Fiche récapitulative
N17: =IF(ISERROR(VLOOKUP($K17,TableReadMeStatus[],$N$1,FALSE)),"",VLOOKUP($K17,TableReadMeStatus[],$N$1,FALSE)) ->  | O17: =IF(ISERROR(VLOOKUP($K17,TableReadMeStatus[],$O$1,FALSE)),"",VLOOKUP($K17,TableReadMeStatus[],$O$1,FALSE)) -> 
N18: =IF(ISERROR(VLOOKUP($K18,TableReadMeStatus[],$N$1,FALSE)),"",VLOOKUP($K18,TableReadMeStatus[],$N$1,FALSE)) ->  | O18: =IF(ISERROR(VLOOKUP($K18,TableReadMeStatus[],$O$1,FALSE)),"",VLOOKUP($K18,TableReadMeStatus[],$O$1,FALSE)) -> 
N19: =IF(ISERROR(VLOOKUP($K19,TableReadMeStatus[],$N$1,FALSE)),"",VLOOKUP($K19,TableReadMeStatus[],$N$1,FALSE)) ->  | O19: =IF(ISERROR(VLOOKUP($K19,TableReadMeStatus[],$O$1,FALSE)),"",VLOOKUP($K19,TableReadMeStatus[],$O$1,FALSE)) -> 
N20: =IF(ISERROR(VLOOKUP($K20,TableReadMeStatus[],$N$1,FALSE)),"",VLOOKUP($K20,TableReadMeStatus[],$N$1,FALSE)) ->  | O20: =IF(ISERROR(VLOOKUP($K20,TableReadMeStatus[],$O$1,FALSE)),"",VLOOKUP($K20,TableReadMeStatus[],$O$1,FALSE)) -> 
N21: =IF(ISERROR(VLOOKUP($K21,TableReadMeStatus[],$N$1,FALSE)),"",VLOOKUP($K21,TableReadMeStatus[],$N$1,FALSE)) ->  | O21: =IF(ISERROR(VLOOKUP($K21,TableReadMeStatus[],$O$1,FALSE)),"",VLOOKUP($K21,TableReadMeStatus[],$O$1,FALSE)) -> 
N22: =IF(ISERROR(VLOOKUP($K22,TableReadMeStatus[],$N$1,FALSE)),"",VLOOKUP($K22,TableReadMeStatus[],$N$1,FALSE)) ->  | O22: =IF(ISERROR(VLOOKUP($K22,TableReadMeStatus[],$O$1,FALSE)),"",VLOOKUP($K22,TableReadMeStatus[],$O$1,FALSE)) -> 
N23: =IF(ISERROR(VLOOKUP($K23,TableReadMeStatus[],$N$1,FALSE)),"",VLOOKUP($K23,TableReadMeStatus[],$N$1,FALSE)) ->  | O23: =IF(ISERROR(VLOOKUP($K23,TableReadMeStatus[],$O$1,FALSE)),"",VLOOKUP($K23,TableReadMeStatus[],$O$1,FALSE)) -> 
N24: =IF(ISERROR(VLOOKUP($K24,TableReadMeStatus[],$N$1,FALSE)),"",VLOOKUP($K24,TableReadMeStatus[],$N$1,FALSE)) ->  | O24: =IF(ISERROR(VLOOKUP($K24,TableReadMeStatus[],$O$1,FALSE)),"",VLOOKUP($K24,TableReadMeStatus[],$O$1,FALSE)) -> 
N25: =IF(ISERROR(VLOOKUP($K25,TableReadMeStatus[],$N$1,FALSE)),"",VLOOKUP($K25,TableReadMeStatus[],$N$1,FALSE)) ->  | O25: =IF(ISERROR(VLOOKUP($K25,TableReadMeStatus[],$O$1,FALSE)),"",VLOOKUP($K25,TableReadMeStatus[],$O$1,FALSE)) -> 
N26: =IF(ISERROR(VLOOKUP($K26,TableReadMeStatus[],$N$1,FALSE)),"",VLOOKUP($K26,TableReadMeStatus[],$N$1,FALSE)) ->  | O26: =IF(ISERROR(VLOOKUP($K26,TableReadMeStatus[],$O$1,FALSE)),"",VLOOKUP($K26,TableReadMeStatus[],$O$1,FALSE)) -> 
N27: =IF(ISERROR(VLOOKUP($K27,TableReadMeStatus[],$N$1,FALSE)),"",VLOOKUP($K27,TableReadMeStatus[],$N$1,FALSE)) ->  | O27: =IF(ISERROR(VLOOKUP($K27,TableReadMeStatus[],$O$1,FALSE)),"",VLOOKUP($K27,TableReadMeStatus[],$O$1,FALSE)) -> 
N28: =IF(ISERROR(VLOOKUP($K28,TableReadMeStatus[],$N$1,FALSE)),"",VLOOKUP($K28,TableReadMeStatus[],$N$1,FALSE)) ->  | O28: =IF(ISERROR(VLOOKUP($K28,TableReadMeStatus[],$O$1,FALSE)),"",VLOOKUP($K28,TableReadMeStatus[],$O$1,FALSE)) -> 
N29: =IF(ISERROR(VLOOKUP($K29,TableReadMeStatus[],$N$1,FALSE)),"",VLOOKUP($K29,TableReadMeStatus[],$N$1,FALSE)) ->  | O29: =IF(ISERROR(VLOOKUP($K29,TableReadMeStatus[],$O$1,FALSE)),"",VLOOKUP($K29,TableReadMeStatus[],$O$1,FALSE)) -> 
N30: =IF(ISERROR(VLOOKUP($K30,TableReadMeStatus[],$N$1,FALSE)),"",VLOOKUP($K30,TableReadMeStatus[],$N$1,FALSE)) ->  | O30: =IF(ISERROR(VLOOKUP($K30,TableReadMeStatus[],$O$1,FALSE)),"",VLOOKUP($K30,TableReadMeStatus[],$O$1,FALSE)) -> 
N31: =IF(ISERROR(VLOOKUP($K31,TableReadMeStatus[],$N$1,FALSE)),"",VLOOKUP($K31,TableReadMeStatus[],$N$1,FALSE)) ->  | O31: =IF(ISERROR(VLOOKUP($K31,TableReadMeStatus[],$O$1,FALSE)),"",VLOOKUP($K31,TableReadMeStatus[],$O$1,FALSE)) -> 
D33: TableReadMeHistoric | K33: =K1 -> Revision FP : v2.12
D34: Reference | E34: English Description | F34: English Comment | G34: French Description | H34: French Comment | I34: Dutch Description | J34: Dutch Comment | K34: Revision | L34: Date | M34: Author | N34: Content | O34: Comment
D35: v1.01 | E35: Financial plan design | F35: - | G35: Conception du plan financier | H35: - | I35: Ontwerp van het financiële plan | J35: - | K35: v1.01 | L35: 2021-01-26 | M35: Claes Georges | N35: =IF(ISERROR(VLOOKUP($K35,TableReadMeHistoric[],$N$1,FALSE)),"",VLOOKUP($K35,TableReadMeHistoric[],$N$1,FALSE)) -> Conception du plan financier | O35: =IF(ISERROR(VLOOKUP($K35,TableReadMeHistoric[],$O$1,FALSE)),"",VLOOKUP($K35,TableReadMeHistoric[],$O$1,FALSE)) -> -
D36: v1.02 | E36: Financial plan form update | F36: - | G36: Mise à jour du formulaire de plan financier | H36: - | I36: Bijwerking van het financiële planformulier | J36: - | K36: v1.02 | L36: 2024-08-20 | M36: Claes Georges | N36: =IF(ISERROR(VLOOKUP($K36,TableReadMeHistoric[],$N$1,FALSE)),"",VLOOKUP($K36,TableReadMeHistoric[],$N$1,FALSE)) -> Mise à jour du formulaire de plan financier | O36: =IF(ISERROR(VLOOKUP($K36,TableReadMeHistoric[],$O$1,FALSE)),"",VLOOKUP($K36,TableReadMeHistoric[],$O$1,FALSE)) -> -
D37: v2.01 | E37: New financial plan form configuration | F37: Reorganisation of the financial plan, reduction in the number of sheets, addition of dynamic tables and graphs, addition of checks, formatting and layout. | G37: Nouvelle configuration du formulaire de plan financier | H37: Réorganisation du plan financier, réduction du nombre de feuilles, ajouts de tableaux dynamiques et graphes, ajouts de check, formatting et mise en page | I37: Nieuwe configuratie van het financiële planformulier | J37: Reorganisatie van het financiële plan, vermindering van het aantal bladen, toevoeging van dynamische tabellen en grafieken, toevoeging van checklists, opmaak en lay-out. | K37: v2.01 | L37: 2025-07-27 | M37: Beka Jean | N37: =IF(ISERROR(VLOOKUP($K37,TableReadMeHistoric[],$N$1,FALSE)),"",VLOOKUP($K37,TableReadMeHistoric[],$N$1,FALSE)) -> Nouvelle configuration du formulaire de plan financier | O37: =IF(ISERROR(VLOOKUP($K37,TableReadMeHistoric[],$O$1,FALSE)),"",VLOOKUP($K37,TableReadMeHistoric[],$O$1,FALSE)) -> Réorganisation du plan financier, réduction du nombre de feuilles, ajouts de tableaux dynamiques et graphes, ajouts de check, formatting et mise en page
D38: v2.02 | E38: Add a revenue section | F38: - | G38: Ajouter une section recettes | H38: - | I38: Een sectie omzet toevoegen | J38: - | K38: v2.02 | L38: 2025-08-29 | M38: Beka Jean | N38: =IF(ISERROR(VLOOKUP($K38,TableReadMeHistoric[],$N$1,FALSE)),"",VLOOKUP($K38,TableReadMeHistoric[],$N$1,FALSE)) -> Ajouter une section recettes | O38: =IF(ISERROR(VLOOKUP($K38,TableReadMeHistoric[],$O$1,FALSE)),"",VLOOKUP($K38,TableReadMeHistoric[],$O$1,FALSE)) -> -
D39: v2.03 | E39: EN-FR-NL version Workbook protection Best / Worse case simultation | F39: - | G39: Version EN-FR-NL Protection du classeur Simulation du meilleur/pire scénario | H39: - | I39: Versie EN-FR-NL Werkboekbeveiliging Simulatie van beste/slechtste scenario | J39: - | K39: v2.03 | L39: 2025-09-02 | M39: Beka Jean | N39: =IF(ISERROR(VLOOKUP($K39,TableReadMeHistoric[],$N$1,FALSE)),"",VLOOKUP($K39,TableReadMeHistoric[],$N$1,FALSE)) -> Version EN-FR-NL Protection du classeur Simulation du meilleur/pire scénario | O39: =IF(ISERROR(VLOOKUP($K39,TableReadMeHistoric[],$O$1,FALSE)),"",VLOOKUP($K39,TableReadMeHistoric[],$O$1,FALSE)) -> -
D40: v2.04 | E40: Minor modifications | F40: - | G40: Modifications mineures | H40: - | I40: Kleine wijzigingen | J40: - | K40: v2.04 | L40: 2025-09-02 | M40: Beka Jean | N40: =IF(ISERROR(VLOOKUP($K40,TableReadMeHistoric[],$N$1,FALSE)),"",VLOOKUP($K40,TableReadMeHistoric[],$N$1,FALSE)) -> Modifications mineures | O40: =IF(ISERROR(VLOOKUP($K40,TableReadMeHistoric[],$O$1,FALSE)),"",VLOOKUP($K40,TableReadMeHistoric[],$O$1,FALSE)) -> -
D41: v2.05 | E41: Update based on users meeting in Heverlee 24/09/25 | F41: RevenueData change (COGS iso GM, 20 products, range iso lox-medium-high end, channel distribution iso B2B-B2C, …) FinanceData (add social security calculation, ...) Others changes | G41: Mise à jour basée sur la réunion des utilisateurs à Heverlee le 24/09/25 | H41: Modification des données relatives au chiffre d'affaires (COGS iso GM, 20 produits, gamme iso lox-moyen-haut de gamme, canal de distribution iso B2B-B2C, …) Données financières (ajouter le calcul des cotisations sociales, ...) Autres modifications | I41: Update op basis van gebruikersbijeenkomst in Heverlee op 24/09/25 | J41: Wijziging in omzetgegevens (COGS iso GM, 20 producten, assortiment iso lox-medium-high end, distributiekanaal iso B2B-B2C, …) Financiële gegevens (berekening sociale zekerheid toevoegen, ...) Overige wijzigingen | K41: v2.05 | L41: 2025-09-25 | M41: Beka Jean | N41: =IF(ISERROR(VLOOKUP($K41,TableReadMeHistoric[],$N$1,FALSE)),"",VLOOKUP($K41,TableReadMeHistoric[],$N$1,FALSE)) -> Mise à jour basée sur la réunion des utilisateurs à Heverlee le 24/09/25 | O41: =IF(ISERROR(VLOOKUP($K41,TableReadMeHistoric[],$O$1,FALSE)),"",VLOOKUP($K41,TableReadMeHistoric[],$O$1,FALSE)) -> Modification des données relatives au chiffre d'affaires (COGS iso GM, 20 produits, gamme iso lox-moyen-haut de gamme, canal de distribution iso B2B-B2C, …) Données financières (ajouter le calcul des cotisations sociales, ...) Autres modifications
D42: v2.06 | E42: Additional requests change and some sheets small reformatting | F42: Range and distribution channel new setup in InputsData sheet Tax regime conditions Sales and COGS per unit in FinancePivot sheet Instructions sheet completed | G42: Modifications supplémentaires et légères modifications de mise en page de certaines feuilles | H42: Nouvelle configuration de la gamme et du canal de distribution dans la feuille InputsData Conditions du régime fiscal Ventes et coût des ventes par unité dans la feuille FinancePivot Feuille Instructions complétée | I42: Aanvullende verzoeken wijzigen en sommige bladen worden enigszins opnieuw opgemaakt | J42: Nieuw setup assortiment en distributiekanaal in het blad InputsData Fiscale voorwaarden Omzet en COGS per eenheid in het blad FinancePivot Blad Instruction compleet | K42: v2.06 | L42: 2025-10-01 | M42: Beka Jean | N42: =IF(ISERROR(VLOOKUP($K42,TableReadMeHistoric[],$N$1,FALSE)),"",VLOOKUP($K42,TableReadMeHistoric[],$N$1,FALSE)) -> Modifications supplémentaires et légères modifications de mise en page de certaines feuilles | O42: =IF(ISERROR(VLOOKUP($K42,TableReadMeHistoric[],$O$1,FALSE)),"",VLOOKUP($K42,TableReadMeHistoric[],$O$1,FALSE)) -> Nouvelle configuration de la gamme et du canal de distribution dans la feuille InputsData Conditions du régime fiscal Ventes et coût des ventes par unité dans la feuille FinancePivot Feuille Instructions complétée
D43: v2.07 | E43: Additional requests change and some sheets small reformatting | F43: - | G43: Modifications supplémentaires et légères modifications de mise en page de certaines feuilles | H43: - | I43: Aanvullende verzoeken wijzigen en sommige bladen worden enigszins opnieuw opgemaakt | J43: - | K43: v2.07 | L43: 2025-10-11 | M43: Beka Jean | N43: =IF(ISERROR(VLOOKUP($K43,TableReadMeHistoric[],$N$1,FALSE)),"",VLOOKUP($K43,TableReadMeHistoric[],$N$1,FALSE)) -> Modifications supplémentaires et légères modifications de mise en page de certaines feuilles | O43: =IF(ISERROR(VLOOKUP($K43,TableReadMeHistoric[],$O$1,FALSE)),"",VLOOKUP($K43,TableReadMeHistoric[],$O$1,FALSE)) -> -
D44: v2.08 | E44: Additional requests change and some sheets small reformatting | F44: Review loan calculation : error correction, add period of grace option and add interest rate change over the period option | G44: Modifications supplémentaires et légères modifications de mise en page de certaines feuilles | H44: Révision des calculs du prêt : correction d'une erreur, ajout d'une option de délai de grâce et ajout d'une option de modification du taux d'intérêt au cours de la période. | I44: Aanvullende verzoeken wijzigen en sommige bladen worden enigszins opnieuw opgemaakt | J44: Herziening van de leningberekening : foutcorrectie, toevoeging van een optie voor uitstel van betaling en toevoeging van een optie voor rentewijziging gedurende de periode | K44: v2.08 | L44: 2025-10-11 | M44: Beka Jean | N44: =IF(ISERROR(VLOOKUP($K44,TableReadMeHistoric[],$N$1,FALSE)),"",VLOOKUP($K44,TableReadMeHistoric[],$N$1,FALSE)) -> Modifications supplémentaires et légères modifications de mise en page de certaines feuilles | O44: =IF(ISERROR(VLOOKUP($K44,TableReadMeHistoric[],$O$1,FALSE)),"",VLOOKUP($K44,TableReadMeHistoric[],$O$1,FALSE)) -> Révision des calculs du prêt : correction d'une erreur, ajout d'une option de délai de grâce et ajout d'une option de modification du taux d'intérêt au cours de la période.
D45: v2.09 | E45: Additional requests change and some sheets small reformatting | F45: Review best case / worst case : error correction in staff salaries consolidation Section column moved in InputsData sheet FinanceChart sheet translation | G45: Modifications supplémentaires et légères modifications de mise en page de certaines feuilles | H45: Revision du scénario le plus favorable/le plus défavorable : correction d'une erreur dans la consolidation des salaires du personnel Colonne "Section" déplacée dans la feuille InputsData Traduction dans la feuille FinanceChart | I45: Aanvullende verzoeken wijzigen en sommige bladen worden enigszins opnieuw opgemaakt | J45: Herziening van de beste/slechtste geval: foutcorrectie bij consolidatie van personeelssalarissen "Section" kolom verplaatst in InputsData sheet FinanceChart blad vertaling | K45: v2.09 | L45: 2025-10-19 | M45: Beka Jean | N45: =IF(ISERROR(VLOOKUP($K45,TableReadMeHistoric[],$N$1,FALSE)),"",VLOOKUP($K45,TableReadMeHistoric[],$N$1,FALSE)) -> Modifications supplémentaires et légères modifications de mise en page de certaines feuilles | O45: =IF(ISERROR(VLOOKUP($K45,TableReadMeHistoric[],$O$1,FALSE)),"",VLOOKUP($K45,TableReadMeHistoric[],$O$1,FALSE)) -> Revision du scénario le plus favorable/le plus défavorable : correction d'une erreur dans la consolidation des salaires du personnel Colonne "Section" déplacée dans la feuille InputsData Traduction dans la feuille FinanceChart
D46: v2.10 | E46: Two sheets small reformatting | F46: Percentage formatting One pivot table filter formatting | G46: Modifications de formats sur deux feuilles | H46: Formatage des pourcentages Formatage des filtres d'un tableau croisé | I46: Extra vellen kleine herformattering | J46: Percentageopmaak Opmaak van een draaitabelfilter | K46: v2.10 | L46: 2025-10-22 | M46: Beka Jean | N46: =IF(ISERROR(VLOOKUP($K46,TableReadMeHistoric[],$N$1,FALSE)),"",VLOOKUP($K46,TableReadMeHistoric[],$N$1,FALSE)) -> Modifications de formats sur deux feuilles | O46: =IF(ISERROR(VLOOKUP($K46,TableReadMeHistoric[],$O$1,FALSE)),"",VLOOKUP($K46,TableReadMeHistoric[],$O$1,FALSE)) -> Formatage des pourcentages Formatage des filtres d'un tableau croisé
D47: v2.11 | E47: Minor modifications | F47: Cumulated profit/loss end of YEAR-3 Existing loan section added OVO loan application fee added Subsidies added Financial assets added Some formatting | G47: Modifications mineures | H47: Résultat cumulé (bénéfice/perte) fin ANNÉE-3 Paramètres relatifs aux prêts existants ajoutés Paramètres frais de dossier initiaux prêt OVO ajoutés Paramètres subsides ajoutés Immobilisations financières ajoutées Formatage divers | I47: Kleine wijzigingen | J47: Gecumuleerde winst/verlies eind JAAR-3 Bestaande leningsectie toegevoegd Lening van OVO aanvraagkosten vooraf vereist Subsidies toegevoed Financiële activa toegevoed Enkele opmaak | K47: v2.11 | L47: 2026-01-15 | M47: Beka Jean | N47: =IF(ISERROR(VLOOKUP($K47,TableReadMeHistoric[],$N$1,FALSE)),"",VLOOKUP($K47,TableReadMeHistoric[],$N$1,FALSE)) -> Modifications mineures | O47: =IF(ISERROR(VLOOKUP($K47,TableReadMeHistoric[],$O$1,FALSE)),"",VLOOKUP($K47,TableReadMeHistoric[],$O$1,FALSE)) -> Résultat cumulé (bénéfice/perte) fin ANNÉE-3 Paramètres relatifs aux prêts existants ajoutés Paramètres frais de dossier initiaux prêt OVO ajoutés Paramètres subsides ajoutés Immobilisations financières ajoutées Formatage divers
D48: v2.12 | E48: Minor modifications | F48: RevenueData sheet : * Set unit selling price and unit COGS with two decimals * Correct unit COGS average formula RevenuePivot and RevenueChart sheets : * Adjust product/service filter and adjust "gross profit %" format FinanceData sheet : * Tangible Assets / Production Equipment : increase number of lines from 10 to 40 * Working Capital : added Tax and social Debts * Cash Flow / Taxes : freedom to define which years taxes are paid * Cash Flow / Source of Financing : Added current loans * Source of Financing / Year-end Balance sheet formula adjusted Others changes * Add Revision FP number to each sheet * Improve translation reading : Translatation note in RevenueData and FinanceData sheets duplicated in left columns of the tables | G48: Modifications mineures | H48: Feuille RevenueData : * Prix de vente unitaire et coût de revient unitaire formattés avec deux décimales * Correction formule coût de revient moyen Feuilles RevenuePivot et RevenueChart : * Ajuster le filtre produit/service et le format "marge brute %" Feuille FinanceData : * Immobilisations corporelles / Équipements de production : augmentation du nombre de lignes de 10 à 40 * Fonds de roulement : créances fiscales et sociales * Flux de trésorerie / Impôts : possibilité de définir dans quelles années les impôts sont payés * Flux de trésorerie / Sources de financement : ajout des prêts en cours * Sources de financement / Ajustement de la formule du bilan de fin d'exercice Autres modifications * Ajouter la version du Plan Financier sur chaque feuille * Améliorer la lisibilité de la traduction : les notes de traduction des feuilles RevenueData et FinanceData sont reproduites dans les colonnes de gauche des tableaux | I48: Kleine wijzigingen | J48: Werkblad RevenueData: * Verkoopprijs per eenheid en kostprijs per eenheid weergegeven met twee decimalen * Aanpassen formule voor het berekenen van de gemiddelde kostprijs per eenheid Werkbladen RevenuePivot en RevenueChart: * Het filter voor product/dienst aanpassen en het formaat "bruto winst %" aanpassen Werkblad FinanceData: * Materiële vaste activa / Productieapparatuur: aantal rijen uitgebreid van 10 naar 40 * Werkkapitaal: inclusief belastingen en sociale premies * Kasstroom / Belastingen: mogelijkheid om zelf te bepalen in welke jaren belastingen worden betaald * Kasstroom / Financieringsbronnen: lopende leningen toegevoegd * Financieringsbronnen / Formule voor de balans aan het einde van het jaar aangepast Andere wijzigingen * Vermeld de versie van het financieel plan op elk blad * Verbetering van de leesbaarheid van de vertaling: de vertaalopmerking in de werkbladen RevenueData en FinanceData is dubbel weergegeven in de linkerkolommen van de tabellen | K48: v2.12 | L48: 2026-06-01 | M48: Beka Jean | N48: =IF(ISERROR(VLOOKUP($K48,TableReadMeHistoric[],$N$1,FALSE)),"",VLOOKUP($K48,TableReadMeHistoric[],$N$1,FALSE)) -> Modifications mineures | O48: =IF(ISERROR(VLOOKUP($K48,TableReadMeHistoric[],$O$1,FALSE)),"",VLOOKUP($K48,TableReadMeHistoric[],$O$1,FALSE)) -> Feuille RevenueData : * Prix de vente unitaire et coût de revient unitaire formattés avec deux décimales * Correction formule coût de revient moyen Feuilles RevenuePivot et RevenueChart : * Ajuster le filtre produit/service et le format "marge brute %" Feuille FinanceData : * Immobilisations corporelles / Équipements de production : augmentation du nombre de lignes de 10 à 40 * Fonds de roulement : créances fiscales et sociales * Flux de trésorerie / Impôts : possibilité de définir dans quelles années les impôts sont payés * Flux de trésorerie / Sources de financement : ajout des prêts en cours * Sources de financement / Ajustement de la formule du bilan de fin d'exercice Autres modifications * Ajouter la version du Plan Financier sur chaque feuille * Améliorer la lisibilité de la traduction : les notes de traduction des feuilles RevenueData et FinanceData sont reproduites dans les colonnes de gauche des tableaux
N49: =IF(ISERROR(VLOOKUP($K49,TableReadMeHistoric[],$N$1,FALSE)),"",VLOOKUP($K49,TableReadMeHistoric[],$N$1,FALSE)) ->  | O49: =IF(ISERROR(VLOOKUP($K49,TableReadMeHistoric[],$O$1,FALSE)),"",VLOOKUP($K49,TableReadMeHistoric[],$O$1,FALSE)) -> 
N50: =IF(ISERROR(VLOOKUP($K50,TableReadMeHistoric[],$N$1,FALSE)),"",VLOOKUP($K50,TableReadMeHistoric[],$N$1,FALSE)) ->  | O50: =IF(ISERROR(VLOOKUP($K50,TableReadMeHistoric[],$O$1,FALSE)),"",VLOOKUP($K50,TableReadMeHistoric[],$O$1,FALSE)) -> 
N51: =IF(ISERROR(VLOOKUP($K51,TableReadMeHistoric[],$N$1,FALSE)),"",VLOOKUP($K51,TableReadMeHistoric[],$N$1,FALSE)) ->  | O51: =IF(ISERROR(VLOOKUP($K51,TableReadMeHistoric[],$O$1,FALSE)),"",VLOOKUP($K51,TableReadMeHistoric[],$O$1,FALSE)) -> 
N52: =IF(ISERROR(VLOOKUP($K52,TableReadMeHistoric[],$N$1,FALSE)),"",VLOOKUP($K52,TableReadMeHistoric[],$N$1,FALSE)) ->  | O52: =IF(ISERROR(VLOOKUP($K52,TableReadMeHistoric[],$O$1,FALSE)),"",VLOOKUP($K52,TableReadMeHistoric[],$O$1,FALSE)) -> 
N53: =IF(ISERROR(VLOOKUP($K53,TableReadMeHistoric[],$N$1,FALSE)),"",VLOOKUP($K53,TableReadMeHistoric[],$N$1,FALSE)) ->  | O53: =IF(ISERROR(VLOOKUP($K53,TableReadMeHistoric[],$O$1,FALSE)),"",VLOOKUP($K53,TableReadMeHistoric[],$O$1,FALSE)) -> 
N54: =IF(ISERROR(VLOOKUP($K54,TableReadMeHistoric[],$N$1,FALSE)),"",VLOOKUP($K54,TableReadMeHistoric[],$N$1,FALSE)) ->  | O54: =IF(ISERROR(VLOOKUP($K54,TableReadMeHistoric[],$O$1,FALSE)),"",VLOOKUP($K54,TableReadMeHistoric[],$O$1,FALSE)) -> 
N55: =IF(ISERROR(VLOOKUP($K55,TableReadMeHistoric[],$N$1,FALSE)),"",VLOOKUP($K55,TableReadMeHistoric[],$N$1,FALSE)) ->  | O55: =IF(ISERROR(VLOOKUP($K55,TableReadMeHistoric[],$O$1,FALSE)),"",VLOOKUP($K55,TableReadMeHistoric[],$O$1,FALSE)) -> 
N56: =IF(ISERROR(VLOOKUP($K56,TableReadMeHistoric[],$N$1,FALSE)),"",VLOOKUP($K56,TableReadMeHistoric[],$N$1,FALSE)) ->  | O56: =IF(ISERROR(VLOOKUP($K56,TableReadMeHistoric[],$O$1,FALSE)),"",VLOOKUP($K56,TableReadMeHistoric[],$O$1,FALSE)) -> 
N57: =IF(ISERROR(VLOOKUP($K57,TableReadMeHistoric[],$N$1,FALSE)),"",VLOOKUP($K57,TableReadMeHistoric[],$N$1,FALSE)) ->  | O57: =IF(ISERROR(VLOOKUP($K57,TableReadMeHistoric[],$O$1,FALSE)),"",VLOOKUP($K57,TableReadMeHistoric[],$O$1,FALSE)) -> 
N58: =IF(ISERROR(VLOOKUP($K58,TableReadMeHistoric[],$N$1,FALSE)),"",VLOOKUP($K58,TableReadMeHistoric[],$N$1,FALSE)) ->  | O58: =IF(ISERROR(VLOOKUP($K58,TableReadMeHistoric[],$O$1,FALSE)),"",VLOOKUP($K58,TableReadMeHistoric[],$O$1,FALSE)) -> 
N59: =IF(ISERROR(VLOOKUP($K59,TableReadMeHistoric[],$N$1,FALSE)),"",VLOOKUP($K59,TableReadMeHistoric[],$N$1,FALSE)) ->  | O59: =IF(ISERROR(VLOOKUP($K59,TableReadMeHistoric[],$O$1,FALSE)),"",VLOOKUP($K59,TableReadMeHistoric[],$O$1,FALSE)) -> 
D61: TableReadMeInstallation
D62: Reference | E62: English Description | F62: English Comment | G62: French Description | H62: French Comment | I62: Dutch Description | J62: Dutch Comment | K62: Revision | L62: Date | M62: Author | N62: Installation Steps | O62: Comment
D76: TableReadMeCountry
D77: Reference | E77: English Description | F77: English Comment | G77: French Description | H77: French Comment | I77: Dutch Description | J77: Dutch Comment | K77: Empty 1 | L77: Empty 2 | M77: Empty 3 | N77: Empty 4 | O77: Empty 5
D78: =VLOOKUP($E78,$E78:$J78,$D$1-1,FALSE) -> - | E78: - | G78: - | I78: -
D79: BÉNIN | E79: BENIN | G79: BÉNIN | I79: BENIN
D80: BURKINA FASO | E80: BURKINA FASO | G80: BURKINA FASO | I80: BURKINA FASO
D81: BURUNDI | E81: BURUNDI | G81: BURUNDI | I81: BURUNDI
D82: CAMEROUN | E82: CAMEROON | G82: CAMEROUN | I82: KAMEROEN
D83: RÉPUBLIQUE DÉMOCRATIQUE DU CONGO | E83: DR CONGO | G83: RÉPUBLIQUE DÉMOCRATIQUE DU CONGO | I83: DR CONGO
D84: ÉTHIOPIE | E84: ETHIOPIA | G84: ÉTHIOPIE | I84: ETHIOPIË
D85: PHILIPPINES | E85: FILIPIJNEN | G85: PHILIPPINES | I85: FILIPIJNEN
D86: HAÏTI | E86: HAÏTI | G86: HAÏTI | I86: HAÏTI
D87: CÔTE D'IVOIRE | E87: IVORY COAST | G87: CÔTE D'IVOIRE | I87: IVOORKUST
D88: KENYA | E88: KENYA | G88: KENYA | I88: KENIA
D89: MADAGASCAR | E89: MADAGASCAR | G89: MADAGASCAR | I89: MADAGASCAR
D90: MALAWI | E90: MALAWI | G90: MALAWI | I90: MALAWI
D91: RWANDA | E91: RWANDA | G91: RWANDA | I91: RWANDA
D92: SÉNÉGAL | E92: SENEGAL | G92: SÉNÉGAL | I92: SENEGAL
D93: TANZANIE | E93: TANZANIA | G93: TANZANIE | I93: TANZANIA
D94: TOGO | E94: TOGO | G94: TOGO | I94: TOGO
D95: OUGANDA | E95: UGANDA | G95: OUGANDA | I95: OEGANDA
D96: ZIMBABWE | E96: ZIMBABWE | G96: ZIMBABWE | I96: ZIMBABWE

Sheet Instructions
C1: =COLUMN(C1) -> 3 | D1: 4 | E1: 5 | F1: 6 | G1: 7 | H1: 8 | L1: =IF(ReadMe!$L$3="English",$C$1,IF(ReadMe!$L$3="French",$E$1,IF(ReadMe!$L$3="Dutch",$G$1,$C$1)))-1 -> 4 | M1: =L1+1 -> 5
C2: ReadMe | I2: ReadMe | J2: =ReadMe!$K$1 -> Revision FP : v2.12 | M2: =AND(M188:M203) -> TRUE
M3: =VLOOKUP("Financial Plan",TableInputsData[],ReadMe!$M$3,FALSE) -> PLAN FINANCIER
C4: TableInstructions
B5: =ROW(B5) -> 5 | C5: English Item | D5: English Comment | E5: French Item | F5: French Comment | G5: Dutch Item | H5: Dutch Comment | I5: NOTE | J5: SHEET | K5: DATE | L5: ITEM | M5: COMMENT
B6: =ROW(B6) -> 6
B7: 7 | C7: Select and set your language (English, Dutch, French) | D7: =MID(CELL("address",ReadMe!L3),FIND("]",CELL("address",ReadMe!L3))+1,255) -> ReadMe'!$L$3 | E7: Sélectionnez et définissez votre langue (anglais, néerlandais, français) | F7: =TableInstructions[[#This Row],[English Comment]] -> ReadMe'!$L$3 | G7: Selecteer en stel uw taal in (Engels, Nederlands, Frans) | H7: =TableInstructions[[#This Row],[English Comment]] -> ReadMe'!$L$3 | I7: 1 | J7: ReadMe | K7: 2025-09-02 | L7: =IF($C7="","",INDEX($B$1:$H$1017, $B7, L$1)) -> Sélectionnez et définissez votre langue (anglais, néerlandais, français) | M7: =IF($D7="","",INDEX($B$1:$H$1017, $B7, M$1)) -> ReadMe'!$L$3
B8: 8
B9: 9 | C9: 1. Fill in the ‘InputsData’ sheet | D9: ="See NOTE "&$I19&" below" -> See NOTE 3 below | E9: 1. Remplir la feuille "InputsData" | F9: ="Voir NOTE "&$I19&" ci-dessous" -> Voir NOTE 3 ci-dessous | G9: 1. Vul het blad “InputsData” in | H9: ="Zie NOTE "&$I19&" hieronder" -> Zie NOTE 3 hieronder | I9: =I7+1 -> 2 | J9: Instructions | K9: 2025-07-27 | L9: =IF($C9="","",INDEX($B$1:$H$1017, $B9, L$1)) -> 1. Remplir la feuille "InputsData" | M9: =IF($D9="","",INDEX($B$1:$H$1017, $B9, M$1)) -> Voir NOTE 3 ci-dessous
B10: 10 | C10: 2. Fill in the ‘RevenueData’ sheet | D10: ="See NOTE "&$I45&" below" -> See NOTE 4 below | E10: 2. Remplir la feuille "RevenueData" | F10: ="Voir NOTE "&$I45&" ci-dessous" -> Voir NOTE 4 ci-dessous | G10: 2. Vul het blad “RevenueData” in | H10: ="Zie NOTE "&$I45&" hieronder" -> Zie NOTE 4 hieronder | I10: =I9 -> 2 | J10: Instructions | K10: 2025-08-29 | L10: =IF($C10="","",INDEX($B$1:$H$1017, $B10, L$1)) -> 2. Remplir la feuille "RevenueData" | M10: =IF($D10="","",INDEX($B$1:$H$1017, $B10, M$1)) -> Voir NOTE 4 ci-dessous
B11: 11 | C11: 3. 🔄 Refresh the dynamic tables. Click on button “Refresh All Pivots” | D11: ="See NOTE "&$I67&" below" -> See NOTE 5 below | E11: 3. 🔄 Actualisation des tableaux dynamiques. Cliquez sur le bouton "Refresh All Pivots" | F11: ="Voir NOTE "&$I67&" ci-dessous" -> Voir NOTE 5 ci-dessous | G11: 3. 🔄 Dynamische tabellen bijwerken. Klik op knop “Refresh All Pivots” | H11: ="Zie NOTE "&$I67&" hieronder" -> Zie NOTE 5 hieronder | I11: =I10 -> 2 | J11: Instructions | K11: 2025-08-29 | L11: =IF($C11="","",INDEX($B$1:$H$1017, $B11, L$1)) -> 3. 🔄 Actualisation des tableaux dynamiques. Cliquez sur le bouton "Refresh All Pivots" | M11: =IF($D11="","",INDEX($B$1:$H$1017, $B11, M$1)) -> Voir NOTE 5 ci-dessous
B12: 12 | C12: 4. Fill in the ‘FinanceData’ sheet | D12: ="See NOTE "&$I78&" below" -> See NOTE 8 below | E12: 4. Remplir la feuille "FinanceData" | F12: ="Voir NOTE "&$I78&" ci-dessous" -> Voir NOTE 8 ci-dessous | G12: 4. Vul het blad “FinanceData” in | H12: ="Zie NOTE "&$I78&" hieronder" -> Zie NOTE 8 hieronder | I12: 2 | J12: Instructions | K12: 2025-07-27 | L12: =IF($C12="","",INDEX($B$1:$H$1017, $B12, L$1)) -> 4. Remplir la feuille "FinanceData" | M12: =IF($D12="","",INDEX($B$1:$H$1017, $B12, M$1)) -> Voir NOTE 8 ci-dessous
B13: 13 | C13: 5. 🔄 Refresh the dynamic tables. Click on button “Refresh All Pivots” | D13: ="See NOTE "&$I139&" below" -> See NOTE 11 below | E13: 5. 🔄 Actualisation des tableaux dynamiques. Cliquez sur le bouton "Refresh All Pivots" | F13: ="Voir NOTE "&$I139&" ci-dessous" -> Voir NOTE 11 ci-dessous | G13: 5. 🔄 Dynamische tabellen bijwerken. Klik op knop “Refresh All Pivots” | H13: ="Zie NOTE "&$I139&" hieronder" -> Zie NOTE 11 hieronder | I13: 2 | J13: Instructions | K13: 2025-07-27 | L13: =IF($C13="","",INDEX($B$1:$H$1017, $B13, L$1)) -> 5. 🔄 Actualisation des tableaux dynamiques. Cliquez sur le bouton "Refresh All Pivots" | M13: =IF($D13="","",INDEX($B$1:$H$1017, $B13, M$1)) -> Voir NOTE 11 ci-dessous
B14: 14 | C14: 6. Check for errors. | D14: ="See NOTE "&$I188&" below" -> See NOTE 16 below | E14: 6. Check if no error. | F14: ="Voir NOTE "&$I188&" ci-dessous" -> Voir NOTE 16 ci-dessous | G14: 6. Controleer of er geen fouten zijn. | H14: ="Zie NOTE "&$I188&" hieronder" -> Zie NOTE 16 hieronder | I14: 2 | J14: Instructions | K14: 2025-07-27 | L14: =IF($C14="","",INDEX($B$1:$H$1017, $B14, L$1)) -> 6. Check if no error. | M14: =IF($D14="","",INDEX($B$1:$H$1017, $B14, M$1)) -> Voir NOTE 16 ci-dessous
B15: 15 | C15: 7. Repeat steps 1 -> 2 -> 3 -> 4 -> 5 -> 6 until the financial plan is validated | D15: Try best/worst case scenario when typical scenario is ready | E15: 7. Itérer Instructions 1 -> 2 -> 3 -> 4 -> 5 -> 6 jusqu'à validation du plan financier | F15: Essayez le scénario le plus favorable/le plus défavorable lorsque le scénario nominal est prêt. | G15: 7. Herhaal instructies 1 -> 2 -> 3 -> 4 -> 5 -> 6 totdat het financiële plan is gevalideerd | H15: Probeer het beste/slechtste scenario wanneer het typische scenario klaar is. | I15: 2 | J15: Instructions | K15: 2025-09-02 | L15: =IF($C15="","",INDEX($B$1:$H$1017, $B15, L$1)) -> 7. Itérer Instructions 1 -> 2 -> 3 -> 4 -> 5 -> 6 jusqu'à validation du plan financier | M15: =IF($D15="","",INDEX($B$1:$H$1017, $B15, M$1)) -> Essayez le scénario le plus favorable/le plus défavorable lorsque le scénario nominal est prêt.
B16: 16 | C16: 8. Keep calm. It's fun. | E16: 8. Keep cool. It's fun. | G16: 8. Blijf rustig. Het is leuk. | I16: 2 | J16: Instructions | K16: 2025-07-27 | L16: =IF($C16="","",INDEX($B$1:$H$1017, $B16, L$1)) -> 8. Keep cool. It's fun. | M16: =IF($D16="","",INDEX($B$1:$H$1017, $B16, M$1)) -> 
B17: 17 | I17: =I16 -> 2 | J17: Instructions | K17: 2025-07-27 | L17: =IF($C17="","",INDEX($B$1:$H$1017, $B17, L$1)) ->  | M17: =IF($D17="","",INDEX($B$1:$H$1017, $B17, M$1)) -> 
B18: 18
B19: 19 | C19: FILL IN THE YELLOW CELLS | E19: REMPLIR LES CELLULES EN JAUNE | G19: VUL DE GELE CELLEN IN | I19: =I9+1 -> 3 | J19: InputsData | K19: 2025-07-27 | L19: =IF($C19="","",INDEX($B$1:$H$1017, $B19, L$1)) -> REMPLIR LES CELLULES EN JAUNE | M19: =IF($D19="","",INDEX($B$1:$H$1017, $B19, M$1)) -> 
B20: 20 | C20: COUNTRY RELATED | E20: EN LIEN AVEC LE PAYS | G20: LANDGERELATEERD | I20: =I19 -> 3 | J20: InputsData | K20: 2025-10-11 | L20: =IF($C20="","",INDEX($B$1:$H$1017, $B20, L$1)) -> EN LIEN AVEC LE PAYS
B21: 21 | C21: Company name | D21: =MID(CELL("address",InputsData!C5),FIND("]",CELL("address",InputsData!C5))+1,255) -> InputsData'!$C$5 | E21: Nom de l'entreprise | F21: =TableInstructions[[#This Row],[English Comment]] -> InputsData'!$C$5 | G21: Naam van het bedrijf | H21: =TableInstructions[[#This Row],[English Comment]] -> InputsData'!$C$5 | I21: =I20 -> 3 | J21: InputsData | K21: 2025-07-27 | L21: =IF($C21="","",INDEX($B$1:$H$1017, $B21, L$1)) -> Nom de l'entreprise | M21: =IF($D21="","",INDEX($B$1:$H$1017, $B21, M$1)) -> InputsData'!$C$5
B22: 22 | C22: Country | D22: =MID(CELL("address",InputsData!C6),FIND("]",CELL("address",InputsData!C6))+1,255)&CHAR(10)&"Select your country in the dropbox" -> InputsData'!$C$6 Select your country in the dropbox | E22: Pays | F22: =MID(CELL("address",InputsData!C6),FIND("]",CELL("address",InputsData!C6))+1,255)&CHAR(10)&"Sélectionnez votre pays dans la liste déroulante" -> InputsData'!$C$6 Sélectionnez votre pays dans la liste déroulante | G22: Land | H22: =MID(CELL("address",InputsData!C6),FIND("]",CELL("address",InputsData!C6))+1,255)&CHAR(10)&"Selecteer uw land in de dropbox" -> InputsData'!$C$6 Selecteer uw land in de dropbox | I22: 3 | J22: InputsData | K22: 2025-07-27 | L22: =IF($C22="","",INDEX($B$1:$H$1017, $B22, L$1)) -> Pays | M22: =IF($D22="","",INDEX($B$1:$H$1017, $B22, M$1)) -> InputsData'!$C$6 Sélectionnez votre pays dans la liste déroulante
B23: 23 | C23: Local currency and EUR conversion rate | D23: =MID(CELL("address",InputsData!C8),FIND("]",CELL("address",InputsData!C8))+1,255) -> InputsData'!$C$8 | E23: Monnaie locale et taux de conversion EUR | F23: =TableInstructions[[#This Row],[English Comment]] -> InputsData'!$C$8 | G23: Lokale munteenheid en omrekeningskoers EUR | H23: =TableInstructions[[#This Row],[English Comment]] -> InputsData'!$C$8 | I23: 3 | J23: InputsData | K23: 2025-07-27 | L23: =IF($C23="","",INDEX($B$1:$H$1017, $B23, L$1)) -> Monnaie locale et taux de conversion EUR | M23: =IF($D23="","",INDEX($B$1:$H$1017, $B23, M$1)) -> InputsData'!$C$8
B24: 24 | C24: VAT applicable in the country | D24: =MID(CELL("address",InputsData!C12),FIND("]",CELL("address",InputsData!C12))+1,255) -> InputsData'!$C$12 | E24: TVA applicable dans le pays | F24: =TableInstructions[[#This Row],[English Comment]] -> InputsData'!$C$12 | G24: BTW van toepassing in het land | H24: =TableInstructions[[#This Row],[English Comment]] -> InputsData'!$C$12 | I24: 3 | J24: InputsData | K24: 2025-07-27 | L24: =IF($C24="","",INDEX($B$1:$H$1017, $B24, L$1)) -> TVA applicable dans le pays | M24: =IF($D24="","",INDEX($B$1:$H$1017, $B24, M$1)) -> InputsData'!$C$12
B25: 25 | C25: Annual inflation in the country | D25: =MID(CELL("address",InputsData!C14),FIND("]",CELL("address",InputsData!C14))+1,255) -> InputsData'!$C$14 | E25: Inflation annuelle dans le pays | F25: =TableInstructions[[#This Row],[English Comment]] -> InputsData'!$C$14 | G25: Jaarlijkse inflatie in het land | H25: =TableInstructions[[#This Row],[English Comment]] -> InputsData'!$C$14 | I25: =I24 -> 3 | J25: InputsData | K25: 2025-10-11 | L25: =IF($C25="","",INDEX($B$1:$H$1017, $B25, L$1)) -> Inflation annuelle dans le pays | M25: =IF($D25="","",INDEX($B$1:$H$1017, $B25, M$1)) -> InputsData'!$C$14
B26: 26 | C26: Corporation tax | D26: =MID(CELL("address",InputsData!C16),FIND("]",CELL("address",InputsData!C16))+1,255) -> InputsData'!$C$16 | E26: Impôt des sociétés | F26: =TableInstructions[[#This Row],[English Comment]] -> InputsData'!$C$16 | G26: Vennootschapsbelasting | H26: =TableInstructions[[#This Row],[English Comment]] -> InputsData'!$C$16 | I26: 3 | J26: InputsData | K26: 2025-07-27 | L26: =IF($C26="","",INDEX($B$1:$H$1017, $B26, L$1)) -> Impôt des sociétés | M26: =IF($D26="","",INDEX($B$1:$H$1017, $B26, M$1)) -> InputsData'!$C$16
B27: 27 | C27: YEAR RELATED | E27: EN LIEN AVEC L'ANNEE | G27: JAARGERELATEERD | I27: =I26 -> 3 | J27: InputsData | K27: 2025-10-11 | L27: =IF($C27="","",INDEX($B$1:$H$1017, $B27, L$1)) -> EN LIEN AVEC L'ANNEE
B28: 28 | C28: Set YEAR-2 and CURRENT YEAR H1 | D28: =MID(CELL("address",InputsData!C23),FIND("]",CELL("address",InputsData!C23))+1,255) -> InputsData'!$C$23 | E28: Saissir ANNEE-2 et ANNEE EN COURS S1 | F28: =TableInstructions[[#This Row],[English Comment]] -> InputsData'!$C$23 | G28: Stel JAAR-2 en HUIDIG JAAR H1 in | H28: =TableInstructions[[#This Row],[English Comment]] -> InputsData'!$C$23 | I28: 3 | J28: InputsData | K28: 2025-10-11 | L28: =IF($C28="","",INDEX($B$1:$H$1017, $B28, L$1)) -> Saissir ANNEE-2 et ANNEE EN COURS S1 | M28: =IF($D28="","",INDEX($B$1:$H$1017, $B28, M$1)) -> InputsData'!$C$23
B29: 29 | C29: PRODUCT AND SERVICE RELATED | E29: EN LIEN AVEC LES PRODUITS ET LES SERVICES | G29: PRODUCT- EN DIENSTGERELATEERD | I29: 3 | J29: InputsData | K29: 2025-10-11 | L29: =IF($C29="","",INDEX($B$1:$H$1017, $B29, L$1)) -> EN LIEN AVEC LES PRODUITS ET LES SERVICES
B30: 30 | C30: Products and services | D30: =MID(CELL("address",InputsData!C35),FIND("]",CELL("address",InputsData!C35))+1,255) -> InputsData'!$C$35 | E30: Produits et services | F30: =TableInstructions[[#This Row],[English Comment]] -> InputsData'!$C$35 | G30: Producten en diensten | H30: =TableInstructions[[#This Row],[English Comment]] -> InputsData'!$C$35 | I30: 3 | J30: InputsData | K30: 2025-07-27 | L30: =IF($C30="","",INDEX($B$1:$H$1017, $B30, L$1)) -> Produits et services | M30: =IF($D30="","",INDEX($B$1:$H$1017, $B30, M$1)) -> InputsData'!$C$35
B31: 31 | C31: Products and services name, filter, description free text | D31: Set the filter to ‘1’ if the product or service is used, otherwise ‘0’ in column D | E31: Nom des produits et services, filtre, description en texte libre | F31: Mettre le filtre à "1" si produit ou service est utilisé, sinon "0" en colonne D | G31: Naam van producten en diensten, filter, vrije tekstbeschrijving | H31: Zet het filter op “1” als het product of de dienst wordt gebruikt, anders op “0” in kolom D | I31: 3 | J31: InputsData | K31: 2025-07-27 | L31: =IF($C31="","",INDEX($B$1:$H$1017, $B31, L$1)) -> Nom des produits et services, filtre, description en texte libre | M31: =IF($D31="","",INDEX($B$1:$H$1017, $B31, M$1)) -> Mettre le filtre à "1" si produit ou service est utilisé, sinon "0" en colonne D
B32: 32 | C32: RANGE AND DISTRIBUTION CHANNEL RELATED | E32: EN LIEN AVEC LES GAMMES ET LES CANAUX DE DISTRIBUTION | G32: ASSORTIMENT- EN DISTRIBUTIEKANALENGERELATEERD | I32: 3 | J32: InputsData | K32: 2025-10-11 | L32: =IF($C32="","",INDEX($B$1:$H$1017, $B32, L$1)) -> EN LIEN AVEC LES GAMMES ET LES CANAUX DE DISTRIBUTION
B33: 33 | C33: Range name, description free text | D33: =MID(CELL("address",InputsData!H69),FIND("]",CELL("address",InputsData!H69))+1,255) -> InputsData'!$H$69 | E33: Nom de la gamme, description en texte libre | F33: =TableInstructions[[#This Row],[English Comment]] -> InputsData'!$H$69 | G33: Naam van assortiment, vrije tekstbeschrijving | H33: =TableInstructions[[#This Row],[English Comment]] -> InputsData'!$H$69 | I33: 3 | J33: InputsData | K33: 2025-07-27 | L33: =IF($C33="","",INDEX($B$1:$H$1017, $B33, L$1)) -> Nom de la gamme, description en texte libre | M33: =IF($D33="","",INDEX($B$1:$H$1017, $B33, M$1)) -> InputsData'!$H$69
B34: 34 | C34: Distribution channel name, description free text | D34: =MID(CELL("address",InputsData!H74),FIND("]",CELL("address",InputsData!H74))+1,255) -> InputsData'!$H$74 | E34: Nom du canal de distribution, description en texte libre | F34: =TableInstructions[[#This Row],[English Comment]] -> InputsData'!$H$74 | G34: Naam van distributiekanaal, vrije tekstbeschrijving | H34: =TableInstructions[[#This Row],[English Comment]] -> InputsData'!$H$74 | I34: 3 | J34: InputsData | K34: 2025-07-27 | L34: =IF($C34="","",INDEX($B$1:$H$1017, $B34, L$1)) -> Nom du canal de distribution, description en texte libre | M34: =IF($D34="","",INDEX($B$1:$H$1017, $B34, M$1)) -> InputsData'!$H$74
B35: 35 | C35: Products and services per range and per distribution channel | D35: Set to ‘1’ if the product or service is belonging to a range or a distribution channel | E35: Produits et services par gamme et par canal de distribution | F35: Mettre à "1" si le produit ou le service appartient à une gamme ou à un canal de distribution | G35: Producten en diensten per assortiment en per distributiekanaal | H35: Zet op “1” als het product of de dienst tot een assortiment of een distributiekanaal behoort. | I35: 3 | J35: InputsData | K35: 2025-07-27 | L35: =IF($C35="","",INDEX($B$1:$H$1017, $B35, L$1)) -> Produits et services par gamme et par canal de distribution | M35: =IF($D35="","",INDEX($B$1:$H$1017, $B35, M$1)) -> Mettre à "1" si le produit ou le service appartient à une gamme ou à un canal de distribution
B36: 36 | C36: STAFF RELATED | E36: EN LIEN AVEC LE PERSONNEL | G36: PERSONEELSGERELATEERD | I36: 3 | J36: InputsData | K36: 2025-10-11 | L36: =IF($C36="","",INDEX($B$1:$H$1017, $B36, L$1)) -> EN LIEN AVEC LE PERSONNEL
B37: 37 | C37: Staff : occupationam category, department name, social security (% of gross salary) | D37: =MID(CELL("address",InputsData!C112),FIND("]",CELL("address",InputsData!C112))+1,255) -> InputsData'!$C$112 | E37: Effectif : catégorie professionnelle, nom du département, sécurité sociale (% du salaire brut) | F37: =TableInstructions[[#This Row],[English Comment]] -> InputsData'!$C$112 | G37: Personeel : beroepsgroep, naam van de afdeling, dociale zekerheid (% van bruto salaris) | H37: =TableInstructions[[#This Row],[English Comment]] -> InputsData'!$C$112 | I37: 3 | J37: InputsData | K37: 2025-07-27 | L37: =IF($C37="","",INDEX($B$1:$H$1017, $B37, L$1)) -> Effectif : catégorie professionnelle, nom du département, sécurité sociale (% du salaire brut) | M37: =IF($D37="","",INDEX($B$1:$H$1017, $B37, M$1)) -> InputsData'!$C$112
B38: 38 | C38: LOAN RELATED | E38: EN LIEN AVEC LES PRETS | G38: LENINGGERELATEERD | I38: 3 | J38: InputsData | K38: 2025-10-11 | L38: =IF($C38="","",INDEX($B$1:$H$1017, $B38, L$1)) -> EN LIEN AVEC LES PRETS
B39: 39 | C39: Loan yearly interest and paid back period | D39: =MID(CELL("address",InputsData!C124),FIND("]",CELL("address",InputsData!C124))+1,255) -> InputsData'!$C$124 | E39: Intérêt annuel du prêt et période de remboursement | F39: =TableInstructions[[#This Row],[English Comment]] -> InputsData'!$C$124 | G39: Jaarlijkse rente op de lening en terugbetalingstermijn | H39: =TableInstructions[[#This Row],[English Comment]] -> InputsData'!$C$124 | I39: 3 | J39: InputsData | K39: 2025-07-28 | L39: =IF($C39="","",INDEX($B$1:$H$1017, $B39, L$1)) -> Intérêt annuel du prêt et période de remboursement | M39: =IF($D39="","",INDEX($B$1:$H$1017, $B39, M$1)) -> InputsData'!$C$124
B40: 40 | C40: SIMULATION RELATED | E40: EN LIEN AVEC LA SIMULATION | G40: SIMULATIEGERELATEERD | I40: 3 | J40: InputsData | K40: 2025-07-27 | L40: =IF($C40="","",INDEX($B$1:$H$1017, $B40, L$1)) -> EN LIEN AVEC LA SIMULATION
B41: 41 | C41: Simulation scenario | D41: =MID(CELL("address",InputsData!C129),FIND("]",CELL("address",InputsData!C129))+1,255)&CHAR(10)&"Set best/worst case parameters" -> InputsData'!$C$129 Set best/worst case parameters | E41: Scenario de simulation | F41: =MID(CELL("address",InputsData!C129),FIND("]",CELL("address",InputsData!C129))+1,255)&CHAR(10)&"Définir les paramètres du meilleur/pire scénario" -> InputsData'!$C$129 Définir les paramètres du meilleur/pire scénario | G41: Simulatiescenario | H41: =MID(CELL("address",InputsData!C129),FIND("]",CELL("address",InputsData!C129))+1,255)&CHAR(10)&"Stel parameters voor het beste/slechtste geval in" -> InputsData'!$C$129 Stel parameters voor het beste/slechtste geval in | I41: 3 | J41: InputsData | K41: 2025-09-02 | L41: =IF($C41="","",INDEX($B$1:$H$1017, $B41, L$1)) -> Scenario de simulation | M41: =IF($D41="","",INDEX($B$1:$H$1017, $B41, M$1)) -> InputsData'!$C$129 Définir les paramètres du meilleur/pire scénario
B42: 42 | C42: Revenue parameters | D42: Should be less than 100% (worst case) and greater than 100% (best case) | E42: Paramètres chiffre d'affaires | F42: Doit être inférieur à 100 % (dans le pire des cas) et supérieur à 100 % (dans le meilleur des cas) | G42: Omzetparameters | H42: Moet minder dan 100% zijn (in het slechtste geval) en meer dan 100% (in het beste geval) | I42: 3 | J42: InputsData | K42: 2025-09-02 | L42: =IF($C42="","",INDEX($B$1:$H$1017, $B42, L$1)) -> Paramètres chiffre d'affaires | M42: =IF($D42="","",INDEX($B$1:$H$1017, $B42, M$1)) -> Doit être inférieur à 100 % (dans le pire des cas) et supérieur à 100 % (dans le meilleur des cas)
B43: 43 | C43: Other parameters | D43: Should be greater than 100% (worst case) and less than 100% (best case) | E43: Autres paramètres | F43: Doit être supérieur à 100 % (dans le pire des cas) et inférieur à 100 % (dans le meilleur des cas) | G43: Overige parameters | H43: Moet meer dan 100% zijn (in het slechtste geval) en minder dan 100% (in het beste geval) | I43: 3 | J43: InputsData | K43: 2025-09-02 | L43: =IF($C43="","",INDEX($B$1:$H$1017, $B43, L$1)) -> Autres paramètres | M43: =IF($D43="","",INDEX($B$1:$H$1017, $B43, M$1)) -> Doit être supérieur à 100 % (dans le pire des cas) et inférieur à 100 % (dans le meilleur des cas)
B44: 44
B45: 45 | C45: FILL IN THE YELLOW CELLS | E45: REMPLIR LES CELLULES EN JAUNE | G45: VUL DE GELE CELLEN IN | I45: =I19+1 -> 4 | J45: RevenueData | K45: 2025-09-25 | L45: =IF($C45="","",INDEX($B$1:$H$1017, $B45, L$1)) -> REMPLIR LES CELLULES EN JAUNE | M45: =IF($D45="","",INDEX($B$1:$H$1017, $B45, M$1)) -> 
B46: 46 | C46: ONE PRODUCT - ONE RANGE - ONE CHANNEL DISTRIBUTION | E46: UN PRODUIT - UNE GAMME - UN CANAL DE DISTRIBUTION | G46: EEN PRODUCT - EEN ASSORTIMENT - EEN DISTRIBUTIEKANAL | I46: =I45 -> 4 | J46: RevenueData | K46: 2025-09-25 | L46: =IF($C46="","",INDEX($B$1:$H$1017, $B46, L$1)) -> UN PRODUIT - UNE GAMME - UN CANAL DE DISTRIBUTION | M46: =IF($D46="","",INDEX($B$1:$H$1017, $B46, M$1)) -> 
B47: 47 | C47: Steps to follow for each product and each service defined in the ‘InputsData’ sheet | D47: Filter column (REF) by selecting "1" in cell E7 | E47: Étapes à suivre pour chaque produit et chaque service défini dans la feuille « InputsData » | F47: Filtrez la colonne (REF) en sélectionnant « 1 » dans la cellule E7 | G47: Te volgen stappen voor elk product en elke dienst die in het blad ‘InputsData’ zijn gedefinieerd | H47: Filter kolom (REF) door “1” te selecteren in cel E7 | I47: =I46 -> 4 | J47: RevenueData | K47: 2025-09-25 | L47: =IF($C47="","",INDEX($B$1:$H$1017, $B47, L$1)) -> Étapes à suivre pour chaque produit et chaque service défini dans la feuille « InputsData » | M47: =IF($D47="","",INDEX($B$1:$H$1017, $B47, M$1)) -> Filtrez la colonne (REF) en sélectionnant « 1 » dans la cellule E7
B48: 48 | C48: 1. Enter the average unit price per year. The price may change each year. Please note that prices are exclusive of VAT and in local currency. | D48: Column RevenueData'!L | E48: 1. Saisissez le prix unitaire moyen par an. Le prix peut varier chaque année. Veuillez noter que les prix s'entendent hors TVA et en devise locale. | F48: Colonne RevenueData'!L | G48: Voer de gemiddelde eenheidsprijs per jaar in. De prijs kan elk jaar veranderen. Houd er rekening mee dat de prijzen exclusief btw en in lokale valuta zijn. | H48: Kolom RevenueData'!L | I48: 4 | J48: RevenueData | K48: 2025-09-25 | L48: =IF($C48="","",INDEX($B$1:$H$1017, $B48, L$1)) -> 1. Saisissez le prix unitaire moyen par an. Le prix peut varier chaque année. Veuillez noter que les prix s'entendent hors TVA et en devise locale. | M48: =IF($D48="","",INDEX($B$1:$H$1017, $B48, M$1)) -> Colonne RevenueData'!L
B49: 49 | C49: 2. Enter the average COGS per unit per year. The cost may change each year | D49: Column RevenueData'!S | E49: 2. Saisissez le coût moyen des ventes par unité et par an. Le coût peut varier chaque année. | F49: Colonne RevenueData'!S | G49: Voer de gemiddelde COGS per eenheid per jaar in. De kosten kunnen elk jaar veranderen | H49: Kolom RevenueData'!S | I49: 4 | J49: RevenueData | K49: 2025-09-25 | L49: =IF($C49="","",INDEX($B$1:$H$1017, $B49, L$1)) -> 2. Saisissez le coût moyen des ventes par unité et par an. Le coût peut varier chaque année. | M49: =IF($D49="","",INDEX($B$1:$H$1017, $B49, M$1)) -> Colonne RevenueData'!S
B50: 50 | C50: 3. Enter the quantity per quarter or year | D50: Column RevenueData'!AE:AI | E50: 3. Saisissez la quantité par trimestre ou par an. | F50: Colonne RevenueData'!AE:AI | G50: Voer de hoeveelheid per kwartaal of jaar in | H50: Kolom RevenueData'!AE:AI | I50: 4 | J50: RevenueData | K50: 2025-09-25 | L50: =IF($C50="","",INDEX($B$1:$H$1017, $B50, L$1)) -> 3. Saisissez la quantité par trimestre ou par an. | M50: =IF($D50="","",INDEX($B$1:$H$1017, $B50, M$1)) -> Colonne RevenueData'!AE:AI
B51: 51 | C51: ONE PRODUCT - THREE RANGES - TWO CHANNELS DISTRIBUTION !!!!!!! OPTIONAL !!!!!!! | E51: UN PRODUIT - TROIS GAMMES - DEUX CANAUX DE DISTRIBUTION !!!!!!! FACULTATIF !!!!!!! | G51: EEN PRODUCT - DRIE ASSORTIMENTEN - TWEE DISTRIBUTIEKANALEN !!!!!!! OPTIONEEL !!!!!!! | I51: 4 | J51: RevenueData | K51: 2025-09-25 | L51: =IF($C51="","",INDEX($B$1:$H$1017, $B51, L$1)) -> UN PRODUIT - TROIS GAMMES - DEUX CANAUX DE DISTRIBUTION !!!!!!! FACULTATIF !!!!!!! | M51: =IF($D51="","",INDEX($B$1:$H$1017, $B51, M$1)) -> 
B52: 52 | C52: Steps to follow for each product and each service defined in the ‘InputsData’ sheet You may have to unhide some columns (click on "+" on top of the column heading) | D52: Filter column (REF) by selecting "1" in cell E7 | E52: Étapes à suivre pour chaque produit et chaque service défini dans la feuille « InputsData » Vous devrez peut-être afficher certaines colonnes (cliquez sur « + » en haut de l'en-tête de colonne). | F52: Filtrez la colonne (REF) en sélectionnant « 1 » dans la cellule E7 | G52: Te volgen stappen voor elk product en elke dienst die in het blad ‘InputsData’ zijn gedefinieerd Mogelijk moet u enkele kolommen weer zichtbaar maken (klik op “+” boven de kolomkop). | H52: Filter kolom (REF) door “1” te selecteren in cel E7 | I52: 4 | J52: RevenueData | K52: 2025-09-25 | L52: =IF($C52="","",INDEX($B$1:$H$1017, $B52, L$1)) -> Étapes à suivre pour chaque produit et chaque service défini dans la feuille « InputsData » Vous devrez peut-être afficher certaines colonnes (cliquez sur « + » en haut de l'en-tête de colonne). | M52: =IF($D52="","",INDEX($B$1:$H$1017, $B52, M$1)) -> Filtrez la colonne (REF) en sélectionnant « 1 » dans la cellule E7
B53: 53 | C53: 1. Enter a RANGE 1, RANGE 2 and RANGE 3 average unit price per year. The price may change each year. Please note that prices are exclusive of VAT and in local currency | D53: Column RevenueData'!L:N | E53: 1. Saisissez le prix unitaire moyen par an pour les GAMMES 1, 2 et 3. Le prix peut varier chaque année. Veuillez noter que les prix s'entendent hors TVA et en monnaie locale | F53: Colonne RevenueData'!L:N | G53: 1. Voer een gemiddelde eenheidsprijs per jaar in voor BEREIK 1, BEREIK 2 en BEREIK 3. De prijs kan elk jaar veranderen. Houd er rekening mee dat de prijzen exclusief btw zijn en in lokale valuta worden weergegeven | H53: Kolom RevenueData'!L:N | I53: 4 | J53: RevenueData | K53: 2025-09-25 | L53: =IF($C53="","",INDEX($B$1:$H$1017, $B53, L$1)) -> 1. Saisissez le prix unitaire moyen par an pour les GAMMES 1, 2 et 3. Le prix peut varier chaque année. Veuillez noter que les prix s'entendent hors TVA et en monnaie locale | M53: =IF($D53="","",INDEX($B$1:$H$1017, $B53, M$1)) -> Colonne RevenueData'!L:N
B54: 54 | C54: 2. Enter the volume percentage (mix) for each range (RANGE 1, RANGE 2, RANGE 3) per product and per year. The calculation is done automatically for RANGE 3 | D54: Column RevenueData'!P:R | E54: 2. Saisissez le pourcentage de volume (mix) pour chaque gamme (GAMME 1, GAMME 2, GAMME 3) par produit et par an. Le calcul est effectué automatiquement pour la GAMME 3 | F54: Colonne RevenueData'!P:R | G54: 2. Voer het volumeprocent (mix) in voor elk bereik (BEREIK 1, BEREIK 2, BEREIK 3) per product en per jaar. De berekening wordt automatisch uitgevoerd voor BEREIK 3 | H54: Kolom RevenueData'!P:R | I54: 4 | J54: RevenueData | K54: 2025-09-25 | L54: =IF($C54="","",INDEX($B$1:$H$1017, $B54, L$1)) -> 2. Saisissez le pourcentage de volume (mix) pour chaque gamme (GAMME 1, GAMME 2, GAMME 3) par produit et par an. Le calcul est effectué automatiquement pour la GAMME 3 | M54: =IF($D54="","",INDEX($B$1:$H$1017, $B54, M$1)) -> Colonne RevenueData'!P:R
B55: 55 | C55: 3. Enter a RANGE 1, RANGE 2 and RANGE 3 COGS per unit and per year. The cost may change each year | D55: Column RevenueData'!S:U | E55: 3. Saisissez le coût des ventes (COGS) par unité et par an pour les GAMMES 1, 2 et 3. Le coût peut varier chaque année | F55: Colonne RevenueData'!S:U | G55: 3. Voer de COGS per eenheid en per jaar in voor RANGE 1, RANGE 2 en RANGE 3. De kosten kunnen elk jaar veranderen | H55: Kolom RevenueData'!S:U | I55: 4 | J55: RevenueData | K55: 2025-09-25 | L55: =IF($C55="","",INDEX($B$1:$H$1017, $B55, L$1)) -> 3. Saisissez le coût des ventes (COGS) par unité et par an pour les GAMMES 1, 2 et 3. Le coût peut varier chaque année | M55: =IF($D55="","",INDEX($B$1:$H$1017, $B55, M$1)) -> Colonne RevenueData'!S:U
B56: 56 | C56: 4. For the channel distribution,enter the volume percentage (mix) of RANGE 1, RANGE 2 and RANGE 3 for CHANNEL 1. The calculation (the difference) is done automatically for CHANNEL 2 | D56: Column RevenueData'!W:AB | E56: 4. Pour la distribution par canal, Saisissez le pourcentage en volume (mix) de la GAMME 1, la GAMME 2 et la GAMME 3 pour le CHANNEL 1. Le calcul (la différence) est effectué automatiquement pour le CANAL 2 | F56: Colonne RevenueData'!W:AB | G56: 4. Voer voor de kanaaldistributie het volumeprocent (mix) van RANGE 1, RANGE 2 en RANGE 3 voor CHANNEL 1. De berekening (het verschil) wordt automatisch uitgevoerd voor CHANNEL 2 | H56: Kolom RevenueData'!W:AB | I56: 4 | J56: RevenueData | K56: 2025-09-25 | L56: =IF($C56="","",INDEX($B$1:$H$1017, $B56, L$1)) -> 4. Pour la distribution par canal, Saisissez le pourcentage en volume (mix) de la GAMME 1, la GAMME 2 et la GAMME 3 pour le CHANNEL 1. Le calcul (la différence) est effectué automatiquement pour le CANAL 2 | M56: =IF($D56="","",INDEX($B$1:$H$1017, $B56, M$1)) -> Colonne RevenueData'!W:AB
B57: 57 | C57: 5. Enter quantities per product and per quarter or year | D57: Column RevenueData'!AE:AI | E57: 5. Saisissez les quantités par produit et par trimestre ou par an | F57: Colonne RevenueData'!AE:AI | G57: 5. Voer hoeveelheden per product en per kwartaal of jaar | H57: Kolom RevenueData'!AE:AI | I57: 4 | J57: RevenueData | K57: 2025-09-25 | L57: =IF($C57="","",INDEX($B$1:$H$1017, $B57, L$1)) -> 5. Saisissez les quantités par produit et par trimestre ou par an | M57: =IF($D57="","",INDEX($B$1:$H$1017, $B57, M$1)) -> Colonne RevenueData'!AE:AI
B58: 58 | C58: MARGIN AND PRODUCT COSTS | E58: MARGE ET COUT DES PRODUITS | G58: MARGE EN KOSTEN VAN DE PRODUCTEN | I58: 4 | J58: RevenueData | K58: 2025-09-25 | L58: =IF($C58="","",INDEX($B$1:$H$1017, $B58, L$1)) -> MARGE ET COUT DES PRODUITS | M58: =IF($D58="","",INDEX($B$1:$H$1017, $B58, M$1)) -> 
B59: 59 | C59: For the sake of simplicity, we only take into account the purchase cost (in the case of a product) or the material cost of using raw materials to transform them into a semi-finished or finished product (including, where applicable, the cost of non-returnable packaging). Other costs incurred, such as labour and energy used, will be calculated in the next step of the list of operating expenses. | E59: Par souci de simplification, nous ne prenons en compte que le coût d'achat (dans le cas d'un produit) ou le coût matériel de l'utilisation des matières premières pour les transformer en un produit semi-fini ou fini (incluant éventuellement le coût de l'emballage non consigné). Les autres coûts générés comme le travail et l'énergie utilisée, nous les calculerons dans l'étape suivante de la liste des dépenses opérationnelles. | G59: Omwille van de eenvoud houden we alleen rekening met de aankoopkosten (in het geval van een product) of de materiaalkosten voor het gebruik van grondstoffen om deze te verwerken tot een halffabrikaat of eindproduct (eventueel inclusief de kosten van niet-statiegeldverpakkingen). De andere kosten, zoals arbeid en energieverbruik, berekenen we in de volgende stap van de lijst met operationele uitgaven. | I59: 4 | J59: RevenueData | K59: 2025-09-25 | L59: =IF($C59="","",INDEX($B$1:$H$1017, $B59, L$1)) -> Par souci de simplification, nous ne prenons en compte que le coût d'achat (dans le cas d'un produit) ou le coût matériel de l'utilisation des matières premières pour les transformer en un produit semi-fini ou fini (incluant éventuellement le coût de l'emballage non consigné). Les autres coûts générés comme le travail et l'énergie utilisée, nous les calculerons dans l'étape suivante de la liste des dépenses opérationnelles. | M59: =IF($D59="","",INDEX($B$1:$H$1017, $B59, M$1)) -> 
B60: 60 | C60: MARGIN AND COST OF SERVICES | E60: MARGE ET COUT DES SERVICES | G60: MARGE EN KOSTEN VAN DIENSTEN | I60: 4 | J60: RevenueData | K60: 2025-09-25 | L60: =IF($C60="","",INDEX($B$1:$H$1017, $B60, L$1)) -> MARGE ET COUT DES SERVICES | M60: =IF($D60="","",INDEX($B$1:$H$1017, $B60, M$1)) -> 
B61: 61 | C61: In the case of a service, we do not calculate a cost of sale or a cost of production, so the gross margin of a service will be equal to the income. All costs incurred by the company will be calculated in the list of operating expenses. However, if external commissions or royalties are paid, these should be included in the cost of services. | E61: Dans le cas d'un service, nous ne calculons ni un coût de vente ni un coût de production, de sorte que la marge brute d'un service sera égale au revenu. Tous les coûts réalisés dans l'entreprise seront calculés dans la liste des dépenses opérationnelles. Néanmoins, dans le cas où des commissions ou redevances extérieures sont payées, il y a lieu de les indiquer dans le cout des services. | G61: In het geval van een dienst berekenen we geen verkoopkosten of productiekosten, zodat de brutomarge van een dienst gelijk is aan de inkomsten. Alle kosten die in het bedrijf worden gemaakt, worden berekend in de lijst van operationele uitgaven. Als er echter externe commissies of vergoedingen worden betaald, moeten deze worden vermeld in de kosten van de diensten. | I61: 4 | J61: RevenueData | K61: 2025-09-25 | L61: =IF($C61="","",INDEX($B$1:$H$1017, $B61, L$1)) -> Dans le cas d'un service, nous ne calculons ni un coût de vente ni un coût de production, de sorte que la marge brute d'un service sera égale au revenu. Tous les coûts réalisés dans l'entreprise seront calculés dans la liste des dépenses opérationnelles. Néanmoins, dans le cas où des commissions ou redevances extérieures sont payées, il y a lieu de les indiquer dans le cout des services. | M61: =IF($D61="","",INDEX($B$1:$H$1017, $B61, M$1)) -> 
B62: 62 | C62: UNIT SELLING PRICE OF PRODUCTS | E62: PRIX UNITAIRE DE VENTE DES PRODUITS | G62: VERKOOPPRIJS PER EENHEID VAN PRODUCTEN | I62: 4 | J62: RevenueData | K62: 2025-09-25 | L62: =IF($C62="","",INDEX($B$1:$H$1017, $B62, L$1)) -> PRIX UNITAIRE DE VENTE DES PRODUITS | M62: =IF($D62="","",INDEX($B$1:$H$1017, $B62, M$1)) -> 
B63: 63 | C63: Proposed calculation of the unit selling price of a product: 1. Add up (1) the raw materials or parts consumed, (2) the number of hours of labour required to produce the final product multiplied by the hourly wage, and (3) where applicable, the energy costs consumed. 2. Multiply this sum by a factor between 1.5 and 2 to obtain your selling price. | E63: Proposition de calcul du prix unitaire de vente d'un produit : 1. Faites la somme (1) des matières premières ou parties consommées, (2) le nombre d'heures de travail pour arriver à un produit final multiplié par le salaire horaire et (3) le cas échéant, les coûts d'énergie consommés. 2. Multipliez cette somme par un facteur entre de 1,5 à 2 afin d'obtenir votre prix de vente. | G63: Voorstel voor de berekening van de verkoopprijs per eenheid van een product: 1. Tel (1) de verbruikte grondstoffen of onderdelen, (2) het aantal arbeidsuren om tot een eindproduct te komen vermenigvuldigd met het uurloon en (3) indien van toepassing, de verbruikte energiekosten bij elkaar op. 2. Vermenigvuldig deze som met een factor tussen 1,5 en 2 om uw verkoopprijs te verkrijgen. | I63: 4 | J63: RevenueData | K63: 2025-09-25 | L63: =IF($C63="","",INDEX($B$1:$H$1017, $B63, L$1)) -> Proposition de calcul du prix unitaire de vente d'un produit : 1. Faites la somme (1) des matières premières ou parties consommées, (2) le nombre d'heures de travail pour arriver à un produit final multiplié par le salaire horaire et (3) le cas échéant, les coûts d'énergie consommés. 2. Multipliez cette somme par un facteur entre de 1,5 à 2 afin d'obtenir votre prix de vente. | M63: =IF($D63="","",INDEX($B$1:$H$1017, $B63, M$1)) -> 
B64: 64 | C64: Finally, if possible, compare your calculated selling price with current market prices. | E64: Pour finir, comparez si possible votre prix de vente calculé avec les prix actuels du marché | G64: Vergelijk ten slotte, indien mogelijk, uw berekende verkoopprijs met de huidige marktprijzen. | I64: 4 | J64: RevenueData | K64: 2025-09-25 | L64: =IF($C64="","",INDEX($B$1:$H$1017, $B64, L$1)) -> Pour finir, comparez si possible votre prix de vente calculé avec les prix actuels du marché | M64: =IF($D64="","",INDEX($B$1:$H$1017, $B64, M$1)) -> 
B65: 65 | I65: 4 | J65: RevenueData | K65: 2025-09-25 | L65: =IF($C65="","",INDEX($B$1:$H$1017, $B65, L$1)) ->  | M65: =IF($D65="","",INDEX($B$1:$H$1017, $B65, M$1)) -> 
B66: 66
B67: 67 | C67: Once data has been entered or updated in the ‘CA Data’ sheet, it is essential to refresh the dynamic tables so that they reflect the latest information. Without this update, the tables may display outdated data. | E67: Une fois les données saisies ou mises à jour dans la feuille "RevenueCA", il est indispensable de rafraîchir les tableaux dynamiques afin qu’ils reflètent les dernières informations. Sans cette actualisation, les tableaux risquent d’afficher des données obsolètes. | G67: Zodra de gegevens zijn ingevoerd of bijgewerkt in het blad “RevenueCA”, is het essentieel om de dynamische tabellen te vernieuwen, zodat ze de meest recente informatie weergeven. Zonder deze update bestaat het risico dat de tabellen verouderde gegevens weergeven. | I67: =I45+1 -> 5 | J67: RevenueData | K67: 2025-08-29 | L67: =IF($C67="","",INDEX($B$1:$H$1017, $B67, L$1)) -> Une fois les données saisies ou mises à jour dans la feuille "RevenueCA", il est indispensable de rafraîchir les tableaux dynamiques afin qu’ils reflètent les dernières informations. Sans cette actualisation, les tableaux risquent d’afficher des données obsolètes. | M67: =IF($D67="","",INDEX($B$1:$H$1017, $B67, M$1)) -> 
B68: 68 | C68: 🔄 Refreshing dynamic tables Click on button “Refresh All Pivots” on the sheet "RevenueData" This ensures that the tables display the most recent data. | D68: =MID(CELL("address",RevenueData!#REF!),FIND("]",CELL("address",RevenueData!#REF!))+1,255) ->  | E68: 🔄 Actualisation des tableaux dynamiques Cliquez sur le bouton "Refresh All Pivots" dans la feuille "RevenueData" Cela garantit que les tableaux affichent les données les plus récentes | F68: =TableInstructions[[#This Row],[English Comment]] ->  | G68: 🔄 Dynamische tabellen bijwerken Klik op knop “Refresh All Pivots” in het blad "RevenueData" Zo bent u er zeker van dat de tabellen de meest recente gegevens weergeven. | H68: =TableInstructions[[#This Row],[English Comment]] ->  | I68: =I67 -> 5 | J68: RevenueData | K68: 2025-08-29 | L68: =IF($C68="","",INDEX($B$1:$H$1017, $B68, L$1)) -> 🔄 Actualisation des tableaux dynamiques Cliquez sur le bouton "Refresh All Pivots" dans la feuille "RevenueData" Cela garantit que les tableaux affichent les données les plus récentes | M68: =IF($D68="","",INDEX($B$1:$H$1017, $B68, M$1)) -> 
B69: 69
B70: 70 | C70: The PivotTables in local currency are updated automatically after click on button “Refresh All Pivots” on the sheet "RevenueData" | D70: =MID(CELL("address",RevenuePivot!D7),FIND("]",CELL("address",RevenuePivot!D7))+1,255) -> RevenuePivot'!$D$7 | E70: Les tableaux croisés dynamiques en devise locale sont mis à jour automatiquement après avoir cliqué sur le bouton "Refresh All Pivots" dans la feuille "RevenueData" | F70: =TableInstructions[[#This Row],[English Comment]] -> RevenuePivot'!$D$7 | G70: De dynamische tabellen in lokale valuta worden automatisch bijgewerkt nadat u op de knop "Refresh All Pivots" op het blad "RevenueData" hebt geklikt | H70: =TableInstructions[[#This Row],[English Comment]] -> RevenuePivot'!$D$7 | I70: =I67+1 -> 6 | J70: RevenuePivot | K70: 2025-08-29 | L70: =IF($C70="","",INDEX($B$1:$H$1017, $B70, L$1)) -> Les tableaux croisés dynamiques en devise locale sont mis à jour automatiquement après avoir cliqué sur le bouton "Refresh All Pivots" dans la feuille "RevenueData" | M70: =IF($D70="","",INDEX($B$1:$H$1017, $B70, M$1)) -> RevenuePivot'!$D$7
B71: 71 | I71: =I70 -> 6 | J71: RevenuePivot | K71: 2025-08-29 | L71: =IF($C71="","",INDEX($B$1:$H$1017, $B71, L$1)) ->  | M71: =IF($D71="","",INDEX($B$1:$H$1017, $B71, M$1)) -> 
B72: 72 | I72: 6 | J72: RevenuePivot | K72: 2025-08-29 | L72: =IF($C72="","",INDEX($B$1:$H$1017, $B72, L$1)) ->  | M72: =IF($D72="","",INDEX($B$1:$H$1017, $B72, M$1)) -> 
B73: 73 | I73: 6 | J73: RevenuePivot | K73: 2025-08-29 | L73: =IF($C73="","",INDEX($B$1:$H$1017, $B73, L$1)) ->  | M73: =IF($D73="","",INDEX($B$1:$H$1017, $B73, M$1)) -> 
B74: 74
B75: 75 | C75: The graphs in local currency are updated at the same time as the ‘RevenuePivot’ sheet. | D75: =MID(CELL("address",RevenueChart!B8),FIND("]",CELL("address",RevenueChart!B8))+1,255) -> RevenueChart'!$B$8 | E75: Les graphes en monnaie locale sont mis à jour en même temps que la feuille "RevenuePivot" | F75: =TableInstructions[[#This Row],[English Comment]] -> RevenueChart'!$B$8 | G75: De grafieken in lokale valuta worden tegelijkertijd met het blad “RevenuePivot” bijgewerkt. | H75: =TableInstructions[[#This Row],[English Comment]] -> RevenueChart'!$B$8 | I75: =I70+1 -> 7 | J75: RevenueChart | K75: 2025-08-29 | L75: =IF($C75="","",INDEX($B$1:$H$1017, $B75, L$1)) -> Les graphes en monnaie locale sont mis à jour en même temps que la feuille "RevenuePivot" | M75: =IF($D75="","",INDEX($B$1:$H$1017, $B75, M$1)) -> RevenueChart'!$B$8
B76: 76 | C76: Select products | E76: Selectionner les produits | G76: Selecteer de producten | I76: =I75 -> 7 | J76: RevenueChart | K76: 2025-08-29 | L76: =IF($C76="","",INDEX($B$1:$H$1017, $B76, L$1)) -> Selectionner les produits | M76: =IF($D76="","",INDEX($B$1:$H$1017, $B76, M$1)) -> 
B77: 77
B78: 78 | C78: FILL IN THE YELLOW CELLS IN LOCAL CURRENCY | E78: REMPLIR LES CELLULES EN JAUNE EN MONNAIE LOCALE | G78: VUL DE GELE CELLEN IN MET DE LOKALE VALUTA | I78: =I75+1 -> 8 | J78: FinanceData | K78: 2025-07-27 | L78: =IF($C78="","",INDEX($B$1:$H$1017, $B78, L$1)) -> REMPLIR LES CELLULES EN JAUNE EN MONNAIE LOCALE | M78: =IF($D78="","",INDEX($B$1:$H$1017, $B78, M$1)) -> 
B79: 79 | C79: TO NAVIGATE BETWEEN SECTION, YOU MAY HAVE DIFFERETN OPTIONS : 1. SCROLL THE SHEET DOWN 2. FILTER ON CELL SECTION (C3) 3. CLICK ON COLUMN B AND USE KEYBOARD ARROW DOWN OR UP TO NAVIGATE BETWEEN SECTIONS !!!!!!!!!!!!!!!!!!!!!!!!!!! | E79: POUR NAVIGUER ENTRE LES SECTIONS, VOUS DISPOSEZ DE DIFFÉRENTES OPTIONS : 1. FAITES DÉFILER LA FEUILLE VERS LE BAS 2. FILTREZ SUR LA SECTION DE CELLULE (C3) 3. CLIQUEZ SUR LA COLONNE B ET UTILISEZ LES FLÈCHES VERS LE BAS OU VERS LE HAUT DU CLAVIER POUR NAVIGUER ENTRE LES SECTIONS | G79: OM TUSSEN DE SECTIE TE NAVIGEREN, HEBT U VERSCHILLENDE OPTIES: 1. SCROLL NAAR BENEDEN IN HET BLAD 2. FILTER OP CEL SECTIE (C3) 3. KLIK OP KOLOM B EN GEBRUIK DE PIJLTOETSEN OMHOOG OF OMLAAG OM TUSSEN DE SECTIE TE NAVIGEREN | I79: =I78 -> 8 | J79: FinanceData | K79: 2025-07-27 | L79: =IF($C79="","",INDEX($B$1:$H$1017, $B79, L$1)) -> POUR NAVIGUER ENTRE LES SECTIONS, VOUS DISPOSEZ DE DIFFÉRENTES OPTIONS : 1. FAITES DÉFILER LA FEUILLE VERS LE BAS 2. FILTREZ SUR LA SECTION DE CELLULE (C3) 3. CLIQUEZ SUR LA COLONNE B ET UTILISEZ LES FLÈCHES VERS LE BAS OU VERS LE HAUT DU CLAVIER POUR NAVIGUER ENTRE LES SECTIONS | M79: =IF($D79="","",INDEX($B$1:$H$1017, $B79, M$1)) -> 
B80: 80 | C80: ANY FREE TEXT COMMENT MAY BE ADDED IN YELLOW CELLS OF COLUMN Y IN THIS SHEET | D80: Column FinanceData'!Y | E80: TOUT COMMENTAIRE LIBRE PEUT ÊTRE AJOUTÉ DANS LES CELLULES JAUNES DE LA COLONNE Y DE CETTE FEUILLE | F80: Colonne FinanceData'!Y | G80: ELKE VRIJE TEKSTOPMERKING KAN WORDEN TOEGEVOEGD IN DE GELE CELLEN VAN KOLOM Y IN DIT BLAD | H80: Kolom FinanceData'!Y | I80: =I79 -> 8 | J80: FinanceData | K80: 2025-07-27 | L80: =IF($C80="","",INDEX($B$1:$H$1017, $B80, L$1)) -> TOUT COMMENTAIRE LIBRE PEUT ÊTRE AJOUTÉ DANS LES CELLULES JAUNES DE LA COLONNE Y DE CETTE FEUILLE | M80: =IF($D80="","",INDEX($B$1:$H$1017, $B80, M$1)) -> Colonne FinanceData'!Y
B81: 81 | C81: ALSO CONSULT COLUMN Z IN THIS SHEET, WHICH MAY CONTAIN A TRANSLATION NOTE !!!!!!!!!!!!!!!!!!!!!!!!!!! | D81: Column FinanceData'!Z | E81: CONSULTER EGALEMENT LA COLONNE Z DANS CETTE FEUILLE QUI PEUT CONTENIR UNE NOTE DE TRADUCTION !!!!!!!!!!!!!!!!!!!!!!!!!!! | F81: Colonne FinanceData'!Z | G81: RAADPLEEG OOK DE KOLOM Z IN DIT BLAD, DIE EEN VERTALINGSKNOP KAN BEVATTEN !!!!!!!!!!!!!!!!!!!!!!!!!!! | H81: Kolom FinanceData'!Z | I81: =I80 -> 8 | J81: FinanceData | K81: 2025-07-28 | L81: =IF($C81="","",INDEX($B$1:$H$1017, $B81, L$1)) -> CONSULTER EGALEMENT LA COLONNE Z DANS CETTE FEUILLE QUI PEUT CONTENIR UNE NOTE DE TRADUCTION !!!!!!!!!!!!!!!!!!!!!!!!!!! | M81: =IF($D81="","",INDEX($B$1:$H$1017, $B81, M$1)) -> Colonne FinanceData'!Z
B82: 82 | C82: Section 1 : REVENUE AND GROSS MARGIN | D82: ="Section 1 : "&MID(CELL("address",FinanceData!B6),FIND("]",CELL("address",FinanceData!B6))+1,255) -> Section 1 : FinanceData'!$B$6 | E82: Section 1 : CHIFFRE D'AFFAIRES ET MARGE BRUTE | F82: =TableInstructions[[#This Row],[English Comment]] -> Section 1 : FinanceData'!$B$6 | G82: Deel 1 : OMZET EN BRUTOMARGE | H82: =TableInstructions[[#This Row],[English Comment]] -> Section 1 : FinanceData'!$B$6 | I82: 8 | J82: FinanceData | K82: 2025-07-29 | L82: =IF($C82="","",INDEX($B$1:$H$1017, $B82, L$1)) -> Section 1 : CHIFFRE D'AFFAIRES ET MARGE BRUTE | M82: =IF($D82="","",INDEX($B$1:$H$1017, $B82, M$1)) -> Section 1 : FinanceData'!$B$6
B83: 83 | C83: Section 1 is pre-filled with the results from the ‘RevenueData’ sheet. | E83: La Section 1 est préremplie avec les résultats de la feuille "RevenueData" | G83: Deel 1 is vooraf ingevuld met de resultaten van het blad “RevenueData” | I83: 8 | J83: FinanceData | K83: 2025-07-30 | L83: =IF($C83="","",INDEX($B$1:$H$1017, $B83, L$1)) -> La Section 1 est préremplie avec les résultats de la feuille "RevenueData" | M83: =IF($D83="","",INDEX($B$1:$H$1017, $B83, M$1)) -> 
B84: 84 | C84: Section 2 : OPERATING EXPENSES | D84: ="Section 2 : "&MID(CELL("address",FinanceData!B199),FIND("]",CELL("address",FinanceData!B199))+1,255) -> Section 2 : FinanceData'!$B$199 | E84: Section 2 : DEPENSES OPERATIONNELLES | F84: =TableInstructions[[#This Row],[English Comment]] -> Section 2 : FinanceData'!$B$199 | G84: Deel 2 : BEDRIJFSKOSTEN | H84: =TableInstructions[[#This Row],[English Comment]] -> Section 2 : FinanceData'!$B$199 | I84: 8 | J84: FinanceData | K84: 2025-07-31 | L84: =IF($C84="","",INDEX($B$1:$H$1017, $B84, L$1)) -> Section 2 : DEPENSES OPERATIONNELLES | M84: =IF($D84="","",INDEX($B$1:$H$1017, $B84, M$1)) -> Section 2 : FinanceData'!$B$199
B85: 85 | C85: MARKETING COST | D85: Column FinanceData'!H 5 predefined expenses and 5 user defined expenses | E85: COUT DE MARKETING | F85: Colonne FinanceData'!H 5 dépenses prédéfinies et 5 dépenses définies par l'utilisateur | G85: MARKETINGKOSTEN | H85: Kolom FinanceData'!H 5 vooraf gedefinieerde uitgaven en 5 door de gebruiker gedefinieerde uitgaven | I85: 8 | J85: FinanceData | K85: 2025-08-01 | L85: =IF($C85="","",INDEX($B$1:$H$1017, $B85, L$1)) -> COUT DE MARKETING | M85: =IF($D85="","",INDEX($B$1:$H$1017, $B85, M$1)) -> Colonne FinanceData'!H 5 dépenses prédéfinies et 5 dépenses définies par l'utilisateur
B86: 86 | C86: STAFF SALARIES | E86: SALAIRES DE PERSONNEL | G86: PERSONNELSKOSTEN | I86: 8 | J86: FinanceData | K86: 2025-08-02 | L86: =IF($C86="","",INDEX($B$1:$H$1017, $B86, L$1)) -> SALAIRES DE PERSONNEL | M86: =IF($D86="","",INDEX($B$1:$H$1017, $B86, M$1)) -> 
B87: 87 | C87: TAXES AND DUTIES ON STAFF | D87: Column FinanceData'!H 4 predefined expenses and 5 user defined expenses | E87: IMPOTS ET TAXES SUR PERSONNEL | F87: Colonne FinanceData'!H 4 dépenses prédéfinies et 5 dépenses définies par l'utilisateur | G87: BELASTINGEN EN HEFFINGEN OP PERSONEEL | H87: Kolom FinanceData'!H 4 vooraf gedefinieerde uitgaven en 5 door de gebruiker gedefinieerde uitgaven | I87: 8 | J87: FinanceData | K87: 2025-08-03 | L87: =IF($C87="","",INDEX($B$1:$H$1017, $B87, L$1)) -> IMPOTS ET TAXES SUR PERSONNEL | M87: =IF($D87="","",INDEX($B$1:$H$1017, $B87, M$1)) -> Colonne FinanceData'!H 4 dépenses prédéfinies et 5 dépenses définies par l'utilisateur
B88: 88 | C88: OFFICE COSTS | D88: Column FinanceData'!H 10 predefined expenses and 5 user defined expenses | E88: COUTS DE L'OFFICE | F88: Colonne FinanceData'!H 10 dépenses prédéfinies et 5 dépenses définies par l'utilisateur | G88: KOSTEN VAN HET KANTOOR | H88: Kolom FinanceData'!H 10 vooraf gedefinieerde uitgaven en 5 door de gebruiker gedefinieerde uitgaven | I88: 8 | J88: FinanceData | K88: 2025-08-04 | L88: =IF($C88="","",INDEX($B$1:$H$1017, $B88, L$1)) -> COUTS DE L'OFFICE | M88: =IF($D88="","",INDEX($B$1:$H$1017, $B88, M$1)) -> Colonne FinanceData'!H 10 dépenses prédéfinies et 5 dépenses définies par l'utilisateur
B89: 89 | C89: OTHER EXPENSES | D89: Column FinanceData'!H 4 predefined expenses and 5 user defined expenses | E89: AUTRES CHARGES | F89: Colonne FinanceData'!H 4 dépenses prédéfinies et 5 dépenses définies par l'utilisateur | G89: OVERIGE KOSTEN | H89: Kolom FinanceData'!H 4 vooraf gedefinieerde uitgaven en 5 door de gebruiker gedefinieerde uitgaven | I89: 8 | J89: FinanceData | K89: 2025-08-05 | L89: =IF($C89="","",INDEX($B$1:$H$1017, $B89, L$1)) -> AUTRES CHARGES | M89: =IF($D89="","",INDEX($B$1:$H$1017, $B89, M$1)) -> Colonne FinanceData'!H 4 dépenses prédéfinies et 5 dépenses définies par l'utilisateur
B90: 90 | C90: TRAVEL & TRANSPORTATION | E90: VOYAGE & DEPLACEMENT | G90: REIZEN & VERVOER | I90: 8 | J90: FinanceData | K90: 2025-08-06 | L90: =IF($C90="","",INDEX($B$1:$H$1017, $B90, L$1)) -> VOYAGE & DEPLACEMENT | M90: =IF($D90="","",INDEX($B$1:$H$1017, $B90, M$1)) -> 
B91: 91 | C91: INSURANCE | D91: Column FinanceData'!H 3 predefined expenses and 5 user defined expenses | E91: ASSURANCES | F91: Colonne FinanceData'!H 3 dépenses prédéfinies et 5 dépenses définies par l'utilisateur | G91: VERZEKERINGEN | H91: Kolom FinanceData'!H 3 vooraf gedefinieerde uitgaven en 5 door de gebruiker gedefinieerde uitgaven | I91: 8 | J91: FinanceData | K91: 2025-08-07 | L91: =IF($C91="","",INDEX($B$1:$H$1017, $B91, L$1)) -> ASSURANCES | M91: =IF($D91="","",INDEX($B$1:$H$1017, $B91, M$1)) -> Colonne FinanceData'!H 3 dépenses prédéfinies et 5 dépenses définies par l'utilisateur
B92: 92 | C92: MAINTENANCE | D92: Column FinanceData'!H 2 predefined expenses and 5 user defined expenses | E92: ENTRETIEN | F92: Colonne FinanceData'!H 2 dépenses prédéfinies et 5 dépenses définies par l'utilisateur | G92: ONDERHOUD | H92: Kolom FinanceData'!H 2 vooraf gedefinieerde uitgaven en 5 door de gebruiker gedefinieerde uitgaven | I92: 8 | J92: FinanceData | K92: 2025-08-08 | L92: =IF($C92="","",INDEX($B$1:$H$1017, $B92, L$1)) -> ENTRETIEN | M92: =IF($D92="","",INDEX($B$1:$H$1017, $B92, M$1)) -> Colonne FinanceData'!H 2 dépenses prédéfinies et 5 dépenses définies par l'utilisateur
B93: 93 | C93: THIRD PARTIES | D93: Column FinanceData'!H 8 predefined expenses and 5 user defined expenses | E93: TIERCES PARTIES | F93: Colonne FinanceData'!H 8 dépenses prédéfinies et 5 dépenses définies par l'utilisateur | G93: DERDEN | H93: Kolom FinanceData'!H 8 vooraf gedefinieerde uitgaven en 5 door de gebruiker gedefinieerde uitgaven | I93: 8 | J93: FinanceData | K93: 2025-08-09 | L93: =IF($C93="","",INDEX($B$1:$H$1017, $B93, L$1)) -> TIERCES PARTIES | M93: =IF($D93="","",INDEX($B$1:$H$1017, $B93, M$1)) -> Colonne FinanceData'!H 8 dépenses prédéfinies et 5 dépenses définies par l'utilisateur
B94: 94 | C94: Section 3 : INVESTMENTS AND DEPRECIATION | D94: ="Section 3 : "&MID(CELL("address",FinanceData!B407),FIND("]",CELL("address",FinanceData!B407))+1,255) -> Section 3 : FinanceData'!$B$407 | E94: Section 3 : INVESTISSEMENTS ET AMORTISSEMENTS | F94: =TableInstructions[[#This Row],[English Comment]] -> Section 3 : FinanceData'!$B$407 | G94: Deel 3 : INVESTERINGEN EN AFSCHRIJVINGEN | H94: =TableInstructions[[#This Row],[English Comment]] -> Section 3 : FinanceData'!$B$407 | I94: 8 | J94: FinanceData | K94: 2025-08-10 | L94: =IF($C94="","",INDEX($B$1:$H$1017, $B94, L$1)) -> Section 3 : INVESTISSEMENTS ET AMORTISSEMENTS | M94: =IF($D94="","",INDEX($B$1:$H$1017, $B94, M$1)) -> Section 3 : FinanceData'!$B$407
B95: 95 | C95: Fill past and future investments : description, acquisition year, acquisition value (excluded VAT), % yearly amortisation, accumulated amortisation value (before YEAR-2) | D95: =MID(CELL("address",FinanceData!N409),FIND("]",CELL("address",FinanceData!N409))+1,255)&":"&MID(CELL("address",FinanceData!N528),FIND("!",CELL("address",FinanceData!N528))+1,255)&CHAR(10)&MID(CELL("address",FinanceData!Q409),FIND("]",CELL("address",FinanceData!Q409))+1,255)&":"&MID(CELL("address",FinanceData!T528),FIND("!",CELL("address",FinanceData!T528))+1,255) -> FinanceData'!$N$409:$N$528 FinanceData'!$Q$409:$T$528 | E95: Remplir les investissements passés et futurs : description, année d'acquisition, valeur d'acquisition (hors TVA), % d'amortissement annuel, valeur d'amortissement cumulée (avant ANNEE-2) | F95: =TableInstructions[[#This Row],[English Comment]] -> FinanceData'!$N$409:$N$528 FinanceData'!$Q$409:$T$528 | G95: Vul vroegere en toekomstige investeringen in: beschrijving, aanschaffingsjaar, aanschaffingswaarde (exclusief btw), % jaarlijkse afschrijving, gecumuleerde afschrijvingswaarde (vóór JAAR-2) | H95: =TableInstructions[[#This Row],[English Comment]] -> FinanceData'!$N$409:$N$528 FinanceData'!$Q$409:$T$528 | I95: 8 | J95: FinanceData | K95: 2025-08-10 | L95: =IF($C95="","",INDEX($B$1:$H$1017, $B95, L$1)) -> Remplir les investissements passés et futurs : description, année d'acquisition, valeur d'acquisition (hors TVA), % d'amortissement annuel, valeur d'amortissement cumulée (avant ANNEE-2) | M95: =IF($D95="","",INDEX($B$1:$H$1017, $B95, M$1)) -> FinanceData'!$N$409:$N$528 FinanceData'!$Q$409:$T$528
B96: 96 | C96: Adjust if necessary amortisations for YEAR-2 and YEAR-1 | D96: =MID(CELL("address",FinanceData!U540),FIND("]",CELL("address",FinanceData!U540))+1,255)&":"&MID(CELL("address",FinanceData!V659),FIND("!",CELL("address",FinanceData!V659))+1,255) -> FinanceData'!$U$540:$V$659 | E96: Ajuster si nécessaire les amortissements pour l'ANNEE 2 et l'ANNEE 1 | F96: =TableInstructions[[#This Row],[English Comment]] -> FinanceData'!$U$540:$V$659 | G96: Pas indien nodig de afschrijvingen voor JAAR-2 en JAAR-1 aan | H96: =TableInstructions[[#This Row],[English Comment]] -> FinanceData'!$U$540:$V$659 | I96: 8 | J96: FinanceData | K96: 2025-08-11 | L96: =IF($C96="","",INDEX($B$1:$H$1017, $B96, L$1)) -> Ajuster si nécessaire les amortissements pour l'ANNEE 2 et l'ANNEE 1 | M96: =IF($D96="","",INDEX($B$1:$H$1017, $B96, M$1)) -> FinanceData'!$U$540:$V$659
B97: 97 | C97: Section 4 : WORKING CAPITAL | D97: ="Section 4 : "&MID(CELL("address",FinanceData!B803),FIND("]",CELL("address",FinanceData!B803))+1,255) -> Section 4 : FinanceData'!$B$803 | E97: Section 4 : FONDS DE ROULEMENT | F97: =TableInstructions[[#This Row],[English Comment]] -> Section 4 : FinanceData'!$B$803 | G97: Deel 4 : WERKKAPITAAL | H97: =TableInstructions[[#This Row],[English Comment]] -> Section 4 : FinanceData'!$B$803 | I97: 8 | J97: FinanceData | K97: 2025-08-13 | L97: =IF($C97="","",INDEX($B$1:$H$1017, $B97, L$1)) -> Section 4 : FONDS DE ROULEMENT | M97: =IF($D97="","",INDEX($B$1:$H$1017, $B97, M$1)) -> Section 4 : FinanceData'!$B$803
B98: 98 | C98: Fill YEAR-2 and YEAR-1 stock value, accounts receivable value and accounts payable value. You may also enter the equivalent number of day (optional) | D98: =MID(CELL("address",FinanceData!U805),FIND("]",CELL("address",FinanceData!U805))+1,255)&":"&MID(CELL("address",FinanceData!V814),FIND("!",CELL("address",FinanceData!V814))+1,255) -> FinanceData'!$U$805:$V$814 | E98: Remplissez les champs ANNEE-2 et ANNEE-1 avec la valeur des stocks, la valeur des comptes clients et la valeur des comptes fournisseurs. Vous pouvez également saisir le nombre de jours équivalent (facultatif). | F98: =TableInstructions[[#This Row],[English Comment]] -> FinanceData'!$U$805:$V$814 | G98: Vul de voorraadwaarde, debiteurenwaarde en crediteurenwaarde voor JAAR-2 en JAAR-1 in. U kunt ook het equivalente aantal dagen invoeren (optioneel) | H98: =TableInstructions[[#This Row],[English Comment]] -> FinanceData'!$U$805:$V$814 | I98: =I97 -> 8 | J98: FinanceData | K98: 2025-08-13 | L98: =IF($C98="","",INDEX($B$1:$H$1017, $B98, L$1)) -> Remplissez les champs ANNEE-2 et ANNEE-1 avec la valeur des stocks, la valeur des comptes clients et la valeur des comptes fournisseurs. Vous pouvez également saisir le nombre de jours équivalent (facultatif). | M98: =IF($D98="","",INDEX($B$1:$H$1017, $B98, M$1)) -> FinanceData'!$U$805:$V$814
B99: =ROW(B99) -> 99 | C99: Fill CURRENT YEAR to YEAR 6, the number of days for stock calculation, accounts receivable and accounts payable. Value will be computed automatically | D99: =MID(CELL("address",FinanceData!Y805),FIND("]",CELL("address",FinanceData!Y805))+1,255)&":"&MID(CELL("address",FinanceData!AD813),FIND("!",CELL("address",FinanceData!AD813))+1,255) -> FinanceData'!$Y$805:$AD$813 | E99: Remplissez les champs ANNEE EN COURS à ANNEE 6 avec le nombre de jours pour le calcul des stocks, des comptes clients et des comptes fournisseurs. La valeur sera calculée automatiquement. | F99: =TableInstructions[[#This Row],[English Comment]] -> FinanceData'!$Y$805:$AD$813 | G99: Vul HUIDIG JAAR tot en met JAAR 6 in, het aantal dagen voor de voorraadberekening, debiteuren en crediteuren. De waarde wordt automatisch berekend. | H99: =TableInstructions[[#This Row],[English Comment]] -> FinanceData'!$Y$805:$AD$813 | I99: 8 | J99: FinanceData | K99: 2025-08-13 | L99: =IF($C99="","",INDEX($B$1:$H$1017, $B99, L$1)) -> Remplissez les champs ANNEE EN COURS à ANNEE 6 avec le nombre de jours pour le calcul des stocks, des comptes clients et des comptes fournisseurs. La valeur sera calculée automatiquement. | M99: =IF($D99="","",INDEX($B$1:$H$1017, $B99, M$1)) -> FinanceData'!$Y$805:$AD$813
B100: 100 | C100: Section 5 : PROFIT AND LOSS ACCOUNT | D100: ="Section 5 : "&MID(CELL("address",FinanceData!B823),FIND("]",CELL("address",FinanceData!B823))+1,255) -> Section 5 : FinanceData'!$B$823 | E100: Section 5 : COMPTE DE PERTES ET PROFITS | F100: =TableInstructions[[#This Row],[English Comment]] -> Section 5 : FinanceData'!$B$823 | G100: Deel 5 : WINST- EN VERLIESREKENING | H100: =TableInstructions[[#This Row],[English Comment]] -> Section 5 : FinanceData'!$B$823 | I100: 8 | J100: FinanceData | K100: 2025-08-13 | L100: =IF($C100="","",INDEX($B$1:$H$1017, $B100, L$1)) -> Section 5 : COMPTE DE PERTES ET PROFITS | M100: =IF($D100="","",INDEX($B$1:$H$1017, $B100, M$1)) -> Section 5 : FinanceData'!$B$823
B101: 101 | C101: Fill any variation in inventory, receivables and operating debts | D101: =MID(CELL("address",FinanceData!U839),FIND("]",CELL("address",FinanceData!U839))+1,255)&":"&MID(CELL("address",FinanceData!AD841),FIND("!",CELL("address",FinanceData!AD841))+1,255) -> FinanceData'!$U$839:$AD$841 | E101: Remplir toute variation dans les stocks, les créances et les dettes d'exploitation | F101: =TableInstructions[[#This Row],[English Comment]] -> FinanceData'!$U$839:$AD$841 | G101: Vul eventuele verschillen in voorraad, vorderingen en bedrijfsschulden in | H101: =TableInstructions[[#This Row],[English Comment]] -> FinanceData'!$U$839:$AD$841 | I101: =I100 -> 8 | J101: FinanceData | K101: 2025-08-13 | L101: =IF($C101="","",INDEX($B$1:$H$1017, $B101, L$1)) -> Remplir toute variation dans les stocks, les créances et les dettes d'exploitation | M101: =IF($D101="","",INDEX($B$1:$H$1017, $B101, M$1)) -> FinanceData'!$U$839:$AD$841
B102: 102 | C102: Fill bank charges | D102: =MID(CELL("address",FinanceData!U844),FIND("]",CELL("address",FinanceData!U844))+1,255)&":"&MID(CELL("address",FinanceData!AD847),FIND("!",CELL("address",FinanceData!AD847))+1,255) -> FinanceData'!$U$844:$AD$847 | E102: Remplir les frais bancaires | F102: =TableInstructions[[#This Row],[English Comment]] -> FinanceData'!$U$844:$AD$847 | G102: Vul bankkosten in | H102: =TableInstructions[[#This Row],[English Comment]] -> FinanceData'!$U$844:$AD$847 | I102: =I101 -> 8 | J102: FinanceData | K102: 2025-08-13 | L102: =IF($C102="","",INDEX($B$1:$H$1017, $B102, L$1)) -> Remplir les frais bancaires | M102: =IF($D102="","",INDEX($B$1:$H$1017, $B102, M$1)) -> FinanceData'!$U$844:$AD$847
B103: 103 | C103: Fill taxes | D103: =MID(CELL("address",FinanceData!U853),FIND("]",CELL("address",FinanceData!U853))+1,255)&":"&MID(CELL("address",FinanceData!AD857),FIND("!",CELL("address",FinanceData!AD857))+1,255) -> FinanceData'!$U$853:$AD$857 | E103: Remplir les impôts | F103: =TableInstructions[[#This Row],[English Comment]] -> FinanceData'!$U$853:$AD$857 | G103: Vul belastingen in | H103: =TableInstructions[[#This Row],[English Comment]] -> FinanceData'!$U$853:$AD$857 | I103: 8 | J103: FinanceData | K103: 2025-08-13 | L103: =IF($C103="","",INDEX($B$1:$H$1017, $B103, L$1)) -> Remplir les impôts | M103: =IF($D103="","",INDEX($B$1:$H$1017, $B103, M$1)) -> FinanceData'!$U$853:$AD$857
B104: 104 | C104: Section 6 : CASH FLOW STATEMENT | D104: ="Section 6 : "&MID(CELL("address",FinanceData!B863),FIND("]",CELL("address",FinanceData!B863))+1,255) -> Section 6 : FinanceData'!$B$863 | E104: Section 6 : ETAT FLUX DE TRESORERIE | F104: =TableInstructions[[#This Row],[English Comment]] -> Section 6 : FinanceData'!$B$863 | G104: Deel 6 : KASSTROOMOVERZICHT | H104: =TableInstructions[[#This Row],[English Comment]] -> Section 6 : FinanceData'!$B$863 | I104: =I103 -> 8 | J104: FinanceData | K104: 2025-08-13 | L104: =IF($C104="","",INDEX($B$1:$H$1017, $B104, L$1)) -> Section 6 : ETAT FLUX DE TRESORERIE | M104: =IF($D104="","",INDEX($B$1:$H$1017, $B104, M$1)) -> Section 6 : FinanceData'!$B$863
B105: 105 | C105: Fill cash postion at end of YEAR-2 and YEAR-1 | D105: =MID(CELL("address",FinanceData!U895),FIND("]",CELL("address",FinanceData!U895))+1,255)&":"&MID(CELL("address",FinanceData!V895),FIND("!",CELL("address",FinanceData!V895))+1,255) -> FinanceData'!$U$895:$V$895 | E105: Remplir la position de trésorerie à la fin de l'ANNEE 2 et de l'ANNEE 1 | F105: =TableInstructions[[#This Row],[English Comment]] -> FinanceData'!$U$895:$V$895 | G105: Vul de kaspositie in aan het einde van JAAR-2 en JAAR-1 | H105: =TableInstructions[[#This Row],[English Comment]] -> FinanceData'!$U$895:$V$895 | I105: 8 | J105: FinanceData | K105: 2025-08-13 | L105: =IF($C105="","",INDEX($B$1:$H$1017, $B105, L$1)) -> Remplir la position de trésorerie à la fin de l'ANNEE 2 et de l'ANNEE 1 | M105: =IF($D105="","",INDEX($B$1:$H$1017, $B105, M$1)) -> FinanceData'!$U$895:$V$895
B106: 106 | C106: Section 7 : SOURCE OF FINANCING | D106: ="Section 7 : "&MID(CELL("address",FinanceData!B898),FIND("]",CELL("address",FinanceData!B898))+1,255) -> Section 7 : FinanceData'!$B$898 | E106: Section 7 : SOURCE DE FINANCEMENT | F106: =TableInstructions[[#This Row],[English Comment]] -> Section 7 : FinanceData'!$B$898 | G106: Deel 7 : FINANCIERINGSBRON | H106: =TableInstructions[[#This Row],[English Comment]] -> Section 7 : FinanceData'!$B$898 | I106: 8 | J106: FinanceData | K106: 2025-08-13 | L106: =IF($C106="","",INDEX($B$1:$H$1017, $B106, L$1)) -> Section 7 : SOURCE DE FINANCEMENT | M106: =IF($D106="","",INDEX($B$1:$H$1017, $B106, M$1)) -> Section 7 : FinanceData'!$B$898
B107: 107 | C107: Fill source of financing : loan and capital contribution | D107: =MID(CELL("address",FinanceData!U907),FIND("]",CELL("address",FinanceData!U907))+1,255)&":"&MID(CELL("address",FinanceData!AD913),FIND("!",CELL("address",FinanceData!AD913))+1,255) -> FinanceData'!$U$907:$AD$913 | E107: Remplir les sources de financement : prêt et apport en capital | F107: =TableInstructions[[#This Row],[English Comment]] -> FinanceData'!$U$907:$AD$913 | G107: Vul financieringsbron in: lening en kapitaalinbreng | H107: =TableInstructions[[#This Row],[English Comment]] -> FinanceData'!$U$907:$AD$913 | I107: =I106 -> 8 | J107: FinanceData | K107: 2025-08-13 | L107: =IF($C107="","",INDEX($B$1:$H$1017, $B107, L$1)) -> Remplir les sources de financement : prêt et apport en capital | M107: =IF($D107="","",INDEX($B$1:$H$1017, $B107, M$1)) -> FinanceData'!$U$907:$AD$913
B108: 108 | I108: 8 | J108: FinanceData | K108: 2025-08-13 | L108: =IF($C108="","",INDEX($B$1:$H$1017, $B108, L$1)) ->  | M108: =IF($D108="","",INDEX($B$1:$H$1017, $B108, M$1)) -> 
B109: 109
B110: 110 | C110: FIXED ASSETS | D110: ="Section 3 : "&MID(CELL("address",FinanceData!D409),FIND("]",CELL("address",FinanceData!D409))+1,255) -> Section 3 : FinanceData'!$D$409 | E110: ACTIFS MATERIEL IMMOBILISES | F110: =TableInstructions[[#This Row],[English Comment]] -> Section 3 : FinanceData'!$D$409 | G110: MATERIËLE VASTE ACTIVA | H110: =TableInstructions[[#This Row],[English Comment]] -> Section 3 : FinanceData'!$D$409 | I110: =I78+1 -> 9 | J110: FinanceData | K110: 2025-07-27 | L110: =IF($C110="","",INDEX($B$1:$H$1017, $B110, L$1)) -> ACTIFS MATERIEL IMMOBILISES | M110: =IF($D110="","",INDEX($B$1:$H$1017, $B110, M$1)) -> Section 3 : FinanceData'!$D$409
B111: 111 | C111: Standard depreciation rules. If other standards exist in your country, you can change the standard depreciation rates. | E111: Régles de dépréciation habituelles. Si d'autres normes existent dans votre pays, vous pouvez modifier les pourcentages d'amortissement habituels | G111: Gebruikelijke afschrijvingsregels. Als er in uw land andere normen gelden, kunt u de gebruikelijke afschrijvingspercentages wijzigen. | I111: =I110 -> 9 | J111: FinanceData | K111: 2025-07-27 | L111: =IF($C111="","",INDEX($B$1:$H$1017, $B111, L$1)) -> Régles de dépréciation habituelles. Si d'autres normes existent dans votre pays, vous pouvez modifier les pourcentages d'amortissement habituels | M111: =IF($D111="","",INDEX($B$1:$H$1017, $B111, M$1)) -> 
B112: 112 | C112: Depreciation rules | E112: Régles de dépréciation | G112: Afschrijvingsregels | I112: 9 | J112: FinanceData | K112: 2025-07-27 | L112: =IF($C112="","",INDEX($B$1:$H$1017, $B112, L$1)) -> Régles de dépréciation | M112: =IF($D112="","",INDEX($B$1:$H$1017, $B112, M$1)) -> 
B113: =ROW(B113) -> 113 | C113: Land | D113: 0 | E113: Terrain | F113: =TableInstructions[[#This Row],[English Comment]] -> 0 | G113: Grond | H113: =TableInstructions[[#This Row],[English Comment]] -> 0 | I113: 9 | J113: FinanceData | K113: 2025-07-27 | L113: =IF($C113="","",INDEX($B$1:$H$1017, $B113, L$1)) -> Terrain | M113: =IF($D113="","",INDEX($B$1:$H$1017, $B113, M$1)) -> 0
B114: 114 | C114: Buildings | D114: 0.05 | E114: Bâtiments | F114: =TableInstructions[[#This Row],[English Comment]] -> 0.05 | G114: Gebouwen | H114: =TableInstructions[[#This Row],[English Comment]] -> 0.05 | I114: 9 | J114: FinanceData | K114: 2025-07-27 | L114: =IF($C114="","",INDEX($B$1:$H$1017, $B114, L$1)) -> Bâtiments | M114: =IF($D114="","",INDEX($B$1:$H$1017, $B114, M$1)) -> 0.05
B115: 115 | C115: Furniture | D115: 0.1 | E115: Meubles | F115: =TableInstructions[[#This Row],[English Comment]] -> 0.1 | G115: Meubilair | H115: =TableInstructions[[#This Row],[English Comment]] -> 0.1 | I115: 9 | J115: FinanceData | K115: 2025-07-27 | L115: =IF($C115="","",INDEX($B$1:$H$1017, $B115, L$1)) -> Meubles | M115: =IF($D115="","",INDEX($B$1:$H$1017, $B115, M$1)) -> 0.1
B116: 116 | C116: Equipment | D116: 0.1 | E116: Équipement | F116: =TableInstructions[[#This Row],[English Comment]] -> 0.1 | G116: Apparatuur | H116: =TableInstructions[[#This Row],[English Comment]] -> 0.1 | I116: 9 | J116: FinanceData | K116: 2025-07-27 | L116: =IF($C116="","",INDEX($B$1:$H$1017, $B116, L$1)) -> Équipement | M116: =IF($D116="","",INDEX($B$1:$H$1017, $B116, M$1)) -> 0.1
B117: 117 | C117: Machinery | D117: 0.1 | E117: Machines | F117: =TableInstructions[[#This Row],[English Comment]] -> 0.1 | G117: Machines | H117: =TableInstructions[[#This Row],[English Comment]] -> 0.1 | I117: 9 | J117: FinanceData | K117: 2025-07-27 | L117: =IF($C117="","",INDEX($B$1:$H$1017, $B117, L$1)) -> Machines | M117: =IF($D117="","",INDEX($B$1:$H$1017, $B117, M$1)) -> 0.1
B118: 118 | C118: Electrical installations | D118: 0.1 | E118: Installation d'électricité | F118: =TableInstructions[[#This Row],[English Comment]] -> 0.1 | G118: Elektrische installaties | H118: =TableInstructions[[#This Row],[English Comment]] -> 0.1 | I118: 9 | J118: FinanceData | K118: 2025-07-27 | L118: =IF($C118="","",INDEX($B$1:$H$1017, $B118, L$1)) -> Installation d'électricité | M118: =IF($D118="","",INDEX($B$1:$H$1017, $B118, M$1)) -> 0.1
B119: 119 | C119: Cars/motorbikes | D119: 0.2 | E119: Voitures / motos | F119: =TableInstructions[[#This Row],[English Comment]] -> 0.2 | G119: Auto's/motorfietsen | H119: =TableInstructions[[#This Row],[English Comment]] -> 0.2 | I119: 9 | J119: FinanceData | K119: 2025-07-27 | L119: =IF($C119="","",INDEX($B$1:$H$1017, $B119, L$1)) -> Voitures / motos | M119: =IF($D119="","",INDEX($B$1:$H$1017, $B119, M$1)) -> 0.2
B120: 120 | C120: Lorries | D120: 0.1 | E120: Camions | F120: =TableInstructions[[#This Row],[English Comment]] -> 0.1 | G120: Vrachtwagens | H120: =TableInstructions[[#This Row],[English Comment]] -> 0.1 | I120: 9 | J120: FinanceData | K120: 2025-07-27 | L120: =IF($C120="","",INDEX($B$1:$H$1017, $B120, L$1)) -> Camions | M120: =IF($D120="","",INDEX($B$1:$H$1017, $B120, M$1)) -> 0.1
B121: 121 | C121: Computers + printers | D121: 0.25 | E121: Ordinateurs + imprimantes | F121: =TableInstructions[[#This Row],[English Comment]] -> 0.25 | G121: Computers + printers | H121: =TableInstructions[[#This Row],[English Comment]] -> 0.25 | I121: 9 | J121: FinanceData | K121: 2025-07-27 | L121: =IF($C121="","",INDEX($B$1:$H$1017, $B121, L$1)) -> Ordinateurs + imprimantes | M121: =IF($D121="","",INDEX($B$1:$H$1017, $B121, M$1)) -> 0.25
B122: 122 | C122: Mobile phones | D122: 0.25 | E122: Téléphones portables | F122: =TableInstructions[[#This Row],[English Comment]] -> 0.25 | G122: Mobiele telefoons | H122: =TableInstructions[[#This Row],[English Comment]] -> 0.25 | I122: 9 | J122: FinanceData | K122: 2025-07-27 | L122: =IF($C122="","",INDEX($B$1:$H$1017, $B122, L$1)) -> Téléphones portables | M122: =IF($D122="","",INDEX($B$1:$H$1017, $B122, M$1)) -> 0.25
B123: 123 | C123: INTANGIBLE ASSETS | D123: ="Section 3 : "&MID(CELL("address",FinanceData!D517),FIND("]",CELL("address",FinanceData!D517))+1,255) -> Section 3 : FinanceData'!$D$517 | E123: ACTIFS IMMATERIELS | F123: =TableInstructions[[#This Row],[English Comment]] -> Section 3 : FinanceData'!$D$517 | G123: IMMATERIËLE ACTIVA | H123: =TableInstructions[[#This Row],[English Comment]] -> Section 3 : FinanceData'!$D$517 | I123: 9 | J123: FinanceData | K123: 2025-07-27 | L123: =IF($C123="","",INDEX($B$1:$H$1017, $B123, L$1)) -> ACTIFS IMMATERIELS | M123: =IF($D123="","",INDEX($B$1:$H$1017, $B123, M$1)) -> Section 3 : FinanceData'!$D$517
B124: 124 | C124: These investments are not tangible. They include research costs, threshold costs (goodwill or customer acquisition costs), franchise connection costs, patents, licences, know-how, trademarks and other equivalent rights. | E124: Ces investissements ne sont pas tangibles. Il s'agit des coûts de recherche, de seuil (écart d'acquisition ou prix d'achat de la clientèle), de connexion de franchise, de brevets, de licences, de savoir-faire, de marques et d'autres droits équivalents. | G124: Deze investeringen zijn niet tastbaar. Het gaat om kosten voor onderzoek, drempelkosten (goodwill of aankoopprijs van klanten), franchisekosten, octrooien, licenties, knowhow, merken en andere gelijkwaardige rechten. | I124: 9 | J124: FinanceData | K124: 2025-07-27 | L124: =IF($C124="","",INDEX($B$1:$H$1017, $B124, L$1)) -> Ces investissements ne sont pas tangibles. Il s'agit des coûts de recherche, de seuil (écart d'acquisition ou prix d'achat de la clientèle), de connexion de franchise, de brevets, de licences, de savoir-faire, de marques et d'autres droits équivalents. | M124: =IF($D124="","",INDEX($B$1:$H$1017, $B124, M$1)) -> 
B125: 125 | C125: Depreciation rules | D125: 0.2 | E125: Régles de dépréciation | F125: =TableInstructions[[#This Row],[English Comment]] -> 0.2 | G125: Afschrijvingsregels | H125: =TableInstructions[[#This Row],[English Comment]] -> 0.2 | I125: 9 | J125: FinanceData | K125: 2025-07-27 | L125: =IF($C125="","",INDEX($B$1:$H$1017, $B125, L$1)) -> Régles de dépréciation | M125: =IF($D125="","",INDEX($B$1:$H$1017, $B125, M$1)) -> 0.2
B126: 126 | C126: START-UP COSTS | D126: ="Section 3 : "&MID(CELL("address",FinanceData!D524),FIND("]",CELL("address",FinanceData!D524))+1,255) -> Section 3 : FinanceData'!$D$524 | E126: FRAIS DE DEMARRAGE | F126: =TableInstructions[[#This Row],[English Comment]] -> Section 3 : FinanceData'!$D$524 | G126: OPSTARTKOSTEN | H126: =TableInstructions[[#This Row],[English Comment]] -> Section 3 : FinanceData'!$D$524 | I126: 9 | J126: FinanceData | K126: 2025-07-27 | L126: =IF($C126="","",INDEX($B$1:$H$1017, $B126, L$1)) -> FRAIS DE DEMARRAGE | M126: =IF($D126="","",INDEX($B$1:$H$1017, $B126, M$1)) -> Section 3 : FinanceData'!$D$524
B127: 127 | C127: All expenses incurred before setting up the business can be capitalised if they are sufficiently high; otherwise, they are treated as an expense in your profit and loss account. | E127: Toutes les dépenses que vous avez faites avant de créer l'entreprise, vous pouvez les activer si elles sont d'un montant assez élevé, sinon vous les prenez comme une charge dans votre compte de profits et pertes | G127: Alle uitgaven die u hebt gedaan voordat u het bedrijf oprichtte, kunt u activeren als ze hoog genoeg zijn, anders neemt u ze op als last in uw winst- en verliesrekening. | I127: 9 | J127: FinanceData | K127: 2025-07-27 | L127: =IF($C127="","",INDEX($B$1:$H$1017, $B127, L$1)) -> Toutes les dépenses que vous avez faites avant de créer l'entreprise, vous pouvez les activer si elles sont d'un montant assez élevé, sinon vous les prenez comme une charge dans votre compte de profits et pertes | M127: =IF($D127="","",INDEX($B$1:$H$1017, $B127, M$1)) -> 
B128: 128 | C128: Depreciation rules | D128: 0.33 | E128: Régles de dépréciation | F128: =TableInstructions[[#This Row],[English Comment]] -> 0.33 | G128: Afschrijvingsregels | H128: =TableInstructions[[#This Row],[English Comment]] -> 0.33 | I128: 9 | J128: FinanceData | K128: 2025-07-27 | L128: =IF($C128="","",INDEX($B$1:$H$1017, $B128, L$1)) -> Régles de dépréciation | M128: =IF($D128="","",INDEX($B$1:$H$1017, $B128, M$1)) -> 0.33
B129: 129
B130: 130 | C130: OVO LOAN | D130: ="Section 7 : "&MID(CELL("address",FinanceData!L907),FIND("]",CELL("address",FinanceData!L907))+1,255) -> Section 7 : FinanceData'!$L$907 | E130: PRET OVO | F130: =TableInstructions[[#This Row],[English Comment]] -> Section 7 : FinanceData'!$L$907 | G130: PRET OVO | H130: =TableInstructions[[#This Row],[English Comment]] -> Section 7 : FinanceData'!$L$907 | I130: =I110+1 -> 10 | J130: FinanceData | K130: 2025-07-27 | L130: =IF($C130="","",INDEX($B$1:$H$1017, $B130, L$1)) -> PRET OVO | M130: =IF($D130="","",INDEX($B$1:$H$1017, $B130, M$1)) -> Section 7 : FinanceData'!$L$907
B131: 131 | C131: General rules: | E131: Régles générales : | G131: Algemene regels: | I131: =I130 -> 10 | J131: FinanceData | K131: 2025-07-27 | L131: =IF($C131="","",INDEX($B$1:$H$1017, $B131, L$1)) -> Régles générales : | M131: =IF($D131="","",INDEX($B$1:$H$1017, $B131, M$1)) -> 
B132: 132 | C132: The highest amount that OVO suggests supporting is EUR 50,000. | E132: Montant le plus élevé que OVO suggère de soutenir est de 50,000 EUR. | G132: Het hoogste bedrag dat OVO voorstelt om te ondersteunen is 50.000 EUR. | I132: 10 | J132: FinanceData | K132: 2025-07-27 | L132: =IF($C132="","",INDEX($B$1:$H$1017, $B132, L$1)) -> Montant le plus élevé que OVO suggère de soutenir est de 50,000 EUR. | M132: =IF($D132="","",INDEX($B$1:$H$1017, $B132, M$1)) -> 
B133: 133 | C133: Four-year loan (maximum repayment period) provided by OVO and depending on cash flow developments. | E133: Prêt de 4 ans (période maximale de remboursement) prévue par OVO et dépendant de l'évolution de la trésorerie. | G133: Lening van 4 jaar (maximale terugbetalingstermijn) voorzien door OVO en afhankelijk van de evolutie van de kasmiddelen. | I133: 10 | J133: FinanceData | K133: 2025-07-27 | L133: =IF($C133="","",INDEX($B$1:$H$1017, $B133, L$1)) -> Prêt de 4 ans (période maximale de remboursement) prévue par OVO et dépendant de l'évolution de la trésorerie. | M133: =IF($D133="","",INDEX($B$1:$H$1017, $B133, M$1)) -> 
B134: 134 | C134: Interest rate of 7% per annum in EUR. This may be increased by the percentage of the expected devaluation of the local currency against the EUR. | E134: Intérêt de 7 % sur base annuelle et en EUR. A augmenter éventuellement avec le % de la dévaluation prévue de la monnaie locale par rapport à l'EUR. | G134: Rente van 7% op jaarbasis en in EUR. Eventueel te verhogen met het percentage van de verwachte devaluatie van de lokale munteenheid ten opzichte van de EUR. | I134: 10 | J134: FinanceData | K134: 2025-07-27 | L134: =IF($C134="","",INDEX($B$1:$H$1017, $B134, L$1)) -> Intérêt de 7 % sur base annuelle et en EUR. A augmenter éventuellement avec le % de la dévaluation prévue de la monnaie locale par rapport à l'EUR. | M134: =IF($D134="","",INDEX($B$1:$H$1017, $B134, M$1)) -> 
B135: 135 | C135: Exception: | E135: Exception : | G135: Uitzondering: | I135: 10 | J135: FinanceData | K135: 2025-07-27 | L135: =IF($C135="","",INDEX($B$1:$H$1017, $B135, L$1)) -> Exception : | M135: =IF($D135="","",INDEX($B$1:$H$1017, $B135, M$1)) -> 
B136: 136 | C136: Short-term loans for a maximum of one year. | E136: Prêts à court terme pour un an maximum. | G136: Kortlopende leningen voor maximaal één jaar. | I136: 10 | J136: FinanceData | K136: 2025-07-27 | L136: =IF($C136="","",INDEX($B$1:$H$1017, $B136, L$1)) -> Prêts à court terme pour un an maximum. | M136: =IF($D136="","",INDEX($B$1:$H$1017, $B136, M$1)) -> 
B137: 137 | C137: Interest rate of 12% per annum. This may be increased by the percentage of the expected devaluation of the local currency against the EUR. | E137: Intérêt de 12% sur une base annuelle. A augmenter éventuellement avec le % de la dévaluation prévue de la monnaie locale par rapport à l'EUR. | G137: Rente van 12% op jaarbasis. Eventueel te verhogen met het percentage van de verwachte devaluatie van de lokale munteenheid ten opzichte van de EUR. | I137: 10 | J137: FinanceData | K137: 2025-07-27 | L137: =IF($C137="","",INDEX($B$1:$H$1017, $B137, L$1)) -> Intérêt de 12% sur une base annuelle. A augmenter éventuellement avec le % de la dévaluation prévue de la monnaie locale par rapport à l'EUR. | M137: =IF($D137="","",INDEX($B$1:$H$1017, $B137, M$1)) -> 
B138: 138
B139: 139 | C139: Once data has been entered or updated in the ‘FinanceData’ sheet, it is essential to refresh the dynamic tables so that they reflect the latest information. Without this update, the tables may display outdated data. | E139: Une fois les données saisies ou mises à jour dans la feuille "FinanceData", il est indispensable de rafraîchir les tableaux dynamiques afin qu’ils reflètent les dernières informations. Sans cette actualisation, les tableaux risquent d’afficher des données obsolètes. | G139: Zodra de gegevens zijn ingevoerd of bijgewerkt in het blad “FinanceData”, is het essentieel om de dynamische tabellen te vernieuwen, zodat ze de meest recente informatie weergeven. Zonder deze update bestaat het risico dat de tabellen verouderde gegevens weergeven. | I139: =I130+1 -> 11 | J139: FinanceData | K139: 2025-07-27 | L139: =IF($C139="","",INDEX($B$1:$H$1017, $B139, L$1)) -> Une fois les données saisies ou mises à jour dans la feuille "FinanceData", il est indispensable de rafraîchir les tableaux dynamiques afin qu’ils reflètent les dernières informations. Sans cette actualisation, les tableaux risquent d’afficher des données obsolètes. | M139: =IF($D139="","",INDEX($B$1:$H$1017, $B139, M$1)) -> 
B140: 140 | C140: 🔄 Refreshing dynamic tables Click on button “Refresh All Pivots” on the sheet "FinanceData" This ensures that the tables display the most recent data. | D140: =MID(CELL("address",FinanceData!F2),FIND("]",CELL("address",FinanceData!F2))+1,255) -> FinanceData'!$F$2 | E140: 🔄 Actualisation des tableaux dynamiques Cliquez sur le bouton "Refresh All Pivots" dans la feuille "FinanceData" Cela garantit que les tableaux affichent les données les plus récentes | F140: =TableInstructions[[#This Row],[English Comment]] -> FinanceData'!$F$2 | G140: 🔄 Dynamische tabellen bijwerken Klik op knop “Refresh All Pivots” in het blad "FinanceData" Zo bent u er zeker van dat de tabellen de meest recente gegevens weergeven. | H140: =TableInstructions[[#This Row],[English Comment]] -> FinanceData'!$F$2 | I140: =I139 -> 11 | J140: FinanceData | K140: 2025-07-27 | L140: =IF($C140="","",INDEX($B$1:$H$1017, $B140, L$1)) -> 🔄 Actualisation des tableaux dynamiques Cliquez sur le bouton "Refresh All Pivots" dans la feuille "FinanceData" Cela garantit que les tableaux affichent les données les plus récentes | M140: =IF($D140="","",INDEX($B$1:$H$1017, $B140, M$1)) -> FinanceData'!$F$2
B141: 141
B142: 142 | C142: Once data have been finalised based on typical scenario, you may want to simulate the best scenario and the worst case scenario | E142: Une fois les données finalisées sur la base d'un scénario type, vous pouvez simuler le meilleur scénario et le pire scénario. | G142: Zodra de gegevens op basis van een typisch scenario zijn afgerond, wilt u misschien het beste scenario en het slechtste scenario simuleren. | I142: =I139+1 -> 12 | J142: FinanceData | K142: 2025-09-02 | L142: =IF($C142="","",INDEX($B$1:$H$1017, $B142, L$1)) -> Une fois les données finalisées sur la base d'un scénario type, vous pouvez simuler le meilleur scénario et le pire scénario. | M142: =IF($D142="","",INDEX($B$1:$H$1017, $B142, M$1)) -> 
B143: 143 | C143: Adjust if necessary scenario parameters on "InputsData" sheet | D143: =MID(CELL("address",InputsData!C129),FIND("]",CELL("address",InputsData!C129))+1,255) -> InputsData'!$C$129 | E143: Ajustez si nécessaire les paramètres du scénario de la feuille « InputsData » | F143: =TableInstructions[[#This Row],[English Comment]] -> InputsData'!$C$129 | G143: Pas indien nodig de scenarioparameters aan op het blad “InputsData”. | H143: =TableInstructions[[#This Row],[English Comment]] -> InputsData'!$C$129 | I143: =I142 -> 12 | J143: FinanceData | K143: 2025-09-02 | L143: =IF($C143="","",INDEX($B$1:$H$1017, $B143, L$1)) -> Ajustez si nécessaire les paramètres du scénario de la feuille « InputsData » | M143: =IF($D143="","",INDEX($B$1:$H$1017, $B143, M$1)) -> InputsData'!$C$129
B144: 144 | C144: Select the scenario on "FinanceData" sheet | D144: =MID(CELL("address",FinanceData!M2),FIND("]",CELL("address",FinanceData!M2))+1,255) -> FinanceData'!$M$2 | E144: Sélectionnez le scénario dans la feuille « FinanceData » | F144: =TableInstructions[[#This Row],[English Comment]] -> FinanceData'!$M$2 | G144: Selecteer het scenario op het blad “FinanceData”. | H144: =TableInstructions[[#This Row],[English Comment]] -> FinanceData'!$M$2 | I144: =I143 -> 12 | J144: FinanceData | K144: 2025-09-02 | L144: =IF($C144="","",INDEX($B$1:$H$1017, $B144, L$1)) -> Sélectionnez le scénario dans la feuille « FinanceData » | M144: =IF($D144="","",INDEX($B$1:$H$1017, $B144, M$1)) -> FinanceData'!$M$2
B145: 145 | C145: 🔄 Refreshing dynamic tables Click on button “Refresh All Pivots” on the sheet "FinanceData" This ensures that the tables display the most recent data. | D145: =MID(CELL("address",FinanceData!F7),FIND("]",CELL("address",FinanceData!F7))+1,255) -> FinanceData'!$F$7 | E145: 🔄 Actualisation des tableaux dynamiques Cliquez sur le bouton "Refresh All Pivots" dans la feuille "FinanceData" Cela garantit que les tableaux affichent les données les plus récentes | F145: =TableInstructions[[#This Row],[English Comment]] -> FinanceData'!$F$7 | G145: 🔄 Dynamische tabellen bijwerken Klik op knop “Refresh All Pivots” in het blad "FinanceData" Zo bent u er zeker van dat de tabellen de meest recente gegevens weergeven. | H145: =TableInstructions[[#This Row],[English Comment]] -> FinanceData'!$F$7 | I145: 12 | J145: FinanceData | K145: 2025-09-02 | L145: =IF($C145="","",INDEX($B$1:$H$1017, $B145, L$1)) -> 🔄 Actualisation des tableaux dynamiques Cliquez sur le bouton "Refresh All Pivots" dans la feuille "FinanceData" Cela garantit que les tableaux affichent les données les plus récentes | M145: =IF($D145="","",INDEX($B$1:$H$1017, $B145, M$1)) -> FinanceData'!$F$7
B146: 146 | I146: 12 | J146: FinanceData | K146: 2025-09-02 | L146: =IF($C146="","",INDEX($B$1:$H$1017, $B146, L$1)) ->  | M146: =IF($D146="","",INDEX($B$1:$H$1017, $B146, M$1)) -> 
B147: 147
B148: 148 | C148: The PivotTables in local currency are updated automatically after click on button “Refresh All Pivots” on the sheet "FinanceData" | D148: =MID(CELL("address",FinancePivot!B2),FIND("]",CELL("address",FinancePivot!E62))+1,255) -> FinancePivot'!$B$2 | E148: Les tableaux croisés dynamiques en devise locale sont mis à jour automatiquement après avoir cliqué sur le bouton "Refresh All Pivots" dans la feuille "FinanceData" | F148: =TableInstructions[[#This Row],[English Comment]] -> FinancePivot'!$B$2 | G148: De dynamische tabellen in lokale valuta worden automatisch bijgewerkt nadat u op de knop "Refresh All Pivots" op het blad "FinanceData" hebt geklikt | H148: =TableInstructions[[#This Row],[English Comment]] -> FinancePivot'!$B$2 | I148: =I142+1 -> 13 | J148: FinancePivot | K148: 2025-07-27 | L148: =IF($C148="","",INDEX($B$1:$H$1017, $B148, L$1)) -> Les tableaux croisés dynamiques en devise locale sont mis à jour automatiquement après avoir cliqué sur le bouton "Refresh All Pivots" dans la feuille "FinanceData" | M148: =IF($D148="","",INDEX($B$1:$H$1017, $B148, M$1)) -> FinancePivot'!$B$2
B149: 149 | I149: =I148 -> 13 | J149: FinancePivot | K149: 2025-07-27 | L149: =IF($C149="","",INDEX($B$1:$H$1017, $B149, L$1)) ->  | M149: =IF($D149="","",INDEX($B$1:$H$1017, $B149, M$1)) -> 
B150: 150 | C150: RATIOS | D150: =MID(CELL("address",FinancePivot!F86),FIND("]",CELL("address",FinancePivot!F86))+1,255) -> FinancePivot'!$F$86 | E150: RATIOS | F150: =TableInstructions[[#This Row],[English Comment]] -> FinancePivot'!$F$86 | G150: RATIOS | H150: =TableInstructions[[#This Row],[English Comment]] -> FinancePivot'!$F$86 | I150: 13 | J150: FinancePivot | K150: 2025-07-27 | L150: =IF($C150="","",INDEX($B$1:$H$1017, $B150, L$1)) -> RATIOS | M150: =IF($D150="","",INDEX($B$1:$H$1017, $B150, M$1)) -> FinancePivot'!$F$86
B151: 151 | C151: PROFIT AND LOSS STATMENT RATIOS | E151: RATIOS COMPTE DE PERTES ET PROFITS | G151: RATIO'S WINST- EN VERLIESREKENING | I151: 13 | J151: FinancePivot | K151: 2025-07-27 | L151: =IF($C151="","",INDEX($B$1:$H$1017, $B151, L$1)) -> RATIOS COMPTE DE PERTES ET PROFITS | M151: =IF($D151="","",INDEX($B$1:$H$1017, $B151, M$1)) -> 
B152: 152 | C152: GROSS PROFIT / REVENUE | E152: MARGE BRUTE / REVENUS | G152: BRUTOMARGE / INKOMSTEN | I152: 13 | J152: FinancePivot | K152: 2025-07-27 | L152: =IF($C152="","",INDEX($B$1:$H$1017, $B152, L$1)) -> MARGE BRUTE / REVENUS | M152: =IF($D152="","",INDEX($B$1:$H$1017, $B152, M$1)) -> 
B153: 153 | C153: GROSS PROFIT ON PRODUCTS / PRODUCT REVENUE | E153: MARGE BRUTE PRODUITS / REVENUS PRODUITS | G153: BRUTOMARGE PRODUCTEN / INKOMSTEN PRODUCTEN | I153: 13 | J153: FinancePivot | K153: 2025-07-27 | L153: =IF($C153="","",INDEX($B$1:$H$1017, $B153, L$1)) -> MARGE BRUTE PRODUITS / REVENUS PRODUITS | M153: =IF($D153="","",INDEX($B$1:$H$1017, $B153, M$1)) -> 
B154: 154 | C154: EBITDA / REVENUE | E154: EBITDA / REVENUS | G154: EBITDA / INKOMSTEN | I154: 13 | J154: FinancePivot | K154: 2025-07-27 | L154: =IF($C154="","",INDEX($B$1:$H$1017, $B154, L$1)) -> EBITDA / REVENUS | M154: =IF($D154="","",INDEX($B$1:$H$1017, $B154, M$1)) -> 
B155: 155 | C155: EBIT / REVENUE | E155: EBIT / REVENUS | G155: EBIT / INKOMSTEN | I155: 13 | J155: FinancePivot | K155: 2025-07-27 | L155: =IF($C155="","",INDEX($B$1:$H$1017, $B155, L$1)) -> EBIT / REVENUS | M155: =IF($D155="","",INDEX($B$1:$H$1017, $B155, M$1)) -> 
B156: 156 | C156: PROFIT BEFORE TAX / REVENUE | E156: BENEFICE BRUT AVANT IMPOTS / REVENUS | G156: BRUTOWINST VOOR BELASTINGEN / INKOMSTEN | I156: 13 | J156: FinancePivot | K156: 2025-07-27 | L156: =IF($C156="","",INDEX($B$1:$H$1017, $B156, L$1)) -> BENEFICE BRUT AVANT IMPOTS / REVENUS | M156: =IF($D156="","",INDEX($B$1:$H$1017, $B156, M$1)) -> 
B157: 157 | C157: NET PROFIT / REVENUE | E157: BENEFICE NET / REVENUS | G157: NETTOWINST / INKOMSTEN | I157: 13 | J157: FinancePivot | K157: 2025-07-27 | L157: =IF($C157="","",INDEX($B$1:$H$1017, $B157, L$1)) -> BENEFICE NET / REVENUS | M157: =IF($D157="","",INDEX($B$1:$H$1017, $B157, M$1)) -> 
B158: 158 | I158: 13 | J158: FinancePivot | K158: 2025-07-27 | L158: =IF($C158="","",INDEX($B$1:$H$1017, $B158, L$1)) ->  | M158: =IF($D158="","",INDEX($B$1:$H$1017, $B158, M$1)) -> 
B159: 159 | C159: SOLVENCY RATIOS | E159: RATIOS DE SOLVABILITE | G159: SOLVABILITEITSRATIO'S | I159: 13 | J159: FinancePivot | K159: 2025-07-27 | L159: =IF($C159="","",INDEX($B$1:$H$1017, $B159, L$1)) -> RATIOS DE SOLVABILITE | M159: =IF($D159="","",INDEX($B$1:$H$1017, $B159, M$1)) -> 
B160: 160 | C160: NET WORKING CAPITAL | E160: FONDS DE ROULEMENT NET | G160: NETTO WERKKAPITAAL | I160: 13 | J160: FinancePivot | K160: 2025-07-27 | L160: =IF($C160="","",INDEX($B$1:$H$1017, $B160, L$1)) -> FONDS DE ROULEMENT NET | M160: =IF($D160="","",INDEX($B$1:$H$1017, $B160, M$1)) -> 
B161: 161 | C161: CURRENT ASSETS - CURRENT LIABILITIES | D161: = CURRENT ASSETS - CURRENT LIABILITIES | E161: ACTIF A COURT TERME - PASSIF A COURT TERME | F161: =TableInstructions[[#This Row],[English Comment]] -> = CURRENT ASSETS - CURRENT LIABILITIES | G161: VLOTTENDE ACTIVA - VLOTTENDE VERPLICHTINGEN | H161: =TableInstructions[[#This Row],[English Comment]] -> = CURRENT ASSETS - CURRENT LIABILITIES | I161: 13 | J161: FinancePivot | K161: 2025-07-27 | L161: =IF($C161="","",INDEX($B$1:$H$1017, $B161, L$1)) -> ACTIF A COURT TERME - PASSIF A COURT TERME | M161: =IF($D161="","",INDEX($B$1:$H$1017, $B161, M$1)) -> = CURRENT ASSETS - CURRENT LIABILITIES
B162: 162 | C162: PERMANENT EQUITY - FIXED ASSETS | D162: = PERMANENT EQUITY - FIXED ASSETS | E162: CAPITAUX PROPRES PERMANENTS - IMMOBILISATIONS | F162: =TableInstructions[[#This Row],[English Comment]] -> = PERMANENT EQUITY - FIXED ASSETS | G162: PERMANENT EIGEN VERMOGEN - VASTE ACTIVA | H162: =TableInstructions[[#This Row],[English Comment]] -> = PERMANENT EQUITY - FIXED ASSETS | I162: 13 | J162: FinancePivot | K162: 2025-07-27 | L162: =IF($C162="","",INDEX($B$1:$H$1017, $B162, L$1)) -> CAPITAUX PROPRES PERMANENTS - IMMOBILISATIONS | M162: =IF($D162="","",INDEX($B$1:$H$1017, $B162, M$1)) -> = PERMANENT EQUITY - FIXED ASSETS
B163: 163 | C163: GENERAL FINANCING | D163: = PERMANENT EQUITY / FIXED ASSETS | E163: FINANCEMENT GENERAL | F163: =TableInstructions[[#This Row],[English Comment]] -> = PERMANENT EQUITY / FIXED ASSETS | G163: ALGEMENE FINANCIERING | H163: =TableInstructions[[#This Row],[English Comment]] -> = PERMANENT EQUITY / FIXED ASSETS | I163: 13 | J163: FinancePivot | K163: 2025-07-27 | L163: =IF($C163="","",INDEX($B$1:$H$1017, $B163, L$1)) -> FINANCEMENT GENERAL | M163: =IF($D163="","",INDEX($B$1:$H$1017, $B163, M$1)) -> = PERMANENT EQUITY / FIXED ASSETS
B164: 164 | C164: GENERAL DEBT RATIO | D164: = DEBTS / EQUITY | E164: DEBTRATIO GENERAL | F164: =TableInstructions[[#This Row],[English Comment]] -> = DEBTS / EQUITY | G164: ALGEMENE SCHULDENRATIO | H164: =TableInstructions[[#This Row],[English Comment]] -> = DEBTS / EQUITY | I164: 13 | J164: FinancePivot | K164: 2025-07-27 | L164: =IF($C164="","",INDEX($B$1:$H$1017, $B164, L$1)) -> DEBTRATIO GENERAL | M164: =IF($D164="","",INDEX($B$1:$H$1017, $B164, M$1)) -> = DEBTS / EQUITY
B165: =ROW(B165) -> 165 | C165: LONG-TERM DEBT RATIO | D165: = LONG-TERM LIABILITIES / EQUITY | E165: DEBTRATIO A LONG TERME | F165: =TableInstructions[[#This Row],[English Comment]] -> = LONG-TERM LIABILITIES / EQUITY | G165: LANGETERMIJNSCHULDENRATIO | H165: =TableInstructions[[#This Row],[English Comment]] -> = LONG-TERM LIABILITIES / EQUITY | I165: 13 | J165: FinancePivot | K165: 2025-07-27 | L165: =IF($C165="","",INDEX($B$1:$H$1017, $B165, L$1)) -> DEBTRATIO A LONG TERME | M165: =IF($D165="","",INDEX($B$1:$H$1017, $B165, M$1)) -> = LONG-TERM LIABILITIES / EQUITY
B166: 166 | C166: DEGREE OF INDEPENDENCE | D166: = EQUITY / TOTAL SOURCES | E166: DEGRE D'INDEPENDANCE | F166: =TableInstructions[[#This Row],[English Comment]] -> = EQUITY / TOTAL SOURCES | G166: ONAFHANKELIJKHEIDSGRAAD | H166: =TableInstructions[[#This Row],[English Comment]] -> = EQUITY / TOTAL SOURCES | I166: 13 | J166: FinancePivot | K166: 2025-07-27 | L166: =IF($C166="","",INDEX($B$1:$H$1017, $B166, L$1)) -> DEGRE D'INDEPENDANCE | M166: =IF($D166="","",INDEX($B$1:$H$1017, $B166, M$1)) -> = EQUITY / TOTAL SOURCES
B167: 167 | I167: 13 | J167: FinancePivot | K167: 2025-07-27 | L167: =IF($C167="","",INDEX($B$1:$H$1017, $B167, L$1)) ->  | M167: =IF($D167="","",INDEX($B$1:$H$1017, $B167, M$1)) -> 
B168: 168 | C168: LIQUIDITY RATIOS | E168: RATIOS DE LIQUIDITE | G168: LIQUIDITEITSVERHOUDINGEN | I168: 13 | J168: FinancePivot | K168: 2025-07-27 | L168: =IF($C168="","",INDEX($B$1:$H$1017, $B168, L$1)) -> RATIOS DE LIQUIDITE | M168: =IF($D168="","",INDEX($B$1:$H$1017, $B168, M$1)) -> 
B169: 169 | C169: CURRENT RATIO | D169: = ASSETS / CURRENT LIABILITIES | E169: RATIO ACTUEL | F169: =TableInstructions[[#This Row],[English Comment]] -> = ASSETS / CURRENT LIABILITIES | G169: HUIDIGE RATIO | H169: =TableInstructions[[#This Row],[English Comment]] -> = ASSETS / CURRENT LIABILITIES | I169: 13 | J169: FinancePivot | K169: 2025-07-27 | L169: =IF($C169="","",INDEX($B$1:$H$1017, $B169, L$1)) -> RATIO ACTUEL | M169: =IF($D169="","",INDEX($B$1:$H$1017, $B169, M$1)) -> = ASSETS / CURRENT LIABILITIES
B170: 170 | C170: QUICK RATIO | D170: = (CURRENT ASSETS - INVENTORIES) / CURRENT LIABILITIES | E170: RATIO RAPIDE | F170: =TableInstructions[[#This Row],[English Comment]] -> = (CURRENT ASSETS - INVENTORIES) / CURRENT LIABILITIES | G170: SNELLE RATIO | H170: =TableInstructions[[#This Row],[English Comment]] -> = (CURRENT ASSETS - INVENTORIES) / CURRENT LIABILITIES | I170: 13 | J170: FinancePivot | K170: 2025-07-27 | L170: =IF($C170="","",INDEX($B$1:$H$1017, $B170, L$1)) -> RATIO RAPIDE | M170: =IF($D170="","",INDEX($B$1:$H$1017, $B170, M$1)) -> = (CURRENT ASSETS - INVENTORIES) / CURRENT LIABILITIES
B171: 171 | C171: CASH RATIO | D171: = LIQUIDITY / CURRENT LIABILITIES | E171: RATIO DE TRESORERIE | F171: =TableInstructions[[#This Row],[English Comment]] -> = LIQUIDITY / CURRENT LIABILITIES | G171: KASSTROOMRATIO | H171: =TableInstructions[[#This Row],[English Comment]] -> = LIQUIDITY / CURRENT LIABILITIES | I171: 13 | J171: FinancePivot | K171: 2025-07-27 | L171: =IF($C171="","",INDEX($B$1:$H$1017, $B171, L$1)) -> RATIO DE TRESORERIE | M171: =IF($D171="","",INDEX($B$1:$H$1017, $B171, M$1)) -> = LIQUIDITY / CURRENT LIABILITIES
B172: 172 | I172: 13 | J172: FinancePivot | K172: 2025-07-27 | L172: =IF($C172="","",INDEX($B$1:$H$1017, $B172, L$1)) ->  | M172: =IF($D172="","",INDEX($B$1:$H$1017, $B172, M$1)) -> 
B173: 173 | C173: BREAK-EVEN | E173: SEUIL DE RENTABILITÉ | G173: BREAK-EVEN | I173: 13 | J173: FinancePivot | K173: 2025-07-27 | L173: =IF($C173="","",INDEX($B$1:$H$1017, $B173, L$1)) -> SEUIL DE RENTABILITÉ | M173: =IF($D173="","",INDEX($B$1:$H$1017, $B173, M$1)) -> 
B174: 174 | C174: BREAK-EVEN VOLUME | D174: = FIXED COSTS / GROSS PROFIT PER UNIT | E174: VOLUME DE RENTABILITÉ | F174: =TableInstructions[[#This Row],[English Comment]] -> = FIXED COSTS / GROSS PROFIT PER UNIT | G174: BREAK-EVEN VOLUME | H174: =TableInstructions[[#This Row],[English Comment]] -> = FIXED COSTS / GROSS PROFIT PER UNIT | I174: 13 | J174: FinancePivot | K174: 2025-07-27 | L174: =IF($C174="","",INDEX($B$1:$H$1017, $B174, L$1)) -> VOLUME DE RENTABILITÉ | M174: =IF($D174="","",INDEX($B$1:$H$1017, $B174, M$1)) -> = FIXED COSTS / GROSS PROFIT PER UNIT
B175: 175 | C175: BREAK-EVEN REVENUE VALUE | D175: = FIXED COSTS / GROSS MARGIN | E175: VALEUR DE RENTABILITÉ | F175: =TableInstructions[[#This Row],[English Comment]] -> = FIXED COSTS / GROSS MARGIN | G175: BREAK-EVEN OMZETWAARDE | H175: =TableInstructions[[#This Row],[English Comment]] -> = FIXED COSTS / GROSS MARGIN | I175: 13 | J175: FinancePivot | K175: 2025-07-27 | L175: =IF($C175="","",INDEX($B$1:$H$1017, $B175, L$1)) -> VALEUR DE RENTABILITÉ | M175: =IF($D175="","",INDEX($B$1:$H$1017, $B175, M$1)) -> = FIXED COSTS / GROSS MARGIN
B176: 176 | C176: BREAK-EVEN REVENUE RATIO | D176: -> RELATED TO FORECASTED REVENUE | E176: RATIO DE RENTABILITÉ | F176: =TableInstructions[[#This Row],[English Comment]] -> -> RELATED TO FORECASTED REVENUE | G176: BREAK-EVEN OMZETRATIO | H176: =TableInstructions[[#This Row],[English Comment]] -> -> RELATED TO FORECASTED REVENUE | I176: 13 | J176: FinancePivot | K176: 2025-07-27 | L176: =IF($C176="","",INDEX($B$1:$H$1017, $B176, L$1)) -> RATIO DE RENTABILITÉ | M176: =IF($D176="","",INDEX($B$1:$H$1017, $B176, M$1)) -> -> RELATED TO FORECASTED REVENUE
B177: 177 | I177: 13 | J177: FinancePivot | K177: 2025-07-27 | L177: =IF($C177="","",INDEX($B$1:$H$1017, $B177, L$1)) ->  | M177: =IF($D177="","",INDEX($B$1:$H$1017, $B177, M$1)) -> 
B178: 178 | C178: RETURN FIGURES | D178: RETURN = NET PROFIT | E178: CHIFFRES DE RENDEMENT | F178: =TableInstructions[[#This Row],[English Comment]] -> RETURN = NET PROFIT | G178: RENDEMENTSCIJFERS | H178: =TableInstructions[[#This Row],[English Comment]] -> RETURN = NET PROFIT | I178: 13 | J178: FinancePivot | K178: 2025-07-27 | L178: =IF($C178="","",INDEX($B$1:$H$1017, $B178, L$1)) -> CHIFFRES DE RENDEMENT | M178: =IF($D178="","",INDEX($B$1:$H$1017, $B178, M$1)) -> RETURN = NET PROFIT
B179: 179 | C179: RETURN ON REVENUE | E179: RENDEMENT SUR LE CHIFFRE D'AFFAIRES | G179: RENDEMENT OP OMZET | I179: 13 | J179: FinancePivot | K179: 2025-07-27 | L179: =IF($C179="","",INDEX($B$1:$H$1017, $B179, L$1)) -> RENDEMENT SUR LE CHIFFRE D'AFFAIRES | M179: =IF($D179="","",INDEX($B$1:$H$1017, $B179, M$1)) -> 
B180: 180 | C180: RETURN ON INVESTMENTS | E180: RENDEMENT SUR LES INVESTISSEMENTS | G180: RENDEMENT OP INVESTERINGEN | I180: 13 | J180: FinancePivot | K180: 2025-07-27 | L180: =IF($C180="","",INDEX($B$1:$H$1017, $B180, L$1)) -> RENDEMENT SUR LES INVESTISSEMENTS | M180: =IF($D180="","",INDEX($B$1:$H$1017, $B180, M$1)) -> 
B181: 181 | C181: RETURN ON TOTAL SOURCES | E181: RENDEMENT SUR LES SOURCES TOTALES | G181: RENDEMENT OP TOTALE BRONNEN | I181: 13 | J181: FinancePivot | K181: 2025-07-27 | L181: =IF($C181="","",INDEX($B$1:$H$1017, $B181, L$1)) -> RENDEMENT SUR LES SOURCES TOTALES | M181: =IF($D181="","",INDEX($B$1:$H$1017, $B181, M$1)) -> 
B182: 182 | C182: RETURN ON EQUITY | E182: RENDEMENT SUR LES CAPITAUX PROPRES | G182: RENDEMENT OP EIGEN VERMOGEN | I182: 13 | J182: FinancePivot | K182: 2025-07-27 | L182: =IF($C182="","",INDEX($B$1:$H$1017, $B182, L$1)) -> RENDEMENT SUR LES CAPITAUX PROPRES | M182: =IF($D182="","",INDEX($B$1:$H$1017, $B182, M$1)) -> 
B183: 183
B184: 184 | C184: The graphs in local currency are updated at the same time as the ‘FinancePivot’ sheet. | D184: =MID(CELL("address",FinanceChart!B4),FIND("]",CELL("address",FinanceChart!B4))+1,255) -> FinanceChart'!$B$4 | E184: Les graphes en monnaie locale sont mis à jour en même temps que la feuille "FinancePivot" | F184: =TableInstructions[[#This Row],[English Comment]] -> FinanceChart'!$B$4 | G184: De grafieken in lokale valuta worden tegelijk met het blad “FinancePivot” bijgewerkt. | H184: =TableInstructions[[#This Row],[English Comment]] -> FinanceChart'!$B$4 | I184: =I148+1 -> 14 | J184: FinanceChart | K184: 2025-07-27 | L184: =IF($C184="","",INDEX($B$1:$H$1017, $B184, L$1)) -> Les graphes en monnaie locale sont mis à jour en même temps que la feuille "FinancePivot" | M184: =IF($D184="","",INDEX($B$1:$H$1017, $B184, M$1)) -> FinanceChart'!$B$4
B185: 185
B186: 186 | C186: The tables and graphs in EUR are updated at the same time as the ‘FinancePivot’ sheet. | D186: =MID(CELL("address",FinanceEUR!B6),FIND("]",CELL("address",FinanceEUR!B6))+1,255) -> FinanceEUR'!$B$6 | E186: Les tableaux et graphes en EUR sont mis à jour en même temps que la feuille "FinancePivot" | F186: =TableInstructions[[#This Row],[English Comment]] -> FinanceEUR'!$B$6 | G186: De tabellen en grafieken in EUR worden tegelijk met het blad “FinancePivot” bijgewerkt. | H186: =TableInstructions[[#This Row],[English Comment]] -> FinanceEUR'!$B$6 | I186: =I184+1 -> 15 | J186: FinanceEUR | K186: 2025-07-27 | L186: =IF($C186="","",INDEX($B$1:$H$1017, $B186, L$1)) -> Les tableaux et graphes en EUR sont mis à jour en même temps que la feuille "FinancePivot" | M186: =IF($D186="","",INDEX($B$1:$H$1017, $B186, M$1)) -> FinanceEUR'!$B$6
B187: 187
B188: 188 | C188: ‘RevenueData’ sheet | Check Total | E188: Feuille "RevenueData" | Check Total | G188: Blad “RevenueData” | Controleer totaal | I188: =I186+1 -> 16 | J188: Check | K188: 2025-08-29 | L188: =IF($C188="","",INDEX($B$1:$H$1017, $B188, L$1)) -> Feuille "RevenueData" | Check Total | M188: =RevenueData!M3 -> TRUE
B189: 189 | I189: =I188 -> 16 | J189: Check | K189: 2025-08-29 | L189: =IF($C189="","",INDEX($B$1:$H$1017, $B189, L$1)) -> 
B190: 190 | C190: ‘RevenueData’ sheet | Check TURNOVER | E190: Feuille "RevenueData" | Check CHIFFRE D'AFFAIRE | G190: Blad “RevenueData” | Controleer OMZET | I190: 16 | J190: Check | K190: 2025-08-29 | L190: =IF($C190="","",INDEX($B$1:$H$1017, $B190, L$1)) -> Feuille "RevenueData" | Check CHIFFRE D'AFFAIRE | M190: =RevenuePivot!D1 -> TRUE
B191: 191 | C191: ‘RevenueData’ sheet | Check GROSS MARGIN | E191: Feuille "RevenueData" | Check MARGE BRUTE | G191: Blad “RevenueData” | Controleer BRUTOMARGE | I191: 16 | J191: Check | K191: 2025-08-29 | L191: =IF($C191="","",INDEX($B$1:$H$1017, $B191, L$1)) -> Feuille "RevenueData" | Check MARGE BRUTE | M191: =RevenuePivot!D2 -> TRUE
B192: 192 | I192: 16 | J192: Check | K192: 2025-08-29 | L192: =IF($C192="","",INDEX($B$1:$H$1017, $B192, L$1)) -> 
B193: 193 | C193: ‘FinanceData’ sheet | Check Globally | E193: Feuille "FinanceData" | Check Global | G193: Blad “FinanceData” | Controleer globaal | I193: 16 | J193: Check | K193: 2025-07-27 | L193: =IF($C193="","",INDEX($B$1:$H$1017, $B193, L$1)) -> Feuille "FinanceData" | Check Global | M193: =FinanceData!AG1 -> TRUE
B194: 194 | C194: ‘FinanceData’ sheet | Check Gross Margin on Products | E194: Feuille "FinanceData" | Check Marge Brute Produits | G194: Blad “FinanceData” | Controleer brutomarge producten | I194: 16 | J194: Check | K194: 2025-07-27 | L194: =IF($C194="","",INDEX($B$1:$H$1017, $B194, L$1)) -> Feuille "FinanceData" | Check Marge Brute Produits | M194: =FinanceData!AG144 -> TRUE
B195: 195 | C195: ‘FinanceData’ sheet | Check Gross Margin on Services | E195: Feuille "FinanceData" | Check Marge Brute Services | G195: Blad “FinanceData” | Controleer brutomarge diensten | I195: 16 | J195: Check | K195: 2025-07-27 | L195: =IF($C195="","",INDEX($B$1:$H$1017, $B195, L$1)) -> Feuille "FinanceData" | Check Marge Brute Services | M195: =FinanceData!AG186 -> TRUE
B196: 196 | C196: ‘FinanceData’ sheet | Check Gross Margin | E196: Feuille "FinanceData" | Check Marge Brute | G196: Blad “FinanceData” | Controleer brutomarge | I196: 16 | J196: Check | K196: 2025-07-27 | L196: =IF($C196="","",INDEX($B$1:$H$1017, $B196, L$1)) -> Feuille "FinanceData" | Check Marge Brute | M196: =FinanceData!AG196 -> TRUE
B197: 197 | C197: ‘FinanceData’ sheet | Check Operating Expenses | E197: Feuille "FinanceData" | Check Dépenses Opérationnelles | G197: Blad “FinanceData” | Controleer operationele uitgaven | I197: 16 | J197: Check | K197: 2025-07-27 | L197: =IF($C197="","",INDEX($B$1:$H$1017, $B197, L$1)) -> Feuille "FinanceData" | Check Dépenses Opérationnelles | M197: =FinanceData!AG371 -> TRUE
B198: 198 | C198: ‘FinanceData’ sheet | Check Operating Expenses % | E198: Feuille "FinanceData" | Check Dépenses Opérationnelles % | G198: Blad “FinanceData” | Controleer operationele uitgaven % | I198: 16 | J198: Check | K198: 2025-07-27 | L198: =IF($C198="","",INDEX($B$1:$H$1017, $B198, L$1)) -> Feuille "FinanceData" | Check Dépenses Opérationnelles % | M198: =FinanceData!AG386 -> TRUE
B199: 199 | I199: 16 | J199: Check | K199: 2025-07-27 | L199: =IF($C199="","",INDEX($B$1:$H$1017, $B199, L$1)) -> 
B200: 200 | C200: ‘FinancePivot’ sheet | Check Net Profit | E200: Feuille "FinancePivot" | Check bénéfice net | G200: Blad “FinancePivot” | Controleer nettowinst | I200: 16 | J200: Check | K200: 2025-07-27 | L200: =IF($C200="","",INDEX($B$1:$H$1017, $B200, L$1)) -> Feuille "FinancePivot" | Check bénéfice net | M200: =FinancePivot!E2 -> TRUE
... 4 more rows

Sheet InputsData
C1: Instructions | E1: Instructions | H1: =ReadMe!$K$1 -> Revision FP : v2.12 | J1: =VLOOKUP("LOCAL CURRENCY",TableInputsData[],ReadMe!$M$3,FALSE)&" : "&InputsData!$J$8 -> MONNAIE LOCALE : CFA
C2: TableInputsData | E2: TableInputsData | J2: =IF(ReadMe!$L$3="English","STRICTLY CONFIDENTIAL",IF(ReadMe!$L$3="French","STRICTEMENT CONFIDENTIEL",IF(ReadMe!$L$3="Dutch","STRIKT VERTROUWELIJK","STRICTLY CONFIDENTIAL")))&" | "&InputsData!$J$5 -> STRICTEMENT CONFIDENTIEL | ABC CORPORATION
C3: ITEM | D3: SECTION | E3: ITEM_EN | F3: ITEM_FR | G3: ITEM_NL | H3: DESCRIPTION1 | I3: DESCRIPTION2 | J3: VALUE | K3: OTHER
B4: COUNTRY RELATED___ | D4: 1
C5: COMPANY | D5: 1 | E5: COMPANY | F5: ENTREPRISE | G5: BEDRIJF | J5: ABC CORPORATION
C6: COUNTRY | D6: 1 | E6: COUNTRY | F6: PAYS | G6: LAND | J6: SÉNÉGAL
D7: 1
C8: LOCAL CURRENCY | D8: 1 | E8: LOCAL CURRENCY | F8: MONNAIE LOCALE | G8: LOKALE MUNT | J8: CFA
C9: EXCHANGE RATE LOCAL CURRENCY / EURO | D9: 1 | E9: EXCHANGE RATE LOCAL CURRENCY / EURO | F9: TAUX DE CHANGE MONNAIE LOCALE / EURO | G9: WISSELKOERS LOKALE MUNT / EURO | H9: http://www.xe.com/currencyconverter/ | J9: 655.957
C10: CONVERSION DATE | D10: 1 | E10: CONVERSION DATE | F10: DATE DE CONVERSION | G10: OMREKENINGSDATUM | J10: 2025-10-07
D11: 1
C12: VAT APPLICABLE IN THE COUNTRY | D12: 1 | E12: VAT APPLICABLE IN THE COUNTRY | F12: TVA APPLICABLE DANS LE PAYS | G12: BTW VAN TOEPASSING IN HET LAND | J12: 0.18
D13: 1
C14: ANNUAL INFLATION IN THE COUNTRY | D14: 1 | E14: ANNUAL INFLATION IN THE COUNTRY | F14: INFLATION ANNUELLE DANS LE PAYS | G14: JAARLIJKSE INFLATIE IN HET LAND | J14: 0.03
D15: 1
C16: CORPORATE TAX APPLICABLE IN THE COUNTRY | D16: 1 | E16: CORPORATE TAX APPLICABLE IN THE COUNTRY | F16: IMPOT DES SOCIETES APPLICABLE DANS LE PAYS | G16: VENNOOTSCHAPSBELASTING VAN TOEPASSING IN HET LAND | H16: FREE TEXT TEXTE LIBRE VRIJE TEKST | I16: FREE TEXT TEXTE LIBRE VRIJE TEKST | J16: %
C17: TAX REGIME 1 | D17: 1 | E17: TAX REGIME 1 | F17: IMPOT REGIME 1 | G17: BELASTINGREGIME 1 | H17: IMPOT SUR LE REVENU | I17: REVENUS <= 200 M F CFA | J17: 0.04
C18: TAX REGIME 2 | D18: 1 | E18: TAX REGIME 2 | F18: IMPOT REGIME 2 | G18: BELASTINGREGIME 2 | H18: IMPOT SUR LE BENEFICE | I18: REVENUS > 200 M F CFA | J18: 0.3
C19: TAX REGIME 3 | D19: 1 | E19: TAX REGIME 3 | F19: IMPOT REGIME 3 | G19: BELASTINGREGIME 3
C20: TAX REGIME 4 | D20: 1 | E20: TAX REGIME 4 | F20: IMPOT REGIME 4 | G20: BELASTINGREGIME 4
C21: TAX REGIME 5 | D21: 1 | E21: TAX REGIME 5 | F21: IMPOT REGIME 5 | G21: BELASTINGREGIME 5
D22: 1
B23: YEAR RELATED___ | C23: YEAR # | D23: 2 | E23: YEAR # | F23: ANNEE # | G23: JAAR # | H23: SEMESTER SEMESTRE SEMESTER | I23: ACTUAL / FORECAST ACTUEL / PREVISION ACTUEEL / VOORSPELLING | J23: YEAR ANNEE JAAR
C24: YEAR-2 | D24: 2 | E24: YEAR-2 | F24: ANNEE-2 | G24: JAAR-2 | I24: ACTUAL | J24: 2024
C25: YEAR-1 | D25: 2 | E25: YEAR-1 | F25: ANNEE-1 | G25: JAAR-1 | I25: ACTUAL | J25: =J24+1 -> 2025
C26: CURRENT YEAR | D26: 2 | E26: CURRENT YEAR | F26: ANNEE EN COURS | G26: HUIDIG JAAR | I26: FORECAST | J26: =J25+1 -> 2026
C27: CURRENT YEAR H1 | D27: 2 | E27: CURRENT YEAR H1 | F27: ANNEE EN COURS H1 | G27: HUIDIG JAAR H1 | H27: H1 | I27: FORECAST | J27: =J26 -> 2026
C28: CURRENT YEAR H2 | D28: 2 | E28: CURRENT YEAR H2 | F28: ANNEE EN COURS H2 | G28: HUIDIG JAAR H2 | H28: H2 | I28: FORECAST | J28: =J27 -> 2026
C29: YEAR2 | D29: 2 | E29: YEAR2 | F29: ANNEE2 | G29: JAAR2 | I29: FORECAST | J29: =J28+1 -> 2027
C30: YEAR3 | D30: 2 | E30: YEAR3 | F30: ANNEE3 | G30: JAAR3 | I30: FORECAST | J30: =J29+1 -> 2028
C31: YEAR4 | D31: 2 | E31: YEAR4 | F31: ANNEE4 | G31: JAAR4 | I31: FORECAST | J31: =J30+1 -> 2029
C32: YEAR5 | D32: 2 | E32: YEAR5 | F32: ANNEE5 | G32: JAAR5 | I32: FORECAST | J32: =J31+1 -> 2030
C33: YEAR6 | D33: 2 | E33: YEAR6 | F33: ANNEE6 | G33: JAAR6 | I33: FORECAST | J33: =J32+1 -> 2031
D34: 2
B35: PRODUCT AND SERVICE RELATED___ | C35: PRODUCT # | D35: 3 | E35: PRODUCT # | F35: PRODUIT # | G35: PRODUCT # | H35: PRODUCT NAME NOM DU PRODUIT PRODUCTNAAM | I35: FILTER FILTRE FILTER | J35: FREE TEXT DESCRIPTION TEXTE LIBRE DESCRIPTION VRIJE TEKST BESCHRIJVING | K35: RANGE # + DISTRIBUTION CHANNEL # GAMME # + CANAL DE DISTRIBUTION # ASSORTIMENT # + DISTRIBUTIEKANAAL #
C36: PRODUCT 01 | D36: 3 | E36: PRODUCT 01 | F36: PRODUIT 01 | G36: PRODUCT 01 | H36: XYZ | I36: 1 | K36: =IF(ReadMe!$L$3="English",$C$69,IF(ReadMe!$L$3="French",$F$69,$G$69))&" : "&SUM($F79:$H79)&" + "&IF(ReadMe!$L$3="English",$C$74,IF(ReadMe!$L$3="French",$F$74,$G$74))&" : "&SUM($I79:$J79) -> GAMME # : 1 + CANAL DE DISTRIBUTION # : 1
C37: PRODUCT 02 | D37: 3 | E37: PRODUCT 02 | F37: PRODUIT 02 | G37: PRODUCT 02 | H37: ABC | I37: 1 | K37: =IF(ReadMe!$L$3="English",$C$69,IF(ReadMe!$L$3="French",$F$69,$G$69))&" : "&SUM($F80:$H80)&" + "&IF(ReadMe!$L$3="English",$C$74,IF(ReadMe!$L$3="French",$F$74,$G$74))&" : "&SUM($I80:$J80) -> GAMME # : 1 + CANAL DE DISTRIBUTION # : 1
C38: PRODUCT 03 | D38: 3 | E38: PRODUCT 03 | F38: PRODUIT 03 | G38: PRODUCT 03 | H38: DEF | I38: 1 | K38: =IF(ReadMe!$L$3="English",$C$69,IF(ReadMe!$L$3="French",$F$69,$G$69))&" : "&SUM($F81:$H81)&" + "&IF(ReadMe!$L$3="English",$C$74,IF(ReadMe!$L$3="French",$F$74,$G$74))&" : "&SUM($I81:$J81) -> GAMME # : 1 + CANAL DE DISTRIBUTION # : 1
C39: PRODUCT 04 | D39: 3 | E39: PRODUCT 04 | F39: PRODUIT 04 | G39: PRODUCT 04 | H39: GHI | I39: 1 | K39: =IF(ReadMe!$L$3="English",$C$69,IF(ReadMe!$L$3="French",$F$69,$G$69))&" : "&SUM($F82:$H82)&" + "&IF(ReadMe!$L$3="English",$C$74,IF(ReadMe!$L$3="French",$F$74,$G$74))&" : "&SUM($I82:$J82) -> GAMME # : 1 + CANAL DE DISTRIBUTION # : 1
C40: PRODUCT 05 | D40: 3 | E40: PRODUCT 05 | F40: PRODUIT 05 | G40: PRODUCT 05 | H40: - | I40: 0 | K40: =IF(ReadMe!$L$3="English",$C$69,IF(ReadMe!$L$3="French",$F$69,$G$69))&" : "&SUM($F83:$H83)&" + "&IF(ReadMe!$L$3="English",$C$74,IF(ReadMe!$L$3="French",$F$74,$G$74))&" : "&SUM($I83:$J83) -> GAMME # : 1 + CANAL DE DISTRIBUTION # : 1
C41: PRODUCT 06 | D41: 3 | E41: PRODUCT 06 | F41: PRODUIT 06 | G41: PRODUCT 06 | H41: - | I41: 0 | K41: =IF(ReadMe!$L$3="English",$C$69,IF(ReadMe!$L$3="French",$F$69,$G$69))&" : "&SUM($F84:$H84)&" + "&IF(ReadMe!$L$3="English",$C$74,IF(ReadMe!$L$3="French",$F$74,$G$74))&" : "&SUM($I84:$J84) -> GAMME # : 1 + CANAL DE DISTRIBUTION # : 1
C42: PRODUCT 07 | D42: 3 | E42: PRODUCT 07 | F42: PRODUIT 07 | G42: PRODUCT 07 | H42: - | I42: 0 | K42: =IF(ReadMe!$L$3="English",$C$69,IF(ReadMe!$L$3="French",$F$69,$G$69))&" : "&SUM($F85:$H85)&" + "&IF(ReadMe!$L$3="English",$C$74,IF(ReadMe!$L$3="French",$F$74,$G$74))&" : "&SUM($I85:$J85) -> GAMME # : 1 + CANAL DE DISTRIBUTION # : 1
C43: PRODUCT 08 | D43: 3 | E43: PRODUCT 08 | F43: PRODUIT 08 | G43: PRODUCT 08 | H43: - | I43: 0 | K43: =IF(ReadMe!$L$3="English",$C$69,IF(ReadMe!$L$3="French",$F$69,$G$69))&" : "&SUM($F86:$H86)&" + "&IF(ReadMe!$L$3="English",$C$74,IF(ReadMe!$L$3="French",$F$74,$G$74))&" : "&SUM($I86:$J86) -> GAMME # : 1 + CANAL DE DISTRIBUTION # : 1
C44: PRODUCT 09 | D44: 3 | E44: PRODUCT 09 | F44: PRODUIT 09 | G44: PRODUCT 09 | H44: - | I44: 0 | K44: =IF(ReadMe!$L$3="English",$C$69,IF(ReadMe!$L$3="French",$F$69,$G$69))&" : "&SUM($F87:$H87)&" + "&IF(ReadMe!$L$3="English",$C$74,IF(ReadMe!$L$3="French",$F$74,$G$74))&" : "&SUM($I87:$J87) -> GAMME # : 1 + CANAL DE DISTRIBUTION # : 1
C45: PRODUCT 10 | D45: 3 | E45: PRODUCT 10 | F45: PRODUIT 10 | G45: PRODUCT 10 | H45: - | I45: 0 | K45: =IF(ReadMe!$L$3="English",$C$69,IF(ReadMe!$L$3="French",$F$69,$G$69))&" : "&SUM($F88:$H88)&" + "&IF(ReadMe!$L$3="English",$C$74,IF(ReadMe!$L$3="French",$F$74,$G$74))&" : "&SUM($I88:$J88) -> GAMME # : 1 + CANAL DE DISTRIBUTION # : 1
C46: PRODUCT 11 | D46: 3 | E46: PRODUCT 11 | F46: PRODUIT 11 | G46: PRODUCT 11 | H46: - | I46: 0 | K46: =IF(ReadMe!$L$3="English",$C$69,IF(ReadMe!$L$3="French",$F$69,$G$69))&" : "&SUM($F89:$H89)&" + "&IF(ReadMe!$L$3="English",$C$74,IF(ReadMe!$L$3="French",$F$74,$G$74))&" : "&SUM($I89:$J89) -> GAMME # : 1 + CANAL DE DISTRIBUTION # : 1
C47: PRODUCT 12 | D47: 3 | E47: PRODUCT 12 | F47: PRODUIT 12 | G47: PRODUCT 12 | H47: - | I47: 0 | K47: =IF(ReadMe!$L$3="English",$C$69,IF(ReadMe!$L$3="French",$F$69,$G$69))&" : "&SUM($F90:$H90)&" + "&IF(ReadMe!$L$3="English",$C$74,IF(ReadMe!$L$3="French",$F$74,$G$74))&" : "&SUM($I90:$J90) -> GAMME # : 1 + CANAL DE DISTRIBUTION # : 1
C48: PRODUCT 13 | D48: 3 | E48: PRODUCT 13 | F48: PRODUIT 13 | G48: PRODUCT 13 | H48: - | I48: 0 | K48: =IF(ReadMe!$L$3="English",$C$69,IF(ReadMe!$L$3="French",$F$69,$G$69))&" : "&SUM($F91:$H91)&" + "&IF(ReadMe!$L$3="English",$C$74,IF(ReadMe!$L$3="French",$F$74,$G$74))&" : "&SUM($I91:$J91) -> GAMME # : 1 + CANAL DE DISTRIBUTION # : 1
C49: PRODUCT 14 | D49: 3 | E49: PRODUCT 14 | F49: PRODUIT 14 | G49: PRODUCT 14 | H49: - | I49: 0 | K49: =IF(ReadMe!$L$3="English",$C$69,IF(ReadMe!$L$3="French",$F$69,$G$69))&" : "&SUM($F92:$H92)&" + "&IF(ReadMe!$L$3="English",$C$74,IF(ReadMe!$L$3="French",$F$74,$G$74))&" : "&SUM($I92:$J92) -> GAMME # : 1 + CANAL DE DISTRIBUTION # : 1
C50: PRODUCT 15 | D50: 3 | E50: PRODUCT 15 | F50: PRODUIT 15 | G50: PRODUCT 15 | H50: - | I50: 0 | K50: =IF(ReadMe!$L$3="English",$C$69,IF(ReadMe!$L$3="French",$F$69,$G$69))&" : "&SUM($F93:$H93)&" + "&IF(ReadMe!$L$3="English",$C$74,IF(ReadMe!$L$3="French",$F$74,$G$74))&" : "&SUM($I93:$J93) -> GAMME # : 1 + CANAL DE DISTRIBUTION # : 1
C51: PRODUCT 16 | D51: 3 | E51: PRODUCT 16 | F51: PRODUIT 16 | G51: PRODUCT 16 | H51: - | I51: 0 | K51: =IF(ReadMe!$L$3="English",$C$69,IF(ReadMe!$L$3="French",$F$69,$G$69))&" : "&SUM($F94:$H94)&" + "&IF(ReadMe!$L$3="English",$C$74,IF(ReadMe!$L$3="French",$F$74,$G$74))&" : "&SUM($I94:$J94) -> GAMME # : 1 + CANAL DE DISTRIBUTION # : 1
C52: PRODUCT 17 | D52: 3 | E52: PRODUCT 17 | F52: PRODUIT 17 | G52: PRODUCT 17 | H52: - | I52: 0 | K52: =IF(ReadMe!$L$3="English",$C$69,IF(ReadMe!$L$3="French",$F$69,$G$69))&" : "&SUM($F95:$H95)&" + "&IF(ReadMe!$L$3="English",$C$74,IF(ReadMe!$L$3="French",$F$74,$G$74))&" : "&SUM($I95:$J95) -> GAMME # : 1 + CANAL DE DISTRIBUTION # : 1
C53: PRODUCT 18 | D53: 3 | E53: PRODUCT 18 | F53: PRODUIT 18 | G53: PRODUCT 18 | H53: - | I53: 0 | K53: =IF(ReadMe!$L$3="English",$C$69,IF(ReadMe!$L$3="French",$F$69,$G$69))&" : "&SUM($F96:$H96)&" + "&IF(ReadMe!$L$3="English",$C$74,IF(ReadMe!$L$3="French",$F$74,$G$74))&" : "&SUM($I96:$J96) -> GAMME # : 1 + CANAL DE DISTRIBUTION # : 1
C54: PRODUCT 19 | D54: 3 | E54: PRODUCT 19 | F54: PRODUIT 19 | G54: PRODUCT 19 | H54: - | I54: 0 | K54: =IF(ReadMe!$L$3="English",$C$69,IF(ReadMe!$L$3="French",$F$69,$G$69))&" : "&SUM($F97:$H97)&" + "&IF(ReadMe!$L$3="English",$C$74,IF(ReadMe!$L$3="French",$F$74,$G$74))&" : "&SUM($I97:$J97) -> GAMME # : 1 + CANAL DE DISTRIBUTION # : 1
C55: PRODUCT 20 | D55: 3 | E55: PRODUCT 20 | F55: PRODUIT 20 | G55: PRODUCT 20 | H55: - | I55: 0 | K55: =IF(ReadMe!$L$3="English",$C$69,IF(ReadMe!$L$3="French",$F$69,$G$69))&" : "&SUM($F98:$H98)&" + "&IF(ReadMe!$L$3="English",$C$74,IF(ReadMe!$L$3="French",$F$74,$G$74))&" : "&SUM($I98:$J98) -> GAMME # : 1 + CANAL DE DISTRIBUTION # : 1
D56: 3
C57: SERVICE # | D57: 3 | E57: SERVICE # | F57: SERVICE # | G57: DIENST # | H57: SERVICE NAME NOM DU SERVICE DIENSTNAAM | I57: FILTER FILTRE FILTER | J57: FREE TEXT DESCRIPTION TEXTE LIBRE DESCRIPTION VRIJE TEKST BESCHRIJVING | K57: RANGE # + DISTRIBUTION CHANNEL # GAMME # + CANAL DE DISTRIBUTION # ASSORTIMENT # + DISTRIBUTIEKANAAL #
C58: SERVICE 01 | D58: 3 | E58: SERVICE 01 | F58: SERVICE 01 | G58: DIENST 01 | H58: - | I58: 0 | K58: =IF(ReadMe!$L$3="English",$C$69,IF(ReadMe!$L$3="French",$F$69,$G$69))&" : "&SUM($F101:$H101)&" + "&IF(ReadMe!$L$3="English",$C$74,IF(ReadMe!$L$3="French",$F$74,$G$74))&" : "&SUM($I101:$J101) -> GAMME # : 1 + CANAL DE DISTRIBUTION # : 1
C59: SERVICE 02 | D59: 3 | E59: SERVICE 02 | F59: SERVICE 02 | G59: DIENST 02 | H59: - | I59: 0 | K59: =IF(ReadMe!$L$3="English",$C$69,IF(ReadMe!$L$3="French",$F$69,$G$69))&" : "&SUM($F102:$H102)&" + "&IF(ReadMe!$L$3="English",$C$74,IF(ReadMe!$L$3="French",$F$74,$G$74))&" : "&SUM($I102:$J102) -> GAMME # : 1 + CANAL DE DISTRIBUTION # : 1
C60: SERVICE 03 | D60: 3 | E60: SERVICE 03 | F60: SERVICE 03 | G60: DIENST 03 | H60: - | I60: 0 | K60: =IF(ReadMe!$L$3="English",$C$69,IF(ReadMe!$L$3="French",$F$69,$G$69))&" : "&SUM($F103:$H103)&" + "&IF(ReadMe!$L$3="English",$C$74,IF(ReadMe!$L$3="French",$F$74,$G$74))&" : "&SUM($I103:$J103) -> GAMME # : 1 + CANAL DE DISTRIBUTION # : 1
C61: SERVICE 04 | D61: 3 | E61: SERVICE 04 | F61: SERVICE 04 | G61: DIENST 04 | H61: - | I61: 0 | K61: =IF(ReadMe!$L$3="English",$C$69,IF(ReadMe!$L$3="French",$F$69,$G$69))&" : "&SUM($F104:$H104)&" + "&IF(ReadMe!$L$3="English",$C$74,IF(ReadMe!$L$3="French",$F$74,$G$74))&" : "&SUM($I104:$J104) -> GAMME # : 1 + CANAL DE DISTRIBUTION # : 1
C62: SERVICE 05 | D62: 3 | E62: SERVICE 05 | F62: SERVICE 05 | G62: DIENST 05 | H62: - | I62: 0 | K62: =IF(ReadMe!$L$3="English",$C$69,IF(ReadMe!$L$3="French",$F$69,$G$69))&" : "&SUM($F105:$H105)&" + "&IF(ReadMe!$L$3="English",$C$74,IF(ReadMe!$L$3="French",$F$74,$G$74))&" : "&SUM($I105:$J105) -> GAMME # : 1 + CANAL DE DISTRIBUTION # : 1
C63: SERVICE 06 | D63: 3 | E63: SERVICE 06 | F63: SERVICE 06 | G63: DIENST 06 | H63: - | I63: 0 | K63: =IF(ReadMe!$L$3="English",$C$69,IF(ReadMe!$L$3="French",$F$69,$G$69))&" : "&SUM($F106:$H106)&" + "&IF(ReadMe!$L$3="English",$C$74,IF(ReadMe!$L$3="French",$F$74,$G$74))&" : "&SUM($I106:$J106) -> GAMME # : 1 + CANAL DE DISTRIBUTION # : 1
C64: SERVICE 07 | D64: 3 | E64: SERVICE 07 | F64: SERVICE 07 | G64: DIENST 07 | H64: - | I64: 0 | K64: =IF(ReadMe!$L$3="English",$C$69,IF(ReadMe!$L$3="French",$F$69,$G$69))&" : "&SUM($F107:$H107)&" + "&IF(ReadMe!$L$3="English",$C$74,IF(ReadMe!$L$3="French",$F$74,$G$74))&" : "&SUM($I107:$J107) -> GAMME # : 1 + CANAL DE DISTRIBUTION # : 1
C65: SERVICE 08 | D65: 3 | E65: SERVICE 08 | F65: SERVICE 08 | G65: DIENST 08 | H65: - | I65: 0 | K65: =IF(ReadMe!$L$3="English",$C$69,IF(ReadMe!$L$3="French",$F$69,$G$69))&" : "&SUM($F108:$H108)&" + "&IF(ReadMe!$L$3="English",$C$74,IF(ReadMe!$L$3="French",$F$74,$G$74))&" : "&SUM($I108:$J108) -> GAMME # : 1 + CANAL DE DISTRIBUTION # : 1
C66: SERVICE 09 | D66: 3 | E66: SERVICE 09 | F66: SERVICE 09 | G66: DIENST 09 | H66: - | I66: 0 | K66: =IF(ReadMe!$L$3="English",$C$69,IF(ReadMe!$L$3="French",$F$69,$G$69))&" : "&SUM($F109:$H109)&" + "&IF(ReadMe!$L$3="English",$C$74,IF(ReadMe!$L$3="French",$F$74,$G$74))&" : "&SUM($I109:$J109) -> GAMME # : 1 + CANAL DE DISTRIBUTION # : 1
C67: SERVICE 10 | D67: 3 | E67: SERVICE 10 | F67: SERVICE 10 | G67: DIENST 10 | H67: - | I67: 0 | K67: =IF(ReadMe!$L$3="English",$C$69,IF(ReadMe!$L$3="French",$F$69,$G$69))&" : "&SUM($F110:$H110)&" + "&IF(ReadMe!$L$3="English",$C$74,IF(ReadMe!$L$3="French",$F$74,$G$74))&" : "&SUM($I110:$J110) -> GAMME # : 1 + CANAL DE DISTRIBUTION # : 1
D68: 3
B69: RANGE AND DISTRIBUTION CHANNEL RELATED___ | C69: RANGE # | D69: 4 | E69: RANGE # | F69: GAMME # | G69: ASSORTIMENT # | H69: RANGE NAME NOM DE LA GAMME ASSORTIMENTNAAM | J69: FREE TEXT DESCRIPTION TEXTE LIBRE DESCRIPTION VRIJE TEKST BESCHRIJVING
C70: RANGE 1 | D70: 4 | E70: RANGE 1 | F70: GAMME 1 | G70: ASSORTIMENT 1 | H70: LOW END | J70: Entry level
C71: RANGE 2 | D71: 4 | E71: RANGE 2 | F71: GAMME 2 | G71: ASSORTIMENT 2 | H71: MEDIUM END | J71: Advanced level
C72: RANGE 3 | D72: 4 | E72: RANGE 3 | F72: GAMME 3 | G72: ASSORTIMENT 3 | H72: HIGH END | J72: Professional level
D73: 4
C74: DISTRIBUTION CHANNEL # | D74: 4 | E74: DISTRIBUTION CHANNEL # | F74: CANAL DE DISTRIBUTION # | G74: DISTRIBUTIEKANAAL # | H74: DISTRIBUTION CHANNEL NAME NOM DU CANAL DE DISTRIBUTION DISTRIBUTIEKANAALNAAM | J74: FREE TEXT DESCRIPTION TEXTE LIBRE DESCRIPTION VRIJE TEKST BESCHRIJVING
C75: DISTRIBUTION CHANNEL 1 | D75: 4 | E75: DISTRIBUTION CHANNEL 1 | F75: CANAL DE DISTRIBUTION 1 | G75: DISTRIBUTIEKANAAL 1 | H75: B2B | J75: Business to Business
C76: DISTRIBUTION CHANNEL 2 | D76: 4 | E76: DISTRIBUTION CHANNEL 2 | F76: CANAL DE DISTRIBUTION 2 | G76: DISTRIBUTIEKANAAL 2 | H76: B2C | J76: Business to Consumer
D77: 4
C78: PRODUCT # PRODUIT # PRODUCT # | D78: 4 | E78: PRODUCT # PRODUIT # PRODUCT # | F78: RANGE 1 GAMME 1 ASSORTIMENT 1 | G78: RANGE 2 GAMME 2 ASSORTIMENT 2 | H78: RANGE 3 GAMME 3 ASSORTIMENT 3 | I78: DISTRIBUTION CHANNEL 1 CANAL DE DISTRIBUTION 1 DISTRIBUTIEKANAAL 1 | J78: DISTRIBUTION CHANNEL 2 CANAL DE DISTRIBUTION 2 DISTRIBUTIEKANAAL 2
C79: =C36&" / "&F36&" / "&G36 -> PRODUCT 01 / PRODUIT 01 / PRODUCT 01 | D79: 4 | E79: =E36&" / "&H36&" / "&I36 -> PRODUCT 01 / XYZ / 1 | F79: 1 | G79: 0 | H79: 0 | I79: 1 | J79: 0
C80: PRODUCT 02 / PRODUIT 02 / PRODUCT 02 | D80: 4 | E80: PRODUCT 02 / ABC / 1 | F80: 1 | G80: 0 | H80: 0 | I80: 1 | J80: 0
C81: PRODUCT 03 / PRODUIT 03 / PRODUCT 03 | D81: 4 | E81: PRODUCT 03 / DEF / 1 | F81: 1 | G81: 0 | H81: 0 | I81: 1 | J81: 0
C82: PRODUCT 04 / PRODUIT 04 / PRODUCT 04 | D82: 4 | E82: PRODUCT 04 / GHI / 1 | F82: 1 | G82: 0 | H82: 0 | I82: 1 | J82: 0
C83: PRODUCT 05 / PRODUIT 05 / PRODUCT 05 | D83: 4 | E83: PRODUCT 05 / - / 0 | F83: 1 | G83: 0 | H83: 0 | I83: 1 | J83: 0
C84: PRODUCT 06 / PRODUIT 06 / PRODUCT 06 | D84: 4 | E84: PRODUCT 06 / - / 0 | F84: 1 | G84: 0 | H84: 0 | I84: 1 | J84: 0
C85: PRODUCT 07 / PRODUIT 07 / PRODUCT 07 | D85: 4 | E85: PRODUCT 07 / - / 0 | F85: 1 | G85: 0 | H85: 0 | I85: 1 | J85: 0
C86: PRODUCT 08 / PRODUIT 08 / PRODUCT 08 | D86: 4 | E86: PRODUCT 08 / - / 0 | F86: 1 | G86: 0 | H86: 0 | I86: 1 | J86: 0
C87: PRODUCT 09 / PRODUIT 09 / PRODUCT 09 | D87: 4 | E87: PRODUCT 09 / - / 0 | F87: 1 | G87: 0 | H87: 0 | I87: 1 | J87: 0
C88: PRODUCT 10 / PRODUIT 10 / PRODUCT 10 | D88: 4 | E88: PRODUCT 10 / - / 0 | F88: 1 | G88: 0 | H88: 0 | I88: 1 | J88: 0
C89: PRODUCT 11 / PRODUIT 11 / PRODUCT 11 | D89: 4 | E89: PRODUCT 11 / - / 0 | F89: 1 | G89: 0 | H89: 0 | I89: 1 | J89: 0
C90: PRODUCT 12 / PRODUIT 12 / PRODUCT 12 | D90: 4 | E90: PRODUCT 12 / - / 0 | F90: 1 | G90: 0 | H90: 0 | I90: 1 | J90: 0
C91: PRODUCT 13 / PRODUIT 13 / PRODUCT 13 | D91: 4 | E91: PRODUCT 13 / - / 0 | F91: 1 | G91: 0 | H91: 0 | I91: 1 | J91: 0
C92: PRODUCT 14 / PRODUIT 14 / PRODUCT 14 | D92: 4 | E92: PRODUCT 14 / - / 0 | F92: 1 | G92: 0 | H92: 0 | I92: 1 | J92: 0
C93: PRODUCT 15 / PRODUIT 15 / PRODUCT 15 | D93: 4 | E93: PRODUCT 15 / - / 0 | F93: 1 | G93: 0 | H93: 0 | I93: 1 | J93: 0
C94: PRODUCT 16 / PRODUIT 16 / PRODUCT 16 | D94: 4 | E94: PRODUCT 16 / - / 0 | F94: 1 | G94: 0 | H94: 0 | I94: 1 | J94: 0
C95: PRODUCT 17 / PRODUIT 17 / PRODUCT 17 | D95: 4 | E95: PRODUCT 17 / - / 0 | F95: 1 | G95: 0 | H95: 0 | I95: 1 | J95: 0
C96: PRODUCT 18 / PRODUIT 18 / PRODUCT 18 | D96: 4 | E96: PRODUCT 18 / - / 0 | F96: 1 | G96: 0 | H96: 0 | I96: 1 | J96: 0
C97: PRODUCT 19 / PRODUIT 19 / PRODUCT 19 | D97: 4 | E97: PRODUCT 19 / - / 0 | F97: 1 | G97: 0 | H97: 0 | I97: 1 | J97: 0
C98: PRODUCT 20 / PRODUIT 20 / PRODUCT 20 | D98: 4 | E98: PRODUCT 20 / - / 0 | F98: 1 | G98: 0 | H98: 0 | I98: 1 | J98: 0
D99: 4
C100: SERVICE # SERVICE # DIENST # | D100: 4 | E100: SERVICE # SERVICE # DIENST # | F100: RANGE 1 GAMME 1 ASSORTIMENT 1 | G100: RANGE 2 GAMME 2 ASSORTIMENT 2 | H100: RANGE 3 GAMME 3 ASSORTIMENT 3 | I100: DISTRIBUTION CHANNEL 1 CANAL DE DISTRIBUTION 1 DISTRIBUTIEKANAAL 1 | J100: DISTRIBUTION CHANNEL 2 CANAL DE DISTRIBUTION 2 DISTRIBUTIEKANAAL 2
C101: =C58&" / "&F58&" / "&G58 -> SERVICE 01 / SERVICE 01 / DIENST 01 | D101: 4 | E101: =E58&" / "&H58&" / "&I58 -> SERVICE 01 / - / 0 | F101: 1 | G101: 0 | H101: 0 | I101: 1 | J101: 0
C102: SERVICE 02 / SERVICE 02 / DIENST 02 | D102: 4 | E102: SERVICE 02 / - / 0 | F102: 1 | G102: 0 | H102: 0 | I102: 1 | J102: 0
C103: SERVICE 03 / SERVICE 03 / DIENST 03 | D103: 4 | E103: SERVICE 03 / - / 0 | F103: 1 | G103: 0 | H103: 0 | I103: 1 | J103: 0
C104: SERVICE 04 / SERVICE 04 / DIENST 04 | D104: 4 | E104: SERVICE 04 / - / 0 | F104: 1 | G104: 0 | H104: 0 | I104: 1 | J104: 0
C105: SERVICE 05 / SERVICE 05 / DIENST 05 | D105: 4 | E105: SERVICE 05 / - / 0 | F105: 1 | G105: 0 | H105: 0 | I105: 1 | J105: 0
C106: SERVICE 06 / SERVICE 06 / DIENST 06 | D106: 4 | E106: SERVICE 06 / - / 0 | F106: 1 | G106: 0 | H106: 0 | I106: 1 | J106: 0
C107: SERVICE 07 / SERVICE 07 / DIENST 07 | D107: 4 | E107: SERVICE 07 / - / 0 | F107: 1 | G107: 0 | H107: 0 | I107: 1 | J107: 0
C108: SERVICE 08 / SERVICE 08 / DIENST 08 | D108: 4 | E108: SERVICE 08 / - / 0 | F108: 1 | G108: 0 | H108: 0 | I108: 1 | J108: 0
C109: SERVICE 09 / SERVICE 09 / DIENST 09 | D109: 4 | E109: SERVICE 09 / - / 0 | F109: 1 | G109: 0 | H109: 0 | I109: 1 | J109: 0
C110: SERVICE 10 / SERVICE 10 / DIENST 10 | D110: 4 | E110: SERVICE 10 / - / 0 | F110: 1 | G110: 0 | H110: 0 | I110: 1 | J110: 0
D111: 4
B112: STAFF RELATED___ | C112: STAFF_CATEGORY # | D112: 5 | E112: STAFF_CATEGORY # | F112: EFFECTIF_CATEGORIE # | G112: PERSONEEL_CATEGORIE # | H112: OCCUPATIONAL CATEGORY CATEGORIE PROFESSIONNELLE BEROEPSGROEP | I112: DEPARTMENT NAME NOM DU DEPARTEMENT NAAM VAN DE AFDELING | J112: SOCIAL SECURITY (% OF GROSS SALARY) SECURITE SOCIALE (% DU SALAIRE BRUT) SOCIALE ZEKERHEID (% VAN BRUTO SALARIS)
C113: STAFF_CAT01 | D113: 5 | E113: STAFF_CAT01 | F113: EFF_CAT01 | G113: PERSONEEL_CAT01 | H113: INTERIMAIRES | I113: TRAVAILLEURS SAISONNIERS | J113: 0
C114: STAFF_CAT02 | D114: 5 | E114: STAFF_CAT02 | F114: EFF_CAT02 | G114: PERSONEEL_CAT02 | H114: EMPLOYE(E)S | I114: VENTE & MARKETING | J114: 0.1645
C115: STAFF_CAT03 | D115: 5 | E115: STAFF_CAT03 | F115: EFF_CAT03 | G115: PERSONEEL_CAT03 | H115: EMPLOYE(E)S | I115: ADMINISTRATION | J115: 0.1645
C116: STAFF_CAT04 | D116: 5 | E116: STAFF_CAT04 | F116: EFF_CAT04 | G116: PERSONEEL_CAT04 | H116: EMPLOYE(E)S | I116: OPERATIONS | J116: 0.1645
C117: STAFF_CAT05 | D117: 5 | E117: STAFF_CAT05 | F117: EFF_CAT05 | G117: PERSONEEL_CAT05 | H117: EMPLOYE(E)S | I117: VENDEUR BOUTIQUE | J117: 0.1645
C118: STAFF_CAT06 | D118: 5 | E118: STAFF_CAT06 | F118: EFF_CAT06 | G118: PERSONEEL_CAT06 | H118: EMPLOYE(E)S | I118: CADRE - DIRECTEURS | J118: 0.1645
C119: STAFF_CAT07 | D119: 5 | E119: STAFF_CAT07 | F119: EFF_CAT07 | G119: PERSONEEL_CAT07 | H119: EMPLOYE(E)S | I119: CADRE - DIRECTEUR GENERAL | J119: 0.1645
C120: STAFF_CAT08 | D120: 5 | E120: STAFF_CAT08 | F120: EFF_CAT08 | G120: PERSONEEL_CAT08 | H120: EMPLOYE(E)S | I120: EFF8 | J120: 0
C121: STAFF_CAT09 | D121: 5 | E121: STAFF_CAT09 | F121: EFF_CAT09 | G121: PERSONEEL_CAT09 | H121: EMPLOYE(E)S | I121: EFF9 | J121: 0
C122: STAFF_CAT10 | D122: 5 | E122: STAFF_CAT10 | F122: EFF_CAT10 | G122: PERSONEEL_CAT10 | H122: EMPLOYE(E)S | I122: EFF10 | J122: 0
D123: 5
B124: LOAN RELATED___ | C124: LOAN | D124: 6 | E124: LOAN | F124: PRET | G124: LENING | I124: YEARLY INTEREST INTERET ANNUEL JAARLIIJKSE RENTE | J124: PAID BACK PERIOD PERIODE DE REMBOURSEMENT TERUGBETALINGSTERMIJN
C125: LOAN FROM OVO | D125: 6 | E125: LOAN FROM OVO | F125: PRET OVO | G125: LENING VAN OVO | I125: 0.07 | J125: 5
C126: LOAN FROM FAMILY AND FRIENDS | D126: 6 | E126: LOAN FROM FAMILY AND FRIENDS | F126: PRET FAMILLE ET AMIS | G126: LENING VAN FAMILIE EN VRIENDEN | I126: 0.1 | J126: 3
C127: LOAN FROM LOCAL BANK | D127: 6 | E127: LOAN FROM LOCAL BANK | F127: PRET BANQUE LOCALE | G127: LENING VAN LOKALE BANK | I127: 0.2 | J127: 2
D128: 6
B129: SIMULATION RELATED___ | C129: SIMULATION SCENARIO | D129: 7 | E129: SIMULATION SCENARIO | F129: SCENARIO DE SIMULATION | G129: SIMULATIESCENARIO | H129: WORST CASE PIRE CAS SLECHTSTE GEVAL | I129: TYPICAL CASE CAS TYPIQUE TYPISCH GEVAL | J129: BEST CASE MEILLEUR CAS BESTE GEVAL
C130: REVENUE PRODUCTS | D130: 7 | E130: REVENUE PRODUCTS | F130: REVENUS PRODUITS | G130: OMZETPRODUCTEN | H130: 0.95 | I130: 1 | J130: 1.2
C131: COST OF GOODS SOLD PRODUCTS | D131: 7 | E131: COST OF GOODS SOLD PRODUCTS | F131: COUT DES PRODUITS VENDUS | G131: KOSTEN VAN VERKOCHTE GOEDEREN PRODUCTEN | H131: 1.1 | I131: 1 | J131: 0.95
C132: REVENUE SERVICES | D132: 7 | E132: REVENUE SERVICES | F132: REVENUS SERVICES | G132: OMZETDIENSTEN | H132: 0.6 | I132: 1 | J132: 1.2
C133: COST OF GOODS SOLD SERVICES | D133: 7 | E133: COST OF GOODS SOLD SERVICES | F133: COUT DES SERVICES VENDUS | G133: KOSTEN VAN VERKOCHTE GOEDEREN DIENSTEN | H133: 1.1 | I133: 1 | J133: 0.95
C134: MARKETING COST | D134: 7 | E134: MARKETING COST | F134: COUT DE MARKETING | G134: MARKETINGKOSTEN | H134: 1.25 | I134: 1 | J134: 0.85
C135: STAFF SALARIES | D135: 7 | E135: STAFF SALARIES | F135: SALAIRES DE PERSONNEL | G135: PERSONNELSKOSTEN | H135: 1.25 | I135: 1 | J135: 0.85
C136: TAXES AND DUTIES ON STAFF | D136: 7 | E136: TAXES AND DUTIES ON STAFF | F136: IMPOTS ET TAXES SUR PERSONNEL | G136: BELASTINGEN EN HEFFINGEN OP PERSONEEL | H136: 1.25 | I136: 1 | J136: 0.85
C137: OFFICE COSTS | D137: 7 | E137: OFFICE COSTS | F137: COUTS DE L'OFFICE | G137: KOSTEN VAN HET KANTOOR | H137: 1.1 | I137: 1 | J137: 0.9
C138: OTHER EXPENSES | D138: 7 | E138: OTHER EXPENSES | F138: AUTRES CHARGES | G138: OVERIGE KOSTEN | H138: 1.1 | I138: 1 | J138: 0.9
C139: TRAVEL & TRANSPORTATION | D139: 7 | E139: TRAVEL & TRANSPORTATION | F139: VOYAGE & DEPLACEMENT | G139: REIZEN & VERVOER | H139: 1.1 | I139: 1 | J139: 0.9
C140: INSURANCE | D140: 7 | E140: INSURANCE | F140: ASSURANCES | G140: VERZEKERINGEN | H140: 1.1 | I140: 1 | J140: 0.9
C141: MAINTENANCE | D141: 7 | E141: MAINTENANCE | F141: ENTRETIEN | G141: ONDERHOUD | H141: 1.1 | I141: 1 | J141: 0.9
C142: THIRD PARTIES | D142: 7 | E142: THIRD PARTIES | F142: TIERCES PARTIES | G142: DERDEN | H142: 1.2 | I142: 1 | J142: 0.85
D143: 7
C145: TableTranslation | E145: TableTranslation
A146: X | C146: ITEM | E146: ITEM_EN | F146: ITEM_FR | G146: ITEM_NL
C148: - CHANGES IN OPERATING DEBTS | E148: - CHANGES IN OPERATING DEBTS | F148: - VARIATION DES DETTES D'EXPLOITATION | G148: - VARIATIE IN EXPLOITATIESCHULDEN
C149: % | E149: % | F149: % | G149: %
C150: % INSURANCE / REVENUE | E150: % INSURANCE / REVENUE | F150: % ASSURANCES / CHIFFRE D'AFFAIRESS | G150: % VERZEKERINGEN / OMZET
C151: % MAINTENANCE / REVENUE | E151: % MAINTENANCE / REVENUE | F151: % ENTRETIEN / CHIFFRE D'AFFAIRESS | G151: % ONDERHOUD / OMZET
C152: % MARKETING COST / REVENUE | E152: % MARKETING COST / REVENUE | F152: % COUTS DE MARKETING / CHIFFRE D'AFFAIRES | G152: % MARKETINGKOSTEN / OMZET
C153: % OFFICE COSTS / REVENUE | E153: % OFFICE COSTS / REVENUE | F153: % FRAIS DE BUREAU / CHIFFRE D'AFFAIRESS | G153: % KANTOORKOSTEN / OMZET
C154: % OPERATING EXPENSES / REVENUE | E154: % OPERATING EXPENSES / REVENUE | F154: % DEPENSES D'EXPLOITATION / CHIFFRE D'AFFAIRESS | G154: % EXPLOITATIEKOSTEN / OMZET
C155: % OTHER EXPENSES / REVENUE | E155: % OTHER EXPENSES / REVENUE | F155: % AUTRES DEPENSES / CHIFFRE D'AFFAIRESS | G155: % OVERIGE KOSTEN / OMZET
C156: % STAFF SALARIES / REVENUE | E156: % STAFF SALARIES / REVENUE | F156: % SALAIRES DU PERSONNEL / CHIFFRE D'AFFAIRES | G156: % SALARISSEN PERSONEEL / OMZET
C157: % TAXES AND DUTIES ON STAFF / REVENUE | E157: % TAXES AND DUTIES ON STAFF / REVENUE | F157: % IMPOTS ET TAXES SUR LE PERSONNEL / CHIFFRE D'AFFAIRES | G157: % BELASTINGEN EN HEFFINGEN OP PERSONEEL / OMZET
C158: % THIRD PARTIES / REVENUE | E158: % THIRD PARTIES / REVENUE | F158: % TIERS / CHIFFRE D'AFFAIRESS | G158: % DERDEN / OMZET
C159: % TRAVEL & TRANSPORTATION / REVENUE | E159: % TRAVEL & TRANSPORTATION / REVENUE | F159: % DEPLACEMENTS ET TRANSPORTS / CHIFFRE D'AFFAIRESS | G159: % REIS- EN VERVOERSKOSTEN / OMZET
C160: % YEAR TO YEAR VARIATION | E160: % YEAR TO YEAR VARIATION | F160: % VARIATION D'UNE ANNEE SUR L'AUTRE | G160: % VARIATIE VAN JAAR TOT JAAR
C161: % YEARLY AMORTISATION | E161: % YEARLY AMORTISATION | F161: % AMORTISSEMENT ANNUEL | G161: % JAARLIJKSE AFSCHRIJVING
C162: + CHANGES IN INVENTORY ON PURCHASES | E162: + CHANGES IN INVENTORY ON PURCHASES | F162: + VARIATIONS DES STOCKS SUR LES ACHATS | G162: + VARIATIES IN VOORRADEN OP AANKOPEN
C163: + CHANGES IN RECEIVABLES | E163: + CHANGES IN RECEIVABLES | F163: + VARIATION DES CREANCES | G163: + VARIATIE IN VORDERINGEN
C164: ACCOUNTING & TAXATION | E164: ACCOUNTING & TAXATION | F164: COMPTABILITÉ & FISCALITÉ | G164: BOEKHOUDING & BELASTINGEN
C165: ACCOUNTS PAYABLE | E165: ACCOUNTS PAYABLE | F165: COMPTES A PAYER | G165: TE BETALEN REKENINGEN
C166: ACCOUNTS RECEIVABLE | E166: ACCOUNTS RECEIVABLE | F166: COMPTES A RECEVOIR | G166: TE ONTVANGEN REKENINGEN
C167: ACCUMULATED AMORTISATION VALUE | E167: ACCUMULATED AMORTISATION VALUE | F167: VALEUR D'AMORTISSEMENT ACCUMULEE | G167: GECUMULEERDE AFSCHRIJVINGSWAARDE
C168: ACQUISITION VALUE | E168: ACQUISITION VALUE | F168: VALEUR D'ACQUISITION | G168: AANKOOPWAARDE
C169: ACQUISITION YEAR | E169: ACQUISITION YEAR | F169: ANNEE D'ACQUISITION | G169: AANKOOPJAAR
C170: ACTIF TOTAL | E170: ACTIF TOTAL | F170: ACTIF TOTAL | G170: TOTAAL ACTIVA
C171: ADVERTISING | E171: ADVERTISING | F171: PUBLICITE | G171: RECLAME
C172: ALL CHARGES | E172: ALL CHARGES | F172: TOUTES LES CHARGES | G172: ALLE KOSTEN
C173: AMORTISATIONS | E173: AMORTISATIONS | F173: AMORTISSEMENTS | G173: AFSCHRIJVINGEN
C174: APPRENTICESHIP TAXES | E174: APPRENTICESHIP TAXES | F174: TAXES D'APPRENTISSAGE | G174: LEERLINGENBELASTING
C175: AVERAGE | E175: AVERAGE | F175: MOYENNE | G175: GEMIDDELD
C176: AVERAGE COGS | E176: AVERAGE COGS | F176: COUT MOYEN DE VENTE | G176: GEMIDDELDE COGS
C177: AVERAGE COGS CHANNEL 1 | E177: AVERAGE COGS CHANNEL 1 | F177: COUTS MOYENS CANAL 1 | G177: GEMIDDELDE COGS KANAAL 1
C178: AVERAGE COGS CHANNEL 2 | E178: AVERAGE COGS CHANNEL 2 | F178: COUTS MOYENS CANAL 1 | G178: GEMIDDELDE COGS KANAAL 1
C179: AVERAGE COST OF GOODS SOLD PER UNIT | E179: AVERAGE COST OF GOODS SOLD PER UNIT | F179: PRIX MOYEN D'ACHAT PAR PRODUIT/SERVICE | G179: GEMIDDELDE KOSTEN VAN VERKOCHTE GOEDEREN PER EENHEID
C180: AVERAGE PRICE | E180: AVERAGE PRICE | F180: PRIX MOYEN | G180: GEMIDDELDE PRIJS
C181: AVERAGE SELLING PRICE | E181: AVERAGE SELLING PRICE | F181: PRIX DE VENTE MOYEN | G181: GEMIDDELDE VERKOOPPRIJS
C182: AVERAGE SELLING PRICE PER UNIT | E182: AVERAGE SELLING PRICE PER UNIT | F182: PRIX MOYEN DE VENTE PAR PRODUIT/SERVICE | G182: GEMIDDELDE VERKOOPPRIJS PER EENHEID
C183: AVERAGE TRAVEL COST PER PERSON | E183: AVERAGE TRAVEL COST PER PERSON | F183: COUT MOYEN DU VOYAGE PAR PERSONNE | G183: GEMIDDELDE REISKOSTEN PER PERSOON
C184: B2B | E184: B2B | F184: B2B | G184: B2B | H184: BUSINESS TO BUSINESS
C185: B2C | E185: B2C | F185: B2C | G185: B2C | H185: BUSINESS TO CONSUMER
C186: BALANCE SHEET | E186: BALANCE SHEET | F186: BILAN | G186: BALANS
C187: BANK CHARGES | E187: BANK CHARGES | F187: FRAIS BANCAIRES | G187: BANKKOSTEN
C188: BANK CHARGES + INTEREST | E188: BANK CHARGES + INTEREST | F188: FRAIS BANCAIRES + INTERETS | G188: BANKKOSTEN + RENTE
C189: BANK LOANS (LESS THAN 1 YEAR TO PAY) | E189: BANK LOANS (LESS THAN 1 YEAR TO PAY) | F189: PRET BANCAIRE (MOINS 1 AN A PAYER) | G189: BANKLENING (MINDER DAN 1 JAAR TE BETALEN)
C190: BANK LOANS (MORE THAN 1 YEAR TO PAY) | E190: BANK LOANS (MORE THAN 1 YEAR TO PAY) | F190: PRET BANCAIRE (PLUS 1 AN A PAYER) | G190: BANKLENING (MEER DAN 1 JAAR TE BETALEN)
C191: BEGINNING OF THE PERIOD | E191: BEGINNING OF THE PERIOD | F191: DEBUT DE LA PERIODE | G191: BEGIN VAN DE PERIODE
C192: BEST CASE | E192: BEST CASE | F192: MEILLEUR CAS | G192: BESTE GEVAL
C193: BREAK-EVEN | E193: BREAK-EVEN | F193: SEUIL DE RENTABILITÉ | G193: BREAK-EVEN
C194: BREAK-EVEN REVENUE | E194: BREAK-EVEN REVENUE | F194: BREAK-EVEN CHIFFRE D'AFFAIRES | G194: BREAK-EVEN OMZET
C195: BREAK-EVEN REVENUE RATIO | E195: BREAK-EVEN REVENUE RATIO | F195: RATIO DE RENTABILITÉ | G195: BREAK-EVEN OMZETRATIO
C196: BREAK-EVEN REVENUE VALUE | E196: BREAK-EVEN REVENUE VALUE | F196: VALEUR DE RENTABILITÉ | G196: BREAK-EVEN OMZETWAARDE
C197: BREAK-EVEN VOLUME | E197: BREAK-EVEN VOLUME | F197: VOLUME DE RENTABILITÉ | G197: BREAK-EVEN VOLUME
C198: BUILDING INSURANCE | E198: BUILDING INSURANCE | F198: ASSURANCE DU BATIMENT | G198: GEBOUWVERZEKERING
C199: CALCULATED IN SECTION 7 | E199: CALCULATED IN SECTION 7 | F199: CALCULE A LA SECTION 7 | G199: BEREKEND IN PARAGRAAF 7
C200: CAPITAL CHANGE BY CANCELLATION OF ACCUMULATED DEBT/PROFIT | E200: CAPITAL CHANGE BY CANCELLATION OF ACCUMULATED DEBT/PROFIT | F200: MODIFICATION DU CAPITAL PAR ANNULATION DE LA DETTE/DU BENEFICE ACCUMULE | G200: KAPITAALVERANDERING DOOR ANNULERING VAN GECUMULEERDE SCHULD/WINST
C201: CAPITAL CONTRIBUTION BY EXISTING SHAREHOLDERS | E201: CAPITAL CONTRIBUTION BY EXISTING SHAREHOLDERS | F201: APPORT DE CAPITAL PAR ACTIONNAIRES EXISTANTS | G201: KAPITAALINBRENG DOOR BESTAANDE AANDEELHOUDERS
C202: CAPITAL CONTRIBUTION BY EXISTING SHAREHOLDERS | E202: CAPITAL CONTRIBUTION BY EXISTING SHAREHOLDERS | F202: APPORT EN CAPITAL PAR LES ACTIONNAIRES EXISTANTS | G202: KAPITAALINBRENG DOOR BESTAANDE AANDEELHOUDERS
... 336 more rows

Sheet RevenueData
B1: ="Instructions"&"___" -> Instructions___ | C1: =ReadMe!$K$1 -> Revision FP : v2.12 | G1: =VLOOKUP(F$7,TableInputsData[],ReadMe!$M$3,FALSE) -> ANNEE DE REFERENCE | H1: =VLOOKUP(H$7,TableInputsData[],ReadMe!$M$3,FALSE) -> ANNEE | J1: =VLOOKUP(I$7,TableInputsData[],ReadMe!$M$3,FALSE) -> TYPE DE PRODUIT / SERVICE | L1: =VLOOKUP(K$7,TableInputsData[],ReadMe!$M$3,FALSE) -> PRODUIT OU SERVICE DE REFERENCE | M1: =VLOOKUP(M$7,TableInputsData[],ReadMe!$M$3,FALSE) -> PRODUIT / SERVICE | O1: =VLOOKUP(O$7,TableInputsData[],ReadMe!$M$3,FALSE) -> PRIX DE VENTE UNITAIRE GAMME 1 | P1: =VLOOKUP(P$7,TableInputsData[],ReadMe!$M$3,FALSE) -> PRIX DE VENTE UNITAIRE GAMME 2 | Q1: =VLOOKUP(Q$7,TableInputsData[],ReadMe!$M$3,FALSE) -> PRIX DE VENTE UNITAIRE GAMME 3 | R1: =VLOOKUP(R$7,TableInputsData[],ReadMe!$M$3,FALSE) -> PRIX DE VENTE UNITAIRE MOYEN | S1: =VLOOKUP(S$7,TableInputsData[],ReadMe!$M$3,FALSE) -> VOLUME MIXTE GAMME 1 % | T1: =VLOOKUP(T$7,TableInputsData[],ReadMe!$M$3,FALSE) -> VOLUME MIXTE GAMME 2 % | U1: =VLOOKUP(U$7,TableInputsData[],ReadMe!$M$3,FALSE) -> VOLUME MIXTE GAMME 3 % | V1: =VLOOKUP(V$7,TableInputsData[],ReadMe!$M$3,FALSE) -> COUT UNITAIRE GAMME 1 | W1: =VLOOKUP(W$7,TableInputsData[],ReadMe!$M$3,FALSE) -> COUT UNITAIRE GAMME 2 | X1: =VLOOKUP(X$7,TableInputsData[],ReadMe!$M$3,FALSE) -> COUT UNITAIRE GAMME 3 | Y1: =VLOOKUP(Y$7,TableInputsData[],ReadMe!$M$3,FALSE) -> COUT UNITAIRE MOYEN DES VENTES | Z1: =VLOOKUP(Z$7,TableInputsData[],ReadMe!$M$3,FALSE) -> VOLUME MIXTE GAMME 1 CHANNEL 1 % | AA1: =VLOOKUP(AA$7,TableInputsData[],ReadMe!$M$3,FALSE) -> VOLUME MIXTE GAMME 2 CHANNEL 1 % | AB1: =VLOOKUP(AB$7,TableInputsData[],ReadMe!$M$3,FALSE) -> VOLUME MIXTE GAMME 3 CHANNEL 1 % | AC1: =VLOOKUP(AC$7,TableInputsData[],ReadMe!$M$3,FALSE) -> VOLUME MIXTE GAMME 1 CHANNEL 2 % | AD1: =VLOOKUP(AD$7,TableInputsData[],ReadMe!$M$3,FALSE) -> VOLUME MIXTE GAMME 2 CHANNEL 2 % | AE1: =VLOOKUP(AE$7,TableInputsData[],ReadMe!$M$3,FALSE) -> VOLUME MIXTE GAMME 3 CHANNEL 2 % | AF1: =VLOOKUP(AF$7,TableInputsData[],ReadMe!$M$3,FALSE) -> COUT UNITAIRE MOYEN CANAL 1 | AG1: =VLOOKUP(AG$7,TableInputsData[],ReadMe!$M$3,FALSE) -> COUT UNITAIRE MOYEN CANAL 2 | AH1: =VLOOKUP(AH$7,TableInputsData[],ReadMe!$M$3,FALSE) -> TRIMESTRE 1 | AI1: =VLOOKUP(AI$7,TableInputsData[],ReadMe!$M$3,FALSE) -> TRIMESTRE 2 | AJ1: =VLOOKUP(AJ$7,TableInputsData[],ReadMe!$M$3,FALSE) -> TRIMESTRE 3 | AK1: =VLOOKUP(AK$7,TableInputsData[],ReadMe!$M$3,FALSE) -> TRIMESTRE 4 | AL1: =VLOOKUP("TOTAL",TableInputsData[],ReadMe!$M$3,FALSE)&" "&VLOOKUP(RIGHT(AL$7,LEN(AL$7)-6),TableInputsData[],ReadMe!$M$3,FALSE) -> TOTAL ANNEE | AM1: =VLOOKUP(AM$7,TableInputsData[],ReadMe!$M$3,FALSE) -> TOTAL DE LA GAMME 1 | AN1: =VLOOKUP(AN$7,TableInputsData[],ReadMe!$M$3,FALSE) -> TOTAL DE LA GAMME 2 | AO1: =VLOOKUP(AO$7,TableInputsData[],ReadMe!$M$3,FALSE) -> TOTAL DE LA GAMME 3 | AP1: =VLOOKUP(AP$7,TableInputsData[],ReadMe!$M$3,FALSE) -> TOTAL DU CANAL DE DISTRIBUTION 1 | AQ1: =VLOOKUP(AQ$7,TableInputsData[],ReadMe!$M$3,FALSE) -> TOTAL DU CANAL DE DISTRIBUTION 1 % | AR1: =VLOOKUP(AR$7,TableInputsData[],ReadMe!$M$3,FALSE) -> TOTAL DU CANAL DE DISTRIBUTION 2 | AS1: =VLOOKUP(AS$7,TableInputsData[],ReadMe!$M$3,FALSE) -> TOTAL DU CANAL DE DISTRIBUTION 2 % | AT1: =VLOOKUP(AT$7,TableInputsData[],ReadMe!$M$3,FALSE) -> COMMENTAIRE | AU1: =VLOOKUP(AU$7,TableInputsData[],ReadMe!$M$3,FALSE) -> NOTE DE TRADUCTION
C2: =InputsData!$J$1 -> MONNAIE LOCALE : CFA
C3: TableRevenueData | M3: =AV3 -> TRUE | AV3: =AND(TableRevenueData[CHECK]) -> TRUE
C5: =InputsData!$J$2 -> STRICTEMENT CONFIDENTIEL | ABC CORPORATION | O5: =InputsData!$J$8 -> CFA | P5: =InputsData!$J$8 -> CFA | Q5: =InputsData!$J$8 -> CFA | R5: =InputsData!$J$8 -> CFA | S5: % | T5: % | U5: % | V5: =InputsData!$J$8 -> CFA | W5: =InputsData!$J$8 -> CFA | X5: =InputsData!$J$8 -> CFA | Y5: =InputsData!$J$8 -> CFA | Z5: % | AA5: % | AB5: % | AC5: % | AD5: % | AE5: % | AF5: =InputsData!$J$8 -> CFA | AG5: =InputsData!$J$8 -> CFA | AH5: =VLOOKUP("Quantity",TableInputsData[],ReadMe!$M$3,FALSE) -> QUANTITE | AI5: =VLOOKUP("Quantity",TableInputsData[],ReadMe!$M$3,FALSE) -> QUANTITE | AJ5: =VLOOKUP("Quantity",TableInputsData[],ReadMe!$M$3,FALSE) -> QUANTITE | AK5: =VLOOKUP("Quantity",TableInputsData[],ReadMe!$M$3,FALSE) -> QUANTITE | AL5: =VLOOKUP("Quantity",TableInputsData[],ReadMe!$M$3,FALSE) -> QUANTITE | AM5: =VLOOKUP("Quantity",TableInputsData[],ReadMe!$M$3,FALSE) -> QUANTITE | AN5: =VLOOKUP("Quantity",TableInputsData[],ReadMe!$M$3,FALSE) -> QUANTITE | AO5: =VLOOKUP("Quantity",TableInputsData[],ReadMe!$M$3,FALSE) -> QUANTITE | AP5: =VLOOKUP("Quantity",TableInputsData[],ReadMe!$M$3,FALSE) -> QUANTITE | AQ5: % | AR5: =VLOOKUP("Quantity",TableInputsData[],ReadMe!$M$3,FALSE) -> QUANTITE | AS5: %
D6: 7 | H6: 8 | M6: 6 | AT6: 9
C7: SORT | D7: FILTER | E7: REF | F7: REFERENCE YEAR | G7: REFERENCE YEAR_ | H7: YEAR | I7: TYPE PRODUCT / SERVICE | J7: TYPE PRODUCT / SERVICE_ | K7: REFERENCE PRODUCT / SERVICE | L7: REFERENCE PRODUCT / SERVICE_ | M7: PRODUCT / SERVICE | N7: ITEM | O7: UNIT SELLING PRICE RANGE 1 | P7: UNIT SELLING PRICE RANGE 2 | Q7: UNIT SELLING PRICE RANGE 3 | R7: UNIT SELLING PRICE AVERAGE | S7: MIX VOLUME RANGE 1 % | T7: MIX VOLUME RANGE 2 % | U7: MIX VOLUME RANGE 3 % | V7: UNIT COGS RANGE 1 | W7: UNIT COGS RANGE 2 | X7: UNIT COGS RANGE 3 | Y7: UNIT COGS AVERAGE | Z7: MIX VOLUME RANGE 1 CHANNEL 1 % | AA7: MIX VOLUME RANGE 2 CHANNEL 1 % | AB7: MIX VOLUME RANGE 3 CHANNEL 1 % | AC7: MIX VOLUME RANGE 1 CHANNEL 2 % | AD7: MIX VOLUME RANGE 2 CHANNEL 2 % | AE7: MIX VOLUME RANGE 3 CHANNEL 2 % | AF7: UNIT COGS AVERAGE CHANNEL 1 | AG7: UNIT COGS AVERAGE CHANNEL 2 | AH7: QUARTER 1 | AI7: QUARTER 2 | AJ7: QUARTER 3 | AK7: QUARTER 4 | AL7: TOTAL YEAR | AM7: TOTAL RANGE 1 | AN7: TOTAL RANGE 2 | AO7: TOTAL RANGE 3 | AP7: TOTAL DISTRIBUTION CHANNEL 1 | AQ7: TOTAL DISTRIBUTION CHANNEL 1 % | AR7: TOTAL DISTRIBUTION CHANNEL 2 | AS7: TOTAL DISTRIBUTION CHANNEL 2 % | AT7: COMMENT | AU7: TRANSLATION NOTE | AV7: CHECK
B8: =K9&"___" -> PRODUCT 01___ | C8: 1 | D8: 0
C9: 2 | D9: =VLOOKUP($K9,TableInputsData[],$D$6,FALSE) -> 1 | E9: 1 | F9: YEAR-2 | G9: =VLOOKUP($F9,TableInputsData[],ReadMe!$M$3,FALSE) -> ANNEE-2 | H9: =VLOOKUP(F9,TableInputsData[],$H$6,FALSE) -> 2024 | I9: PRODUCT | J9: =VLOOKUP($I9,TableInputsData[],ReadMe!$M$3,FALSE) -> PRODUIT | K9: PRODUCT 01 | L9: =VLOOKUP($K9,TableInputsData[],ReadMe!$M$3,FALSE) -> PRODUIT 01 | M9: =VLOOKUP(K9,TableInputsData[],$M$6,FALSE) -> XYZ | N9: VOLUME | O9: 1000 | P9: 0 | Q9: 0 | R9: =$O9*$S9+$P9*$T9+$Q9*$U9 -> 1000 | S9: 1 | T9: 0 | U9: =1-$S9-$T9 -> 0 | V9: 500 | W9: 0 | X9: 0 | Y9: =AL41 -> 0 | Z9: 1 | AA9: 1 | AB9: 1 | AC9: =1-$Z9 -> 0 | AD9: =1-$AA9 -> 0 | AE9: =1-$AB9 -> 0 | AF9: =AP41 -> 0 | AG9: =AR41 -> 0 | AH9: 0 | AI9: 0 | AJ9: 0 | AK9: 0 | AL9: =$AH9+$AI9+$AJ9+$AK9 -> 0 | AM9: =$AL9*$S9 -> 0 | AN9: =$AL9*$T9 -> 0 | AO9: =$AL9*$U9 -> 0 | AP9: =$AM9*$Z9+$AN9*$AA9+$AO9*$AB9 -> 0 | AQ9: =IF(AL9=0,0,AP9/AL9) -> 0 | AR9: =$AM9*$AC9+$AN9*$AD9+$AO9*$AE9 -> 0 | AS9: =IF(AL9=0,0,AR9/AL9) -> 0 | AT9: =VLOOKUP(K9,TableInputsData[],$AT$6,FALSE) -> GAMME # : 1 + CANAL DE DISTRIBUTION # : 1 | AU9: =VLOOKUP($K9,TableInputsData[],ReadMe!$M$3,FALSE)&" | "&VLOOKUP($N9,TableInputsData[],ReadMe!$M$3,FALSE) -> PRODUIT 01 | VOLUME | AV9: =AND(EXACT(ROUND(AL9,2),ROUND(AM9+AN9+AO9,2)),EXACT(ROUND(AL9,2),ROUND(AP9+AR9,2)),EXACT(SUM(S9:U9),1),IF(U9<0,FALSE,TRUE),EXACT(SUM(Z9:AE9),3),MIN(Z9:AB9)>=0, MAX(Z9:AB9)<=1) -> TRUE
C10: 3 | D10: =D9 -> 1 | E10: 1 | F10: YEAR-1 | G10: =VLOOKUP($F10,TableInputsData[],ReadMe!$M$3,FALSE) -> ANNEE-1 | H10: =VLOOKUP(F10,TableInputsData[],$H$6,FALSE) -> 2025 | I10: =I9 -> PRODUCT | J10: =VLOOKUP($I10,TableInputsData[],ReadMe!$M$3,FALSE) -> PRODUIT | K10: =K9 -> PRODUCT 01 | L10: =VLOOKUP($K10,TableInputsData[],ReadMe!$M$3,FALSE) -> PRODUIT 01 | M10: =VLOOKUP(K10,TableInputsData[],$M$6,FALSE) -> XYZ | N10: =N9 -> VOLUME | O10: 1000 | P10: 0 | Q10: 0 | R10: 1000 | S10: 1 | T10: 0 | U10: =1-$S10-$T10 -> 0 | V10: 500 | W10: 0 | X10: 0 | Y10: =AL42 -> 0 | Z10: 1 | AA10: 1 | AB10: 1 | AC10: =1-$Z10 -> 0 | AD10: =1-$AA10 -> 0 | AE10: =1-$AB10 -> 0 | AF10: =AP42 -> 0 | AG10: 0 | AH10: 0 | AI10: 0 | AJ10: 0 | AK10: 0 | AL10: 0 | AM10: 0 | AN10: 0 | AO10: 0 | AP10: 0 | AQ10: =IF(AL10=0,0,AP10/AL10) -> 0 | AR10: 0 | AS10: 0 | AU10: =VLOOKUP($K10,TableInputsData[],ReadMe!$M$3,FALSE)&" | "&VLOOKUP($N10,TableInputsData[],ReadMe!$M$3,FALSE) -> PRODUIT 01 | VOLUME | AV10: =AND(EXACT(ROUND(AL10,2),ROUND(AM10+AN10+AO10,2)),EXACT(ROUND(AL10,2),ROUND(AP10+AR10,2)),EXACT(SUM(S10:U10),1),IF(U10<0,FALSE,TRUE),EXACT(SUM(Z10:AE10),3),MIN(Z10:AB10)>=0, MAX(Z10:AB10)<=1) -> TRUE
C11: 4 | D11: =D10 -> 1 | E11: 1 | F11: CURRENT YEAR | G11: =VLOOKUP($F11,TableInputsData[],ReadMe!$M$3,FALSE) -> ANNEE EN COURS | H11: =VLOOKUP(F11,TableInputsData[],$H$6,FALSE) -> 2026 | I11: =I10 -> PRODUCT | J11: =VLOOKUP($I11,TableInputsData[],ReadMe!$M$3,FALSE) -> PRODUIT | K11: PRODUCT 01 | L11: =VLOOKUP($K11,TableInputsData[],ReadMe!$M$3,FALSE) -> PRODUIT 01 | M11: =VLOOKUP(K11,TableInputsData[],$M$6,FALSE) -> XYZ | N11: =N10 -> VOLUME | O11: 1000 | P11: 0 | Q11: 0 | R11: 1000 | S11: 1 | T11: 0 | U11: 0 | V11: 500 | W11: 0 | X11: 0 | Y11: 0 | Z11: 1 | AA11: 1 | AB11: 1 | AC11: 0 | AD11: 0 | AE11: 0 | AF11: =AP43 -> 0 | AG11: 0 | AH11: 0 | AI11: 0 | AJ11: 0 | AK11: 0 | AL11: 0 | AM11: 0 | AN11: 0 | AO11: 0 | AP11: 0 | AQ11: 0 | AR11: 0 | AS11: 0 | AU11: =VLOOKUP($K11,TableInputsData[],ReadMe!$M$3,FALSE)&" | "&VLOOKUP($N11,TableInputsData[],ReadMe!$M$3,FALSE) -> PRODUIT 01 | VOLUME | AV11: TRUE
C12: 5 | D12: 1 | E12: 1 | F12: YEAR2 | G12: =VLOOKUP($F12,TableInputsData[],ReadMe!$M$3,FALSE) -> ANNEE2 | H12: =VLOOKUP(F12,TableInputsData[],$H$6,FALSE) -> 2027 | I12: PRODUCT | J12: =VLOOKUP($I12,TableInputsData[],ReadMe!$M$3,FALSE) -> PRODUIT | K12: PRODUCT 01 | L12: =VLOOKUP($K12,TableInputsData[],ReadMe!$M$3,FALSE) -> PRODUIT 01 | M12: =VLOOKUP(K12,TableInputsData[],$M$6,FALSE) -> XYZ | N12: VOLUME | O12: 1000 | P12: 0 | Q12: 0 | R12: 1000 | S12: 1 | T12: 0 | U12: 0 | V12: 500 | W12: 0 | X12: 0 | Y12: 0 | Z12: 1 | AA12: 1 | AB12: 1 | AC12: 0 | AD12: 0 | AE12: 0 | AF12: =AP44 -> 0 | AG12: 0 | AH12: 0 | AI12: 0 | AJ12: 0 | AK12: 0 | AL12: 0 | AM12: 0 | AN12: 0 | AO12: 0 | AP12: 0 | AQ12: 0 | AR12: 0 | AS12: 0 | AU12: =VLOOKUP($K12,TableInputsData[],ReadMe!$M$3,FALSE)&" | "&VLOOKUP($N12,TableInputsData[],ReadMe!$M$3,FALSE) -> PRODUIT 01 | VOLUME | AV12: TRUE
C13: 6 | D13: 1 | E13: 1 | F13: YEAR3 | G13: =VLOOKUP($F13,TableInputsData[],ReadMe!$M$3,FALSE) -> ANNEE3 | H13: =VLOOKUP(F13,TableInputsData[],$H$6,FALSE) -> 2028 | I13: PRODUCT | J13: =VLOOKUP($I13,TableInputsData[],ReadMe!$M$3,FALSE) -> PRODUIT | K13: PRODUCT 01 | L13: =VLOOKUP($K13,TableInputsData[],ReadMe!$M$3,FALSE) -> PRODUIT 01 | M13: =VLOOKUP(K13,TableInputsData[],$M$6,FALSE) -> XYZ | N13: VOLUME | O13: 1000 | P13: 0 | Q13: 0 | R13: 1000 | S13: 1 | T13: 0 | U13: 0 | V13: 500 | W13: 0 | X13: 0 | Y13: 0 | Z13: 1 | AA13: 1 | AB13: 1 | AC13: 0 | AD13: 0 | AE13: 0 | AF13: =AP45 -> 0 | AG13: 0 | AH13: =$AL13/4 -> 0 | AI13: =$AL13/4 -> 0 | AJ13: 0 | AK13: 0 | AL13: 0 | AM13: 0 | AN13: 0 | AO13: 0 | AP13: 0 | AQ13: 0 | AR13: 0 | AS13: 0 | AU13: =VLOOKUP($K13,TableInputsData[],ReadMe!$M$3,FALSE)&" | "&VLOOKUP($N13,TableInputsData[],ReadMe!$M$3,FALSE) -> PRODUIT 01 | VOLUME | AV13: TRUE
C14: 7 | D14: 1 | E14: 1 | F14: YEAR4 | G14: =VLOOKUP($F14,TableInputsData[],ReadMe!$M$3,FALSE) -> ANNEE4 | H14: =VLOOKUP(F14,TableInputsData[],$H$6,FALSE) -> 2029 | I14: PRODUCT | J14: =VLOOKUP($I14,TableInputsData[],ReadMe!$M$3,FALSE) -> PRODUIT | K14: PRODUCT 01 | L14: =VLOOKUP($K14,TableInputsData[],ReadMe!$M$3,FALSE) -> PRODUIT 01 | M14: =VLOOKUP(K14,TableInputsData[],$M$6,FALSE) -> XYZ | N14: VOLUME | O14: 1000 | P14: 0 | Q14: 0 | R14: 1000 | S14: 1 | T14: 0 | U14: 0 | V14: 500 | W14: 0 | X14: 0 | Y14: 0 | Z14: 1 | AA14: 1 | AB14: 1 | AC14: 0 | AD14: 0 | AE14: 0 | AF14: =AP46 -> 0 | AG14: 0 | AH14: =$AL14/4 -> 0 | AI14: 0 | AJ14: 0 | AK14: 0 | AL14: 0 | AM14: 0 | AN14: 0 | AO14: 0 | AP14: 0 | AQ14: 0 | AR14: 0 | AS14: 0 | AU14: =VLOOKUP($K14,TableInputsData[],ReadMe!$M$3,FALSE)&" | "&VLOOKUP($N14,TableInputsData[],ReadMe!$M$3,FALSE) -> PRODUIT 01 | VOLUME | AV14: TRUE
C15: 8 | D15: 1 | E15: 1 | F15: YEAR5 | G15: =VLOOKUP($F15,TableInputsData[],ReadMe!$M$3,FALSE) -> ANNEE5 | H15: =VLOOKUP(F15,TableInputsData[],$H$6,FALSE) -> 2030 | I15: PRODUCT | J15: =VLOOKUP($I15,TableInputsData[],ReadMe!$M$3,FALSE) -> PRODUIT | K15: PRODUCT 01 | L15: =VLOOKUP($K15,TableInputsData[],ReadMe!$M$3,FALSE) -> PRODUIT 01 | M15: =VLOOKUP(K15,TableInputsData[],$M$6,FALSE) -> XYZ | N15: VOLUME | O15: 1000 | P15: 0 | Q15: 0 | R15: 1000 | S15: 1 | T15: 0 | U15: 0 | V15: 500 | W15: 0 | X15: 0 | Y15: 0 | Z15: 1 | AA15: 1 | AB15: 1 | AC15: 0 | AD15: 0 | AE15: 0 | AF15: =AP47 -> 0 | AG15: 0 | AH15: 0 | AI15: 0 | AJ15: 0 | AK15: 0 | AL15: 0 | AM15: 0 | AN15: 0 | AO15: 0 | AP15: 0 | AQ15: 0 | AR15: 0 | AS15: 0 | AU15: =VLOOKUP($K15,TableInputsData[],ReadMe!$M$3,FALSE)&" | "&VLOOKUP($N15,TableInputsData[],ReadMe!$M$3,FALSE) -> PRODUIT 01 | VOLUME | AV15: TRUE
C16: 9 | D16: 1 | E16: 1 | F16: YEAR6 | G16: =VLOOKUP($F16,TableInputsData[],ReadMe!$M$3,FALSE) -> ANNEE6 | H16: =VLOOKUP(F16,TableInputsData[],$H$6,FALSE) -> 2031 | I16: PRODUCT | J16: =VLOOKUP($I16,TableInputsData[],ReadMe!$M$3,FALSE) -> PRODUIT | K16: PRODUCT 01 | L16: =VLOOKUP($K16,TableInputsData[],ReadMe!$M$3,FALSE) -> PRODUIT 01 | M16: =VLOOKUP(K16,TableInputsData[],$M$6,FALSE) -> XYZ | N16: VOLUME | O16: 1000 | P16: 0 | Q16: 0 | R16: 1000 | S16: 1 | T16: 0 | U16: 0 | V16: 500 | W16: 0 | X16: 0 | Y16: 0 | Z16: 1 | AA16: 1 | AB16: 1 | AC16: 0 | AD16: 0 | AE16: 0 | AF16: =AP48 -> 0 | AG16: 0 | AH16: 0 | AI16: 0 | AJ16: 0 | AK16: 0 | AL16: 0 | AM16: 0 | AN16: 0 | AO16: 0 | AP16: 0 | AQ16: 0 | AR16: 0 | AS16: 0 | AU16: =VLOOKUP($K16,TableInputsData[],ReadMe!$M$3,FALSE)&" | "&VLOOKUP($N16,TableInputsData[],ReadMe!$M$3,FALSE) -> PRODUIT 01 | VOLUME | AV16: TRUE
C17: 10 | D17: 1 | F17: =F25 -> YEAR-2 | G17: =VLOOKUP($F17,TableInputsData[],ReadMe!$M$3,FALSE) -> ANNEE-2 | H17: =VLOOKUP(F17,TableInputsData[],$H$6,FALSE) -> 2024 | I17: PRODUCT | J17: =VLOOKUP($I17,TableInputsData[],ReadMe!$M$3,FALSE) -> PRODUIT | K17: PRODUCT 01 | L17: =VLOOKUP($K17,TableInputsData[],ReadMe!$M$3,FALSE) -> PRODUIT 01 | M17: =VLOOKUP(K17,TableInputsData[],$M$6,FALSE) -> XYZ | N17: REVENUE | AH17: =AH9*($O9*$S9+$P9*$T9+$Q9*$U9) -> 0 | AI17: =AI9*($O9*$S9+$P9*$T9+$Q9*$U9) -> 0 | AJ17: 0 | AK17: 0 | AL17: =$AH17+$AI17+$AJ17+$AK17 -> 0 | AM17: =$AM9*$O9 -> 0 | AN17: =$AN9*$P9 -> 0 | AO17: =$AO9*$Q9 -> 0 | AP17: =$AM17*$Z9+$AN17*$AA9+$AO17*$AB9 -> 0 | AQ17: 0 | AR17: =$AM17*$AC9+$AN17*$AD9+$AO17*$AE9 -> 0 | AS17: 0 | AU17: =VLOOKUP($K17,TableInputsData[],ReadMe!$M$3,FALSE)&" | "&VLOOKUP($N17,TableInputsData[],ReadMe!$M$3,FALSE) -> PRODUIT 01 | CHIFFRE D'AFFAIRES | AV17: =AND(EXACT(ROUND(AL17,2),ROUND(AM17+AN17+AO17,2)),EXACT(ROUND(AL17,2),ROUND(AP17+AR17,2))) -> TRUE
C18: 11 | D18: 1 | F18: YEAR-1 | G18: =VLOOKUP($F18,TableInputsData[],ReadMe!$M$3,FALSE) -> ANNEE-1 | H18: =VLOOKUP(F18,TableInputsData[],$H$6,FALSE) -> 2025 | I18: PRODUCT | J18: =VLOOKUP($I18,TableInputsData[],ReadMe!$M$3,FALSE) -> PRODUIT | K18: PRODUCT 01 | L18: =VLOOKUP($K18,TableInputsData[],ReadMe!$M$3,FALSE) -> PRODUIT 01 | M18: =VLOOKUP(K18,TableInputsData[],$M$6,FALSE) -> XYZ | N18: =N17 -> REVENUE | AH18: =AH10*($O10*$S10+$P10*$T10+$Q10*$U10) -> 0 | AI18: 0 | AJ18: 0 | AK18: 0 | AL18: =$AH18+$AI18+$AJ18+$AK18 -> 0 | AM18: 0 | AN18: 0 | AO18: 0 | AP18: 0 | AQ18: 0 | AR18: 0 | AS18: 0 | AU18: =VLOOKUP($K18,TableInputsData[],ReadMe!$M$3,FALSE)&" | "&VLOOKUP($N18,TableInputsData[],ReadMe!$M$3,FALSE) -> PRODUIT 01 | CHIFFRE D'AFFAIRES | AV18: TRUE
C19: 12 | D19: 1 | F19: CURRENT YEAR | G19: =VLOOKUP($F19,TableInputsData[],ReadMe!$M$3,FALSE) -> ANNEE EN COURS | H19: =VLOOKUP(F19,TableInputsData[],$H$6,FALSE) -> 2026 | I19: PRODUCT | J19: =VLOOKUP($I19,TableInputsData[],ReadMe!$M$3,FALSE) -> PRODUIT | K19: PRODUCT 01 | L19: =VLOOKUP($K19,TableInputsData[],ReadMe!$M$3,FALSE) -> PRODUIT 01 | M19: =VLOOKUP(K19,TableInputsData[],$M$6,FALSE) -> XYZ | N19: =N18 -> REVENUE | AH19: 0 | AI19: 0 | AJ19: 0 | AK19: 0 | AL19: 0 | AM19: 0 | AN19: 0 | AO19: 0 | AP19: 0 | AQ19: 0 | AR19: 0 | AS19: 0 | AU19: =VLOOKUP($K19,TableInputsData[],ReadMe!$M$3,FALSE)&" | "&VLOOKUP($N19,TableInputsData[],ReadMe!$M$3,FALSE) -> PRODUIT 01 | CHIFFRE D'AFFAIRES | AV19: TRUE
C20: 13 | D20: 1 | F20: YEAR2 | G20: =VLOOKUP($F20,TableInputsData[],ReadMe!$M$3,FALSE) -> ANNEE2 | H20: =VLOOKUP(F20,TableInputsData[],$H$6,FALSE) -> 2027 | I20: PRODUCT | J20: =VLOOKUP($I20,TableInputsData[],ReadMe!$M$3,FALSE) -> PRODUIT | K20: PRODUCT 01 | L20: =VLOOKUP($K20,TableInputsData[],ReadMe!$M$3,FALSE) -> PRODUIT 01 | M20: =VLOOKUP(K20,TableInputsData[],$M$6,FALSE) -> XYZ | N20: REVENUE | AH20: 0 | AI20: 0 | AJ20: 0 | AK20: 0 | AL20: 0 | AM20: 0 | AN20: 0 | AO20: 0 | AP20: 0 | AQ20: 0 | AR20: 0 | AS20: 0 | AU20: =VLOOKUP($K20,TableInputsData[],ReadMe!$M$3,FALSE)&" | "&VLOOKUP($N20,TableInputsData[],ReadMe!$M$3,FALSE) -> PRODUIT 01 | CHIFFRE D'AFFAIRES | AV20: TRUE
C21: 14 | D21: 1 | F21: YEAR3 | G21: =VLOOKUP($F21,TableInputsData[],ReadMe!$M$3,FALSE) -> ANNEE3 | H21: =VLOOKUP(F21,TableInputsData[],$H$6,FALSE) -> 2028 | I21: PRODUCT | J21: =VLOOKUP($I21,TableInputsData[],ReadMe!$M$3,FALSE) -> PRODUIT | K21: PRODUCT 01 | L21: =VLOOKUP($K21,TableInputsData[],ReadMe!$M$3,FALSE) -> PRODUIT 01 | M21: =VLOOKUP(K21,TableInputsData[],$M$6,FALSE) -> XYZ | N21: REVENUE | AH21: 0 | AI21: 0 | AJ21: 0 | AK21: 0 | AL21: 0 | AM21: 0 | AN21: 0 | AO21: 0 | AP21: 0 | AQ21: 0 | AR21: 0 | AS21: 0 | AU21: =VLOOKUP($K21,TableInputsData[],ReadMe!$M$3,FALSE)&" | "&VLOOKUP($N21,TableInputsData[],ReadMe!$M$3,FALSE) -> PRODUIT 01 | CHIFFRE D'AFFAIRES | AV21: TRUE
C22: 15 | D22: 1 | F22: YEAR4 | G22: =VLOOKUP($F22,TableInputsData[],ReadMe!$M$3,FALSE) -> ANNEE4 | H22: =VLOOKUP(F22,TableInputsData[],$H$6,FALSE) -> 2029 | I22: PRODUCT | J22: =VLOOKUP($I22,TableInputsData[],ReadMe!$M$3,FALSE) -> PRODUIT | K22: PRODUCT 01 | L22: =VLOOKUP($K22,TableInputsData[],ReadMe!$M$3,FALSE) -> PRODUIT 01 | M22: =VLOOKUP(K22,TableInputsData[],$M$6,FALSE) -> XYZ | N22: REVENUE | AH22: 0 | AI22: 0 | AJ22: 0 | AK22: 0 | AL22: 0 | AM22: 0 | AN22: 0 | AO22: 0 | AP22: 0 | AQ22: 0 | AR22: 0 | AS22: 0 | AU22: =VLOOKUP($K22,TableInputsData[],ReadMe!$M$3,FALSE)&" | "&VLOOKUP($N22,TableInputsData[],ReadMe!$M$3,FALSE) -> PRODUIT 01 | CHIFFRE D'AFFAIRES | AV22: TRUE
C23: 16 | D23: 1 | F23: YEAR5 | G23: =VLOOKUP($F23,TableInputsData[],ReadMe!$M$3,FALSE) -> ANNEE5 | H23: =VLOOKUP(F23,TableInputsData[],$H$6,FALSE) -> 2030 | I23: PRODUCT | J23: =VLOOKUP($I23,TableInputsData[],ReadMe!$M$3,FALSE) -> PRODUIT | K23: PRODUCT 01 | L23: =VLOOKUP($K23,TableInputsData[],ReadMe!$M$3,FALSE) -> PRODUIT 01 | M23: =VLOOKUP(K23,TableInputsData[],$M$6,FALSE) -> XYZ | N23: REVENUE | AH23: 0 | AI23: 0 | AJ23: 0 | AK23: 0 | AL23: 0 | AM23: 0 | AN23: 0 | AO23: 0 | AP23: 0 | AQ23: 0 | AR23: 0 | AS23: 0 | AU23: =VLOOKUP($K23,TableInputsData[],ReadMe!$M$3,FALSE)&" | "&VLOOKUP($N23,TableInputsData[],ReadMe!$M$3,FALSE) -> PRODUIT 01 | CHIFFRE D'AFFAIRES | AV23: TRUE
C24: 17 | D24: 1 | F24: YEAR6 | G24: =VLOOKUP($F24,TableInputsData[],ReadMe!$M$3,FALSE) -> ANNEE6 | H24: =VLOOKUP(F24,TableInputsData[],$H$6,FALSE) -> 2031 | I24: PRODUCT | J24: =VLOOKUP($I24,TableInputsData[],ReadMe!$M$3,FALSE) -> PRODUIT | K24: PRODUCT 01 | L24: =VLOOKUP($K24,TableInputsData[],ReadMe!$M$3,FALSE) -> PRODUIT 01 | M24: =VLOOKUP(K24,TableInputsData[],$M$6,FALSE) -> XYZ | N24: REVENUE | AH24: 0 | AI24: 0 | AJ24: 0 | AK24: 0 | AL24: =$AH24+$AI24+$AJ24+$AK24 -> 0 | AM24: 0 | AN24: 0 | AO24: 0 | AP24: 0 | AQ24: 0 | AR24: 0 | AS24: 0 | AU24: =VLOOKUP($K24,TableInputsData[],ReadMe!$M$3,FALSE)&" | "&VLOOKUP($N24,TableInputsData[],ReadMe!$M$3,FALSE) -> PRODUIT 01 | CHIFFRE D'AFFAIRES | AV24: TRUE
C25: 18 | D25: 1 | F25: =F9 -> YEAR-2 | G25: =VLOOKUP($F25,TableInputsData[],ReadMe!$M$3,FALSE) -> ANNEE-2 | H25: =VLOOKUP(F25,TableInputsData[],$H$6,FALSE) -> 2024 | I25: PRODUCT | J25: =VLOOKUP($I25,TableInputsData[],ReadMe!$M$3,FALSE) -> PRODUIT | K25: PRODUCT 01 | L25: =VLOOKUP($K25,TableInputsData[],ReadMe!$M$3,FALSE) -> PRODUIT 01 | M25: =VLOOKUP(K25,TableInputsData[],$M$6,FALSE) -> XYZ | N25: AVERAGE SELLING PRICE PER UNIT | AH25: =IF(AH9=0,0,AH17/AH9) -> 0 | AI25: =IF(AI9=0,0,AI17/AI9) -> 0 | AJ25: 0 | AK25: 0 | AL25: 0 | AM25: =IF(AM9=0,0,AM17/AM9) -> 0 | AN25: =IF(AN9=0,0,AN17/AN9) -> 0 | AO25: 0 | AP25: =IF(AP9=0,0,AP17/AP9) -> 0 | AR25: 0 | AU25: =VLOOKUP($K25,TableInputsData[],ReadMe!$M$3,FALSE)&" | "&VLOOKUP($N25,TableInputsData[],ReadMe!$M$3,FALSE) -> PRODUIT 01 | PRIX MOYEN DE VENTE PAR PRODUIT/SERVICE
C26: 19 | D26: 1 | F26: YEAR-1 | G26: =VLOOKUP($F26,TableInputsData[],ReadMe!$M$3,FALSE) -> ANNEE-1 | H26: =VLOOKUP(F26,TableInputsData[],$H$6,FALSE) -> 2025 | I26: PRODUCT | J26: =VLOOKUP($I26,TableInputsData[],ReadMe!$M$3,FALSE) -> PRODUIT | K26: PRODUCT 01 | L26: =VLOOKUP($K26,TableInputsData[],ReadMe!$M$3,FALSE) -> PRODUIT 01 | M26: =VLOOKUP(K26,TableInputsData[],$M$6,FALSE) -> XYZ | N26: =N25 -> AVERAGE SELLING PRICE PER UNIT | AH26: =IF(AH10=0,0,AH18/AH10) -> 0 | AI26: 0 | AJ26: 0 | AK26: 0 | AL26: 0 | AM26: =IF(AM10=0,0,AM18/AM10) -> 0 | AN26: 0 | AO26: 0 | AP26: 0 | AR26: 0 | AU26: =VLOOKUP($K26,TableInputsData[],ReadMe!$M$3,FALSE)&" | "&VLOOKUP($N26,TableInputsData[],ReadMe!$M$3,FALSE) -> PRODUIT 01 | PRIX MOYEN DE VENTE PAR PRODUIT/SERVICE
C27: 20 | D27: 1 | F27: CURRENT YEAR | G27: =VLOOKUP($F27,TableInputsData[],ReadMe!$M$3,FALSE) -> ANNEE EN COURS | H27: =VLOOKUP(F27,TableInputsData[],$H$6,FALSE) -> 2026 | I27: PRODUCT | J27: =VLOOKUP($I27,TableInputsData[],ReadMe!$M$3,FALSE) -> PRODUIT | K27: PRODUCT 01 | L27: =VLOOKUP($K27,TableInputsData[],ReadMe!$M$3,FALSE) -> PRODUIT 01 | M27: =VLOOKUP(K27,TableInputsData[],$M$6,FALSE) -> XYZ | N27: =N26 -> AVERAGE SELLING PRICE PER UNIT | AH27: =IF(AH11=0,0,AH19/AH11) -> 0 | AI27: 0 | AJ27: 0 | AK27: 0 | AL27: 0 | AM27: =IF(AM11=0,0,AM19/AM11) -> 0 | AN27: 0 | AO27: 0 | AP27: 0 | AR27: 0 | AU27: =VLOOKUP($K27,TableInputsData[],ReadMe!$M$3,FALSE)&" | "&VLOOKUP($N27,TableInputsData[],ReadMe!$M$3,FALSE) -> PRODUIT 01 | PRIX MOYEN DE VENTE PAR PRODUIT/SERVICE
C28: 21 | D28: 1 | F28: YEAR2 | G28: =VLOOKUP($F28,TableInputsData[],ReadMe!$M$3,FALSE) -> ANNEE2 | H28: =VLOOKUP(F28,TableInputsData[],$H$6,FALSE) -> 2027 | I28: PRODUCT | J28: =VLOOKUP($I28,TableInputsData[],ReadMe!$M$3,FALSE) -> PRODUIT | K28: PRODUCT 01 | L28: =VLOOKUP($K28,TableInputsData[],ReadMe!$M$3,FALSE) -> PRODUIT 01 | M28: =VLOOKUP(K28,TableInputsData[],$M$6,FALSE) -> XYZ | N28: AVERAGE SELLING PRICE PER UNIT | AH28: =IF(AH12=0,0,AH20/AH12) -> 0 | AI28: 0 | AJ28: 0 | AK28: 0 | AL28: 0 | AM28: =IF(AM12=0,0,AM20/AM12) -> 0 | AN28: 0 | AO28: 0 | AP28: 0 | AR28: 0 | AU28: =VLOOKUP($K28,TableInputsData[],ReadMe!$M$3,FALSE)&" | "&VLOOKUP($N28,TableInputsData[],ReadMe!$M$3,FALSE) -> PRODUIT 01 | PRIX MOYEN DE VENTE PAR PRODUIT/SERVICE
C29: 22 | D29: 1 | F29: YEAR3 | G29: =VLOOKUP($F29,TableInputsData[],ReadMe!$M$3,FALSE) -> ANNEE3 | H29: =VLOOKUP(F29,TableInputsData[],$H$6,FALSE) -> 2028 | I29: PRODUCT | J29: =VLOOKUP($I29,TableInputsData[],ReadMe!$M$3,FALSE) -> PRODUIT | K29: PRODUCT 01 | L29: =VLOOKUP($K29,TableInputsData[],ReadMe!$M$3,FALSE) -> PRODUIT 01 | M29: =VLOOKUP(K29,TableInputsData[],$M$6,FALSE) -> XYZ | N29: AVERAGE SELLING PRICE PER UNIT | AH29: 0 | AI29: 0 | AJ29: 0 | AK29: 0 | AL29: 0 | AM29: =IF(AM13=0,0,AM21/AM13) -> 0 | AN29: 0 | AO29: 0 | AP29: 0 | AR29: 0 | AU29: =VLOOKUP($K29,TableInputsData[],ReadMe!$M$3,FALSE)&" | "&VLOOKUP($N29,TableInputsData[],ReadMe!$M$3,FALSE) -> PRODUIT 01 | PRIX MOYEN DE VENTE PAR PRODUIT/SERVICE
C30: 23 | D30: 1 | F30: YEAR4 | G30: =VLOOKUP($F30,TableInputsData[],ReadMe!$M$3,FALSE) -> ANNEE4 | H30: =VLOOKUP(F30,TableInputsData[],$H$6,FALSE) -> 2029 | I30: PRODUCT | J30: =VLOOKUP($I30,TableInputsData[],ReadMe!$M$3,FALSE) -> PRODUIT | K30: PRODUCT 01 | L30: =VLOOKUP($K30,TableInputsData[],ReadMe!$M$3,FALSE) -> PRODUIT 01 | M30: =VLOOKUP(K30,TableInputsData[],$M$6,FALSE) -> XYZ | N30: AVERAGE SELLING PRICE PER UNIT | AH30: 0 | AI30: 0 | AJ30: 0 | AK30: 0 | AL30: 0 | AM30: =IF(AM14=0,0,AM22/AM14) -> 0 | AN30: 0 | AO30: 0 | AP30: 0 | AR30: 0 | AU30: =VLOOKUP($K30,TableInputsData[],ReadMe!$M$3,FALSE)&" | "&VLOOKUP($N30,TableInputsData[],ReadMe!$M$3,FALSE) -> PRODUIT 01 | PRIX MOYEN DE VENTE PAR PRODUIT/SERVICE
C31: 24 | D31: 1 | F31: YEAR5 | G31: =VLOOKUP($F31,TableInputsData[],ReadMe!$M$3,FALSE) -> ANNEE5 | H31: =VLOOKUP(F31,TableInputsData[],$H$6,FALSE) -> 2030 | I31: PRODUCT | J31: =VLOOKUP($I31,TableInputsData[],ReadMe!$M$3,FALSE) -> PRODUIT | K31: PRODUCT 01 | L31: =VLOOKUP($K31,TableInputsData[],ReadMe!$M$3,FALSE) -> PRODUIT 01 | M31: =VLOOKUP(K31,TableInputsData[],$M$6,FALSE) -> XYZ | N31: AVERAGE SELLING PRICE PER UNIT | AH31: 0 | AI31: 0 | AJ31: 0 | AK31: 0 | AL31: 0 | AM31: =IF(AM15=0,0,AM23/AM15) -> 0 | AN31: 0 | AO31: 0 | AP31: 0 | AR31: 0 | AU31: =VLOOKUP($K31,TableInputsData[],ReadMe!$M$3,FALSE)&" | "&VLOOKUP($N31,TableInputsData[],ReadMe!$M$3,FALSE) -> PRODUIT 01 | PRIX MOYEN DE VENTE PAR PRODUIT/SERVICE
C32: 25 | D32: 1 | F32: YEAR6 | G32: =VLOOKUP($F32,TableInputsData[],ReadMe!$M$3,FALSE) -> ANNEE6 | H32: =VLOOKUP(F32,TableInputsData[],$H$6,FALSE) -> 2031 | I32: PRODUCT | J32: =VLOOKUP($I32,TableInputsData[],ReadMe!$M$3,FALSE) -> PRODUIT | K32: PRODUCT 01 | L32: =VLOOKUP($K32,TableInputsData[],ReadMe!$M$3,FALSE) -> PRODUIT 01 | M32: =VLOOKUP(K32,TableInputsData[],$M$6,FALSE) -> XYZ | N32: AVERAGE SELLING PRICE PER UNIT | AH32: 0 | AI32: 0 | AJ32: 0 | AK32: 0 | AL32: 0 | AM32: =IF(AM16=0,0,AM24/AM16) -> 0 | AN32: 0 | AO32: 0 | AP32: 0 | AR32: 0 | AU32: =VLOOKUP($K32,TableInputsData[],ReadMe!$M$3,FALSE)&" | "&VLOOKUP($N32,TableInputsData[],ReadMe!$M$3,FALSE) -> PRODUIT 01 | PRIX MOYEN DE VENTE PAR PRODUIT/SERVICE
C33: 26 | D33: 1 | F33: =F41 -> YEAR-2 | G33: =VLOOKUP($F33,TableInputsData[],ReadMe!$M$3,FALSE) -> ANNEE-2 | H33: =VLOOKUP(F33,TableInputsData[],$H$6,FALSE) -> 2024 | I33: PRODUCT | J33: =VLOOKUP($I33,TableInputsData[],ReadMe!$M$3,FALSE) -> PRODUIT | K33: PRODUCT 01 | L33: =VLOOKUP($K33,TableInputsData[],ReadMe!$M$3,FALSE) -> PRODUIT 01 | M33: =VLOOKUP(K33,TableInputsData[],$M$6,FALSE) -> XYZ | N33: COST OF GOODS SOLD | AH33: =AH9*($V9*$S9+$W9*$T9+$X9*$U9) -> 0 | AI33: =AI9*($V9*$S9+$W9*$T9+$X9*$U9) -> 0 | AJ33: 0 | AK33: 0 | AL33: =$AH33+$AI33+$AJ33+$AK33 -> 0 | AM33: =$AM9*$V9 -> 0 | AN33: =$AN9*$W9 -> 0 | AO33: =$AO9*$X9 -> 0 | AP33: =$AM33*$Z9+$AN33*$AA9+$AO33*$AB9 -> 0 | AQ33: 0 | AR33: =$AM33*$AC9+$AN33*$AD9+$AO33*$AE9 -> 0 | AS33: =IF(AL33=0,0,AR33/AL33) -> 0 | AU33: =VLOOKUP($K33,TableInputsData[],ReadMe!$M$3,FALSE)&" | "&VLOOKUP($N33,TableInputsData[],ReadMe!$M$3,FALSE) -> PRODUIT 01 | DEPENSES SUR ACHATS | AV33: =AND(EXACT(ROUND(AL33,2),ROUND(AM33+AN33+AO33,2)),EXACT(ROUND(AL33,2),ROUND(AP33+AR33,2))) -> TRUE
C34: 27 | D34: 1 | F34: YEAR-1 | G34: =VLOOKUP($F34,TableInputsData[],ReadMe!$M$3,FALSE) -> ANNEE-1 | H34: =VLOOKUP(F34,TableInputsData[],$H$6,FALSE) -> 2025 | I34: PRODUCT | J34: =VLOOKUP($I34,TableInputsData[],ReadMe!$M$3,FALSE) -> PRODUIT | K34: PRODUCT 01 | L34: =VLOOKUP($K34,TableInputsData[],ReadMe!$M$3,FALSE) -> PRODUIT 01 | M34: =VLOOKUP(K34,TableInputsData[],$M$6,FALSE) -> XYZ | N34: =N33 -> COST OF GOODS SOLD | AH34: =AH10*($V10*$S10+$W10*$T10+$X10*$U10) -> 0 | AI34: 0 | AJ34: 0 | AK34: 0 | AL34: 0 | AM34: 0 | AN34: 0 | AO34: 0 | AP34: 0 | AQ34: 0 | AR34: 0 | AS34: 0 | AU34: =VLOOKUP($K34,TableInputsData[],ReadMe!$M$3,FALSE)&" | "&VLOOKUP($N34,TableInputsData[],ReadMe!$M$3,FALSE) -> PRODUIT 01 | DEPENSES SUR ACHATS | AV34: TRUE
C35: 28 | D35: 1 | F35: CURRENT YEAR | G35: =VLOOKUP($F35,TableInputsData[],ReadMe!$M$3,FALSE) -> ANNEE EN COURS | H35: =VLOOKUP(F35,TableInputsData[],$H$6,FALSE) -> 2026 | I35: PRODUCT | J35: =VLOOKUP($I35,TableInputsData[],ReadMe!$M$3,FALSE) -> PRODUIT | K35: PRODUCT 01 | L35: =VLOOKUP($K35,TableInputsData[],ReadMe!$M$3,FALSE) -> PRODUIT 01 | M35: =VLOOKUP(K35,TableInputsData[],$M$6,FALSE) -> XYZ | N35: =N34 -> COST OF GOODS SOLD | AH35: 0 | AI35: 0 | AJ35: 0 | AK35: 0 | AL35: 0 | AM35: 0 | AN35: 0 | AO35: 0 | AP35: 0 | AQ35: 0 | AR35: 0 | AS35: 0 | AU35: =VLOOKUP($K35,TableInputsData[],ReadMe!$M$3,FALSE)&" | "&VLOOKUP($N35,TableInputsData[],ReadMe!$M$3,FALSE) -> PRODUIT 01 | DEPENSES SUR ACHATS | AV35: TRUE
C36: 29 | D36: 1 | F36: YEAR2 | G36: =VLOOKUP($F36,TableInputsData[],ReadMe!$M$3,FALSE) -> ANNEE2 | H36: =VLOOKUP(F36,TableInputsData[],$H$6,FALSE) -> 2027 | I36: PRODUCT | J36: =VLOOKUP($I36,TableInputsData[],ReadMe!$M$3,FALSE) -> PRODUIT | K36: PRODUCT 01 | L36: =VLOOKUP($K36,TableInputsData[],ReadMe!$M$3,FALSE) -> PRODUIT 01 | M36: =VLOOKUP(K36,TableInputsData[],$M$6,FALSE) -> XYZ | N36: COST OF GOODS SOLD | AH36: 0 | AI36: 0 | AJ36: 0 | AK36: 0 | AL36: 0 | AM36: 0 | AN36: 0 | AO36: 0 | AP36: 0 | AQ36: 0 | AR36: 0 | AS36: 0 | AU36: =VLOOKUP($K36,TableInputsData[],ReadMe!$M$3,FALSE)&" | "&VLOOKUP($N36,TableInputsData[],ReadMe!$M$3,FALSE) -> PRODUIT 01 | DEPENSES SUR ACHATS | AV36: TRUE
C37: 30 | D37: 1 | F37: YEAR3 | G37: =VLOOKUP($F37,TableInputsData[],ReadMe!$M$3,FALSE) -> ANNEE3 | H37: =VLOOKUP(F37,TableInputsData[],$H$6,FALSE) -> 2028 | I37: PRODUCT | J37: =VLOOKUP($I37,TableInputsData[],ReadMe!$M$3,FALSE) -> PRODUIT | K37: PRODUCT 01 | L37: =VLOOKUP($K37,TableInputsData[],ReadMe!$M$3,FALSE) -> PRODUIT 01 | M37: =VLOOKUP(K37,TableInputsData[],$M$6,FALSE) -> XYZ | N37: COST OF GOODS SOLD | AH37: 0 | AI37: 0 | AJ37: 0 | AK37: 0 | AL37: 0 | AM37: 0 | AN37: 0 | AO37: 0 | AP37: 0 | AQ37: 0 | AR37: 0 | AS37: 0 | AU37: =VLOOKUP($K37,TableInputsData[],ReadMe!$M$3,FALSE)&" | "&VLOOKUP($N37,TableInputsData[],ReadMe!$M$3,FALSE) -> PRODUIT 01 | DEPENSES SUR ACHATS | AV37: TRUE
C38: 31 | D38: 1 | F38: YEAR4 | G38: =VLOOKUP($F38,TableInputsData[],ReadMe!$M$3,FALSE) -> ANNEE4 | H38: =VLOOKUP(F38,TableInputsData[],$H$6,FALSE) -> 2029 | I38: PRODUCT | J38: =VLOOKUP($I38,TableInputsData[],ReadMe!$M$3,FALSE) -> PRODUIT | K38: PRODUCT 01 | L38: =VLOOKUP($K38,TableInputsData[],ReadMe!$M$3,FALSE) -> PRODUIT 01 | M38: =VLOOKUP(K38,TableInputsData[],$M$6,FALSE) -> XYZ | N38: COST OF GOODS SOLD | AH38: 0 | AI38: 0 | AJ38: 0 | AK38: 0 | AL38: 0 | AM38: 0 | AN38: 0 | AO38: 0 | AP38: 0 | AQ38: 0 | AR38: 0 | AS38: 0 | AU38: =VLOOKUP($K38,TableInputsData[],ReadMe!$M$3,FALSE)&" | "&VLOOKUP($N38,TableInputsData[],ReadMe!$M$3,FALSE) -> PRODUIT 01 | DEPENSES SUR ACHATS | AV38: TRUE
C39: 32 | D39: 1 | F39: YEAR5 | G39: =VLOOKUP($F39,TableInputsData[],ReadMe!$M$3,FALSE) -> ANNEE5 | H39: =VLOOKUP(F39,TableInputsData[],$H$6,FALSE) -> 2030 | I39: PRODUCT | J39: =VLOOKUP($I39,TableInputsData[],ReadMe!$M$3,FALSE) -> PRODUIT | K39: PRODUCT 01 | L39: =VLOOKUP($K39,TableInputsData[],ReadMe!$M$3,FALSE) -> PRODUIT 01 | M39: =VLOOKUP(K39,TableInputsData[],$M$6,FALSE) -> XYZ | N39: COST OF GOODS SOLD | AH39: 0 | AI39: 0 | AJ39: 0 | AK39: 0 | AL39: 0 | AM39: 0 | AN39: 0 | AO39: 0 | AP39: 0 | AQ39: 0 | AR39: 0 | AS39: 0 | AU39: =VLOOKUP($K39,TableInputsData[],ReadMe!$M$3,FALSE)&" | "&VLOOKUP($N39,TableInputsData[],ReadMe!$M$3,FALSE) -> PRODUIT 01 | DEPENSES SUR ACHATS | AV39: TRUE
C40: 33 | D40: 1 | F40: YEAR6 | G40: =VLOOKUP($F40,TableInputsData[],ReadMe!$M$3,FALSE) -> ANNEE6 | H40: =VLOOKUP(F40,TableInputsData[],$H$6,FALSE) -> 2031 | I40: PRODUCT | J40: =VLOOKUP($I40,TableInputsData[],ReadMe!$M$3,FALSE) -> PRODUIT | K40: PRODUCT 01 | L40: =VLOOKUP($K40,TableInputsData[],ReadMe!$M$3,FALSE) -> PRODUIT 01 | M40: =VLOOKUP(K40,TableInputsData[],$M$6,FALSE) -> XYZ | N40: COST OF GOODS SOLD | AH40: 0 | AI40: 0 | AJ40: 0 | AK40: 0 | AL40: 0 | AM40: 0 | AN40: 0 | AO40: 0 | AP40: 0 | AQ40: 0 | AR40: 0 | AS40: 0 | AU40: =VLOOKUP($K40,TableInputsData[],ReadMe!$M$3,FALSE)&" | "&VLOOKUP($N40,TableInputsData[],ReadMe!$M$3,FALSE) -> PRODUIT 01 | DEPENSES SUR ACHATS | AV40: TRUE
C41: 34 | D41: 1 | F41: =F17 -> YEAR-2 | G41: =VLOOKUP($F41,TableInputsData[],ReadMe!$M$3,FALSE) -> ANNEE-2 | H41: =VLOOKUP(F41,TableInputsData[],$H$6,FALSE) -> 2024 | I41: PRODUCT | J41: =VLOOKUP($I41,TableInputsData[],ReadMe!$M$3,FALSE) -> PRODUIT | K41: PRODUCT 01 | L41: =VLOOKUP($K41,TableInputsData[],ReadMe!$M$3,FALSE) -> PRODUIT 01 | M41: =VLOOKUP(K41,TableInputsData[],$M$6,FALSE) -> XYZ | N41: AVERAGE COST OF GOODS SOLD PER UNIT | AH41: =IF(AH9=0,0,AH33/AH9) -> 0 | AI41: =IF(AI9=0,0,AI33/AI9) -> 0 | AJ41: 0 | AK41: 0 | AL41: 0 | AM41: =IF(AM9=0,0,AM33/AM9) -> 0 | AN41: =IF(AN9=0,0,AN33/AN9) -> 0 | AO41: 0 | AP41: =IF(AP9=0,0,AP33/AP9) -> 0 | AR41: 0 | AU41: =VLOOKUP($K41,TableInputsData[],ReadMe!$M$3,FALSE)&" | "&VLOOKUP($N41,TableInputsData[],ReadMe!$M$3,FALSE) -> PRODUIT 01 | PRIX MOYEN D'ACHAT PAR PRODUIT/SERVICE
C42: 35 | D42: 1 | F42: YEAR-1 | G42: =VLOOKUP($F42,TableInputsData[],ReadMe!$M$3,FALSE) -> ANNEE-1 | H42: =VLOOKUP(F42,TableInputsData[],$H$6,FALSE) -> 2025 | I42: PRODUCT | J42: =VLOOKUP($I42,TableInputsData[],ReadMe!$M$3,FALSE) -> PRODUIT | K42: PRODUCT 01 | L42: =VLOOKUP($K42,TableInputsData[],ReadMe!$M$3,FALSE) -> PRODUIT 01 | M42: =VLOOKUP(K42,TableInputsData[],$M$6,FALSE) -> XYZ | N42: =N41 -> AVERAGE COST OF GOODS SOLD PER UNIT | AH42: 0 | AI42: 0 | AJ42: 0 | AK42: 0 | AL42: 0 | AM42: =IF(AM10=0,0,AM34/AM10) -> 0 | AN42: 0 | AO42: 0 | AP42: =IF(AP10=0,0,AP34/AP10) -> 0 | AR42: =IF(AR10=0,0,AR34/AR10) -> 0 | AU42: =VLOOKUP($K42,TableInputsData[],ReadMe!$M$3,FALSE)&" | "&VLOOKUP($N42,TableInputsData[],ReadMe!$M$3,FALSE) -> PRODUIT 01 | PRIX MOYEN D'ACHAT PAR PRODUIT/SERVICE
C43: 36 | D43: 1 | F43: CURRENT YEAR | G43: =VLOOKUP($F43,TableInputsData[],ReadMe!$M$3,FALSE) -> ANNEE EN COURS | H43: =VLOOKUP(F43,TableInputsData[],$H$6,FALSE) -> 2026 | I43: PRODUCT | J43: =VLOOKUP($I43,TableInputsData[],ReadMe!$M$3,FALSE) -> PRODUIT | K43: PRODUCT 01 | L43: =VLOOKUP($K43,TableInputsData[],ReadMe!$M$3,FALSE) -> PRODUIT 01 | M43: =VLOOKUP(K43,TableInputsData[],$M$6,FALSE) -> XYZ | N43: =N42 -> AVERAGE COST OF GOODS SOLD PER UNIT | AH43: 0 | AI43: 0 | AJ43: 0 | AK43: 0 | AL43: 0 | AM43: =IF(AM11=0,0,AM35/AM11) -> 0 | AN43: 0 | AO43: 0 | AP43: =IF(AP11=0,0,AP35/AP11) -> 0 | AR43: =IF(AR11=0,0,AR35/AR11) -> 0 | AU43: =VLOOKUP($K43,TableInputsData[],ReadMe!$M$3,FALSE)&" | "&VLOOKUP($N43,TableInputsData[],ReadMe!$M$3,FALSE) -> PRODUIT 01 | PRIX MOYEN D'ACHAT PAR PRODUIT/SERVICE
C44: 37 | D44: 1 | F44: YEAR2 | G44: =VLOOKUP($F44,TableInputsData[],ReadMe!$M$3,FALSE) -> ANNEE2 | H44: =VLOOKUP(F44,TableInputsData[],$H$6,FALSE) -> 2027 | I44: PRODUCT | J44: =VLOOKUP($I44,TableInputsData[],ReadMe!$M$3,FALSE) -> PRODUIT | K44: PRODUCT 01 | L44: =VLOOKUP($K44,TableInputsData[],ReadMe!$M$3,FALSE) -> PRODUIT 01 | M44: =VLOOKUP(K44,TableInputsData[],$M$6,FALSE) -> XYZ | N44: AVERAGE COST OF GOODS SOLD PER UNIT | AH44: 0 | AI44: 0 | AJ44: 0 | AK44: 0 | AL44: 0 | AM44: =IF(AM12=0,0,AM36/AM12) -> 0 | AN44: 0 | AO44: 0 | AP44: 0 | AR44: 0 | AU44: =VLOOKUP($K44,TableInputsData[],ReadMe!$M$3,FALSE)&" | "&VLOOKUP($N44,TableInputsData[],ReadMe!$M$3,FALSE) -> PRODUIT 01 | PRIX MOYEN D'ACHAT PAR PRODUIT/SERVICE
C45: 38 | D45: 1 | F45: YEAR3 | G45: =VLOOKUP($F45,TableInputsData[],ReadMe!$M$3,FALSE) -> ANNEE3 | H45: =VLOOKUP(F45,TableInputsData[],$H$6,FALSE) -> 2028 | I45: PRODUCT | J45: =VLOOKUP($I45,TableInputsData[],ReadMe!$M$3,FALSE) -> PRODUIT | K45: PRODUCT 01 | L45: =VLOOKUP($K45,TableInputsData[],ReadMe!$M$3,FALSE) -> PRODUIT 01 | M45: =VLOOKUP(K45,TableInputsData[],$M$6,FALSE) -> XYZ | N45: AVERAGE COST OF GOODS SOLD PER UNIT | AH45: 0 | AI45: 0 | AJ45: 0 | AK45: 0 | AL45: 0 | AM45: =IF(AM13=0,0,AM37/AM13) -> 0 | AN45: 0 | AO45: 0 | AP45: 0 | AR45: 0 | AU45: =VLOOKUP($K45,TableInputsData[],ReadMe!$M$3,FALSE)&" | "&VLOOKUP($N45,TableInputsData[],ReadMe!$M$3,FALSE) -> PRODUIT 01 | PRIX MOYEN D'ACHAT PAR PRODUIT/SERVICE
C46: 39 | D46: 1 | F46: YEAR4 | G46: =VLOOKUP($F46,TableInputsData[],ReadMe!$M$3,FALSE) -> ANNEE4 | H46: =VLOOKUP(F46,TableInputsData[],$H$6,FALSE) -> 2029 | I46: PRODUCT | J46: =VLOOKUP($I46,TableInputsData[],ReadMe!$M$3,FALSE) -> PRODUIT | K46: PRODUCT 01 | L46: =VLOOKUP($K46,TableInputsData[],ReadMe!$M$3,FALSE) -> PRODUIT 01 | M46: =VLOOKUP(K46,TableInputsData[],$M$6,FALSE) -> XYZ | N46: AVERAGE COST OF GOODS SOLD PER UNIT | AH46: 0 | AI46: 0 | AJ46: 0 | AK46: 0 | AL46: 0 | AM46: =IF(AM14=0,0,AM38/AM14) -> 0 | AN46: 0 | AO46: 0 | AP46: 0 | AR46: 0 | AU46: =VLOOKUP($K46,TableInputsData[],ReadMe!$M$3,FALSE)&" | "&VLOOKUP($N46,TableInputsData[],ReadMe!$M$3,FALSE) -> PRODUIT 01 | PRIX MOYEN D'ACHAT PAR PRODUIT/SERVICE
C47: 40 | D47: 1 | F47: YEAR5 | G47: =VLOOKUP($F47,TableInputsData[],ReadMe!$M$3,FALSE) -> ANNEE5 | H47: =VLOOKUP(F47,TableInputsData[],$H$6,FALSE) -> 2030 | I47: PRODUCT | J47: =VLOOKUP($I47,TableInputsData[],ReadMe!$M$3,FALSE) -> PRODUIT | K47: PRODUCT 01 | L47: =VLOOKUP($K47,TableInputsData[],ReadMe!$M$3,FALSE) -> PRODUIT 01 | M47: =VLOOKUP(K47,TableInputsData[],$M$6,FALSE) -> XYZ | N47: AVERAGE COST OF GOODS SOLD PER UNIT | AH47: 0 | AI47: 0 | AJ47: 0 | AK47: 0 | AL47: 0 | AM47: =IF(AM15=0,0,AM39/AM15) -> 0 | AN47: 0 | AO47: 0 | AP47: 0 | AR47: 0 | AU47: =VLOOKUP($K47,TableInputsData[],ReadMe!$M$3,FALSE)&" | "&VLOOKUP($N47,TableInputsData[],ReadMe!$M$3,FALSE) -> PRODUIT 01 | PRIX MOYEN D'ACHAT PAR PRODUIT/SERVICE
C48: 41 | D48: 1 | F48: YEAR6 | G48: =VLOOKUP($F48,TableInputsData[],ReadMe!$M$3,FALSE) -> ANNEE6 | H48: =VLOOKUP(F48,TableInputsData[],$H$6,FALSE) -> 2031 | I48: PRODUCT | J48: =VLOOKUP($I48,TableInputsData[],ReadMe!$M$3,FALSE) -> PRODUIT | K48: PRODUCT 01 | L48: =VLOOKUP($K48,TableInputsData[],ReadMe!$M$3,FALSE) -> PRODUIT 01 | M48: =VLOOKUP(K48,TableInputsData[],$M$6,FALSE) -> XYZ | N48: AVERAGE COST OF GOODS SOLD PER UNIT | AH48: 0 | AI48: 0 | AJ48: 0 | AK48: 0 | AL48: 0 | AM48: =IF(AM16=0,0,AM40/AM16) -> 0 | AN48: 0 | AO48: 0 | AP48: 0 | AR48: 0 | AU48: =VLOOKUP($K48,TableInputsData[],ReadMe!$M$3,FALSE)&" | "&VLOOKUP($N48,TableInputsData[],ReadMe!$M$3,FALSE) -> PRODUIT 01 | PRIX MOYEN D'ACHAT PAR PRODUIT/SERVICE
C49: 42 | D49: 0 | E49: 1
B50: =K51&"___" -> PRODUCT 02___ | C50: 43 | D50: 0
C51: 44 | D51: =VLOOKUP($K51,TableInputsData[],$D$6,FALSE) -> 1 | E51: 1 | F51: YEAR-2 | G51: =VLOOKUP($F51,TableInputsData[],ReadMe!$M$3,FALSE) -> ANNEE-2 | H51: =VLOOKUP(F51,TableInputsData[],$H$6,FALSE) -> 2024 | I51: PRODUCT | J51: =VLOOKUP($I51,TableInputsData[],ReadMe!$M$3,FALSE) -> PRODUIT | K51: PRODUCT 02 | L51: =VLOOKUP($K51,TableInputsData[],ReadMe!$M$3,FALSE) -> PRODUIT 02 | M51: =VLOOKUP(K51,TableInputsData[],$M$6,FALSE) -> ABC | N51: VOLUME | O51: 1000 | P51: 0 | Q51: 0 | R51: =$O51*$S51+$P51*$T51+$Q51*$U51 -> 1000 | S51: 1 | T51: 0 | U51: =1-$S51-$T51 -> 0 | V51: 500 | W51: 0 | X51: 0 | Y51: =AL83 -> 0 | Z51: 1 | AA51: 1 | AB51: 1 | AC51: =1-$Z51 -> 0 | AD51: =1-$AA51 -> 0 | AE51: =1-$AB51 -> 0 | AF51: =AP83 -> 0 | AG51: =AR83 -> 0 | AH51: 0 | AI51: 0 | AJ51: 0 | AK51: 0 | AL51: =$AH51+$AI51+$AJ51+$AK51 -> 0 | AM51: =$AL51*$S51 -> 0 | AN51: =$AL51*$T51 -> 0 | AO51: =$AL51*$U51 -> 0 | AP51: =$AM51*$Z51+$AN51*$AA51+$AO51*$AB51 -> 0 | AQ51: =IF(AL51=0,0,AP51/AL51) -> 0 | AR51: =$AM51*$AC51+$AN51*$AD51+$AO51*$AE51 -> 0 | AS51: =IF(AL51=0,0,AR51/AL51) -> 0 | AT51: =VLOOKUP(K51,TableInputsData[],$AT$6,FALSE) -> GAMME # : 1 + CANAL DE DISTRIBUTION # : 1 | AU51: =VLOOKUP($K51,TableInputsData[],ReadMe!$M$3,FALSE)&" | "&VLOOKUP($N51,TableInputsData[],ReadMe!$M$3,FALSE) -> PRODUIT 02 | VOLUME | AV51: =AND(EXACT(ROUND(AL51,2),ROUND(AM51+AN51+AO51,2)),EXACT(ROUND(AL51,2),ROUND(AP51+AR51,2)),EXACT(SUM(S51:U51),1),IF(U51<0,FALSE,TRUE),EXACT(SUM(Z51:AE51),3),MIN(Z51:AB51)>=0, MAX(Z51:AB51)<=1) -> TRUE
C52: 45 | D52: =D51 -> 1 | E52: 1 | F52: YEAR-1 | G52: =VLOOKUP($F52,TableInputsData[],ReadMe!$M$3,FALSE) -> ANNEE-1 | H52: =VLOOKUP(F52,TableInputsData[],$H$6,FALSE) -> 2025 | I52: =I51 -> PRODUCT | J52: =VLOOKUP($I52,TableInputsData[],ReadMe!$M$3,FALSE) -> PRODUIT | K52: =K51 -> PRODUCT 02 | L52: =VLOOKUP($K52,TableInputsData[],ReadMe!$M$3,FALSE) -> PRODUIT 02 | M52: =VLOOKUP(K52,TableInputsData[],$M$6,FALSE) -> ABC | N52: =N51 -> VOLUME | O52: 1000 | P52: 0 | Q52: 0 | R52: 1000 | S52: 1 | T52: 0 | U52: =1-$S52-$T52 -> 0 | V52: 500 | W52: 0 | X52: 0 | Y52: =AL84 -> 0 | Z52: 1 | AA52: 1 | AB52: 1 | AC52: 0 | AD52: 0 | AE52: 0 | AF52: =AP84 -> 0 | AG52: =AR84 -> 0 | AH52: 0 | AI52: 0 | AJ52: 0 | AK52: 0 | AL52: 0 | AM52: 0 | AN52: 0 | AO52: 0 | AP52: 0 | AQ52: =IF(AL52=0,0,AP52/AL52) -> 0 | AR52: 0 | AS52: 0 | AU52: =VLOOKUP($K52,TableInputsData[],ReadMe!$M$3,FALSE)&" | "&VLOOKUP($N52,TableInputsData[],ReadMe!$M$3,FALSE) -> PRODUIT 02 | VOLUME | AV52: TRUE
C53: 46 | D53: =D52 -> 1 | E53: 1 | F53: CURRENT YEAR | G53: =VLOOKUP($F53,TableInputsData[],ReadMe!$M$3,FALSE) -> ANNEE EN COURS | H53: =VLOOKUP(F53,TableInputsData[],$H$6,FALSE) -> 2026 | I53: =I52 -> PRODUCT | J53: =VLOOKUP($I53,TableInputsData[],ReadMe!$M$3,FALSE) -> PRODUIT | K53: PRODUCT 02 | L53: =VLOOKUP($K53,TableInputsData[],ReadMe!$M$3,FALSE) -> PRODUIT 02 | M53: =VLOOKUP(K53,TableInputsData[],$M$6,FALSE) -> ABC | N53: =N52 -> VOLUME | O53: 1000 | P53: 0 | Q53: 0 | R53: 1000 | S53: 1 | T53: 0 | U53: 0 | V53: 500 | W53: 0 | X53: 0 | Y53: 0 | Z53: 1 | AA53: 1 | AB53: 1 | AC53: 0 | AD53: 0 | AE53: 0 | AF53: 0 | AG53: 0 | AH53: 0 | AI53: 0 | AJ53: 0 | AK53: 0 | AL53: 0 | AM53: 0 | AN53: 0 | AO53: 0 | AP53: 0 | AQ53: 0 | AR53: 0 | AS53: 0 | AU53: =VLOOKUP($K53,TableInputsData[],ReadMe!$M$3,FALSE)&" | "&VLOOKUP($N53,TableInputsData[],ReadMe!$M$3,FALSE) -> PRODUIT 02 | VOLUME | AV53: TRUE
C54: 47 | D54: 1 | E54: 1 | F54: YEAR2 | G54: =VLOOKUP($F54,TableInputsData[],ReadMe!$M$3,FALSE) -> ANNEE2 | H54: =VLOOKUP(F54,TableInputsData[],$H$6,FALSE) -> 2027 | I54: PRODUCT | J54: =VLOOKUP($I54,TableInputsData[],ReadMe!$M$3,FALSE) -> PRODUIT | K54: PRODUCT 02 | L54: =VLOOKUP($K54,TableInputsData[],ReadMe!$M$3,FALSE) -> PRODUIT 02 | M54: =VLOOKUP(K54,TableInputsData[],$M$6,FALSE) -> ABC | N54: VOLUME | O54: 1000 | P54: 0 | Q54: 0 | R54: 1000 | S54: 1 | T54: 0 | U54: 0 | V54: 500 | W54: 0 | X54: 0 | Y54: 0 | Z54: 1 | AA54: 1 | AB54: 1 | AC54: 0 | AD54: 0 | AE54: 0 | AF54: 0 | AG54: 0 | AH54: 0 | AI54: 0 | AJ54: 0 | AK54: 0 | AL54: 0 | AM54: 0 | AN54: 0 | AO54: 0 | AP54: 0 | AQ54: 0 | AR54: 0 | AS54: 0 | AU54: =VLOOKUP($K54,TableInputsData[],ReadMe!$M$3,FALSE)&" | "&VLOOKUP($N54,TableInputsData[],ReadMe!$M$3,FALSE) -> PRODUIT 02 | VOLUME | AV54: TRUE
C55: 48 | D55: 1 | E55: 1 | F55: YEAR3 | G55: =VLOOKUP($F55,TableInputsData[],ReadMe!$M$3,FALSE) -> ANNEE3 | H55: =VLOOKUP(F55,TableInputsData[],$H$6,FALSE) -> 2028 | I55: PRODUCT | J55: =VLOOKUP($I55,TableInputsData[],ReadMe!$M$3,FALSE) -> PRODUIT | K55: PRODUCT 02 | L55: =VLOOKUP($K55,TableInputsData[],ReadMe!$M$3,FALSE) -> PRODUIT 02 | M55: =VLOOKUP(K55,TableInputsData[],$M$6,FALSE) -> ABC | N55: VOLUME | O55: 1000 | P55: 0 | Q55: 0 | R55: 1000 | S55: 1 | T55: 0 | U55: 0 | V55: 500 | W55: 0 | X55: 0 | Y55: 0 | Z55: 1 | AA55: 1 | AB55: 1 | AC55: 0 | AD55: 0 | AE55: 0 | AF55: 0 | AG55: 0 | AH55: =$AL55/4 -> 0 | AI55: =$AL55/4 -> 0 | AJ55: 0 | AK55: 0 | AL55: 0 | AM55: 0 | AN55: 0 | AO55: 0 | AP55: 0 | AQ55: 0 | AR55: 0 | AS55: 0 | AU55: =VLOOKUP($K55,TableInputsData[],ReadMe!$M$3,FALSE)&" | "&VLOOKUP($N55,TableInputsData[],ReadMe!$M$3,FALSE) -> PRODUIT 02 | VOLUME | AV55: TRUE
C56: 49 | D56: 1 | E56: 1 | F56: YEAR4 | G56: =VLOOKUP($F56,TableInputsData[],ReadMe!$M$3,FALSE) -> ANNEE4 | H56: =VLOOKUP(F56,TableInputsData[],$H$6,FALSE) -> 2029 | I56: PRODUCT | J56: =VLOOKUP($I56,TableInputsData[],ReadMe!$M$3,FALSE) -> PRODUIT | K56: PRODUCT 02 | L56: =VLOOKUP($K56,TableInputsData[],ReadMe!$M$3,FALSE) -> PRODUIT 02 | M56: =VLOOKUP(K56,TableInputsData[],$M$6,FALSE) -> ABC | N56: VOLUME | O56: 1000 | P56: 0 | Q56: 0 | R56: 1000 | S56: 1 | T56: 0 | U56: 0 | V56: 500 | W56: 0 | X56: 0 | Y56: 0 | Z56: 1 | AA56: 1 | AB56: 1 | AC56: 0 | AD56: 0 | AE56: 0 | AF56: 0 | AG56: 0 | AH56: =$AL56/4 -> 0 | AI56: 0 | AJ56: 0 | AK56: 0 | AL56: 0 | AM56: 0 | AN56: 0 | AO56: 0 | AP56: 0 | AQ56: 0 | AR56: 0 | AS56: 0 | AU56: =VLOOKUP($K56,TableInputsData[],ReadMe!$M$3,FALSE)&" | "&VLOOKUP($N56,TableInputsData[],ReadMe!$M$3,FALSE) -> PRODUIT 02 | VOLUME | AV56: TRUE
C57: 50 | D57: 1 | E57: 1 | F57: YEAR5 | G57: =VLOOKUP($F57,TableInputsData[],ReadMe!$M$3,FALSE) -> ANNEE5 | H57: =VLOOKUP(F57,TableInputsData[],$H$6,FALSE) -> 2030 | I57: PRODUCT | J57: =VLOOKUP($I57,TableInputsData[],ReadMe!$M$3,FALSE) -> PRODUIT | K57: PRODUCT 02 | L57: =VLOOKUP($K57,TableInputsData[],ReadMe!$M$3,FALSE) -> PRODUIT 02 | M57: =VLOOKUP(K57,TableInputsData[],$M$6,FALSE) -> ABC | N57: VOLUME | O57: 1000 | P57: 0 | Q57: 0 | R57: 1000 | S57: 1 | T57: 0 | U57: 0 | V57: 500 | W57: 0 | X57: 0 | Y57: 0 | Z57: 1 | AA57: 1 | AB57: 1 | AC57: 0 | AD57: 0 | AE57: 0 | AF57: 0 | AG57: 0 | AH57: 0 | AI57: 0 | AJ57: 0 | AK57: 0 | AL57: 0 | AM57: 0 | AN57: 0 | AO57: 0 | AP57: 0 | AQ57: 0 | AR57: 0 | AS57: 0 | AU57: =VLOOKUP($K57,TableInputsData[],ReadMe!$M$3,FALSE)&" | "&VLOOKUP($N57,TableInputsData[],ReadMe!$M$3,FALSE) -> PRODUIT 02 | VOLUME | AV57: TRUE
C58: 51 | D58: 1 | E58: 1 | F58: YEAR6 | G58: =VLOOKUP($F58,TableInputsData[],ReadMe!$M$3,FALSE) -> ANNEE6 | H58: =VLOOKUP(F58,TableInputsData[],$H$6,FALSE) -> 2031 | I58: PRODUCT | J58: =VLOOKUP($I58,TableInputsData[],ReadMe!$M$3,FALSE) -> PRODUIT | K58: PRODUCT 02 | L58: =VLOOKUP($K58,TableInputsData[],ReadMe!$M$3,FALSE) -> PRODUIT 02 | M58: =VLOOKUP(K58,TableInputsData[],$M$6,FALSE) -> ABC | N58: VOLUME | O58: 1000 | P58: 0 | Q58: 0 | R58: 1000 | S58: 1 | T58: 0 | U58: 0 | V58: 500 | W58: 0 | X58: 0 | Y58: 0 | Z58: 1 | AA58: 1 | AB58: 1 | AC58: 0 | AD58: 0 | AE58: 0 | AF58: 0 | AG58: 0 | AH58: 0 | AI58: 0 | AJ58: 0 | AK58: 0 | AL58: 0 | AM58: 0 | AN58: 0 | AO58: 0 | AP58: =$AM58*$Z58+$AN58*$AA58+$AO58*$AB58 -> 0 | AQ58: 0 | AR58: 0 | AS58: 0 | AU58: =VLOOKUP($K58,TableInputsData[],ReadMe!$M$3,FALSE)&" | "&VLOOKUP($N58,TableInputsData[],ReadMe!$M$3,FALSE) -> PRODUIT 02 | VOLUME | AV58: TRUE
C59: 52 | D59: 1 | F59: =F67 -> YEAR-2 | G59: =VLOOKUP($F59,TableInputsData[],ReadMe!$M$3,FALSE) -> ANNEE-2 | H59: =VLOOKUP(F59,TableInputsData[],$H$6,FALSE) -> 2024 | I59: PRODUCT | J59: =VLOOKUP($I59,TableInputsData[],ReadMe!$M$3,FALSE) -> PRODUIT | K59: PRODUCT 02 | L59: =VLOOKUP($K59,TableInputsData[],ReadMe!$M$3,FALSE) -> PRODUIT 02 | M59: =VLOOKUP(K59,TableInputsData[],$M$6,FALSE) -> ABC | N59: REVENUE | AH59: =AH51*($O51*$S51+$P51*$T51+$Q51*$U51) -> 0 | AI59: =AI51*($O51*$S51+$P51*$T51+$Q51*$U51) -> 0 | AJ59: 0 | AK59: 0 | AL59: =$AH59+$AI59+$AJ59+$AK59 -> 0 | AM59: =$AM51*$O51 -> 0 | AN59: =$AN51*$P51 -> 0 | AO59: =$AO51*$Q51 -> 0 | AP59: =$AM59*$Z51+$AN59*$AA51+$AO59*$AB51 -> 0 | AQ59: 0 | AR59: =$AM59*$AC51+$AN59*$AD51+$AO59*$AE51 -> 0 | AS59: 0 | AU59: =VLOOKUP($K59,TableInputsData[],ReadMe!$M$3,FALSE)&" | "&VLOOKUP($N59,TableInputsData[],ReadMe!$M$3,FALSE) -> PRODUIT 02 | CHIFFRE D'AFFAIRES | AV59: =AND(EXACT(ROUND(AL59,2),ROUND(AM59+AN59+AO59,2)),EXACT(ROUND(AL59,2),ROUND(AP59+AR59,2))) -> TRUE
C60: 53 | D60: 1 | F60: YEAR-1 | G60: =VLOOKUP($F60,TableInputsData[],ReadMe!$M$3,FALSE) -> ANNEE-1 | H60: =VLOOKUP(F60,TableInputsData[],$H$6,FALSE) -> 2025 | I60: PRODUCT | J60: =VLOOKUP($I60,TableInputsData[],ReadMe!$M$3,FALSE) -> PRODUIT | K60: PRODUCT 02 | L60: =VLOOKUP($K60,TableInputsData[],ReadMe!$M$3,FALSE) -> PRODUIT 02 | M60: =VLOOKUP(K60,TableInputsData[],$M$6,FALSE) -> ABC | N60: =N59 -> REVENUE | AH60: =AH52*($O52*$S52+$P52*$T52+$Q52*$U52) -> 0 | AI60: 0 | AJ60: 0 | AK60: 0 | AL60: =$AH60+$AI60+$AJ60+$AK60 -> 0 | AM60: 0 | AN60: 0 | AO60: 0 | AP60: 0 | AQ60: 0 | AR60: 0 | AS60: 0 | AU60: =VLOOKUP($K60,TableInputsData[],ReadMe!$M$3,FALSE)&" | "&VLOOKUP($N60,TableInputsData[],ReadMe!$M$3,FALSE) -> PRODUIT 02 | CHIFFRE D'AFFAIRES | AV60: TRUE
C61: 54 | D61: 1 | F61: CURRENT YEAR | G61: =VLOOKUP($F61,TableInputsData[],ReadMe!$M$3,FALSE) -> ANNEE EN COURS | H61: =VLOOKUP(F61,TableInputsData[],$H$6,FALSE) -> 2026 | I61: PRODUCT | J61: =VLOOKUP($I61,TableInputsData[],ReadMe!$M$3,FALSE) -> PRODUIT | K61: PRODUCT 02 | L61: =VLOOKUP($K61,TableInputsData[],ReadMe!$M$3,FALSE) -> PRODUIT 02 | M61: =VLOOKUP(K61,TableInputsData[],$M$6,FALSE) -> ABC | N61: =N60 -> REVENUE | AH61: =AH53*($O53*$S53+$P53*$T53+$Q53*$U53) -> 0 | AI61: 0 | AJ61: 0 | AK61: 0 | AL61: 0 | AM61: 0 | AN61: 0 | AO61: 0 | AP61: 0 | AQ61: 0 | AR61: 0 | AS61: 0 | AU61: =VLOOKUP($K61,TableInputsData[],ReadMe!$M$3,FALSE)&" | "&VLOOKUP($N61,TableInputsData[],ReadMe!$M$3,FALSE) -> PRODUIT 02 | CHIFFRE D'AFFAIRES | AV61: TRUE
C62: 55 | D62: 1 | F62: YEAR2 | G62: =VLOOKUP($F62,TableInputsData[],ReadMe!$M$3,FALSE) -> ANNEE2 | H62: =VLOOKUP(F62,TableInputsData[],$H$6,FALSE) -> 2027 | I62: PRODUCT | J62: =VLOOKUP($I62,TableInputsData[],ReadMe!$M$3,FALSE) -> PRODUIT | K62: PRODUCT 02 | L62: =VLOOKUP($K62,TableInputsData[],ReadMe!$M$3,FALSE) -> PRODUIT 02 | M62: =VLOOKUP(K62,TableInputsData[],$M$6,FALSE) -> ABC | N62: REVENUE | AH62: =AH54*($O54*$S54+$P54*$T54+$Q54*$U54) -> 0 | AI62: 0 | AJ62: 0 | AK62: 0 | AL62: 0 | AM62: 0 | AN62: 0 | AO62: 0 | AP62: 0 | AQ62: 0 | AR62: 0 | AS62: 0 | AU62: =VLOOKUP($K62,TableInputsData[],ReadMe!$M$3,FALSE)&" | "&VLOOKUP($N62,TableInputsData[],ReadMe!$M$3,FALSE) -> PRODUIT 02 | CHIFFRE D'AFFAIRES | AV62: TRUE
C63: 56 | D63: 1 | F63: YEAR3 | G63: =VLOOKUP($F63,TableInputsData[],ReadMe!$M$3,FALSE) -> ANNEE3 | H63: =VLOOKUP(F63,TableInputsData[],$H$6,FALSE) -> 2028 | I63: PRODUCT | J63: =VLOOKUP($I63,TableInputsData[],ReadMe!$M$3,FALSE) -> PRODUIT | K63: PRODUCT 02 | L63: =VLOOKUP($K63,TableInputsData[],ReadMe!$M$3,FALSE) -> PRODUIT 02 | M63: =VLOOKUP(K63,TableInputsData[],$M$6,FALSE) -> ABC | N63: REVENUE | AH63: =AH55*($O55*$S55+$P55*$T55+$Q55*$U55) -> 0 | AI63: 0 | AJ63: 0 | AK63: 0 | AL63: 0 | AM63: 0 | AN63: 0 | AO63: 0 | AP63: 0 | AQ63: 0 | AR63: 0 | AS63: 0 | AU63: =VLOOKUP($K63,TableInputsData[],ReadMe!$M$3,FALSE)&" | "&VLOOKUP($N63,TableInputsData[],ReadMe!$M$3,FALSE) -> PRODUIT 02 | CHIFFRE D'AFFAIRES | AV63: TRUE
C64: 57 | D64: 1 | F64: YEAR4 | G64: =VLOOKUP($F64,TableInputsData[],ReadMe!$M$3,FALSE) -> ANNEE4 | H64: =VLOOKUP(F64,TableInputsData[],$H$6,FALSE) -> 2029 | I64: PRODUCT | J64: =VLOOKUP($I64,TableInputsData[],ReadMe!$M$3,FALSE) -> PRODUIT | K64: PRODUCT 02 | L64: =VLOOKUP($K64,TableInputsData[],ReadMe!$M$3,FALSE) -> PRODUIT 02 | M64: =VLOOKUP(K64,TableInputsData[],$M$6,FALSE) -> ABC | N64: REVENUE | AH64: =AH56*($O56*$S56+$P56*$T56+$Q56*$U56) -> 0 | AI64: 0 | AJ64: 0 | AK64: 0 | AL64: 0 | AM64: 0 | AN64: 0 | AO64: 0 | AP64: 0 | AQ64: 0 | AR64: 0 | AS64: 0 | AU64: =VLOOKUP($K64,TableInputsData[],ReadMe!$M$3,FALSE)&" | "&VLOOKUP($N64,TableInputsData[],ReadMe!$M$3,FALSE) -> PRODUIT 02 | CHIFFRE D'AFFAIRES | AV64: TRUE
C65: 58 | D65: 1 | F65: YEAR5 | G65: =VLOOKUP($F65,TableInputsData[],ReadMe!$M$3,FALSE) -> ANNEE5 | H65: =VLOOKUP(F65,TableInputsData[],$H$6,FALSE) -> 2030 | I65: PRODUCT | J65: =VLOOKUP($I65,TableInputsData[],ReadMe!$M$3,FALSE) -> PRODUIT | K65: PRODUCT 02 | L65: =VLOOKUP($K65,TableInputsData[],ReadMe!$M$3,FALSE) -> PRODUIT 02 | M65: =VLOOKUP(K65,TableInputsData[],$M$6,FALSE) -> ABC | N65: REVENUE | AH65: =AH57*($O57*$S57+$P57*$T57+$Q57*$U57) -> 0 | AI65: 0 | AJ65: 0 | AK65: 0 | AL65: 0 | AM65: 0 | AN65: 0 | AO65: 0 | AP65: 0 | AQ65: 0 | AR65: 0 | AS65: 0 | AU65: =VLOOKUP($K65,TableInputsData[],ReadMe!$M$3,FALSE)&" | "&VLOOKUP($N65,TableInputsData[],ReadMe!$M$3,FALSE) -> PRODUIT 02 | CHIFFRE D'AFFAIRES | AV65: TRUE
C66: 59 | D66: 1 | F66: YEAR6 | G66: =VLOOKUP($F66,TableInputsData[],ReadMe!$M$3,FALSE) -> ANNEE6 | H66: =VLOOKUP(F66,TableInputsData[],$H$6,FALSE) -> 2031 | I66: PRODUCT | J66: =VLOOKUP($I66,TableInputsData[],ReadMe!$M$3,FALSE) -> PRODUIT | K66: PRODUCT 02 | L66: =VLOOKUP($K66,TableInputsData[],ReadMe!$M$3,FALSE) -> PRODUIT 02 | M66: =VLOOKUP(K66,TableInputsData[],$M$6,FALSE) -> ABC | N66: REVENUE | AH66: =AH58*($O58*$S58+$P58*$T58+$Q58*$U58) -> 0 | AI66: 0 | AJ66: 0 | AK66: 0 | AL66: =$AH66+$AI66+$AJ66+$AK66 -> 0 | AM66: 0 | AN66: 0 | AO66: 0 | AP66: 0 | AQ66: 0 | AR66: 0 | AS66: 0 | AU66: =VLOOKUP($K66,TableInputsData[],ReadMe!$M$3,FALSE)&" | "&VLOOKUP($N66,TableInputsData[],ReadMe!$M$3,FALSE) -> PRODUIT 02 | CHIFFRE D'AFFAIRES | AV66: TRUE
C67: 60 | D67: 1 | F67: =F51 -> YEAR-2 | G67: =VLOOKUP($F67,TableInputsData[],ReadMe!$M$3,FALSE) -> ANNEE-2 | H67: =VLOOKUP(F67,TableInputsData[],$H$6,FALSE) -> 2024 | I67: PRODUCT | J67: =VLOOKUP($I67,TableInputsData[],ReadMe!$M$3,FALSE) -> PRODUIT | K67: PRODUCT 02 | L67: =VLOOKUP($K67,TableInputsData[],ReadMe!$M$3,FALSE) -> PRODUIT 02 | M67: =VLOOKUP(K67,TableInputsData[],$M$6,FALSE) -> ABC | N67: AVERAGE SELLING PRICE PER UNIT | AH67: =IF(AH51=0,0,AH59/AH51) -> 0 | AI67: =IF(AI51=0,0,AI59/AI51) -> 0 | AJ67: 0 | AK67: 0 | AL67: 0 | AM67: =IF(AM51=0,0,AM59/AM51) -> 0 | AN67: =IF(AN51=0,0,AN59/AN51) -> 0 | AO67: 0 | AP67: =IF(AP51=0,0,AP59/AP51) -> 0 | AR67: =IF(AR51=0,0,AR59/AR51) -> 0 | AU67: =VLOOKUP($K67,TableInputsData[],ReadMe!$M$3,FALSE)&" | "&VLOOKUP($N67,TableInputsData[],ReadMe!$M$3,FALSE) -> PRODUIT 02 | PRIX MOYEN DE VENTE PAR PRODUIT/SERVICE
C68: 61 | D68: 1 | F68: YEAR-1 | G68: =VLOOKUP($F68,TableInputsData[],ReadMe!$M$3,FALSE) -> ANNEE-1 | H68: =VLOOKUP(F68,TableInputsData[],$H$6,FALSE) -> 2025 | I68: PRODUCT | J68: =VLOOKUP($I68,TableInputsData[],ReadMe!$M$3,FALSE) -> PRODUIT | K68: PRODUCT 02 | L68: =VLOOKUP($K68,TableInputsData[],ReadMe!$M$3,FALSE) -> PRODUIT 02 | M68: =VLOOKUP(K68,TableInputsData[],$M$6,FALSE) -> ABC | N68: =N67 -> AVERAGE SELLING PRICE PER UNIT | AH68: =IF(AH52=0,0,AH60/AH52) -> 0 | AI68: =IF(AI52=0,0,AI60/AI52) -> 0 | AJ68: 0 | AK68: 0 | AL68: 0 | AM68: 0 | AN68: 0 | AO68: 0 | AP68: 0 | AR68: =IF(AR52=0,0,AR60/AR52) -> 0 | AU68: =VLOOKUP($K68,TableInputsData[],ReadMe!$M$3,FALSE)&" | "&VLOOKUP($N68,TableInputsData[],ReadMe!$M$3,FALSE) -> PRODUIT 02 | PRIX MOYEN DE VENTE PAR PRODUIT/SERVICE
C69: 62 | D69: 1 | F69: CURRENT YEAR | G69: =VLOOKUP($F69,TableInputsData[],ReadMe!$M$3,FALSE) -> ANNEE EN COURS | H69: =VLOOKUP(F69,TableInputsData[],$H$6,FALSE) -> 2026 | I69: PRODUCT | J69: =VLOOKUP($I69,TableInputsData[],ReadMe!$M$3,FALSE) -> PRODUIT | K69: PRODUCT 02 | L69: =VLOOKUP($K69,TableInputsData[],ReadMe!$M$3,FALSE) -> PRODUIT 02 | M69: =VLOOKUP(K69,TableInputsData[],$M$6,FALSE) -> ABC | N69: =N68 -> AVERAGE SELLING PRICE PER UNIT | AH69: =IF(AH53=0,0,AH61/AH53) -> 0 | AI69: =IF(AI53=0,0,AI61/AI53) -> 0 | AJ69: 0 | AK69: 0 | AL69: 0 | AM69: 0 | AN69: 0 | AO69: 0 | AP69: 0 | AR69: =IF(AR53=0,0,AR61/AR53) -> 0 | AU69: =VLOOKUP($K69,TableInputsData[],ReadMe!$M$3,FALSE)&" | "&VLOOKUP($N69,TableInputsData[],ReadMe!$M$3,FALSE) -> PRODUIT 02 | PRIX MOYEN DE VENTE PAR PRODUIT/SERVICE
C70: 63 | D70: 1 | F70: YEAR2 | G70: =VLOOKUP($F70,TableInputsData[],ReadMe!$M$3,FALSE) -> ANNEE2 | H70: =VLOOKUP(F70,TableInputsData[],$H$6,FALSE) -> 2027 | I70: PRODUCT | J70: =VLOOKUP($I70,TableInputsData[],ReadMe!$M$3,FALSE) -> PRODUIT | K70: PRODUCT 02 | L70: =VLOOKUP($K70,TableInputsData[],ReadMe!$M$3,FALSE) -> PRODUIT 02 | M70: =VLOOKUP(K70,TableInputsData[],$M$6,FALSE) -> ABC | N70: AVERAGE SELLING PRICE PER UNIT | AH70: =IF(AH54=0,0,AH62/AH54) -> 0 | AI70: =IF(AI54=0,0,AI62/AI54) -> 0 | AJ70: 0 | AK70: 0 | AL70: 0 | AM70: 0 | AN70: 0 | AO70: 0 | AP70: 0 | AR70: =IF(AR54=0,0,AR62/AR54) -> 0 | AU70: =VLOOKUP($K70,TableInputsData[],ReadMe!$M$3,FALSE)&" | "&VLOOKUP($N70,TableInputsData[],ReadMe!$M$3,FALSE) -> PRODUIT 02 | PRIX MOYEN DE VENTE PAR PRODUIT/SERVICE
C71: 64 | D71: 1 | F71: YEAR3 | G71: =VLOOKUP($F71,TableInputsData[],ReadMe!$M$3,FALSE) -> ANNEE3 | H71: =VLOOKUP(F71,TableInputsData[],$H$6,FALSE) -> 2028 | I71: PRODUCT | J71: =VLOOKUP($I71,TableInputsData[],ReadMe!$M$3,FALSE) -> PRODUIT | K71: PRODUCT 02 | L71: =VLOOKUP($K71,TableInputsData[],ReadMe!$M$3,FALSE) -> PRODUIT 02 | M71: =VLOOKUP(K71,TableInputsData[],$M$6,FALSE) -> ABC | N71: AVERAGE SELLING PRICE PER UNIT | AH71: =IF(AH55=0,0,AH63/AH55) -> 0 | AI71: 0 | AJ71: 0 | AK71: 0 | AL71: 0 | AM71: 0 | AN71: 0 | AO71: 0 | AP71: 0 | AR71: =IF(AR55=0,0,AR63/AR55) -> 0 | AU71: =VLOOKUP($K71,TableInputsData[],ReadMe!$M$3,FALSE)&" | "&VLOOKUP($N71,TableInputsData[],ReadMe!$M$3,FALSE) -> PRODUIT 02 | PRIX MOYEN DE VENTE PAR PRODUIT/SERVICE
C72: 65 | D72: 1 | F72: YEAR4 | G72: =VLOOKUP($F72,TableInputsData[],ReadMe!$M$3,FALSE) -> ANNEE4 | H72: =VLOOKUP(F72,TableInputsData[],$H$6,FALSE) -> 2029 | I72: PRODUCT | J72: =VLOOKUP($I72,TableInputsData[],ReadMe!$M$3,FALSE) -> PRODUIT | K72: PRODUCT 02 | L72: =VLOOKUP($K72,TableInputsData[],ReadMe!$M$3,FALSE) -> PRODUIT 02 | M72: =VLOOKUP(K72,TableInputsData[],$M$6,FALSE) -> ABC | N72: AVERAGE SELLING PRICE PER UNIT | AH72: =IF(AH56=0,0,AH64/AH56) -> 0 | AI72: 0 | AJ72: 0 | AK72: 0 | AL72: 0 | AM72: 0 | AN72: 0 | AO72: 0 | AP72: 0 | AR72: =IF(AR56=0,0,AR64/AR56) -> 0 | AU72: =VLOOKUP($K72,TableInputsData[],ReadMe!$M$3,FALSE)&" | "&VLOOKUP($N72,TableInputsData[],ReadMe!$M$3,FALSE) -> PRODUIT 02 | PRIX MOYEN DE VENTE PAR PRODUIT/SERVICE
C73: 66 | D73: 1 | F73: YEAR5 | G73: =VLOOKUP($F73,TableInputsData[],ReadMe!$M$3,FALSE) -> ANNEE5 | H73: =VLOOKUP(F73,TableInputsData[],$H$6,FALSE) -> 2030 | I73: PRODUCT | J73: =VLOOKUP($I73,TableInputsData[],ReadMe!$M$3,FALSE) -> PRODUIT | K73: PRODUCT 02 | L73: =VLOOKUP($K73,TableInputsData[],ReadMe!$M$3,FALSE) -> PRODUIT 02 | M73: =VLOOKUP(K73,TableInputsData[],$M$6,FALSE) -> ABC | N73: AVERAGE SELLING PRICE PER UNIT | AH73: =IF(AH57=0,0,AH65/AH57) -> 0 | AI73: 0 | AJ73: 0 | AK73: 0 | AL73: 0 | AM73: 0 | AN73: 0 | AO73: 0 | AP73: 0 | AR73: =IF(AR57=0,0,AR65/AR57) -> 0 | AU73: =VLOOKUP($K73,TableInputsData[],ReadMe!$M$3,FALSE)&" | "&VLOOKUP($N73,TableInputsData[],ReadMe!$M$3,FALSE) -> PRODUIT 02 | PRIX MOYEN DE VENTE PAR PRODUIT/SERVICE
C74: 67 | D74: 1 | F74: YEAR6 | G74: =VLOOKUP($F74,TableInputsData[],ReadMe!$M$3,FALSE) -> ANNEE6 | H74: =VLOOKUP(F74,TableInputsData[],$H$6,FALSE) -> 2031 | I74: PRODUCT | J74: =VLOOKUP($I74,TableInputsData[],ReadMe!$M$3,FALSE) -> PRODUIT | K74: PRODUCT 02 | L74: =VLOOKUP($K74,TableInputsData[],ReadMe!$M$3,FALSE) -> PRODUIT 02 | M74: =VLOOKUP(K74,TableInputsData[],$M$6,FALSE) -> ABC | N74: AVERAGE SELLING PRICE PER UNIT | AH74: =IF(AH58=0,0,AH66/AH58) -> 0 | AI74: 0 | AJ74: 0 | AK74: 0 | AL74: 0 | AM74: 0 | AN74: 0 | AO74: 0 | AP74: 0 | AR74: =IF(AR58=0,0,AR66/AR58) -> 0 | AU74: =VLOOKUP($K74,TableInputsData[],ReadMe!$M$3,FALSE)&" | "&VLOOKUP($N74,TableInputsData[],ReadMe!$M$3,FALSE) -> PRODUIT 02 | PRIX MOYEN DE VENTE PAR PRODUIT/SERVICE
C75: 68 | D75: 1 | F75: =F83 -> YEAR-2 | G75: =VLOOKUP($F75,TableInputsData[],ReadMe!$M$3,FALSE) -> ANNEE-2 | H75: =VLOOKUP(F75,TableInputsData[],$H$6,FALSE) -> 2024 | I75: PRODUCT | J75: =VLOOKUP($I75,TableInputsData[],ReadMe!$M$3,FALSE) -> PRODUIT | K75: PRODUCT 02 | L75: =VLOOKUP($K75,TableInputsData[],ReadMe!$M$3,FALSE) -> PRODUIT 02 | M75: =VLOOKUP(K75,TableInputsData[],$M$6,FALSE) -> ABC | N75: COST OF GOODS SOLD | AH75: =AH51*($V51*$S51+$W51*$T51+$X51*$U51) -> 0 | AI75: =AI51*($V51*$S51+$W51*$T51+$X51*$U51) -> 0 | AJ75: 0 | AK75: 0 | AL75: =$AH75+$AI75+$AJ75+$AK75 -> 0 | AM75: =$AM51*$V51 -> 0 | AN75: =$AN51*$W51 -> 0 | AO75: =$AO51*$X51 -> 0 | AP75: =$AM75*$Z51+$AN75*$AA51+$AO75*$AB51 -> 0 | AQ75: =IF(AL75=0,0,AP75/AL75) -> 0 | AR75: =$AM75*$AC51+$AN75*$AD51+$AO75*$AE51 -> 0 | AS75: =IF(AL75=0,0,AR75/AL75) -> 0 | AU75: =VLOOKUP($K75,TableInputsData[],ReadMe!$M$3,FALSE)&" | "&VLOOKUP($N75,TableInputsData[],ReadMe!$M$3,FALSE) -> PRODUIT 02 | DEPENSES SUR ACHATS | AV75: =AND(EXACT(ROUND(AL75,2),ROUND(AM75+AN75+AO75,2)),EXACT(ROUND(AL75,2),ROUND(AP75+AR75,2))) -> TRUE
C76: 69 | D76: 1 | F76: YEAR-1 | G76: =VLOOKUP($F76,TableInputsData[],ReadMe!$M$3,FALSE) -> ANNEE-1 | H76: =VLOOKUP(F76,TableInputsData[],$H$6,FALSE) -> 2025 | I76: PRODUCT | J76: =VLOOKUP($I76,TableInputsData[],ReadMe!$M$3,FALSE) -> PRODUIT | K76: PRODUCT 02 | L76: =VLOOKUP($K76,TableInputsData[],ReadMe!$M$3,FALSE) -> PRODUIT 02 | M76: =VLOOKUP(K76,TableInputsData[],$M$6,FALSE) -> ABC | N76: =N75 -> COST OF GOODS SOLD | AH76: =AH52*($V52*$S52+$W52*$T52+$X52*$U52) -> 0 | AI76: 0 | AJ76: 0 | AK76: 0 | AL76: 0 | AM76: 0 | AN76: 0 | AO76: 0 | AP76: 0 | AQ76: 0 | AR76: 0 | AS76: 0 | AU76: =VLOOKUP($K76,TableInputsData[],ReadMe!$M$3,FALSE)&" | "&VLOOKUP($N76,TableInputsData[],ReadMe!$M$3,FALSE) -> PRODUIT 02 | DEPENSES SUR ACHATS | AV76: TRUE
C77: 70 | D77: 1 | F77: CURRENT YEAR | G77: =VLOOKUP($F77,TableInputsData[],ReadMe!$M$3,FALSE) -> ANNEE EN COURS | H77: =VLOOKUP(F77,TableInputsData[],$H$6,FALSE) -> 2026 | I77: PRODUCT | J77: =VLOOKUP($I77,TableInputsData[],ReadMe!$M$3,FALSE) -> PRODUIT | K77: PRODUCT 02 | L77: =VLOOKUP($K77,TableInputsData[],ReadMe!$M$3,FALSE) -> PRODUIT 02 | M77: =VLOOKUP(K77,TableInputsData[],$M$6,FALSE) -> ABC | N77: =N76 -> COST OF GOODS SOLD | AH77: =AH53*($V53*$S53+$W53*$T53+$X53*$U53) -> 0 | AI77: 0 | AJ77: 0 | AK77: 0 | AL77: 0 | AM77: 0 | AN77: 0 | AO77: 0 | AP77: 0 | AQ77: 0 | AR77: 0 | AS77: 0 | AU77: =VLOOKUP($K77,TableInputsData[],ReadMe!$M$3,FALSE)&" | "&VLOOKUP($N77,TableInputsData[],ReadMe!$M$3,FALSE) -> PRODUIT 02 | DEPENSES SUR ACHATS | AV77: TRUE
C78: 71 | D78: 1 | F78: YEAR2 | G78: =VLOOKUP($F78,TableInputsData[],ReadMe!$M$3,FALSE) -> ANNEE2 | H78: =VLOOKUP(F78,TableInputsData[],$H$6,FALSE) -> 2027 | I78: PRODUCT | J78: =VLOOKUP($I78,TableInputsData[],ReadMe!$M$3,FALSE) -> PRODUIT | K78: PRODUCT 02 | L78: =VLOOKUP($K78,TableInputsData[],ReadMe!$M$3,FALSE) -> PRODUIT 02 | M78: =VLOOKUP(K78,TableInputsData[],$M$6,FALSE) -> ABC | N78: COST OF GOODS SOLD | AH78: =AH54*($V54*$S54+$W54*$T54+$X54*$U54) -> 0 | AI78: 0 | AJ78: 0 | AK78: 0 | AL78: 0 | AM78: 0 | AN78: 0 | AO78: 0 | AP78: 0 | AQ78: 0 | AR78: 0 | AS78: 0 | AU78: =VLOOKUP($K78,TableInputsData[],ReadMe!$M$3,FALSE)&" | "&VLOOKUP($N78,TableInputsData[],ReadMe!$M$3,FALSE) -> PRODUIT 02 | DEPENSES SUR ACHATS | AV78: TRUE
C79: 72 | D79: 1 | F79: YEAR3 | G79: =VLOOKUP($F79,TableInputsData[],ReadMe!$M$3,FALSE) -> ANNEE3 | H79: =VLOOKUP(F79,TableInputsData[],$H$6,FALSE) -> 2028 | I79: PRODUCT | J79: =VLOOKUP($I79,TableInputsData[],ReadMe!$M$3,FALSE) -> PRODUIT | K79: PRODUCT 02 | L79: =VLOOKUP($K79,TableInputsData[],ReadMe!$M$3,FALSE) -> PRODUIT 02 | M79: =VLOOKUP(K79,TableInputsData[],$M$6,FALSE) -> ABC | N79: COST OF GOODS SOLD | AH79: =AH55*($V55*$S55+$W55*$T55+$X55*$U55) -> 0 | AI79: 0 | AJ79: 0 | AK79: 0 | AL79: 0 | AM79: 0 | AN79: 0 | AO79: 0 | AP79: 0 | AQ79: 0 | AR79: 0 | AS79: 0 | AU79: =VLOOKUP($K79,TableInputsData[],ReadMe!$M$3,FALSE)&" | "&VLOOKUP($N79,TableInputsData[],ReadMe!$M$3,FALSE) -> PRODUIT 02 | DEPENSES SUR ACHATS | AV79: TRUE
C80: 73 | D80: 1 | F80: YEAR4 | G80: =VLOOKUP($F80,TableInputsData[],ReadMe!$M$3,FALSE) -> ANNEE4 | H80: =VLOOKUP(F80,TableInputsData[],$H$6,FALSE) -> 2029 | I80: PRODUCT | J80: =VLOOKUP($I80,TableInputsData[],ReadMe!$M$3,FALSE) -> PRODUIT | K80: PRODUCT 02 | L80: =VLOOKUP($K80,TableInputsData[],ReadMe!$M$3,FALSE) -> PRODUIT 02 | M80: =VLOOKUP(K80,TableInputsData[],$M$6,FALSE) -> ABC | N80: COST OF GOODS SOLD | AH80: =AH56*($V56*$S56+$W56*$T56+$X56*$U56) -> 0 | AI80: 0 | AJ80: 0 | AK80: 0 | AL80: 0 | AM80: 0 | AN80: 0 | AO80: 0 | AP80: 0 | AQ80: 0 | AR80: 0 | AS80: 0 | AU80: =VLOOKUP($K80,TableInputsData[],ReadMe!$M$3,FALSE)&" | "&VLOOKUP($N80,TableInputsData[],ReadMe!$M$3,FALSE) -> PRODUIT 02 | DEPENSES SUR ACHATS | AV80: TRUE
C81: 74 | D81: 1 | F81: YEAR5 | G81: =VLOOKUP($F81,TableInputsData[],ReadMe!$M$3,FALSE) -> ANNEE5 | H81: =VLOOKUP(F81,TableInputsData[],$H$6,FALSE) -> 2030 | I81: PRODUCT | J81: =VLOOKUP($I81,TableInputsData[],ReadMe!$M$3,FALSE) -> PRODUIT | K81: PRODUCT 02 | L81: =VLOOKUP($K81,TableInputsData[],ReadMe!$M$3,FALSE) -> PRODUIT 02 | M81: =VLOOKUP(K81,TableInputsData[],$M$6,FALSE) -> ABC | N81: COST OF GOODS SOLD | AH81: =AH57*($V57*$S57+$W57*$T57+$X57*$U57) -> 0 | AI81: 0 | AJ81: 0 | AK81: 0 | AL81: 0 | AM81: 0 | AN81: 0 | AO81: 0 | AP81: 0 | AQ81: 0 | AR81: 0 | AS81: 0 | AU81: =VLOOKUP($K81,TableInputsData[],ReadMe!$M$3,FALSE)&" | "&VLOOKUP($N81,TableInputsData[],ReadMe!$M$3,FALSE) -> PRODUIT 02 | DEPENSES SUR ACHATS | AV81: TRUE
C82: 75 | D82: 1 | F82: YEAR6 | G82: =VLOOKUP($F82,TableInputsData[],ReadMe!$M$3,FALSE) -> ANNEE6 | H82: =VLOOKUP(F82,TableInputsData[],$H$6,FALSE) -> 2031 | I82: PRODUCT | J82: =VLOOKUP($I82,TableInputsData[],ReadMe!$M$3,FALSE) -> PRODUIT | K82: PRODUCT 02 | L82: =VLOOKUP($K82,TableInputsData[],ReadMe!$M$3,FALSE) -> PRODUIT 02 | M82: =VLOOKUP(K82,TableInputsData[],$M$6,FALSE) -> ABC | N82: COST OF GOODS SOLD | AH82: =AH58*($V58*$S58+$W58*$T58+$X58*$U58) -> 0 | AI82: 0 | AJ82: 0 | AK82: 0 | AL82: 0 | AM82: 0 | AN82: 0 | AO82: 0 | AP82: 0 | AQ82: 0 | AR82: 0 | AS82: 0 | AU82: =VLOOKUP($K82,TableInputsData[],ReadMe!$M$3,FALSE)&" | "&VLOOKUP($N82,TableInputsData[],ReadMe!$M$3,FALSE) -> PRODUIT 02 | DEPENSES SUR ACHATS | AV82: TRUE
C83: 76 | D83: 1 | F83: =F59 -> YEAR-2 | G83: =VLOOKUP($F83,TableInputsData[],ReadMe!$M$3,FALSE) -> ANNEE-2 | H83: =VLOOKUP(F83,TableInputsData[],$H$6,FALSE) -> 2024 | I83: PRODUCT | J83: =VLOOKUP($I83,TableInputsData[],ReadMe!$M$3,FALSE) -> PRODUIT | K83: PRODUCT 02 | L83: =VLOOKUP($K83,TableInputsData[],ReadMe!$M$3,FALSE) -> PRODUIT 02 | M83: =VLOOKUP(K83,TableInputsData[],$M$6,FALSE) -> ABC | N83: AVERAGE COST OF GOODS SOLD PER UNIT | AH83: =IF(AH51=0,0,AH75/AH51) -> 0 | AI83: =IF(AI51=0,0,AI75/AI51) -> 0 | AJ83: 0 | AK83: 0 | AL83: 0 | AM83: =IF(AM51=0,0,AM75/AM51) -> 0 | AN83: =IF(AN51=0,0,AN75/AN51) -> 0 | AO83: 0 | AP83: =IF(AP51=0,0,AP75/AP51) -> 0 | AR83: =IF(AR51=0,0,AR75/AR51) -> 0 | AU83: =VLOOKUP($K83,TableInputsData[],ReadMe!$M$3,FALSE)&" | "&VLOOKUP($N83,TableInputsData[],ReadMe!$M$3,FALSE) -> PRODUIT 02 | PRIX MOYEN D'ACHAT PAR PRODUIT/SERVICE
C84: 77 | D84: 1 | F84: YEAR-1 | G84: =VLOOKUP($F84,TableInputsData[],ReadMe!$M$3,FALSE) -> ANNEE-1 | H84: =VLOOKUP(F84,TableInputsData[],$H$6,FALSE) -> 2025 | I84: PRODUCT | J84: =VLOOKUP($I84,TableInputsData[],ReadMe!$M$3,FALSE) -> PRODUIT | K84: PRODUCT 02 | L84: =VLOOKUP($K84,TableInputsData[],ReadMe!$M$3,FALSE) -> PRODUIT 02 | M84: =VLOOKUP(K84,TableInputsData[],$M$6,FALSE) -> ABC | N84: =N83 -> AVERAGE COST OF GOODS SOLD PER UNIT | AH84: =IF(AH52=0,0,AH76/AH52) -> 0 | AI84: 0 | AJ84: 0 | AK84: 0 | AL84: 0 | AM84: 0 | AN84: 0 | AO84: 0 | AP84: =IF(AP52=0,0,AP76/AP52) -> 0 | AR84: =IF(AR52=0,0,AR76/AR52) -> 0 | AU84: =VLOOKUP($K84,TableInputsData[],ReadMe!$M$3,FALSE)&" | "&VLOOKUP($N84,TableInputsData[],ReadMe!$M$3,FALSE) -> PRODUIT 02 | PRIX MOYEN D'ACHAT PAR PRODUIT/SERVICE
C85: 78 | D85: 1 | F85: CURRENT YEAR | G85: =VLOOKUP($F85,TableInputsData[],ReadMe!$M$3,FALSE) -> ANNEE EN COURS | H85: =VLOOKUP(F85,TableInputsData[],$H$6,FALSE) -> 2026 | I85: PRODUCT | J85: =VLOOKUP($I85,TableInputsData[],ReadMe!$M$3,FALSE) -> PRODUIT | K85: PRODUCT 02 | L85: =VLOOKUP($K85,TableInputsData[],ReadMe!$M$3,FALSE) -> PRODUIT 02 | M85: =VLOOKUP(K85,TableInputsData[],$M$6,FALSE) -> ABC | N85: =N84 -> AVERAGE COST OF GOODS SOLD PER UNIT | AH85: =IF(AH53=0,0,AH77/AH53) -> 0 | AI85: 0 | AJ85: 0 | AK85: 0 | AL85: 0 | AM85: 0 | AN85: 0 | AO85: 0 | AP85: =IF(AP53=0,0,AP77/AP53) -> 0 | AR85: =IF(AR53=0,0,AR77/AR53) -> 0 | AU85: =VLOOKUP($K85,TableInputsData[],ReadMe!$M$3,FALSE)&" | "&VLOOKUP($N85,TableInputsData[],ReadMe!$M$3,FALSE) -> PRODUIT 02 | PRIX MOYEN D'ACHAT PAR PRODUIT/SERVICE
C86: 79 | D86: 1 | F86: YEAR2 | G86: =VLOOKUP($F86,TableInputsData[],ReadMe!$M$3,FALSE) -> ANNEE2 | H86: =VLOOKUP(F86,TableInputsData[],$H$6,FALSE) -> 2027 | I86: PRODUCT | J86: =VLOOKUP($I86,TableInputsData[],ReadMe!$M$3,FALSE) -> PRODUIT | K86: PRODUCT 02 | L86: =VLOOKUP($K86,TableInputsData[],ReadMe!$M$3,FALSE) -> PRODUIT 02 | M86: =VLOOKUP(K86,TableInputsData[],$M$6,FALSE) -> ABC | N86: AVERAGE COST OF GOODS SOLD PER UNIT | AH86: =IF(AH54=0,0,AH78/AH54) -> 0 | AI86: 0 | AJ86: 0 | AK86: 0 | AL86: 0 | AM86: 0 | AN86: 0 | AO86: 0 | AP86: 0 | AR86: =IF(AR54=0,0,AR78/AR54) -> 0 | AU86: =VLOOKUP($K86,TableInputsData[],ReadMe!$M$3,FALSE)&" | "&VLOOKUP($N86,TableInputsData[],ReadMe!$M$3,FALSE) -> PRODUIT 02 | PRIX MOYEN D'ACHAT PAR PRODUIT/SERVICE
C87: 80 | D87: 1 | F87: YEAR3 | G87: =VLOOKUP($F87,TableInputsData[],ReadMe!$M$3,FALSE) -> ANNEE3 | H87: =VLOOKUP(F87,TableInputsData[],$H$6,FALSE) -> 2028 | I87: PRODUCT | J87: =VLOOKUP($I87,TableInputsData[],ReadMe!$M$3,FALSE) -> PRODUIT | K87: PRODUCT 02 | L87: =VLOOKUP($K87,TableInputsData[],ReadMe!$M$3,FALSE) -> PRODUIT 02 | M87: =VLOOKUP(K87,TableInputsData[],$M$6,FALSE) -> ABC | N87: AVERAGE COST OF GOODS SOLD PER UNIT | AH87: =IF(AH55=0,0,AH79/AH55) -> 0 | AI87: 0 | AJ87: 0 | AK87: 0 | AL87: 0 | AM87: 0 | AN87: 0 | AO87: 0 | AP87: 0 | AR87: =IF(AR55=0,0,AR79/AR55) -> 0 | AU87: =VLOOKUP($K87,TableInputsData[],ReadMe!$M$3,FALSE)&" | "&VLOOKUP($N87,TableInputsData[],ReadMe!$M$3,FALSE) -> PRODUIT 02 | PRIX MOYEN D'ACHAT PAR PRODUIT/SERVICE
C88: 81 | D88: 1 | F88: YEAR4 | G88: =VLOOKUP($F88,TableInputsData[],ReadMe!$M$3,FALSE) -> ANNEE4 | H88: =VLOOKUP(F88,TableInputsData[],$H$6,FALSE) -> 2029 | I88: PRODUCT | J88: =VLOOKUP($I88,TableInputsData[],ReadMe!$M$3,FALSE) -> PRODUIT | K88: PRODUCT 02 | L88: =VLOOKUP($K88,TableInputsData[],ReadMe!$M$3,FALSE) -> PRODUIT 02 | M88: =VLOOKUP(K88,TableInputsData[],$M$6,FALSE) -> ABC | N88: AVERAGE COST OF GOODS SOLD PER UNIT | AH88: =IF(AH56=0,0,AH80/AH56) -> 0 | AI88: 0 | AJ88: 0 | AK88: 0 | AL88: 0 | AM88: 0 | AN88: 0 | AO88: 0 | AP88: 0 | AR88: =IF(AR56=0,0,AR80/AR56) -> 0 | AU88: =VLOOKUP($K88,TableInputsData[],ReadMe!$M$3,FALSE)&" | "&VLOOKUP($N88,TableInputsData[],ReadMe!$M$3,FALSE) -> PRODUIT 02 | PRIX MOYEN D'ACHAT PAR PRODUIT/SERVICE
C89: 82 | D89: 1 | F89: YEAR5 | G89: =VLOOKUP($F89,TableInputsData[],ReadMe!$M$3,FALSE) -> ANNEE5 | H89: =VLOOKUP(F89,TableInputsData[],$H$6,FALSE) -> 2030 | I89: PRODUCT | J89: =VLOOKUP($I89,TableInputsData[],ReadMe!$M$3,FALSE) -> PRODUIT | K89: PRODUCT 02 | L89: =VLOOKUP($K89,TableInputsData[],ReadMe!$M$3,FALSE) -> PRODUIT 02 | M89: =VLOOKUP(K89,TableInputsData[],$M$6,FALSE) -> ABC | N89: AVERAGE COST OF GOODS SOLD PER UNIT | AH89: =IF(AH57=0,0,AH81/AH57) -> 0 | AI89: 0 | AJ89: 0 | AK89: 0 | AL89: 0 | AM89: 0 | AN89: 0 | AO89: 0 | AP89: 0 | AR89: =IF(AR57=0,0,AR81/AR57) -> 0 | AU89: =VLOOKUP($K89,TableInputsData[],ReadMe!$M$3,FALSE)&" | "&VLOOKUP($N89,TableInputsData[],ReadMe!$M$3,FALSE) -> PRODUIT 02 | PRIX MOYEN D'ACHAT PAR PRODUIT/SERVICE
C90: 83 | D90: 1 | F90: YEAR6 | G90: =VLOOKUP($F90,TableInputsData[],ReadMe!$M$3,FALSE) -> ANNEE6 | H90: =VLOOKUP(F90,TableInputsData[],$H$6,FALSE) -> 2031 | I90: PRODUCT | J90: =VLOOKUP($I90,TableInputsData[],ReadMe!$M$3,FALSE) -> PRODUIT | K90: PRODUCT 02 | L90: =VLOOKUP($K90,TableInputsData[],ReadMe!$M$3,FALSE) -> PRODUIT 02 | M90: =VLOOKUP(K90,TableInputsData[],$M$6,FALSE) -> ABC | N90: AVERAGE COST OF GOODS SOLD PER UNIT | AH90: =IF(AH58=0,0,AH82/AH58) -> 0 | AI90: 0 | AJ90: 0 | AK90: 0 | AL90: 0 | AM90: 0 | AN90: 0 | AO90: 0 | AP90: 0 | AR90: =IF(AR58=0,0,AR82/AR58) -> 0 | AU90: =VLOOKUP($K90,TableInputsData[],ReadMe!$M$3,FALSE)&" | "&VLOOKUP($N90,TableInputsData[],ReadMe!$M$3,FALSE) -> PRODUIT 02 | PRIX MOYEN D'ACHAT PAR PRODUIT/SERVICE
C91: 84 | D91: 0 | E91: 1
B92: =K93&"___" -> PRODUCT 03___ | C92: 85 | D92: 0
C93: 86 | D93: =VLOOKUP($K93,TableInputsData[],$D$6,FALSE) -> 1 | E93: 1 | F93: YEAR-2 | G93: =VLOOKUP($F93,TableInputsData[],ReadMe!$M$3,FALSE) -> ANNEE-2 | H93: =VLOOKUP(F93,TableInputsData[],$H$6,FALSE) -> 2024 | I93: PRODUCT | J93: =VLOOKUP($I93,TableInputsData[],ReadMe!$M$3,FALSE) -> PRODUIT | K93: PRODUCT 03 | L93: =VLOOKUP($K93,TableInputsData[],ReadMe!$M$3,FALSE) -> PRODUIT 03 | M93: =VLOOKUP(K93,TableInputsData[],$M$6,FALSE) -> DEF | N93: VOLUME | O93: 1000 | P93: 0 | Q93: 0 | R93: =$O93*$S93+$P93*$T93+$Q93*$U93 -> 1000 | S93: 1 | T93: 0 | U93: =1-$S93-$T93 -> 0 | V93: 500 | W93: 0 | X93: 0 | Y93: =AL125 -> 0 | Z93: 1 | AA93: 1 | AB93: 1 | AC93: =1-$Z93 -> 0 | AD93: =1-$AA93 -> 0 | AE93: =1-$AB93 -> 0 | AF93: =AP125 -> 0 | AG93: =AR125 -> 0 | AH93: 0 | AI93: 0 | AJ93: 0 | AK93: 0 | AL93: =$AH93+$AI93+$AJ93+$AK93 -> 0 | AM93: =$AL93*$S93 -> 0 | AN93: =$AL93*$T93 -> 0 | AO93: =$AL93*$U93 -> 0 | AP93: =$AM93*$Z93+$AN93*$AA93+$AO93*$AB93 -> 0 | AQ93: =IF(AL93=0,0,AP93/AL93) -> 0 | AR93: =$AM93*$AC93+$AN93*$AD93+$AO93*$AE93 -> 0 | AS93: =IF(AL93=0,0,AR93/AL93) -> 0 | AT93: =VLOOKUP(K93,TableInputsData[],$AT$6,FALSE) -> GAMME # : 1 + CANAL DE DISTRIBUTION # : 1 | AU93: =VLOOKUP($K93,TableInputsData[],ReadMe!$M$3,FALSE)&" | "&VLOOKUP($N93,TableInputsData[],ReadMe!$M$3,FALSE) -> PRODUIT 03 | VOLUME | AV93: =AND(EXACT(ROUND(AL93,2),ROUND(AM93+AN93+AO93,2)),EXACT(ROUND(AL93,2),ROUND(AP93+AR93,2)),EXACT(SUM(S93:U93),1),IF(U93<0,FALSE,TRUE),EXACT(SUM(Z93:AE93),3),MIN(Z93:AB93)>=0, MAX(Z93:AB93)<=1) -> TRUE
C94: 87 | D94: =D93 -> 1 | E94: 1 | F94: YEAR-1 | G94: =VLOOKUP($F94,TableInputsData[],ReadMe!$M$3,FALSE) -> ANNEE-1 | H94: =VLOOKUP(F94,TableInputsData[],$H$6,FALSE) -> 2025 | I94: =I93 -> PRODUCT | J94: =VLOOKUP($I94,TableInputsData[],ReadMe!$M$3,FALSE) -> PRODUIT | K94: =K93 -> PRODUCT 03 | L94: =VLOOKUP($K94,TableInputsData[],ReadMe!$M$3,FALSE) -> PRODUIT 03 | M94: =VLOOKUP(K94,TableInputsData[],$M$6,FALSE) -> DEF | N94: =N93 -> VOLUME | O94: 1000 | P94: 0 | Q94: 0 | R94: 1000 | S94: 1 | T94: 0 | U94: =1-$S94-$T94 -> 0 | V94: 500 | W94: 0 | X94: 0 | Y94: =AL126 -> 0 | Z94: 1 | AA94: 1 | AB94: 1 | AC94: 0 | AD94: 0 | AE94: 0 | AF94: =AP126 -> 0 | AG94: =AR126 -> 0 | AH94: 0 | AI94: 0 | AJ94: 0 | AK94: 0 | AL94: 0 | AM94: 0 | AN94: 0 | AO94: 0 | AP94: 0 | AQ94: =IF(AL94=0,0,AP94/AL94) -> 0 | AR94: 0 | AS94: 0 | AU94: =VLOOKUP($K94,TableInputsData[],ReadMe!$M$3,FALSE)&" | "&VLOOKUP($N94,TableInputsData[],ReadMe!$M$3,FALSE) -> PRODUIT 03 | VOLUME | AV94: TRUE
C95: 88 | D95: =D94 -> 1 | E95: 1 | F95: CURRENT YEAR | G95: =VLOOKUP($F95,TableInputsData[],ReadMe!$M$3,FALSE) -> ANNEE EN COURS | H95: =VLOOKUP(F95,TableInputsData[],$H$6,FALSE) -> 2026 | I95: =I94 -> PRODUCT | J95: =VLOOKUP($I95,TableInputsData[],ReadMe!$M$3,FALSE) -> PRODUIT | K95: PRODUCT 03 | L95: =VLOOKUP($K95,TableInputsData[],ReadMe!$M$3,FALSE) -> PRODUIT 03 | M95: =VLOOKUP(K95,TableInputsData[],$M$6,FALSE) -> DEF | N95: =N94 -> VOLUME | O95: 1000 | P95: 0 | Q95: 0 | R95: 1000 | S95: 1 | T95: 0 | U95: 0 | V95: 500 | W95: 0 | X95: 0 | Y95: 0 | Z95: 1 | AA95: 1 | AB95: 1 | AC95: 0 | AD95: 0 | AE95: 0 | AF95: 0 | AG95: 0 | AH95: 0 | AI95: 0 | AJ95: 0 | AK95: 0 | AL95: 0 | AM95: 0 | AN95: 0 | AO95: 0 | AP95: 0 | AQ95: 0 | AR95: 0 | AS95: 0 | AU95: =VLOOKUP($K95,TableInputsData[],ReadMe!$M$3,FALSE)&" | "&VLOOKUP($N95,TableInputsData[],ReadMe!$M$3,FALSE) -> PRODUIT 03 | VOLUME | AV95: TRUE
C96: 89 | D96: 1 | E96: 1 | F96: YEAR2 | G96: =VLOOKUP($F96,TableInputsData[],ReadMe!$M$3,FALSE) -> ANNEE2 | H96: =VLOOKUP(F96,TableInputsData[],$H$6,FALSE) -> 2027 | I96: PRODUCT | J96: =VLOOKUP($I96,TableInputsData[],ReadMe!$M$3,FALSE) -> PRODUIT | K96: PRODUCT 03 | L96: =VLOOKUP($K96,TableInputsData[],ReadMe!$M$3,FALSE) -> PRODUIT 03 | M96: =VLOOKUP(K96,TableInputsData[],$M$6,FALSE) -> DEF | N96: VOLUME | O96: 1000 | P96: 0 | Q96: 0 | R96: 1000 | S96: 1 | T96: 0 | U96: 0 | V96: 500 | W96: 0 | X96: 0 | Y96: 0 | Z96: 1 | AA96: 1 | AB96: 1 | AC96: 0 | AD96: 0 | AE96: 0 | AF96: 0 | AG96: 0 | AH96: 0 | AI96: 0 | AJ96: 0 | AK96: 0 | AL96: 0 | AM96: 0 | AN96: 0 | AO96: 0 | AP96: 0 | AQ96: 0 | AR96: 0 | AS96: 0 | AU96: =VLOOKUP($K96,TableInputsData[],ReadMe!$M$3,FALSE)&" | "&VLOOKUP($N96,TableInputsData[],ReadMe!$M$3,FALSE) -> PRODUIT 03 | VOLUME | AV96: TRUE
C97: 90 | D97: 1 | E97: 1 | F97: YEAR3 | G97: =VLOOKUP($F97,TableInputsData[],ReadMe!$M$3,FALSE) -> ANNEE3 | H97: =VLOOKUP(F97,TableInputsData[],$H$6,FALSE) -> 2028 | I97: PRODUCT | J97: =VLOOKUP($I97,TableInputsData[],ReadMe!$M$3,FALSE) -> PRODUIT | K97: PRODUCT 03 | L97: =VLOOKUP($K97,TableInputsData[],ReadMe!$M$3,FALSE) -> PRODUIT 03 | M97: =VLOOKUP(K97,TableInputsData[],$M$6,FALSE) -> DEF | N97: VOLUME | O97: 1000 | P97: 0 | Q97: 0 | R97: 1000 | S97: 1 | T97: 0 | U97: 0 | V97: 500 | W97: 0 | X97: 0 | Y97: 0 | Z97: 1 | AA97: 1 | AB97: 1 | AC97: 0 | AD97: 0 | AE97: 0 | AF97: 0 | AG97: 0 | AH97: =$AL97/4 -> 0 | AI97: =$AL97/4 -> 0 | AJ97: 0 | AK97: 0 | AL97: 0 | AM97: 0 | AN97: 0 | AO97: 0 | AP97: 0 | AQ97: 0 | AR97: 0 | AS97: 0 | AU97: =VLOOKUP($K97,TableInputsData[],ReadMe!$M$3,FALSE)&" | "&VLOOKUP($N97,TableInputsData[],ReadMe!$M$3,FALSE) -> PRODUIT 03 | VOLUME | AV97: TRUE
C98: 91 | D98: 1 | E98: 1 | F98: YEAR4 | G98: =VLOOKUP($F98,TableInputsData[],ReadMe!$M$3,FALSE) -> ANNEE4 | H98: =VLOOKUP(F98,TableInputsData[],$H$6,FALSE) -> 2029 | I98: PRODUCT | J98: =VLOOKUP($I98,TableInputsData[],ReadMe!$M$3,FALSE) -> PRODUIT | K98: PRODUCT 03 | L98: =VLOOKUP($K98,TableInputsData[],ReadMe!$M$3,FALSE) -> PRODUIT 03 | M98: =VLOOKUP(K98,TableInputsData[],$M$6,FALSE) -> DEF | N98: VOLUME | O98: 1000 | P98: 0 | Q98: 0 | R98: 1000 | S98: 1 | T98: 0 | U98: 0 | V98: 500 | W98: 0 | X98: 0 | Y98: 0 | Z98: 1 | AA98: 1 | AB98: 1 | AC98: 0 | AD98: 0 | AE98: 0 | AF98: 0 | AG98: 0 | AH98: =$AL98/4 -> 0 | AI98: 0 | AJ98: 0 | AK98: 0 | AL98: 0 | AM98: 0 | AN98: 0 | AO98: 0 | AP98: 0 | AQ98: 0 | AR98: 0 | AS98: 0 | AU98: =VLOOKUP($K98,TableInputsData[],ReadMe!$M$3,FALSE)&" | "&VLOOKUP($N98,TableInputsData[],ReadMe!$M$3,FALSE) -> PRODUIT 03 | VOLUME | AV98: TRUE
C99: 92 | D99: 1 | E99: 1 | F99: YEAR5 | G99: =VLOOKUP($F99,TableInputsData[],ReadMe!$M$3,FALSE) -> ANNEE5 | H99: =VLOOKUP(F99,TableInputsData[],$H$6,FALSE) -> 2030 | I99: PRODUCT | J99: =VLOOKUP($I99,TableInputsData[],ReadMe!$M$3,FALSE) -> PRODUIT | K99: PRODUCT 03 | L99: =VLOOKUP($K99,TableInputsData[],ReadMe!$M$3,FALSE) -> PRODUIT 03 | M99: =VLOOKUP(K99,TableInputsData[],$M$6,FALSE) -> DEF | N99: VOLUME | O99: 1000 | P99: 0 | Q99: 0 | R99: 1000 | S99: 1 | T99: 0 | U99: 0 | V99: 500 | W99: 0 | X99: 0 | Y99: 0 | Z99: 1 | AA99: 1 | AB99: 1 | AC99: 0 | AD99: 0 | AE99: 0 | AF99: 0 | AG99: 0 | AH99: 0 | AI99: 0 | AJ99: 0 | AK99: 0 | AL99: 0 | AM99: 0 | AN99: 0 | AO99: 0 | AP99: 0 | AQ99: 0 | AR99: 0 | AS99: 0 | AU99: =VLOOKUP($K99,TableInputsData[],ReadMe!$M$3,FALSE)&" | "&VLOOKUP($N99,TableInputsData[],ReadMe!$M$3,FALSE) -> PRODUIT 03 | VOLUME | AV99: TRUE
C100: 93 | D100: 1 | E100: 1 | F100: YEAR6 | G100: =VLOOKUP($F100,TableInputsData[],ReadMe!$M$3,FALSE) -> ANNEE6 | H100: =VLOOKUP(F100,TableInputsData[],$H$6,FALSE) -> 2031 | I100: PRODUCT | J100: =VLOOKUP($I100,TableInputsData[],ReadMe!$M$3,FALSE) -> PRODUIT | K100: PRODUCT 03 | L100: =VLOOKUP($K100,TableInputsData[],ReadMe!$M$3,FALSE) -> PRODUIT 03 | M100: =VLOOKUP(K100,TableInputsData[],$M$6,FALSE) -> DEF | N100: VOLUME | O100: 1000 | P100: 0 | Q100: 0 | R100: 1000 | S100: 1 | T100: 0 | U100: 0 | V100: 500 | W100: 0 | X100: 0 | Y100: 0 | Z100: 1 | AA100: 1 | AB100: 1 | AC100: 0 | AD100: 0 | AE100: 0 | AF100: 0 | AG100: 0 | AH100: 0 | AI100: 0 | AJ100: 0 | AK100: 0 | AL100: 0 | AM100: 0 | AN100: 0 | AO100: 0 | AP100: 0 | AQ100: 0 | AR100: 0 | AS100: 0 | AU100: =VLOOKUP($K100,TableInputsData[],ReadMe!$M$3,FALSE)&" | "&VLOOKUP($N100,TableInputsData[],ReadMe!$M$3,FALSE) -> PRODUIT 03 | VOLUME | AV100: TRUE
C101: 94 | D101: 1 | F101: =F109 -> YEAR-2 | G101: =VLOOKUP($F101,TableInputsData[],ReadMe!$M$3,FALSE) -> ANNEE-2 | H101: =VLOOKUP(F101,TableInputsData[],$H$6,FALSE) -> 2024 | I101: PRODUCT | J101: =VLOOKUP($I101,TableInputsData[],ReadMe!$M$3,FALSE) -> PRODUIT | K101: PRODUCT 03 | L101: =VLOOKUP($K101,TableInputsData[],ReadMe!$M$3,FALSE) -> PRODUIT 03 | M101: =VLOOKUP(K101,TableInputsData[],$M$6,FALSE) -> DEF | N101: REVENUE | AH101: =AH93*($O93*$S93+$P93*$T93+$Q93*$U93) -> 0 | AI101: =AI93*($O93*$S93+$P93*$T93+$Q93*$U93) -> 0 | AJ101: 0 | AK101: 0 | AL101: =$AH101+$AI101+$AJ101+$AK101 -> 0 | AM101: =$AM93*$O93 -> 0 | AN101: =$AN93*$P93 -> 0 | AO101: =$AO93*$Q93 -> 0 | AP101: =$AM101*$Z93+$AN101*$AA93+$AO101*$AB93 -> 0 | AQ101: 0 | AR101: =$AM101*$AC93+$AN101*$AD93+$AO101*$AE93 -> 0 | AS101: 0 | AU101: =VLOOKUP($K101,TableInputsData[],ReadMe!$M$3,FALSE)&" | "&VLOOKUP($N101,TableInputsData[],ReadMe!$M$3,FALSE) -> PRODUIT 03 | CHIFFRE D'AFFAIRES | AV101: =AND(EXACT(ROUND(AL101,2),ROUND(AM101+AN101+AO101,2)),EXACT(ROUND(AL101,2),ROUND(AP101+AR101,2))) -> TRUE
C102: 95 | D102: 1 | F102: YEAR-1 | G102: =VLOOKUP($F102,TableInputsData[],ReadMe!$M$3,FALSE) -> ANNEE-1 | H102: =VLOOKUP(F102,TableInputsData[],$H$6,FALSE) -> 2025 | I102: PRODUCT | J102: =VLOOKUP($I102,TableInputsData[],ReadMe!$M$3,FALSE) -> PRODUIT | K102: PRODUCT 03 | L102: =VLOOKUP($K102,TableInputsData[],ReadMe!$M$3,FALSE) -> PRODUIT 03 | M102: =VLOOKUP(K102,TableInputsData[],$M$6,FALSE) -> DEF | N102: =N101 -> REVENUE | AH102: =AH94*($O94*$S94+$P94*$T94+$Q94*$U94) -> 0 | AI102: 0 | AJ102: 0 | AK102: 0 | AL102: =$AH102+$AI102+$AJ102+$AK102 -> 0 | AM102: 0 | AN102: 0 | AO102: 0 | AP102: 0 | AQ102: 0 | AR102: 0 | AS102: 0 | AU102: =VLOOKUP($K102,TableInputsData[],ReadMe!$M$3,FALSE)&" | "&VLOOKUP($N102,TableInputsData[],ReadMe!$M$3,FALSE) -> PRODUIT 03 | CHIFFRE D'AFFAIRES | AV102: TRUE
C103: 96 | D103: 1 | F103: CURRENT YEAR | G103: =VLOOKUP($F103,TableInputsData[],ReadMe!$M$3,FALSE) -> ANNEE EN COURS | H103: =VLOOKUP(F103,TableInputsData[],$H$6,FALSE) -> 2026 | I103: PRODUCT | J103: =VLOOKUP($I103,TableInputsData[],ReadMe!$M$3,FALSE) -> PRODUIT | K103: PRODUCT 03 | L103: =VLOOKUP($K103,TableInputsData[],ReadMe!$M$3,FALSE) -> PRODUIT 03 | M103: =VLOOKUP(K103,TableInputsData[],$M$6,FALSE) -> DEF | N103: =N102 -> REVENUE | AH103: =AH95*($O95*$S95+$P95*$T95+$Q95*$U95) -> 0 | AI103: 0 | AJ103: 0 | AK103: 0 | AL103: 0 | AM103: 0 | AN103: 0 | AO103: 0 | AP103: 0 | AQ103: 0 | AR103: 0 | AS103: 0 | AU103: =VLOOKUP($K103,TableInputsData[],ReadMe!$M$3,FALSE)&" | "&VLOOKUP($N103,TableInputsData[],ReadMe!$M$3,FALSE) -> PRODUIT 03 | CHIFFRE D'AFFAIRES | AV103: TRUE
C104: 97 | D104: 1 | F104: YEAR2 | G104: =VLOOKUP($F104,TableInputsData[],ReadMe!$M$3,FALSE) -> ANNEE2 | H104: =VLOOKUP(F104,TableInputsData[],$H$6,FALSE) -> 2027 | I104: PRODUCT | J104: =VLOOKUP($I104,TableInputsData[],ReadMe!$M$3,FALSE) -> PRODUIT | K104: PRODUCT 03 | L104: =VLOOKUP($K104,TableInputsData[],ReadMe!$M$3,FALSE) -> PRODUIT 03 | M104: =VLOOKUP(K104,TableInputsData[],$M$6,FALSE) -> DEF | N104: REVENUE | AH104: =AH96*($O96*$S96+$P96*$T96+$Q96*$U96) -> 0 | AI104: 0 | AJ104: 0 | AK104: 0 | AL104: 0 | AM104: 0 | AN104: 0 | AO104: 0 | AP104: 0 | AQ104: 0 | AR104: 0 | AS104: 0 | AU104: =VLOOKUP($K104,TableInputsData[],ReadMe!$M$3,FALSE)&" | "&VLOOKUP($N104,TableInputsData[],ReadMe!$M$3,FALSE) -> PRODUIT 03 | CHIFFRE D'AFFAIRES | AV104: TRUE
C105: 98 | D105: 1 | F105: YEAR3 | G105: =VLOOKUP($F105,TableInputsData[],ReadMe!$M$3,FALSE) -> ANNEE3 | H105: =VLOOKUP(F105,TableInputsData[],$H$6,FALSE) -> 2028 | I105: PRODUCT | J105: =VLOOKUP($I105,TableInputsData[],ReadMe!$M$3,FALSE) -> PRODUIT | K105: PRODUCT 03 | L105: =VLOOKUP($K105,TableInputsData[],ReadMe!$M$3,FALSE) -> PRODUIT 03 | M105: =VLOOKUP(K105,TableInputsData[],$M$6,FALSE) -> DEF | N105: REVENUE | AH105: =AH97*($O97*$S97+$P97*$T97+$Q97*$U97) -> 0 | AI105: 0 | AJ105: 0 | AK105: 0 | AL105: 0 | AM105: 0 | AN105: 0 | AO105: 0 | AP105: 0 | AQ105: 0 | AR105: 0 | AS105: 0 | AU105: =VLOOKUP($K105,TableInputsData[],ReadMe!$M$3,FALSE)&" | "&VLOOKUP($N105,TableInputsData[],ReadMe!$M$3,FALSE) -> PRODUIT 03 | CHIFFRE D'AFFAIRES | AV105: TRUE
C106: 99 | D106: 1 | F106: YEAR4 | G106: =VLOOKUP($F106,TableInputsData[],ReadMe!$M$3,FALSE) -> ANNEE4 | H106: =VLOOKUP(F106,TableInputsData[],$H$6,FALSE) -> 2029 | I106: PRODUCT | J106: =VLOOKUP($I106,TableInputsData[],ReadMe!$M$3,FALSE) -> PRODUIT | K106: PRODUCT 03 | L106: =VLOOKUP($K106,TableInputsData[],ReadMe!$M$3,FALSE) -> PRODUIT 03 | M106: =VLOOKUP(K106,TableInputsData[],$M$6,FALSE) -> DEF | N106: REVENUE | AH106: =AH98*($O98*$S98+$P98*$T98+$Q98*$U98) -> 0 | AI106: 0 | AJ106: 0 | AK106: 0 | AL106: 0 | AM106: 0 | AN106: 0 | AO106: 0 | AP106: 0 | AQ106: 0 | AR106: 0 | AS106: 0 | AU106: =VLOOKUP($K106,TableInputsData[],ReadMe!$M$3,FALSE)&" | "&VLOOKUP($N106,TableInputsData[],ReadMe!$M$3,FALSE) -> PRODUIT 03 | CHIFFRE D'AFFAIRES | AV106: TRUE
C107: 100 | D107: 1 | F107: YEAR5 | G107: =VLOOKUP($F107,TableInputsData[],ReadMe!$M$3,FALSE) -> ANNEE5 | H107: =VLOOKUP(F107,TableInputsData[],$H$6,FALSE) -> 2030 | I107: PRODUCT | J107: =VLOOKUP($I107,TableInputsData[],ReadMe!$M$3,FALSE) -> PRODUIT | K107: PRODUCT 03 | L107: =VLOOKUP($K107,TableInputsData[],ReadMe!$M$3,FALSE) -> PRODUIT 03 | M107: =VLOOKUP(K107,TableInputsData[],$M$6,FALSE) -> DEF | N107: REVENUE | AH107: =AH99*($O99*$S99+$P99*$T99+$Q99*$U99) -> 0 | AI107: 0 | AJ107: 0 | AK107: 0 | AL107: 0 | AM107: 0 | AN107: 0 | AO107: 0 | AP107: 0 | AQ107: 0 | AR107: 0 | AS107: 0 | AU107: =VLOOKUP($K107,TableInputsData[],ReadMe!$M$3,FALSE)&" | "&VLOOKUP($N107,TableInputsData[],ReadMe!$M$3,FALSE) -> PRODUIT 03 | CHIFFRE D'AFFAIRES | AV107: TRUE
C108: 101 | D108: 1 | F108: YEAR6 | G108: =VLOOKUP($F108,TableInputsData[],ReadMe!$M$3,FALSE) -> ANNEE6 | H108: =VLOOKUP(F108,TableInputsData[],$H$6,FALSE) -> 2031 | I108: PRODUCT | J108: =VLOOKUP($I108,TableInputsData[],ReadMe!$M$3,FALSE) -> PRODUIT | K108: PRODUCT 03 | L108: =VLOOKUP($K108,TableInputsData[],ReadMe!$M$3,FALSE) -> PRODUIT 03 | M108: =VLOOKUP(K108,TableInputsData[],$M$6,FALSE) -> DEF | N108: REVENUE | AH108: =AH100*($O100*$S100+$P100*$T100+$Q100*$U100) -> 0 | AI108: 0 | AJ108: 0 | AK108: 0 | AL108: =$AH108+$AI108+$AJ108+$AK108 -> 0 | AM108: 0 | AN108: 0 | AO108: 0 | AP108: 0 | AQ108: 0 | AR108: 0 | AS108: 0 | AU108: =VLOOKUP($K108,TableInputsData[],ReadMe!$M$3,FALSE)&" | "&VLOOKUP($N108,TableInputsData[],ReadMe!$M$3,FALSE) -> PRODUIT 03 | CHIFFRE D'AFFAIRES | AV108: TRUE
C109: 102 | D109: 1 | F109: =F93 -> YEAR-2 | G109: =VLOOKUP($F109,TableInputsData[],ReadMe!$M$3,FALSE) -> ANNEE-2 | H109: =VLOOKUP(F109,TableInputsData[],$H$6,FALSE) -> 2024 | I109: PRODUCT | J109: =VLOOKUP($I109,TableInputsData[],ReadMe!$M$3,FALSE) -> PRODUIT | K109: PRODUCT 03 | L109: =VLOOKUP($K109,TableInputsData[],ReadMe!$M$3,FALSE) -> PRODUIT 03 | M109: =VLOOKUP(K109,TableInputsData[],$M$6,FALSE) -> DEF | N109: AVERAGE SELLING PRICE PER UNIT | AH109: =IF(AH93=0,0,AH101/AH93) -> 0 | AI109: =IF(AI93=0,0,AI101/AI93) -> 0 | AJ109: 0 | AK109: 0 | AL109: 0 | AM109: =IF(AM93=0,0,AM101/AM93) -> 0 | AN109: =IF(AN93=0,0,AN101/AN93) -> 0 | AO109: 0 | AP109: =IF(AP93=0,0,AP101/AP93) -> 0 | AR109: =IF(AR93=0,0,AR101/AR93) -> 0 | AU109: =VLOOKUP($K109,TableInputsData[],ReadMe!$M$3,FALSE)&" | "&VLOOKUP($N109,TableInputsData[],ReadMe!$M$3,FALSE) -> PRODUIT 03 | PRIX MOYEN DE VENTE PAR PRODUIT/SERVICE
C110: 103 | D110: 1 | F110: YEAR-1 | G110: =VLOOKUP($F110,TableInputsData[],ReadMe!$M$3,FALSE) -> ANNEE-1 | H110: =VLOOKUP(F110,TableInputsData[],$H$6,FALSE) -> 2025 | I110: PRODUCT | J110: =VLOOKUP($I110,TableInputsData[],ReadMe!$M$3,FALSE) -> PRODUIT | K110: PRODUCT 03 | L110: =VLOOKUP($K110,TableInputsData[],ReadMe!$M$3,FALSE) -> PRODUIT 03 | M110: =VLOOKUP(K110,TableInputsData[],$M$6,FALSE) -> DEF | N110: =N109 -> AVERAGE SELLING PRICE PER UNIT | AH110: =IF(AH94=0,0,AH102/AH94) -> 0 | AI110: =IF(AI94=0,0,AI102/AI94) -> 0 | AJ110: 0 | AK110: 0 | AL110: 0 | AM110: 0 | AN110: 0 | AO110: 0 | AP110: 0 | AR110: =IF(AR94=0,0,AR102/AR94) -> 0 | AU110: =VLOOKUP($K110,TableInputsData[],ReadMe!$M$3,FALSE)&" | "&VLOOKUP($N110,TableInputsData[],ReadMe!$M$3,FALSE) -> PRODUIT 03 | PRIX MOYEN DE VENTE PAR PRODUIT/SERVICE
C111: 104 | D111: 1 | F111: CURRENT YEAR | G111: =VLOOKUP($F111,TableInputsData[],ReadMe!$M$3,FALSE) -> ANNEE EN COURS | H111: =VLOOKUP(F111,TableInputsData[],$H$6,FALSE) -> 2026 | I111: PRODUCT | J111: =VLOOKUP($I111,TableInputsData[],ReadMe!$M$3,FALSE) -> PRODUIT | K111: PRODUCT 03 | L111: =VLOOKUP($K111,TableInputsData[],ReadMe!$M$3,FALSE) -> PRODUIT 03 | M111: =VLOOKUP(K111,TableInputsData[],$M$6,FALSE) -> DEF | N111: =N110 -> AVERAGE SELLING PRICE PER UNIT | AH111: =IF(AH95=0,0,AH103/AH95) -> 0 | AI111: =IF(AI95=0,0,AI103/AI95) -> 0 | AJ111: 0 | AK111: 0 | AL111: 0 | AM111: 0 | AN111: 0 | AO111: 0 | AP111: 0 | AR111: =IF(AR95=0,0,AR103/AR95) -> 0 | AU111: =VLOOKUP($K111,TableInputsData[],ReadMe!$M$3,FALSE)&" | "&VLOOKUP($N111,TableInputsData[],ReadMe!$M$3,FALSE) -> PRODUIT 03 | PRIX MOYEN DE VENTE PAR PRODUIT/SERVICE
C112: 105 | D112: 1 | F112: YEAR2 | G112: =VLOOKUP($F112,TableInputsData[],ReadMe!$M$3,FALSE) -> ANNEE2 | H112: =VLOOKUP(F112,TableInputsData[],$H$6,FALSE) -> 2027 | I112: PRODUCT | J112: =VLOOKUP($I112,TableInputsData[],ReadMe!$M$3,FALSE) -> PRODUIT | K112: PRODUCT 03 | L112: =VLOOKUP($K112,TableInputsData[],ReadMe!$M$3,FALSE) -> PRODUIT 03 | M112: =VLOOKUP(K112,TableInputsData[],$M$6,FALSE) -> DEF | N112: AVERAGE SELLING PRICE PER UNIT | AH112: =IF(AH96=0,0,AH104/AH96) -> 0 | AI112: =IF(AI96=0,0,AI104/AI96) -> 0 | AJ112: 0 | AK112: 0 | AL112: 0 | AM112: 0 | AN112: 0 | AO112: 0 | AP112: 0 | AR112: =IF(AR96=0,0,AR104/AR96) -> 0 | AU112: =VLOOKUP($K112,TableInputsData[],ReadMe!$M$3,FALSE)&" | "&VLOOKUP($N112,TableInputsData[],ReadMe!$M$3,FALSE) -> PRODUIT 03 | PRIX MOYEN DE VENTE PAR PRODUIT/SERVICE
C113: 106 | D113: 1 | F113: YEAR3 | G113: =VLOOKUP($F113,TableInputsData[],ReadMe!$M$3,FALSE) -> ANNEE3 | H113: =VLOOKUP(F113,TableInputsData[],$H$6,FALSE) -> 2028 | I113: PRODUCT | J113: =VLOOKUP($I113,TableInputsData[],ReadMe!$M$3,FALSE) -> PRODUIT | K113: PRODUCT 03 | L113: =VLOOKUP($K113,TableInputsData[],ReadMe!$M$3,FALSE) -> PRODUIT 03 | M113: =VLOOKUP(K113,TableInputsData[],$M$6,FALSE) -> DEF | N113: AVERAGE SELLING PRICE PER UNIT | AH113: =IF(AH97=0,0,AH105/AH97) -> 0 | AI113: 0 | AJ113: 0 | AK113: 0 | AL113: 0 | AM113: 0 | AN113: 0 | AO113: 0 | AP113: 0 | AR113: =IF(AR97=0,0,AR105/AR97) -> 0 | AU113: =VLOOKUP($K113,TableInputsData[],ReadMe!$M$3,FALSE)&" | "&VLOOKUP($N113,TableInputsData[],ReadMe!$M$3,FALSE) -> PRODUIT 03 | PRIX MOYEN DE VENTE PAR PRODUIT/SERVICE
C114: 107 | D114: 1 | F114: YEAR4 | G114: =VLOOKUP($F114,TableInputsData[],ReadMe!$M$3,FALSE) -> ANNEE4 | H114: =VLOOKUP(F114,TableInputsData[],$H$6,FALSE) -> 2029 | I114: PRODUCT | J114: =VLOOKUP($I114,TableInputsData[],ReadMe!$M$3,FALSE) -> PRODUIT | K114: PRODUCT 03 | L114: =VLOOKUP($K114,TableInputsData[],ReadMe!$M$3,FALSE) -> PRODUIT 03 | M114: =VLOOKUP(K114,TableInputsData[],$M$6,FALSE) -> DEF | N114: AVERAGE SELLING PRICE PER UNIT | AH114: =IF(AH98=0,0,AH106/AH98) -> 0 | AI114: 0 | AJ114: 0 | AK114: 0 | AL114: 0 | AM114: 0 | AN114: 0 | AO114: 0 | AP114: 0 | AR114: =IF(AR98=0,0,AR106/AR98) -> 0 | AU114: =VLOOKUP($K114,TableInputsData[],ReadMe!$M$3,FALSE)&" | "&VLOOKUP($N114,TableInputsData[],ReadMe!$M$3,FALSE) -> PRODUIT 03 | PRIX MOYEN DE VENTE PAR PRODUIT/SERVICE
C115: 108 | D115: 1 | F115: YEAR5 | G115: =VLOOKUP($F115,TableInputsData[],ReadMe!$M$3,FALSE) -> ANNEE5 | H115: =VLOOKUP(F115,TableInputsData[],$H$6,FALSE) -> 2030 | I115: PRODUCT | J115: =VLOOKUP($I115,TableInputsData[],ReadMe!$M$3,FALSE) -> PRODUIT | K115: PRODUCT 03 | L115: =VLOOKUP($K115,TableInputsData[],ReadMe!$M$3,FALSE) -> PRODUIT 03 | M115: =VLOOKUP(K115,TableInputsData[],$M$6,FALSE) -> DEF | N115: AVERAGE SELLING PRICE PER UNIT | AH115: =IF(AH99=0,0,AH107/AH99) -> 0 | AI115: 0 | AJ115: 0 | AK115: 0 | AL115: 0 | AM115: 0 | AN115: 0 | AO115: 0 | AP115: 0 | AR115: =IF(AR99=0,0,AR107/AR99) -> 0 | AU115: =VLOOKUP($K115,TableInputsData[],ReadMe!$M$3,FALSE)&" | "&VLOOKUP($N115,TableInputsData[],ReadMe!$M$3,FALSE) -> PRODUIT 03 | PRIX MOYEN DE VENTE PAR PRODUIT/SERVICE
C116: 109 | D116: 1 | F116: YEAR6 | G116: =VLOOKUP($F116,TableInputsData[],ReadMe!$M$3,FALSE) -> ANNEE6 | H116: =VLOOKUP(F116,TableInputsData[],$H$6,FALSE) -> 2031 | I116: PRODUCT | J116: =VLOOKUP($I116,TableInputsData[],ReadMe!$M$3,FALSE) -> PRODUIT | K116: PRODUCT 03 | L116: =VLOOKUP($K116,TableInputsData[],ReadMe!$M$3,FALSE) -> PRODUIT 03 | M116: =VLOOKUP(K116,TableInputsData[],$M$6,FALSE) -> DEF | N116: AVERAGE SELLING PRICE PER UNIT | AH116: =IF(AH100=0,0,AH108/AH100) -> 0 | AI116: 0 | AJ116: 0 | AK116: 0 | AL116: 0 | AM116: 0 | AN116: 0 | AO116: 0 | AP116: 0 | AR116: =IF(AR100=0,0,AR108/AR100) -> 0 | AU116: =VLOOKUP($K116,TableInputsData[],ReadMe!$M$3,FALSE)&" | "&VLOOKUP($N116,TableInputsData[],ReadMe!$M$3,FALSE) -> PRODUIT 03 | PRIX MOYEN DE VENTE PAR PRODUIT/SERVICE
C117: 110 | D117: 1 | F117: =F125 -> YEAR-2 | G117: =VLOOKUP($F117,TableInputsData[],ReadMe!$M$3,FALSE) -> ANNEE-2 | H117: =VLOOKUP(F117,TableInputsData[],$H$6,FALSE) -> 2024 | I117: PRODUCT | J117: =VLOOKUP($I117,TableInputsData[],ReadMe!$M$3,FALSE) -> PRODUIT | K117: PRODUCT 03 | L117: =VLOOKUP($K117,TableInputsData[],ReadMe!$M$3,FALSE) -> PRODUIT 03 | M117: =VLOOKUP(K117,TableInputsData[],$M$6,FALSE) -> DEF | N117: COST OF GOODS SOLD | AH117: =AH93*($V93*$S93+$W93*$T93+$X93*$U93) -> 0 | AI117: =AI93*($V93*$S93+$W93*$T93+$X93*$U93) -> 0 | AJ117: 0 | AK117: 0 | AL117: =$AH117+$AI117+$AJ117+$AK117 -> 0 | AM117: =$AM93*$V93 -> 0 | AN117: =$AN93*$W93 -> 0 | AO117: =$AO93*$X93 -> 0 | AP117: =$AM117*$Z93+$AN117*$AA93+$AO117*$AB93 -> 0 | AQ117: =IF(AL117=0,0,AP117/AL117) -> 0 | AR117: =$AM117*$AC93+$AN117*$AD93+$AO117*$AE93 -> 0 | AS117: =IF(AL117=0,0,AR117/AL117) -> 0 | AU117: =VLOOKUP($K117,TableInputsData[],ReadMe!$M$3,FALSE)&" | "&VLOOKUP($N117,TableInputsData[],ReadMe!$M$3,FALSE) -> PRODUIT 03 | DEPENSES SUR ACHATS | AV117: =AND(EXACT(ROUND(AL117,2),ROUND(AM117+AN117+AO117,2)),EXACT(ROUND(AL117,2),ROUND(AP117+AR117,2))) -> TRUE
C118: 111 | D118: 1 | F118: YEAR-1 | G118: =VLOOKUP($F118,TableInputsData[],ReadMe!$M$3,FALSE) -> ANNEE-1 | H118: =VLOOKUP(F118,TableInputsData[],$H$6,FALSE) -> 2025 | I118: PRODUCT | J118: =VLOOKUP($I118,TableInputsData[],ReadMe!$M$3,FALSE) -> PRODUIT | K118: PRODUCT 03 | L118: =VLOOKUP($K118,TableInputsData[],ReadMe!$M$3,FALSE) -> PRODUIT 03 | M118: =VLOOKUP(K118,TableInputsData[],$M$6,FALSE) -> DEF | N118: =N117 -> COST OF GOODS SOLD | AH118: =AH94*($V94*$S94+$W94*$T94+$X94*$U94) -> 0 | AI118: 0 | AJ118: 0 | AK118: 0 | AL118: 0 | AM118: 0 | AN118: 0 | AO118: 0 | AP118: 0 | AQ118: 0 | AR118: 0 | AS118: 0 | AU118: =VLOOKUP($K118,TableInputsData[],ReadMe!$M$3,FALSE)&" | "&VLOOKUP($N118,TableInputsData[],ReadMe!$M$3,FALSE) -> PRODUIT 03 | DEPENSES SUR ACHATS | AV118: TRUE
C119: 112 | D119: 1 | F119: CURRENT YEAR | G119: =VLOOKUP($F119,TableInputsData[],ReadMe!$M$3,FALSE) -> ANNEE EN COURS | H119: =VLOOKUP(F119,TableInputsData[],$H$6,FALSE) -> 2026 | I119: PRODUCT | J119: =VLOOKUP($I119,TableInputsData[],ReadMe!$M$3,FALSE) -> PRODUIT | K119: PRODUCT 03 | L119: =VLOOKUP($K119,TableInputsData[],ReadMe!$M$3,FALSE) -> PRODUIT 03 | M119: =VLOOKUP(K119,TableInputsData[],$M$6,FALSE) -> DEF | N119: =N118 -> COST OF GOODS SOLD | AH119: =AH95*($V95*$S95+$W95*$T95+$X95*$U95) -> 0 | AI119: 0 | AJ119: 0 | AK119: 0 | AL119: 0 | AM119: 0 | AN119: 0 | AO119: 0 | AP119: 0 | AQ119: 0 | AR119: 0 | AS119: 0 | AU119: =VLOOKUP($K119,TableInputsData[],ReadMe!$M$3,FALSE)&" | "&VLOOKUP($N119,TableInputsData[],ReadMe!$M$3,FALSE) -> PRODUIT 03 | DEPENSES SUR ACHATS | AV119: TRUE
C120: 113 | D120: 1 | F120: YEAR2 | G120: =VLOOKUP($F120,TableInputsData[],ReadMe!$M$3,FALSE) -> ANNEE2 | H120: =VLOOKUP(F120,TableInputsData[],$H$6,FALSE) -> 2027 | I120: PRODUCT | J120: =VLOOKUP($I120,TableInputsData[],ReadMe!$M$3,FALSE) -> PRODUIT | K120: PRODUCT 03 | L120: =VLOOKUP($K120,TableInputsData[],ReadMe!$M$3,FALSE) -> PRODUIT 03 | M120: =VLOOKUP(K120,TableInputsData[],$M$6,FALSE) -> DEF | N120: COST OF GOODS SOLD | AH120: =AH96*($V96*$S96+$W96*$T96+$X96*$U96) -> 0 | AI120: 0 | AJ120: 0 | AK120: 0 | AL120: 0 | AM120: 0 | AN120: 0 | AO120: 0 | AP120: 0 | AQ120: 0 | AR120: 0 | AS120: 0 | AU120: =VLOOKUP($K120,TableInputsData[],ReadMe!$M$3,FALSE)&" | "&VLOOKUP($N120,TableInputsData[],ReadMe!$M$3,FALSE) -> PRODUIT 03 | DEPENSES SUR ACHATS | AV120: TRUE
C121: 114 | D121: 1 | F121: YEAR3 | G121: =VLOOKUP($F121,TableInputsData[],ReadMe!$M$3,FALSE) -> ANNEE3 | H121: =VLOOKUP(F121,TableInputsData[],$H$6,FALSE) -> 2028 | I121: PRODUCT | J121: =VLOOKUP($I121,TableInputsData[],ReadMe!$M$3,FALSE) -> PRODUIT | K121: PRODUCT 03 | L121: =VLOOKUP($K121,TableInputsData[],ReadMe!$M$3,FALSE) -> PRODUIT 03 | M121: =VLOOKUP(K121,TableInputsData[],$M$6,FALSE) -> DEF | N121: COST OF GOODS SOLD | AH121: =AH97*($V97*$S97+$W97*$T97+$X97*$U97) -> 0 | AI121: 0 | AJ121: 0 | AK121: 0 | AL121: 0 | AM121: 0 | AN121: 0 | AO121: 0 | AP121: 0 | AQ121: 0 | AR121: 0 | AS121: 0 | AU121: =VLOOKUP($K121,TableInputsData[],ReadMe!$M$3,FALSE)&" | "&VLOOKUP($N121,TableInputsData[],ReadMe!$M$3,FALSE) -> PRODUIT 03 | DEPENSES SUR ACHATS | AV121: TRUE
C122: 115 | D122: 1 | F122: YEAR4 | G122: =VLOOKUP($F122,TableInputsData[],ReadMe!$M$3,FALSE) -> ANNEE4 | H122: =VLOOKUP(F122,TableInputsData[],$H$6,FALSE) -> 2029 | I122: PRODUCT | J122: =VLOOKUP($I122,TableInputsData[],ReadMe!$M$3,FALSE) -> PRODUIT | K122: PRODUCT 03 | L122: =VLOOKUP($K122,TableInputsData[],ReadMe!$M$3,FALSE) -> PRODUIT 03 | M122: =VLOOKUP(K122,TableInputsData[],$M$6,FALSE) -> DEF | N122: COST OF GOODS SOLD | AH122: =AH98*($V98*$S98+$W98*$T98+$X98*$U98) -> 0 | AI122: 0 | AJ122: 0 | AK122: 0 | AL122: 0 | AM122: 0 | AN122: 0 | AO122: 0 | AP122: 0 | AQ122: 0 | AR122: 0 | AS122: 0 | AU122: =VLOOKUP($K122,TableInputsData[],ReadMe!$M$3,FALSE)&" | "&VLOOKUP($N122,TableInputsData[],ReadMe!$M$3,FALSE) -> PRODUIT 03 | DEPENSES SUR ACHATS | AV122: TRUE
C123: 116 | D123: 1 | F123: YEAR5 | G123: =VLOOKUP($F123,TableInputsData[],ReadMe!$M$3,FALSE) -> ANNEE5 | H123: =VLOOKUP(F123,TableInputsData[],$H$6,FALSE) -> 2030 | I123: PRODUCT | J123: =VLOOKUP($I123,TableInputsData[],ReadMe!$M$3,FALSE) -> PRODUIT | K123: PRODUCT 03 | L123: =VLOOKUP($K123,TableInputsData[],ReadMe!$M$3,FALSE) -> PRODUIT 03 | M123: =VLOOKUP(K123,TableInputsData[],$M$6,FALSE) -> DEF | N123: COST OF GOODS SOLD | AH123: =AH99*($V99*$S99+$W99*$T99+$X99*$U99) -> 0 | AI123: 0 | AJ123: 0 | AK123: 0 | AL123: 0 | AM123: 0 | AN123: 0 | AO123: 0 | AP123: 0 | AQ123: 0 | AR123: 0 | AS123: 0 | AU123: =VLOOKUP($K123,TableInputsData[],ReadMe!$M$3,FALSE)&" | "&VLOOKUP($N123,TableInputsData[],ReadMe!$M$3,FALSE) -> PRODUIT 03 | DEPENSES SUR ACHATS | AV123: TRUE
C124: 117 | D124: 1 | F124: YEAR6 | G124: =VLOOKUP($F124,TableInputsData[],ReadMe!$M$3,FALSE) -> ANNEE6 | H124: =VLOOKUP(F124,TableInputsData[],$H$6,FALSE) -> 2031 | I124: PRODUCT | J124: =VLOOKUP($I124,TableInputsData[],ReadMe!$M$3,FALSE) -> PRODUIT | K124: PRODUCT 03 | L124: =VLOOKUP($K124,TableInputsData[],ReadMe!$M$3,FALSE) -> PRODUIT 03 | M124: =VLOOKUP(K124,TableInputsData[],$M$6,FALSE) -> DEF | N124: COST OF GOODS SOLD | AH124: =AH100*($V100*$S100+$W100*$T100+$X100*$U100) -> 0 | AI124: 0 | AJ124: 0 | AK124: 0 | AL124: 0 | AM124: 0 | AN124: 0 | AO124: 0 | AP124: 0 | AQ124: 0 | AR124: 0 | AS124: 0 | AU124: =VLOOKUP($K124,TableInputsData[],ReadMe!$M$3,FALSE)&" | "&VLOOKUP($N124,TableInputsData[],ReadMe!$M$3,FALSE) -> PRODUIT 03 | DEPENSES SUR ACHATS | AV124: TRUE
C125: 118 | D125: 1 | F125: =F101 -> YEAR-2 | G125: =VLOOKUP($F125,TableInputsData[],ReadMe!$M$3,FALSE) -> ANNEE-2 | H125: =VLOOKUP(F125,TableInputsData[],$H$6,FALSE) -> 2024 | I125: PRODUCT | J125: =VLOOKUP($I125,TableInputsData[],ReadMe!$M$3,FALSE) -> PRODUIT | K125: PRODUCT 03 | L125: =VLOOKUP($K125,TableInputsData[],ReadMe!$M$3,FALSE) -> PRODUIT 03 | M125: =VLOOKUP(K125,TableInputsData[],$M$6,FALSE) -> DEF | N125: AVERAGE COST OF GOODS SOLD PER UNIT | AH125: =IF(AH93=0,0,AH117/AH93) -> 0 | AI125: =IF(AI93=0,0,AI117/AI93) -> 0 | AJ125: 0 | AK125: 0 | AL125: 0 | AM125: =IF(AM93=0,0,AM117/AM93) -> 0 | AN125: =IF(AN93=0,0,AN117/AN93) -> 0 | AO125: 0 | AP125: =IF(AP93=0,0,AP117/AP93) -> 0 | AR125: =IF(AR93=0,0,AR117/AR93) -> 0 | AU125: =VLOOKUP($K125,TableInputsData[],ReadMe!$M$3,FALSE)&" | "&VLOOKUP($N125,TableInputsData[],ReadMe!$M$3,FALSE) -> PRODUIT 03 | PRIX MOYEN D'ACHAT PAR PRODUIT/SERVICE
C126: 119 | D126: 1 | F126: YEAR-1 | G126: =VLOOKUP($F126,TableInputsData[],ReadMe!$M$3,FALSE) -> ANNEE-1 | H126: =VLOOKUP(F126,TableInputsData[],$H$6,FALSE) -> 2025 | I126: PRODUCT | J126: =VLOOKUP($I126,TableInputsData[],ReadMe!$M$3,FALSE) -> PRODUIT | K126: PRODUCT 03 | L126: =VLOOKUP($K126,TableInputsData[],ReadMe!$M$3,FALSE) -> PRODUIT 03 | M126: =VLOOKUP(K126,TableInputsData[],$M$6,FALSE) -> DEF | N126: =N125 -> AVERAGE COST OF GOODS SOLD PER UNIT | AH126: =IF(AH94=0,0,AH118/AH94) -> 0 | AI126: 0 | AJ126: 0 | AK126: 0 | AL126: 0 | AM126: 0 | AN126: 0 | AO126: 0 | AP126: =IF(AP94=0,0,AP118/AP94) -> 0 | AR126: =IF(AR94=0,0,AR118/AR94) -> 0 | AU126: =VLOOKUP($K126,TableInputsData[],ReadMe!$M$3,FALSE)&" | "&VLOOKUP($N126,TableInputsData[],ReadMe!$M$3,FALSE) -> PRODUIT 03 | PRIX MOYEN D'ACHAT PAR PRODUIT/SERVICE
C127: 120 | D127: 1 | F127: CURRENT YEAR | G127: =VLOOKUP($F127,TableInputsData[],ReadMe!$M$3,FALSE) -> ANNEE EN COURS | H127: =VLOOKUP(F127,TableInputsData[],$H$6,FALSE) -> 2026 | I127: PRODUCT | J127: =VLOOKUP($I127,TableInputsData[],ReadMe!$M$3,FALSE) -> PRODUIT | K127: PRODUCT 03 | L127: =VLOOKUP($K127,TableInputsData[],ReadMe!$M$3,FALSE) -> PRODUIT 03 | M127: =VLOOKUP(K127,TableInputsData[],$M$6,FALSE) -> DEF | N127: =N126 -> AVERAGE COST OF GOODS SOLD PER UNIT | AH127: =IF(AH95=0,0,AH119/AH95) -> 0 | AI127: 0 | AJ127: 0 | AK127: 0 | AL127: 0 | AM127: 0 | AN127: 0 | AO127: 0 | AP127: =IF(AP95=0,0,AP119/AP95) -> 0 | AR127: =IF(AR95=0,0,AR119/AR95) -> 0 | AU127: =VLOOKUP($K127,TableInputsData[],ReadMe!$M$3,FALSE)&" | "&VLOOKUP($N127,TableInputsData[],ReadMe!$M$3,FALSE) -> PRODUIT 03 | PRIX MOYEN D'ACHAT PAR PRODUIT/SERVICE
C128: 121 | D128: 1 | F128: YEAR2 | G128: =VLOOKUP($F128,TableInputsData[],ReadMe!$M$3,FALSE) -> ANNEE2 | H128: =VLOOKUP(F128,TableInputsData[],$H$6,FALSE) -> 2027 | I128: PRODUCT | J128: =VLOOKUP($I128,TableInputsData[],ReadMe!$M$3,FALSE) -> PRODUIT | K128: PRODUCT 03 | L128: =VLOOKUP($K128,TableInputsData[],ReadMe!$M$3,FALSE) -> PRODUIT 03 | M128: =VLOOKUP(K128,TableInputsData[],$M$6,FALSE) -> DEF | N128: AVERAGE COST OF GOODS SOLD PER UNIT | AH128: =IF(AH96=0,0,AH120/AH96) -> 0 | AI128: 0 | AJ128: 0 | AK128: 0 | AL128: 0 | AM128: 0 | AN128: 0 | AO128: 0 | AP128: 0 | AR128: =IF(AR96=0,0,AR120/AR96) -> 0 | AU128: =VLOOKUP($K128,TableInputsData[],ReadMe!$M$3,FALSE)&" | "&VLOOKUP($N128,TableInputsData[],ReadMe!$M$3,FALSE) -> PRODUIT 03 | PRIX MOYEN D'ACHAT PAR PRODUIT/SERVICE
C129: 122 | D129: 1 | F129: YEAR3 | G129: =VLOOKUP($F129,TableInputsData[],ReadMe!$M$3,FALSE) -> ANNEE3 | H129: =VLOOKUP(F129,TableInputsData[],$H$6,FALSE) -> 2028 | I129: PRODUCT | J129: =VLOOKUP($I129,TableInputsData[],ReadMe!$M$3,FALSE) -> PRODUIT | K129: PRODUCT 03 | L129: =VLOOKUP($K129,TableInputsData[],ReadMe!$M$3,FALSE) -> PRODUIT 03 | M129: =VLOOKUP(K129,TableInputsData[],$M$6,FALSE) -> DEF | N129: AVERAGE COST OF GOODS SOLD PER UNIT | AH129: =IF(AH97=0,0,AH121/AH97) -> 0 | AI129: 0 | AJ129: 0 | AK129: 0 | AL129: 0 | AM129: 0 | AN129: 0 | AO129: 0 | AP129: 0 | AR129: =IF(AR97=0,0,AR121/AR97) -> 0 | AU129: =VLOOKUP($K129,TableInputsData[],ReadMe!$M$3,FALSE)&" | "&VLOOKUP($N129,TableInputsData[],ReadMe!$M$3,FALSE) -> PRODUIT 03 | PRIX MOYEN D'ACHAT PAR PRODUIT/SERVICE
C130: 123 | D130: 1 | F130: YEAR4 | G130: =VLOOKUP($F130,TableInputsData[],ReadMe!$M$3,FALSE) -> ANNEE4 | H130: =VLOOKUP(F130,TableInputsData[],$H$6,FALSE) -> 2029 | I130: PRODUCT | J130: =VLOOKUP($I130,TableInputsData[],ReadMe!$M$3,FALSE) -> PRODUIT | K130: PRODUCT 03 | L130: =VLOOKUP($K130,TableInputsData[],ReadMe!$M$3,FALSE) -> PRODUIT 03 | M130: =VLOOKUP(K130,TableInputsData[],$M$6,FALSE) -> DEF | N130: AVERAGE COST OF GOODS SOLD PER UNIT | AH130: =IF(AH98=0,0,AH122/AH98) -> 0 | AI130: 0 | AJ130: 0 | AK130: 0 | AL130: 0 | AM130: 0 | AN130: 0 | AO130: 0 | AP130: 0 | AR130: =IF(AR98=0,0,AR122/AR98) -> 0 | AU130: =VLOOKUP($K130,TableInputsData[],ReadMe!$M$3,FALSE)&" | "&VLOOKUP($N130,TableInputsData[],ReadMe!$M$3,FALSE) -> PRODUIT 03 | PRIX MOYEN D'ACHAT PAR PRODUIT/SERVICE
C131: 124 | D131: 1 | F131: YEAR5 | G131: =VLOOKUP($F131,TableInputsData[],ReadMe!$M$3,FALSE) -> ANNEE5 | H131: =VLOOKUP(F131,TableInputsData[],$H$6,FALSE) -> 2030 | I131: PRODUCT | J131: =VLOOKUP($I131,TableInputsData[],ReadMe!$M$3,FALSE) -> PRODUIT | K131: PRODUCT 03 | L131: =VLOOKUP($K131,TableInputsData[],ReadMe!$M$3,FALSE) -> PRODUIT 03 | M131: =VLOOKUP(K131,TableInputsData[],$M$6,FALSE) -> DEF | N131: AVERAGE COST OF GOODS SOLD PER UNIT | AH131: =IF(AH99=0,0,AH123/AH99) -> 0 | AI131: 0 | AJ131: 0 | AK131: 0 | AL131: 0 | AM131: 0 | AN131: 0 | AO131: 0 | AP131: 0 | AR131: =IF(AR99=0,0,AR123/AR99) -> 0 | AU131: =VLOOKUP($K131,TableInputsData[],ReadMe!$M$3,FALSE)&" | "&VLOOKUP($N131,TableInputsData[],ReadMe!$M$3,FALSE) -> PRODUIT 03 | PRIX MOYEN D'ACHAT PAR PRODUIT/SERVICE
C132: 125 | D132: 1 | F132: YEAR6 | G132: =VLOOKUP($F132,TableInputsData[],ReadMe!$M$3,FALSE) -> ANNEE6 | H132: =VLOOKUP(F132,TableInputsData[],$H$6,FALSE) -> 2031 | I132: PRODUCT | J132: =VLOOKUP($I132,TableInputsData[],ReadMe!$M$3,FALSE) -> PRODUIT | K132: PRODUCT 03 | L132: =VLOOKUP($K132,TableInputsData[],ReadMe!$M$3,FALSE) -> PRODUIT 03 | M132: =VLOOKUP(K132,TableInputsData[],$M$6,FALSE) -> DEF | N132: AVERAGE COST OF GOODS SOLD PER UNIT | AH132: =IF(AH100=0,0,AH124/AH100) -> 0 | AI132: 0 | AJ132: 0 | AK132: 0 | AL132: 0 | AM132: 0 | AN132: 0 | AO132: 0 | AP132: 0 | AR132: =IF(AR100=0,0,AR124/AR100) -> 0 | AU132: =VLOOKUP($K132,TableInputsData[],ReadMe!$M$3,FALSE)&" | "&VLOOKUP($N132,TableInputsData[],ReadMe!$M$3,FALSE) -> PRODUIT 03 | PRIX MOYEN D'ACHAT PAR PRODUIT/SERVICE
C133: 126 | D133: 0 | E133: 1
B134: =K135&"___" -> PRODUCT 04___ | C134: 127 | D134: 0
C135: 128 | D135: =VLOOKUP($K135,TableInputsData[],$D$6,FALSE) -> 1 | E135: 1 | F135: YEAR-2 | G135: =VLOOKUP($F135,TableInputsData[],ReadMe!$M$3,FALSE) -> ANNEE-2 | H135: =VLOOKUP(F135,TableInputsData[],$H$6,FALSE) -> 2024 | I135: PRODUCT | J135: =VLOOKUP($I135,TableInputsData[],ReadMe!$M$3,FALSE) -> PRODUIT | K135: PRODUCT 04 | L135: =VLOOKUP($K135,TableInputsData[],ReadMe!$M$3,FALSE) -> PRODUIT 04 | M135: =VLOOKUP(K135,TableInputsData[],$M$6,FALSE) -> GHI | N135: VOLUME | O135: 1000 | P135: 0 | Q135: 0 | R135: =$O135*$S135+$P135*$T135+$Q135*$U135 -> 1000 | S135: 1 | T135: 0 | U135: =1-$S135-$T135 -> 0 | V135: 500 | W135: 0 | X135: 0 | Y135: =AL167 -> 0 | Z135: 1 | AA135: 1 | AB135: 1 | AC135: =1-$Z135 -> 0 | AD135: =1-$AA135 -> 0 | AE135: =1-$AB135 -> 0 | AF135: =AP167 -> 0 | AG135: =AR167 -> 0 | AH135: 0 | AI135: 0 | AJ135: 0 | AK135: 0 | AL135: =$AH135+$AI135+$AJ135+$AK135 -> 0 | AM135: =$AL135*$S135 -> 0 | AN135: =$AL135*$T135 -> 0 | AO135: =$AL135*$U135 -> 0 | AP135: =$AM135*$Z135+$AN135*$AA135+$AO135*$AB135 -> 0 | AQ135: =IF(AL135=0,0,AP135/AL135) -> 0 | AR135: =$AM135*$AC135+$AN135*$AD135+$AO135*$AE135 -> 0 | AS135: =IF(AL135=0,0,AR135/AL135) -> 0 | AT135: =VLOOKUP(K135,TableInputsData[],$AT$6,FALSE) -> GAMME # : 1 + CANAL DE DISTRIBUTION # : 1 | AU135: =VLOOKUP($K135,TableInputsData[],ReadMe!$M$3,FALSE)&" | "&VLOOKUP($N135,TableInputsData[],ReadMe!$M$3,FALSE) -> PRODUIT 04 | VOLUME | AV135: =AND(EXACT(ROUND(AL135,2),ROUND(AM135+AN135+AO135,2)),EXACT(ROUND(AL135,2),ROUND(AP135+AR135,2)),EXACT(SUM(S135:U135),1),IF(U135<0,FALSE,TRUE),EXACT(SUM(Z135:AE135),3),MIN(Z135:AB135)>=0, MAX(Z135:AB135)<=1) -> TRUE
C136: 129 | D136: =D135 -> 1 | E136: 1 | F136: YEAR-1 | G136: =VLOOKUP($F136,TableInputsData[],ReadMe!$M$3,FALSE) -> ANNEE-1 | H136: =VLOOKUP(F136,TableInputsData[],$H$6,FALSE) -> 2025 | I136: =I135 -> PRODUCT | J136: =VLOOKUP($I136,TableInputsData[],ReadMe!$M$3,FALSE) -> PRODUIT | K136: =K135 -> PRODUCT 04 | L136: =VLOOKUP($K136,TableInputsData[],ReadMe!$M$3,FALSE) -> PRODUIT 04 | M136: =VLOOKUP(K136,TableInputsData[],$M$6,FALSE) -> GHI | N136: =N135 -> VOLUME | O136: 1000 | P136: 0 | Q136: 0 | R136: 1000 | S136: 1 | T136: 0 | U136: =1-$S136-$T136 -> 0 | V136: 500 | W136: 0 | X136: 0 | Y136: =AL168 -> 0 | Z136: 1 | AA136: 1 | AB136: 1 | AC136: 0 | AD136: 0 | AE136: 0 | AF136: =AP168 -> 0 | AG136: =AR168 -> 0 | AH136: 0 | AI136: 0 | AJ136: 0 | AK136: 0 | AL136: 0 | AM136: 0 | AN136: 0 | AO136: 0 | AP136: 0 | AQ136: =IF(AL136=0,0,AP136/AL136) -> 0 | AR136: 0 | AS136: 0 | AU136: =VLOOKUP($K136,TableInputsData[],ReadMe!$M$3,FALSE)&" | "&VLOOKUP($N136,TableInputsData[],ReadMe!$M$3,FALSE) -> PRODUIT 04 | VOLUME | AV136: TRUE
C137: 130 | D137: =D136 -> 1 | E137: 1 | F137: CURRENT YEAR | G137: =VLOOKUP($F137,TableInputsData[],ReadMe!$M$3,FALSE) -> ANNEE EN COURS | H137: =VLOOKUP(F137,TableInputsData[],$H$6,FALSE) -> 2026 | I137: =I136 -> PRODUCT | J137: =VLOOKUP($I137,TableInputsData[],ReadMe!$M$3,FALSE) -> PRODUIT | K137: PRODUCT 04 | L137: =VLOOKUP($K137,TableInputsData[],ReadMe!$M$3,FALSE) -> PRODUIT 04 | M137: =VLOOKUP(K137,TableInputsData[],$M$6,FALSE) -> GHI | N137: =N136 -> VOLUME | O137: 1000 | P137: 0 | Q137: 0 | R137: 1000 | S137: 1 | T137: 0 | U137: 0 | V137: 500 | W137: 0 | X137: 0 | Y137: 0 | Z137: 1 | AA137: 1 | AB137: 1 | AC137: 0 | AD137: 0 | AE137: 0 | AF137: 0 | AG137: 0 | AH137: 0 | AI137: 0 | AJ137: 0 | AK137: 0 | AL137: 0 | AM137: 0 | AN137: 0 | AO137: 0 | AP137: 0 | AQ137: 0 | AR137: 0 | AS137: 0 | AU137: =VLOOKUP($K137,TableInputsData[],ReadMe!$M$3,FALSE)&" | "&VLOOKUP($N137,TableInputsData[],ReadMe!$M$3,FALSE) -> PRODUIT 04 | VOLUME | AV137: TRUE
C138: 131 | D138: 1 | E138: 1 | F138: YEAR2 | G138: =VLOOKUP($F138,TableInputsData[],ReadMe!$M$3,FALSE) -> ANNEE2 | H138: =VLOOKUP(F138,TableInputsData[],$H$6,FALSE) -> 2027 | I138: PRODUCT | J138: =VLOOKUP($I138,TableInputsData[],ReadMe!$M$3,FALSE) -> PRODUIT | K138: PRODUCT 04 | L138: =VLOOKUP($K138,TableInputsData[],ReadMe!$M$3,FALSE) -> PRODUIT 04 | M138: =VLOOKUP(K138,TableInputsData[],$M$6,FALSE) -> GHI | N138: VOLUME | O138: 1000 | P138: 0 | Q138: 0 | R138: 1000 | S138: 1 | T138: 0 | U138: 0 | V138: 500 | W138: 0 | X138: 0 | Y138: 0 | Z138: 1 | AA138: 1 | AB138: 1 | AC138: 0 | AD138: 0 | AE138: 0 | AF138: 0 | AG138: 0 | AH138: 0 | AI138: 0 | AJ138: 0 | AK138: 0 | AL138: 0 | AM138: 0 | AN138: 0 | AO138: 0 | AP138: 0 | AQ138: 0 | AR138: 0 | AS138: 0 | AU138: =VLOOKUP($K138,TableInputsData[],ReadMe!$M$3,FALSE)&" | "&VLOOKUP($N138,TableInputsData[],ReadMe!$M$3,FALSE) -> PRODUIT 04 | VOLUME | AV138: TRUE
C139: 132 | D139: 1 | E139: 1 | F139: YEAR3 | G139: =VLOOKUP($F139,TableInputsData[],ReadMe!$M$3,FALSE) -> ANNEE3 | H139: =VLOOKUP(F139,TableInputsData[],$H$6,FALSE) -> 2028 | I139: PRODUCT | J139: =VLOOKUP($I139,TableInputsData[],ReadMe!$M$3,FALSE) -> PRODUIT | K139: PRODUCT 04 | L139: =VLOOKUP($K139,TableInputsData[],ReadMe!$M$3,FALSE) -> PRODUIT 04 | M139: =VLOOKUP(K139,TableInputsData[],$M$6,FALSE) -> GHI | N139: VOLUME | O139: 1000 | P139: 0 | Q139: 0 | R139: 1000 | S139: 1 | T139: 0 | U139: 0 | V139: 500 | W139: 0 | X139: 0 | Y139: 0 | Z139: 1 | AA139: 1 | AB139: 1 | AC139: 0 | AD139: 0 | AE139: 0 | AF139: 0 | AG139: 0 | AH139: =$AL139/4 -> 0 | AI139: =$AL139/4 -> 0 | AJ139: 0 | AK139: 0 | AL139: 0 | AM139: 0 | AN139: 0 | AO139: 0 | AP139: 0 | AQ139: 0 | AR139: 0 | AS139: 0 | AU139: =VLOOKUP($K139,TableInputsData[],ReadMe!$M$3,FALSE)&" | "&VLOOKUP($N139,TableInputsData[],ReadMe!$M$3,FALSE) -> PRODUIT 04 | VOLUME | AV139: TRUE
C140: 133 | D140: 1 | E140: 1 | F140: YEAR4 | G140: =VLOOKUP($F140,TableInputsData[],ReadMe!$M$3,FALSE) -> ANNEE4 | H140: =VLOOKUP(F140,TableInputsData[],$H$6,FALSE) -> 2029 | I140: PRODUCT | J140: =VLOOKUP($I140,TableInputsData[],ReadMe!$M$3,FALSE) -> PRODUIT | K140: PRODUCT 04 | L140: =VLOOKUP($K140,TableInputsData[],ReadMe!$M$3,FALSE) -> PRODUIT 04 | M140: =VLOOKUP(K140,TableInputsData[],$M$6,FALSE) -> GHI | N140: VOLUME | O140: 1000 | P140: 0 | Q140: 0 | R140: 1000 | S140: 1 | T140: 0 | U140: 0 | V140: 500 | W140: 0 | X140: 0 | Y140: 0 | Z140: 1 | AA140: 1 | AB140: 1 | AC140: 0 | AD140: 0 | AE140: 0 | AF140: 0 | AG140: 0 | AH140: =$AL140/4 -> 0 | AI140: 0 | AJ140: 0 | AK140: 0 | AL140: 0 | AM140: 0 | AN140: 0 | AO140: 0 | AP140: 0 | AQ140: 0 | AR140: 0 | AS140: 0 | AU140: =VLOOKUP($K140,TableInputsData[],ReadMe!$M$3,FALSE)&" | "&VLOOKUP($N140,TableInputsData[],ReadMe!$M$3,FALSE) -> PRODUIT 04 | VOLUME | AV140: TRUE
C141: 134 | D141: 1 | E141: 1 | F141: YEAR5 | G141: =VLOOKUP($F141,TableInputsData[],ReadMe!$M$3,FALSE) -> ANNEE5 | H141: =VLOOKUP(F141,TableInputsData[],$H$6,FALSE) -> 2030 | I141: PRODUCT | J141: =VLOOKUP($I141,TableInputsData[],ReadMe!$M$3,FALSE) -> PRODUIT | K141: PRODUCT 04 | L141: =VLOOKUP($K141,TableInputsData[],ReadMe!$M$3,FALSE) -> PRODUIT 04 | M141: =VLOOKUP(K141,TableInputsData[],$M$6,FALSE) -> GHI | N141: VOLUME | O141: 1000 | P141: 0 | Q141: 0 | R141: 1000 | S141: 1 | T141: 0 | U141: 0 | V141: 500 | W141: 0 | X141: 0 | Y141: 0 | Z141: 1 | AA141: 1 | AB141: 1 | AC141: 0 | AD141: 0 | AE141: 0 | AF141: 0 | AG141: 0 | AH141: 0 | AI141: 0 | AJ141: 0 | AK141: 0 | AL141: 0 | AM141: 0 | AN141: 0 | AO141: 0 | AP141: 0 | AQ141: 0 | AR141: 0 | AS141: 0 | AU141: =VLOOKUP($K141,TableInputsData[],ReadMe!$M$3,FALSE)&" | "&VLOOKUP($N141,TableInputsData[],ReadMe!$M$3,FALSE) -> PRODUIT 04 | VOLUME | AV141: TRUE
C142: 135 | D142: 1 | E142: 1 | F142: YEAR6 | G142: =VLOOKUP($F142,TableInputsData[],ReadMe!$M$3,FALSE) -> ANNEE6 | H142: =VLOOKUP(F142,TableInputsData[],$H$6,FALSE) -> 2031 | I142: PRODUCT | J142: =VLOOKUP($I142,TableInputsData[],ReadMe!$M$3,FALSE) -> PRODUIT | K142: PRODUCT 04 | L142: =VLOOKUP($K142,TableInputsData[],ReadMe!$M$3,FALSE) -> PRODUIT 04 | M142: =VLOOKUP(K142,TableInputsData[],$M$6,FALSE) -> GHI | N142: VOLUME | O142: 1000 | P142: 0 | Q142: 0 | R142: 1000 | S142: 1 | T142: 0 | U142: 0 | V142: 500 | W142: 0 | X142: 0 | Y142: 0 | Z142: 1 | AA142: 1 | AB142: 1 | AC142: 0 | AD142: 0 | AE142: 0 | AF142: 0 | AG142: 0 | AH142: 0 | AI142: 0 | AJ142: 0 | AK142: 0 | AL142: 0 | AM142: 0 | AN142: 0 | AO142: 0 | AP142: 0 | AQ142: 0 | AR142: 0 | AS142: 0 | AU142: =VLOOKUP($K142,TableInputsData[],ReadMe!$M$3,FALSE)&" | "&VLOOKUP($N142,TableInputsData[],ReadMe!$M$3,FALSE) -> PRODUIT 04 | VOLUME | AV142: TRUE
C143: 136 | D143: 1 | F143: =F151 -> YEAR-2 | G143: =VLOOKUP($F143,TableInputsData[],ReadMe!$M$3,FALSE) -> ANNEE-2 | H143: =VLOOKUP(F143,TableInputsData[],$H$6,FALSE) -> 2024 | I143: PRODUCT | J143: =VLOOKUP($I143,TableInputsData[],ReadMe!$M$3,FALSE) -> PRODUIT | K143: PRODUCT 04 | L143: =VLOOKUP($K143,TableInputsData[],ReadMe!$M$3,FALSE) -> PRODUIT 04 | M143: =VLOOKUP(K143,TableInputsData[],$M$6,FALSE) -> GHI | N143: REVENUE | AH143: =AH135*($O135*$S135+$P135*$T135+$Q135*$U135) -> 0 | AI143: =AI135*($O135*$S135+$P135*$T135+$Q135*$U135) -> 0 | AJ143: 0 | AK143: 0 | AL143: =$AH143+$AI143+$AJ143+$AK143 -> 0 | AM143: =$AM135*$O135 -> 0 | AN143: =$AN135*$P135 -> 0 | AO143: =$AO135*$Q135 -> 0 | AP143: =$AM143*$Z135+$AN143*$AA135+$AO143*$AB135 -> 0 | AQ143: 0 | AR143: =$AM143*$AC135+$AN143*$AD135+$AO143*$AE135 -> 0 | AS143: 0 | AU143: =VLOOKUP($K143,TableInputsData[],ReadMe!$M$3,FALSE)&" | "&VLOOKUP($N143,TableInputsData[],ReadMe!$M$3,FALSE) -> PRODUIT 04 | CHIFFRE D'AFFAIRES | AV143: =AND(EXACT(ROUND(AL143,2),ROUND(AM143+AN143+AO143,2)),EXACT(ROUND(AL143,2),ROUND(AP143+AR143,2))) -> TRUE
C144: 137 | D144: 1 | F144: YEAR-1 | G144: =VLOOKUP($F144,TableInputsData[],ReadMe!$M$3,FALSE) -> ANNEE-1 | H144: =VLOOKUP(F144,TableInputsData[],$H$6,FALSE) -> 2025 | I144: PRODUCT | J144: =VLOOKUP($I144,TableInputsData[],ReadMe!$M$3,FALSE) -> PRODUIT | K144: PRODUCT 04 | L144: =VLOOKUP($K144,TableInputsData[],ReadMe!$M$3,FALSE) -> PRODUIT 04 | M144: =VLOOKUP(K144,TableInputsData[],$M$6,FALSE) -> GHI | N144: =N143 -> REVENUE | AH144: =AH136*($O136*$S136+$P136*$T136+$Q136*$U136) -> 0 | AI144: 0 | AJ144: 0 | AK144: 0 | AL144: =$AH144+$AI144+$AJ144+$AK144 -> 0 | AM144: 0 | AN144: 0 | AO144: 0 | AP144: 0 | AQ144: 0 | AR144: 0 | AS144: 0 | AU144: =VLOOKUP($K144,TableInputsData[],ReadMe!$M$3,FALSE)&" | "&VLOOKUP($N144,TableInputsData[],ReadMe!$M$3,FALSE) -> PRODUIT 04 | CHIFFRE D'AFFAIRES | AV144: TRUE
C145: 138 | D145: 1 | F145: CURRENT YEAR | G145: =VLOOKUP($F145,TableInputsData[],ReadMe!$M$3,FALSE) -> ANNEE EN COURS | H145: =VLOOKUP(F145,TableInputsData[],$H$6,FALSE) -> 2026 | I145: PRODUCT | J145: =VLOOKUP($I145,TableInputsData[],ReadMe!$M$3,FALSE) -> PRODUIT | K145: PRODUCT 04 | L145: =VLOOKUP($K145,TableInputsData[],ReadMe!$M$3,FALSE) -> PRODUIT 04 | M145: =VLOOKUP(K145,TableInputsData[],$M$6,FALSE) -> GHI | N145: =N144 -> REVENUE | AH145: =AH137*($O137*$S137+$P137*$T137+$Q137*$U137) -> 0 | AI145: 0 | AJ145: 0 | AK145: 0 | AL145: 0 | AM145: 0 | AN145: 0 | AO145: 0 | AP145: 0 | AQ145: 0 | AR145: 0 | AS145: 0 | AU145: =VLOOKUP($K145,TableInputsData[],ReadMe!$M$3,FALSE)&" | "&VLOOKUP($N145,TableInputsData[],ReadMe!$M$3,FALSE) -> PRODUIT 04 | CHIFFRE D'AFFAIRES | AV145: TRUE
C146: 139 | D146: 1 | F146: YEAR2 | G146: =VLOOKUP($F146,TableInputsData[],ReadMe!$M$3,FALSE) -> ANNEE2 | H146: =VLOOKUP(F146,TableInputsData[],$H$6,FALSE) -> 2027 | I146: PRODUCT | J146: =VLOOKUP($I146,TableInputsData[],ReadMe!$M$3,FALSE) -> PRODUIT | K146: PRODUCT 04 | L146: =VLOOKUP($K146,TableInputsData[],ReadMe!$M$3,FALSE) -> PRODUIT 04 | M146: =VLOOKUP(K146,TableInputsData[],$M$6,FALSE) -> GHI | N146: REVENUE | AH146: =AH138*($O138*$S138+$P138*$T138+$Q138*$U138) -> 0 | AI146: 0 | AJ146: 0 | AK146: 0 | AL146: 0 | AM146: 0 | AN146: 0 | AO146: 0 | AP146: 0 | AQ146: 0 | AR146: 0 | AS146: 0 | AU146: =VLOOKUP($K146,TableInputsData[],ReadMe!$M$3,FALSE)&" | "&VLOOKUP($N146,TableInputsData[],ReadMe!$M$3,FALSE) -> PRODUIT 04 | CHIFFRE D'AFFAIRES | AV146: TRUE
C147: 140 | D147: 1 | F147: YEAR3 | G147: =VLOOKUP($F147,TableInputsData[],ReadMe!$M$3,FALSE) -> ANNEE3 | H147: =VLOOKUP(F147,TableInputsData[],$H$6,FALSE) -> 2028 | I147: PRODUCT | J147: =VLOOKUP($I147,TableInputsData[],ReadMe!$M$3,FALSE) -> PRODUIT | K147: PRODUCT 04 | L147: =VLOOKUP($K147,TableInputsData[],ReadMe!$M$3,FALSE) -> PRODUIT 04 | M147: =VLOOKUP(K147,TableInputsData[],$M$6,FALSE) -> GHI | N147: REVENUE | AH147: =AH139*($O139*$S139+$P139*$T139+$Q139*$U139) -> 0 | AI147: 0 | AJ147: 0 | AK147: 0 | AL147: 0 | AM147: 0 | AN147: 0 | AO147: 0 | AP147: 0 | AQ147: 0 | AR147: 0 | AS147: 0 | AU147: =VLOOKUP($K147,TableInputsData[],ReadMe!$M$3,FALSE)&" | "&VLOOKUP($N147,TableInputsData[],ReadMe!$M$3,FALSE) -> PRODUIT 04 | CHIFFRE D'AFFAIRES | AV147: TRUE
C148: 141 | D148: 1 | F148: YEAR4 | G148: =VLOOKUP($F148,TableInputsData[],ReadMe!$M$3,FALSE) -> ANNEE4 | H148: =VLOOKUP(F148,TableInputsData[],$H$6,FALSE) -> 2029 | I148: PRODUCT | J148: =VLOOKUP($I148,TableInputsData[],ReadMe!$M$3,FALSE) -> PRODUIT | K148: PRODUCT 04 | L148: =VLOOKUP($K148,TableInputsData[],ReadMe!$M$3,FALSE) -> PRODUIT 04 | M148: =VLOOKUP(K148,TableInputsData[],$M$6,FALSE) -> GHI | N148: REVENUE | AH148: =AH140*($O140*$S140+$P140*$T140+$Q140*$U140) -> 0 | AI148: 0 | AJ148: 0 | AK148: 0 | AL148: 0 | AM148: 0 | AN148: 0 | AO148: 0 | AP148: 0 | AQ148: 0 | AR148: 0 | AS148: 0 | AU148: =VLOOKUP($K148,TableInputsData[],ReadMe!$M$3,FALSE)&" | "&VLOOKUP($N148,TableInputsData[],ReadMe!$M$3,FALSE) -> PRODUIT 04 | CHIFFRE D'AFFAIRES | AV148: TRUE
C149: 142 | D149: 1 | F149: YEAR5 | G149: =VLOOKUP($F149,TableInputsData[],ReadMe!$M$3,FALSE) -> ANNEE5 | H149: =VLOOKUP(F149,TableInputsData[],$H$6,FALSE) -> 2030 | I149: PRODUCT | J149: =VLOOKUP($I149,TableInputsData[],ReadMe!$M$3,FALSE) -> PRODUIT | K149: PRODUCT 04 | L149: =VLOOKUP($K149,TableInputsData[],ReadMe!$M$3,FALSE) -> PRODUIT 04 | M149: =VLOOKUP(K149,TableInputsData[],$M$6,FALSE) -> GHI | N149: REVENUE | AH149: =AH141*($O141*$S141+$P141*$T141+$Q141*$U141) -> 0 | AI149: 0 | AJ149: 0 | AK149: 0 | AL149: 0 | AM149: 0 | AN149: 0 | AO149: 0 | AP149: 0 | AQ149: 0 | AR149: 0 | AS149: 0 | AU149: =VLOOKUP($K149,TableInputsData[],ReadMe!$M$3,FALSE)&" | "&VLOOKUP($N149,TableInputsData[],ReadMe!$M$3,FALSE) -> PRODUIT 04 | CHIFFRE D'AFFAIRES | AV149: TRUE
C150: 143 | D150: 1 | F150: YEAR6 | G150: =VLOOKUP($F150,TableInputsData[],ReadMe!$M$3,FALSE) -> ANNEE6 | H150: =VLOOKUP(F150,TableInputsData[],$H$6,FALSE) -> 2031 | I150: PRODUCT | J150: =VLOOKUP($I150,TableInputsData[],ReadMe!$M$3,FALSE) -> PRODUIT | K150: PRODUCT 04 | L150: =VLOOKUP($K150,TableInputsData[],ReadMe!$M$3,FALSE) -> PRODUIT 04 | M150: =VLOOKUP(K150,TableInputsData[],$M$6,FALSE) -> GHI | N150: REVENUE | AH150: =AH142*($O142*$S142+$P142*$T142+$Q142*$U142) -> 0 | AI150: 0 | AJ150: 0 | AK150: 0 | AL150: =$AH150+$AI150+$AJ150+$AK150 -> 0 | AM150: 0 | AN150: 0 | AO150: 0 | AP150: 0 | AQ150: 0 | AR150: 0 | AS150: 0 | AU150: =VLOOKUP($K150,TableInputsData[],ReadMe!$M$3,FALSE)&" | "&VLOOKUP($N150,TableInputsData[],ReadMe!$M$3,FALSE) -> PRODUIT 04 | CHIFFRE D'AFFAIRES | AV150: TRUE
C151: 144 | D151: 1 | F151: =F135 -> YEAR-2 | G151: =VLOOKUP($F151,TableInputsData[],ReadMe!$M$3,FALSE) -> ANNEE-2 | H151: =VLOOKUP(F151,TableInputsData[],$H$6,FALSE) -> 2024 | I151: PRODUCT | J151: =VLOOKUP($I151,TableInputsData[],ReadMe!$M$3,FALSE) -> PRODUIT | K151: PRODUCT 04 | L151: =VLOOKUP($K151,TableInputsData[],ReadMe!$M$3,FALSE) -> PRODUIT 04 | M151: =VLOOKUP(K151,TableInputsData[],$M$6,FALSE) -> GHI | N151: AVERAGE SELLING PRICE PER UNIT | AH151: =IF(AH135=0,0,AH143/AH135) -> 0 | AI151: =IF(AI135=0,0,AI143/AI135) -> 0 | AJ151: 0 | AK151: 0 | AL151: 0 | AM151: =IF(AM135=0,0,AM143/AM135) -> 0 | AN151: =IF(AN135=0,0,AN143/AN135) -> 0 | AO151: 0 | AP151: =IF(AP135=0,0,AP143/AP135) -> 0 | AR151: =IF(AR135=0,0,AR143/AR135) -> 0 | AU151: =VLOOKUP($K151,TableInputsData[],ReadMe!$M$3,FALSE)&" | "&VLOOKUP($N151,TableInputsData[],ReadMe!$M$3,FALSE) -> PRODUIT 04 | PRIX MOYEN DE VENTE PAR PRODUIT/SERVICE
C152: 145 | D152: 1 | F152: YEAR-1 | G152: =VLOOKUP($F152,TableInputsData[],ReadMe!$M$3,FALSE) -> ANNEE-1 | H152: =VLOOKUP(F152,TableInputsData[],$H$6,FALSE) -> 2025 | I152: PRODUCT | J152: =VLOOKUP($I152,TableInputsData[],ReadMe!$M$3,FALSE) -> PRODUIT | K152: PRODUCT 04 | L152: =VLOOKUP($K152,TableInputsData[],ReadMe!$M$3,FALSE) -> PRODUIT 04 | M152: =VLOOKUP(K152,TableInputsData[],$M$6,FALSE) -> GHI | N152: =N151 -> AVERAGE SELLING PRICE PER UNIT | AH152: =IF(AH136=0,0,AH144/AH136) -> 0 | AI152: =IF(AI136=0,0,AI144/AI136) -> 0 | AJ152: 0 | AK152: 0 | AL152: 0 | AM152: 0 | AN152: 0 | AO152: 0 | AP152: 0 | AR152: =IF(AR136=0,0,AR144/AR136) -> 0 | AU152: =VLOOKUP($K152,TableInputsData[],ReadMe!$M$3,FALSE)&" | "&VLOOKUP($N152,TableInputsData[],ReadMe!$M$3,FALSE) -> PRODUIT 04 | PRIX MOYEN DE VENTE PAR PRODUIT/SERVICE
C153: 146 | D153: 1 | F153: CURRENT YEAR | G153: =VLOOKUP($F153,TableInputsData[],ReadMe!$M$3,FALSE) -> ANNEE EN COURS | H153: =VLOOKUP(F153,TableInputsData[],$H$6,FALSE) -> 2026 | I153: PRODUCT | J153: =VLOOKUP($I153,TableInputsData[],ReadMe!$M$3,FALSE) -> PRODUIT | K153: PRODUCT 04 | L153: =VLOOKUP($K153,TableInputsData[],ReadMe!$M$3,FALSE) -> PRODUIT 04 | M153: =VLOOKUP(K153,TableInputsData[],$M$6,FALSE) -> GHI | N153: =N152 -> AVERAGE SELLING PRICE PER UNIT | AH153: =IF(AH137=0,0,AH145/AH137) -> 0 | AI153: =IF(AI137=0,0,AI145/AI137) -> 0 | AJ153: 0 | AK153: 0 | AL153: 0 | AM153: 0 | AN153: 0 | AO153: 0 | AP153: 0 | AR153: =IF(AR137=0,0,AR145/AR137) -> 0 | AU153: =VLOOKUP($K153,TableInputsData[],ReadMe!$M$3,FALSE)&" | "&VLOOKUP($N153,TableInputsData[],ReadMe!$M$3,FALSE) -> PRODUIT 04 | PRIX MOYEN DE VENTE PAR PRODUIT/SERVICE
C154: 147 | D154: 1 | F154: YEAR2 | G154: =VLOOKUP($F154,TableInputsData[],ReadMe!$M$3,FALSE) -> ANNEE2 | H154: =VLOOKUP(F154,TableInputsData[],$H$6,FALSE) -> 2027 | I154: PRODUCT | J154: =VLOOKUP($I154,TableInputsData[],ReadMe!$M$3,FALSE) -> PRODUIT | K154: PRODUCT 04 | L154: =VLOOKUP($K154,TableInputsData[],ReadMe!$M$3,FALSE) -> PRODUIT 04 | M154: =VLOOKUP(K154,TableInputsData[],$M$6,FALSE) -> GHI | N154: AVERAGE SELLING PRICE PER UNIT | AH154: =IF(AH138=0,0,AH146/AH138) -> 0 | AI154: =IF(AI138=0,0,AI146/AI138) -> 0 | AJ154: 0 | AK154: 0 | AL154: 0 | AM154: 0 | AN154: 0 | AO154: 0 | AP154: 0 | AR154: =IF(AR138=0,0,AR146/AR138) -> 0 | AU154: =VLOOKUP($K154,TableInputsData[],ReadMe!$M$3,FALSE)&" | "&VLOOKUP($N154,TableInputsData[],ReadMe!$M$3,FALSE) -> PRODUIT 04 | PRIX MOYEN DE VENTE PAR PRODUIT/SERVICE
C155: 148 | D155: 1 | F155: YEAR3 | G155: =VLOOKUP($F155,TableInputsData[],ReadMe!$M$3,FALSE) -> ANNEE3 | H155: =VLOOKUP(F155,TableInputsData[],$H$6,FALSE) -> 2028 | I155: PRODUCT | J155: =VLOOKUP($I155,TableInputsData[],ReadMe!$M$3,FALSE) -> PRODUIT | K155: PRODUCT 04 | L155: =VLOOKUP($K155,TableInputsData[],ReadMe!$M$3,FALSE) -> PRODUIT 04 | M155: =VLOOKUP(K155,TableInputsData[],$M$6,FALSE) -> GHI | N155: AVERAGE SELLING PRICE PER UNIT | AH155: =IF(AH139=0,0,AH147/AH139) -> 0 | AI155: 0 | AJ155: 0 | AK155: 0 | AL155: 0 | AM155: 0 | AN155: 0 | AO155: 0 | AP155: 0 | AR155: =IF(AR139=0,0,AR147/AR139) -> 0 | AU155: =VLOOKUP($K155,TableInputsData[],ReadMe!$M$3,FALSE)&" | "&VLOOKUP($N155,TableInputsData[],ReadMe!$M$3,FALSE) -> PRODUIT 04 | PRIX MOYEN DE VENTE PAR PRODUIT/SERVICE
C156: 149 | D156: 1 | F156: YEAR4 | G156: =VLOOKUP($F156,TableInputsData[],ReadMe!$M$3,FALSE) -> ANNEE4 | H156: =VLOOKUP(F156,TableInputsData[],$H$6,FALSE) -> 2029 | I156: PRODUCT | J156: =VLOOKUP($I156,TableInputsData[],ReadMe!$M$3,FALSE) -> PRODUIT | K156: PRODUCT 04 | L156: =VLOOKUP($K156,TableInputsData[],ReadMe!$M$3,FALSE) -> PRODUIT 04 | M156: =VLOOKUP(K156,TableInputsData[],$M$6,FALSE) -> GHI | N156: AVERAGE SELLING PRICE PER UNIT | AH156: =IF(AH140=0,0,AH148/AH140) -> 0 | AI156: 0 | AJ156: 0 | AK156: 0 | AL156: 0 | AM156: 0 | AN156: 0 | AO156: 0 | AP156: 0 | AR156: =IF(AR140=0,0,AR148/AR140) -> 0 | AU156: =VLOOKUP($K156,TableInputsData[],ReadMe!$M$3,FALSE)&" | "&VLOOKUP($N156,TableInputsData[],ReadMe!$M$3,FALSE) -> PRODUIT 04 | PRIX MOYEN DE VENTE PAR PRODUIT/SERVICE
C157: 150 | D157: 1 | F157: YEAR5 | G157: =VLOOKUP($F157,TableInputsData[],ReadMe!$M$3,FALSE) -> ANNEE5 | H157: =VLOOKUP(F157,TableInputsData[],$H$6,FALSE) -> 2030 | I157: PRODUCT | J157: =VLOOKUP($I157,TableInputsData[],ReadMe!$M$3,FALSE) -> PRODUIT | K157: PRODUCT 04 | L157: =VLOOKUP($K157,TableInputsData[],ReadMe!$M$3,FALSE) -> PRODUIT 04 | M157: =VLOOKUP(K157,TableInputsData[],$M$6,FALSE) -> GHI | N157: AVERAGE SELLING PRICE PER UNIT | AH157: =IF(AH141=0,0,AH149/AH141) -> 0 | AI157: 0 | AJ157: 0 | AK157: 0 | AL157: 0 | AM157: 0 | AN157: 0 | AO157: 0 | AP157: 0 | AR157: =IF(AR141=0,0,AR149/AR141) -> 0 | AU157: =VLOOKUP($K157,TableInputsData[],ReadMe!$M$3,FALSE)&" | "&VLOOKUP($N157,TableInputsData[],ReadMe!$M$3,FALSE) -> PRODUIT 04 | PRIX MOYEN DE VENTE PAR PRODUIT/SERVICE
C158: 151 | D158: 1 | F158: YEAR6 | G158: =VLOOKUP($F158,TableInputsData[],ReadMe!$M$3,FALSE) -> ANNEE6 | H158: =VLOOKUP(F158,TableInputsData[],$H$6,FALSE) -> 2031 | I158: PRODUCT | J158: =VLOOKUP($I158,TableInputsData[],ReadMe!$M$3,FALSE) -> PRODUIT | K158: PRODUCT 04 | L158: =VLOOKUP($K158,TableInputsData[],ReadMe!$M$3,FALSE) -> PRODUIT 04 | M158: =VLOOKUP(K158,TableInputsData[],$M$6,FALSE) -> GHI | N158: AVERAGE SELLING PRICE PER UNIT | AH158: =IF(AH142=0,0,AH150/AH142) -> 0 | AI158: 0 | AJ158: 0 | AK158: 0 | AL158: 0 | AM158: 0 | AN158: 0 | AO158: 0 | AP158: 0 | AR158: =IF(AR142=0,0,AR150/AR142) -> 0 | AU158: =VLOOKUP($K158,TableInputsData[],ReadMe!$M$3,FALSE)&" | "&VLOOKUP($N158,TableInputsData[],ReadMe!$M$3,FALSE) -> PRODUIT 04 | PRIX MOYEN DE VENTE PAR PRODUIT/SERVICE
C159: 152 | D159: 1 | F159: =F167 -> YEAR-2 | G159: =VLOOKUP($F159,TableInputsData[],ReadMe!$M$3,FALSE) -> ANNEE-2 | H159: =VLOOKUP(F159,TableInputsData[],$H$6,FALSE) -> 2024 | I159: PRODUCT | J159: =VLOOKUP($I159,TableInputsData[],ReadMe!$M$3,FALSE) -> PRODUIT | K159: PRODUCT 04 | L159: =VLOOKUP($K159,TableInputsData[],ReadMe!$M$3,FALSE) -> PRODUIT 04 | M159: =VLOOKUP(K159,TableInputsData[],$M$6,FALSE) -> GHI | N159: COST OF GOODS SOLD | AH159: =AH135*($V135*$S135+$W135*$T135+$X135*$U135) -> 0 | AI159: =AI135*($V135*$S135+$W135*$T135+$X135*$U135) -> 0 | AJ159: 0 | AK159: 0 | AL159: =$AH159+$AI159+$AJ159+$AK159 -> 0 | AM159: =$AM135*$V135 -> 0 | AN159: =$AN135*$W135 -> 0 | AO159: =$AO135*$X135 -> 0 | AP159: =$AM159*$Z135+$AN159*$AA135+$AO159*$AB135 -> 0 | AQ159: =IF(AL159=0,0,AP159/AL159) -> 0 | AR159: =$AM159*$AC135+$AN159*$AD135+$AO159*$AE135 -> 0 | AS159: =IF(AL159=0,0,AR159/AL159) -> 0 | AU159: =VLOOKUP($K159,TableInputsData[],ReadMe!$M$3,FALSE)&" | "&VLOOKUP($N159,TableInputsData[],ReadMe!$M$3,FALSE) -> PRODUIT 04 | DEPENSES SUR ACHATS | AV159: =AND(EXACT(ROUND(AL159,2),ROUND(AM159+AN159+AO159,2)),EXACT(ROUND(AL159,2),ROUND(AP159+AR159,2))) -> TRUE
C160: 153 | D160: 1 | F160: YEAR-1 | G160: =VLOOKUP($F160,TableInputsData[],ReadMe!$M$3,FALSE) -> ANNEE-1 | H160: =VLOOKUP(F160,TableInputsData[],$H$6,FALSE) -> 2025 | I160: PRODUCT | J160: =VLOOKUP($I160,TableInputsData[],ReadMe!$M$3,FALSE) -> PRODUIT | K160: PRODUCT 04 | L160: =VLOOKUP($K160,TableInputsData[],ReadMe!$M$3,FALSE) -> PRODUIT 04 | M160: =VLOOKUP(K160,TableInputsData[],$M$6,FALSE) -> GHI | N160: =N159 -> COST OF GOODS SOLD | AH160: =AH136*($V136*$S136+$W136*$T136+$X136*$U136) -> 0 | AI160: 0 | AJ160: 0 | AK160: 0 | AL160: 0 | AM160: 0 | AN160: 0 | AO160: 0 | AP160: 0 | AQ160: 0 | AR160: 0 | AS160: 0 | AU160: =VLOOKUP($K160,TableInputsData[],ReadMe!$M$3,FALSE)&" | "&VLOOKUP($N160,TableInputsData[],ReadMe!$M$3,FALSE) -> PRODUIT 04 | DEPENSES SUR ACHATS | AV160: TRUE
C161: 154 | D161: 1 | F161: CURRENT YEAR | G161: =VLOOKUP($F161,TableInputsData[],ReadMe!$M$3,FALSE) -> ANNEE EN COURS | H161: =VLOOKUP(F161,TableInputsData[],$H$6,FALSE) -> 2026 | I161: PRODUCT | J161: =VLOOKUP($I161,TableInputsData[],ReadMe!$M$3,FALSE) -> PRODUIT | K161: PRODUCT 04 | L161: =VLOOKUP($K161,TableInputsData[],ReadMe!$M$3,FALSE) -> PRODUIT 04 | M161: =VLOOKUP(K161,TableInputsData[],$M$6,FALSE) -> GHI | N161: =N160 -> COST OF GOODS SOLD | AH161: =AH137*($V137*$S137+$W137*$T137+$X137*$U137) -> 0 | AI161: 0 | AJ161: 0 | AK161: 0 | AL161: 0 | AM161: 0 | AN161: 0 | AO161: 0 | AP161: 0 | AQ161: 0 | AR161: 0 | AS161: 0 | AU161: =VLOOKUP($K161,TableInputsData[],ReadMe!$M$3,FALSE)&" | "&VLOOKUP($N161,TableInputsData[],ReadMe!$M$3,FALSE) -> PRODUIT 04 | DEPENSES SUR ACHATS | AV161: TRUE
C162: 155 | D162: 1 | F162: YEAR2 | G162: =VLOOKUP($F162,TableInputsData[],ReadMe!$M$3,FALSE) -> ANNEE2 | H162: =VLOOKUP(F162,TableInputsData[],$H$6,FALSE) -> 2027 | I162: PRODUCT | J162: =VLOOKUP($I162,TableInputsData[],ReadMe!$M$3,FALSE) -> PRODUIT | K162: PRODUCT 04 | L162: =VLOOKUP($K162,TableInputsData[],ReadMe!$M$3,FALSE) -> PRODUIT 04 | M162: =VLOOKUP(K162,TableInputsData[],$M$6,FALSE) -> GHI | N162: COST OF GOODS SOLD | AH162: =AH138*($V138*$S138+$W138*$T138+$X138*$U138) -> 0 | AI162: 0 | AJ162: 0 | AK162: 0 | AL162: 0 | AM162: 0 | AN162: 0 | AO162: 0 | AP162: 0 | AQ162: 0 | AR162: 0 | AS162: 0 | AU162: =VLOOKUP($K162,TableInputsData[],ReadMe!$M$3,FALSE)&" | "&VLOOKUP($N162,TableInputsData[],ReadMe!$M$3,FALSE) -> PRODUIT 04 | DEPENSES SUR ACHATS | AV162: TRUE
C163: 156 | D163: 1 | F163: YEAR3 | G163: =VLOOKUP($F163,TableInputsData[],ReadMe!$M$3,FALSE) -> ANNEE3 | H163: =VLOOKUP(F163,TableInputsData[],$H$6,FALSE) -> 2028 | I163: PRODUCT | J163: =VLOOKUP($I163,TableInputsData[],ReadMe!$M$3,FALSE) -> PRODUIT | K163: PRODUCT 04 | L163: =VLOOKUP($K163,TableInputsData[],ReadMe!$M$3,FALSE) -> PRODUIT 04 | M163: =VLOOKUP(K163,TableInputsData[],$M$6,FALSE) -> GHI | N163: COST OF GOODS SOLD | AH163: =AH139*($V139*$S139+$W139*$T139+$X139*$U139) -> 0 | AI163: 0 | AJ163: 0 | AK163: 0 | AL163: 0 | AM163: 0 | AN163: 0 | AO163: 0 | AP163: 0 | AQ163: 0 | AR163: 0 | AS163: 0 | AU163: =VLOOKUP($K163,TableInputsData[],ReadMe!$M$3,FALSE)&" | "&VLOOKUP($N163,TableInputsData[],ReadMe!$M$3,FALSE) -> PRODUIT 04 | DEPENSES SUR ACHATS | AV163: TRUE
C164: 157 | D164: 1 | F164: YEAR4 | G164: =VLOOKUP($F164,TableInputsData[],ReadMe!$M$3,FALSE) -> ANNEE4 | H164: =VLOOKUP(F164,TableInputsData[],$H$6,FALSE) -> 2029 | I164: PRODUCT | J164: =VLOOKUP($I164,TableInputsData[],ReadMe!$M$3,FALSE) -> PRODUIT | K164: PRODUCT 04 | L164: =VLOOKUP($K164,TableInputsData[],ReadMe!$M$3,FALSE) -> PRODUIT 04 | M164: =VLOOKUP(K164,TableInputsData[],$M$6,FALSE) -> GHI | N164: COST OF GOODS SOLD | AH164: =AH140*($V140*$S140+$W140*$T140+$X140*$U140) -> 0 | AI164: 0 | AJ164: 0 | AK164: 0 | AL164: 0 | AM164: 0 | AN164: 0 | AO164: 0 | AP164: 0 | AQ164: 0 | AR164: 0 | AS164: 0 | AU164: =VLOOKUP($K164,TableInputsData[],ReadMe!$M$3,FALSE)&" | "&VLOOKUP($N164,TableInputsData[],ReadMe!$M$3,FALSE) -> PRODUIT 04 | DEPENSES SUR ACHATS | AV164: TRUE
C165: 158 | D165: 1 | F165: YEAR5 | G165: =VLOOKUP($F165,TableInputsData[],ReadMe!$M$3,FALSE) -> ANNEE5 | H165: =VLOOKUP(F165,TableInputsData[],$H$6,FALSE) -> 2030 | I165: PRODUCT | J165: =VLOOKUP($I165,TableInputsData[],ReadMe!$M$3,FALSE) -> PRODUIT | K165: PRODUCT 04 | L165: =VLOOKUP($K165,TableInputsData[],ReadMe!$M$3,FALSE) -> PRODUIT 04 | M165: =VLOOKUP(K165,TableInputsData[],$M$6,FALSE) -> GHI | N165: COST OF GOODS SOLD | AH165: =AH141*($V141*$S141+$W141*$T141+$X141*$U141) -> 0 | AI165: 0 | AJ165: 0 | AK165: 0 | AL165: 0 | AM165: 0 | AN165: 0 | AO165: 0 | AP165: 0 | AQ165: 0 | AR165: 0 | AS165: 0 | AU165: =VLOOKUP($K165,TableInputsData[],ReadMe!$M$3,FALSE)&" | "&VLOOKUP($N165,TableInputsData[],ReadMe!$M$3,FALSE) -> PRODUIT 04 | DEPENSES SUR ACHATS | AV165: TRUE
